Workbook

Sheet AVS
A1: UML12345 | D1: 100 Hello St | N1: Endeavour Energy | P1: Customer
A3: ="AVS V22 - "&AVS!A1 -> AVS V22 - UML12345 | N3: Endeavour Energy | P3: Customer
A4: L0 | B4: L1 | C4: L2 | D4: L3 | E4: Activity | F4: Cat | G4: Cost | H4: Labor | I4: P&V | J4: Materials | K4: Direct | L4: Reimbursement | M4: Unit | N4: 0 | O4: EE Value | P4: 0 | Q4: C Value
B5: Underground Distribution | O5: =SUBTOTAL(9,O6:O196) -> 0 | Q5: =SUBTOTAL(9,Q6:Q196) -> 0
B6: Trenching & Ducts | O6: =SUBTOTAL(9,O7:O39) -> 0 | Q6: =SUBTOTAL(9,Q7:Q39) -> 0
C7: Trenching | O7: =SUBTOTAL(9,O8:O17) -> 0 | Q7: =SUBTOTAL(9,Q8:Q17) -> 0
D8: HV 22 kV | E8: Light trenching & reinstatement | F8: =VLOOKUP(D8,TrenchVoltage,2,FALSE) -> 26 | G8: =ROUND(SUM(H8:K8),0) -> 103 | H8: =VLOOKUP($E8,Trenching,8,FALSE) -> 36.5411 | I8: =VLOOKUP($E8,Trenching,9,FALSE) -> 11.6093 | J8: =VLOOKUP($E8,Trenching,10,FALSE) -> 0 | K8: =VLOOKUP($E8,Trenching,11,FALSE) -> 55 | M8: =VLOOKUP($E8,Trenching,2,FALSE) -> m | N8: 0 | O8: =IF(N8=0,0,$G8*N8) -> 0 | P8: 0 | Q8: =IF(P8=0,0,$G8*P8) -> 0
D9: HV 11 kV | E9: Light trenching & reinstatement | F9: 27 | G9: =ROUND(SUM(H9:K9),0) -> 103 | H9: 36.5411 | I9: 11.6093 | J9: 0 | K9: 55 | M9: m | N9: 0 | O9: 0 | P9: 0 | Q9: 0
D10: LV | E10: Light trenching & reinstatement | F10: 28 | G10: 103 | H10: 36.5411 | I10: 11.6093 | J10: 0 | K10: 55 | M10: m | N10: 0 | O10: 0 | P10: 0 | Q10: 0
D11: LV | E11: Excavate for STJ | F11: 28 | G11: 692 | H11: 554.31 | I11: 89.21 | J11: 48.53 | K11: 0 | M11: ea | N11: 0 | O11: 0 | P11: 0 | Q11: 0
D12: LV | E12: Light trenching & reinstatement | F12: 28 | G12: 103 | H12: 36.5411 | I12: 11.6093 | J12: 0 | K12: 55 | M12: m | N12: 0 | O12: 0 | P12: 0 | Q12: 0
D13: HV 11 kV | E13: Medium trenching & reinstatement | F13: 27 | G13: 163 | H13: 61.2396 | I13: 19.5096 | J13: 0 | K13: 82.5 | M13: m | N13: 0 | O13: 0 | P13: 0 | Q13: 0
D14: LV | E14: Heavy trenching & reinstatement | F14: 28 | G14: 571 | H14: 216.7144 | I14: 101.4577 | J14: 0 | K14: 252.5 | M14: m | N14: 0 | O14: 0 | P14: 0 | Q14: 0
D15: HV 11 kV | E15: Excavate for STJ | F15: 27 | G15: 692 | H15: 554.31 | I15: 89.21 | J15: 48.53 | K15: 0 | M15: ea | N15: 0 | O15: 0 | P15: 0 | Q15: 0
D16: HV 11 kV | E16: 45 deg concrete encased bend - Network Need Only | F16: 27 | G16: 175 | J16: ='AVS Data'!C96 -> 175 | M16: m | N16: 0 | O16: 0 | P16: 0 | Q16: 0
D17: HV 11 kV | E17: 90 deg concrete encased bend - Network Need Only | F17: 27 | G17: 250 | J17: ='AVS Data'!C97 -> 250 | M17: m | N17: 0 | O17: 0 | P17: 0 | Q17: 0
C18: Lay Ducts | L18: =SUBTOTAL(9,L19:L24) -> 0 | N18: 0 | O18: =SUBTOTAL(9,O19:O27) -> 0 | Q18: =SUBTOTAL(9,Q19:Q27) -> 0
D19: TR 33 kV | E19: Lay HV 150mm Ducts in Trench | F19: 25 | G19: =ROUND(SUM(H19:K19),0) -> 9 | H19: =UG_Trenching!C2 -> 0 | I19: =UG_Trenching!D2 -> 0 | J19: =UG_Trenching!E2 -> 8.991666667 | K19: =UG_Trenching!F2 -> 0 | M19: m | N19: 0 | O19: =IF(N19=0,0,$G19*N19) -> 0 | P19: 0 | Q19: =IF(P19=0,0,$G19*P19) -> 0
D20: 22kV: | E20: Lay 22kV 125mm Ducts in Trench | F20: 26 | G20: 4 | H20: =UG_Trenching!C3 -> 0 | I20: =UG_Trenching!D3 -> 0 | J20: =UG_Trenching!E3 -> 4.1525 | K20: =UG_Trenching!F3 -> 0 | L20: ='Trench & duct detail cal'!$B$54*N20 -> 0 | M20: m | N20: 0 | O20: =IF(N20=0,0,L20) -> 0 | P20: 0 | Q20: 0
D21: 11kV: | E21: Lay 11kV 125mm Ducts in Trench | F21: 27 | G21: 4 | H21: =UG_Trenching!C4 -> 0 | I21: =UG_Trenching!D4 -> 0 | J21: =UG_Trenching!E4 -> 4.1525 | K21: =UG_Trenching!F4 -> 0 | L21: ='Trench & duct detail cal'!$B$54*N21 -> 0 | M21: m | N21: 0 | O21: =IF(N21=0,0,L21) -> 0 | P21: 0 | Q21: 0
D22: LV: | E22: Lay LV 125mm Ducts in Trench | F22: 28 | G22: 4 | H22: =UG_Trenching!C5 -> 0 | I22: =UG_Trenching!D5 -> 0 | J22: =UG_Trenching!E5 -> 4.1525 | K22: =UG_Trenching!F5 -> 0 | L22: ='Trench & duct detail cal'!$B$54*N22 -> 0 | M22: m | N22: 0 | O22: =IF(N22=0,0,L22) -> 0 | P22: 0 | Q22: 0
D23: LV: | E23: Lay LV 50mm Ducts in Trench | F23: 28 | G23: 2 | H23: =UG_Trenching!C6 -> 0 | I23: =UG_Trenching!D6 -> 0 | J23: =UG_Trenching!E6 -> 2.4675 | K23: =UG_Trenching!F6 -> 0 | L23: ='Trench & duct detail cal'!$C$54*N23 -> 0 | M23: m | N23: 0 | O23: =IF(N23=0,0,L23) -> 0 | P23: 0 | Q23: 0
D24: LV: | E24: Lay LV 40mm Ducts in Trench | F24: 28 | G24: 2 | H24: =UG_Trenching!C7 -> 0 | I24: =UG_Trenching!D7 -> 0 | J24: =UG_Trenching!E7 -> 1.8075 | K24: =UG_Trenching!F7 -> 0 | M24: m | N24: 0 | O24: =IF(N24=0,0,$G24*N24) -> 0 | P24: 0 | Q24: 0
D25: HV 11 kV | E25: Greenfield duct 01 | F25: 27 | G25: =VLOOKUP(E25,'AVS Data'!$A$10:$B$27,2,FALSE) -> 61 | M25: m | N25: 0 | O25: =IF(N25=0,0,$G25*N25) -> 0 | P25: 0 | Q25: 0
D26: HV 11 kV | E26: Greenfield duct 03 | F26: 27 | G26: =VLOOKUP(E26,'AVS Data'!$A$10:$B$27,2,FALSE) -> 157 | M26: m | N26: 0 | O26: =IF(N26=0,0,$G26*N26) -> 0 | P26: 0 | Q26: 0
D27: HV 22 kV | E27: Greenfield duct 13 | F27: 26 | G27: =VLOOKUP(E27,'AVS Data'!$A$10:$B$27,2,FALSE) -> 167 | M27: m | N27: 0 | O27: =IF(N27=0,0,$G27*N27) -> 0 | P27: 0 | Q27: 0
C28: Lay Ducts - Urban Subdivision (Superseded as per Important Notice IN 43/18) | L28: =SUBTOTAL(9,L29:L34) -> 0 | N28: 0 | O28: =SUM(O29:O39) -> 0 | P28: 0 | Q28: =SUBTOTAL(9,Q29:Q39) -> 0
D29: Trans: | E29: Lay HV 150mm Ducts in Trench | F29: 24 | G29: =ROUND(SUM(H29:K29),0) -> 9 | H29: =UG_Trenching!C2 -> 0 | I29: =UG_Trenching!D2 -> 0 | J29: =UG_Trenching!E2 -> 8.991666667 | K29: =UG_Trenching!F12 -> 0 | M29: m | N29: 0 | O29: =IF(N29=0,0,$G29*N29) -> 0 | P29: 0 | Q29: =IF(P29=0,0,$G29*P29) -> 0
D30: 22kV: | E30: Lay 22kV 125mm Ducts in Trench | F30: 26 | G30: 4 | H30: =UG_Trenching!C3 -> 0 | I30: =UG_Trenching!D3 -> 0 | J30: =UG_Trenching!E3 -> 4.1525 | K30: =UG_Trenching!F13 -> 0 | L30: ='Trench & duct detail cal'!$B$54*N30 -> 0 | M30: m | N30: 0 | O30: 0 | P30: 0 | Q30: 0
D31: 11kV: | E31: Lay 11kV 125mm Ducts in Trench | F31: 27 | G31: 4 | H31: =UG_Trenching!C4 -> 0 | I31: =UG_Trenching!D4 -> 0 | J31: =UG_Trenching!E4 -> 4.1525 | K31: =UG_Trenching!F14 -> 0 | L31: ='Trench & duct detail cal'!$B$54*N31 -> 0 | M31: m | N31: 0 | O31: 0 | P31: 0 | Q31: 0
D32: LV: | E32: Lay LV 125mm Ducts in Trench | F32: 28 | G32: 4 | H32: =UG_Trenching!C5 -> 0 | I32: =UG_Trenching!D5 -> 0 | J32: =UG_Trenching!E5 -> 4.1525 | K32: =UG_Trenching!F15 -> 0 | L32: ='Trench & duct detail cal'!$B$54*N32 -> 0 | M32: m | N32: 0 | O32: 0 | P32: 0 | Q32: 0
D33: LV: | E33: Lay LV 50mm Ducts in Trench | F33: 28 | G33: 2 | H33: =UG_Trenching!C6 -> 0 | I33: =UG_Trenching!D6 -> 0 | J33: =UG_Trenching!E6 -> 2.4675 | K33: =UG_Trenching!F16 -> 0 | L33: ='Trench & duct detail cal'!$C$54*N33 -> 0 | M33: m | N33: 0 | O33: 0 | P33: 0 | Q33: 0
D34: LV: | E34: Lay LV 40mm Ducts in Trench | F34: 28 | G34: 2 | H34: =UG_Trenching!C7 -> 0 | I34: =UG_Trenching!D7 -> 0 | J34: =UG_Trenching!E7 -> 1.8075 | K34: =UG_Trenching!F17 -> 0 | L34: ='Trench & duct detail cal'!$C$54*N34 -> 0 | M34: m | N34: 0 | O34: 0 | P34: 0 | Q34: 0
D35: HV 11 kV | E35: Greenfield duct 01 | F35: 27 | G35: =VLOOKUP(E35,'AVS Data'!$A$10:$B$27,2,FALSE) -> 61 | M35: m | N35: 0 | O35: 0 | P35: 0 | Q35: 0
D36: HV 11 kV | E36: Greenfield duct 03 | F36: 27 | G36: =VLOOKUP(E36,'AVS Data'!$A$10:$B$27,2,FALSE) -> 157 | M36: m | N36: 0 | O36: 0 | P36: 0 | Q36: 0
D37: HV 22 kV | E37: Greenfield duct 13 | F37: 26 | G37: =VLOOKUP(E37,'AVS Data'!$A$10:$B$27,2,FALSE) -> 167 | M37: m | N37: 0 | O37: 0 | P37: 0 | Q37: 0
D38: 11kV: | E38: Lay HV duct in SL/LV trench | F38: 27 | L38: ='Trench & duct detail cal'!$B$54*N38 -> 0 | M38: m | N38: 0 | O38: =L38 -> 0 | P38: 0
D39: 22kV | E39: Lay HV duct in SL/LV trench | F39: 26 | L39: ='Trench & duct detail cal'!$B$54*N39 -> 0 | M39: m | N39: 0 | O39: =L39 -> 0 | P39: 0
B40: Lay Cable | O40: =SUBTOTAL(9,O41:O71) -> 0 | Q40: =SUBTOTAL(9,Q41:Q71) -> 0
C41: 22kV | O41: =SUBTOTAL(9,O42:O47) -> 0 | Q41: =SUBTOTAL(9,Q42:Q47) -> 0
D42: Lay | N42: =SUBTOTAL(9,N43:N44) -> 0 | O42: =SUBTOTAL(9,O43:O44) -> 0 | P42: =SUBTOTAL(9,P43:P44) -> 0 | Q42: =SUBTOTAL(9,Q43:Q44) -> 0
E43: Pull Conductor through Ducts | F43: 26 | G43: =ROUND(SUM(H43:K43),0) -> 13 | H43: ='UG_Lay Cable'!C3 -> 8.0582 | I43: ='UG_Lay Cable'!D3 -> 4.5014 | J43: ='UG_Lay Cable'!E3 -> 0 | K43: ='UG_Lay Cable'!F3 -> 0 | M43: m | N43: 0 | O43: =IF(N43=0,0,$G43*N43) -> 0 | P43: 0 | Q43: =IF(P43=0,0,$G43*P43) -> 0
E44: Directly Buried in Trench | F44: 26 | G44: =ROUND(SUM(H44:K44),0) -> 20 | H44: ='UG_Lay Cable'!C4 -> 10.3688 | I44: ='UG_Lay Cable'!D4 -> 5.2326 | J44: ='UG_Lay Cable'!E4 -> 4.2366 | K44: ='UG_Lay Cable'!F4 -> 0 | M44: m | N44: 0 | O44: =IF(N44=0,0,$G44*N44) -> 0 | P44: 0 | Q44: =IF(P44=0,0,$G44*P44) -> 0
D45: Materials | N45: =SUBTOTAL(9,N46:N47) -> 0 | O45: =SUBTOTAL(9,O46:O47) -> 0 | P45: =SUBTOTAL(9,P46:P47) -> 0 | Q45: =SUBTOTAL(9,Q46:Q47) -> 0
E46: 22kV 240mm2 CU 3C XLPE | F46: 26 | G46: =ROUND(SUM(H46:K46),0) -> 102 | H46: =VLOOKUP($E46,Cable,8,FALSE) -> 0 | I46: =VLOOKUP($E46,Cable,9,FALSE) -> 0 | J46: =VLOOKUP($E46,Cable,10,FALSE) -> 102.477556 | K46: =VLOOKUP($E46,Cable,11,FALSE) -> 0 | M46: m | N46: 0 | O46: =IF(N46=0,0,$G46*N46) -> 0 | P46: 0 | Q46: =IF(P46=0,0,$G46*P46) -> 0
E47: 22kV 240mm2 AL 3C XLPE | F47: 26 | G47: =ROUND(SUM(H47:K47),0) -> 35 | H47: =VLOOKUP($E47,Cable,8,FALSE) -> 0 | I47: =VLOOKUP($E47,Cable,9,FALSE) -> 0 | J47: =VLOOKUP($E47,Cable,10,FALSE) -> 34.706175 | K47: =VLOOKUP($E47,Cable,11,FALSE) -> 0 | M47: m | N47: 0 | O47: =IF(N47=0,0,$G47*N47) -> 0 | P47: 0 | Q47: =IF(P47=0,0,$G47*P47) -> 0
C48: 11kV | O48: =SUBTOTAL(9,O49:O56) -> 0 | Q48: =SUBTOTAL(9,Q49:Q56) -> 0
D49: Lay | N49: =SUBTOTAL(9,N50:N51) -> 0 | O49: =SUBTOTAL(9,O50:O51) -> 0 | P49: =SUBTOTAL(9,P50:P51) -> 0 | Q49: =SUBTOTAL(9,Q50:Q51) -> 0
E50: Pull Conductor through Ducts | F50: 27 | G50: =ROUND(SUM(H50:K50),0) -> 13 | H50: =H43 -> 8.0582 | I50: =I43 -> 4.5014 | J50: 0 | K50: =K43 -> 0 | M50: m | N50: 0 | O50: =IF(N50=0,0,$G50*N50) -> 0 | P50: 0 | Q50: =IF(P50=0,0,$G50*P50) -> 0
E51: Directly Buried in Trench | F51: 27 | G51: =ROUND(SUM(H51:K51),0) -> 20 | H51: 10.3688 | I51: 5.2326 | J51: 4.2366 | K51: =K44 -> 0 | M51: m | N51: 0 | O51: =IF(N51=0,0,$G51*N51) -> 0 | P51: 0 | Q51: =IF(P51=0,0,$G51*P51) -> 0
D52: Materials | N52: =SUBTOTAL(9,N53:N56) -> 0 | O52: =SUBTOTAL(9,O53:O56) -> 0 | P52: =SUBTOTAL(9,P53:P56) -> 0 | Q52: =SUBTOTAL(9,Q53:Q56) -> 0
E53: 11kV 240mm2 CU 3C XLPE | F53: 27 | G53: =ROUND(SUM(H53:K53),0) -> 96 | H53: =VLOOKUP($E53,Cable,8,FALSE) -> 0 | I53: =VLOOKUP($E53,Cable,9,FALSE) -> 0 | J53: =VLOOKUP($E53,Cable,10,FALSE) -> 95.619689 | K53: =VLOOKUP($E53,Cable,11,FALSE) -> 0 | M53: m | N53: 0 | O53: =IF(N53=0,0,$G53*N53) -> 0 | P53: 0 | Q53: =IF(P53=0,0,$G53*P53) -> 0
E54: 11kV 240mm2 AL 3C XLPE | F54: 27 | G54: =ROUND(SUM(H54:K54),0) -> 30 | H54: =VLOOKUP($E54,Cable,8,FALSE) -> 0 | I54: =VLOOKUP($E54,Cable,9,FALSE) -> 0 | J54: =VLOOKUP($E54,Cable,10,FALSE) -> 29.598228 | K54: =VLOOKUP($E54,Cable,11,FALSE) -> 0 | M54: m | N54: 0 | O54: =IF(N54=0,0,$G54*N54) -> 0 | P54: 0 | Q54: =IF(P54=0,0,$G54*P54) -> 0
E55: 11kV 185mm2 AL 3C XLPE | F55: 27 | G55: =ROUND(SUM(H55:K55),0) -> 34 | H55: =VLOOKUP($E55,Cable,8,FALSE) -> 0 | I55: =VLOOKUP($E55,Cable,9,FALSE) -> 0 | J55: =VLOOKUP($E55,Cable,10,FALSE) -> 34.16 | K55: =VLOOKUP($E55,Cable,11,FALSE) -> 0 | M55: m | N55: 0 | O55: =IF(N55=0,0,$G55*N55) -> 0 | P55: 0 | Q55: =IF(P55=0,0,$G55*P55) -> 0
E56: 11kV 300mm2 CU 3C XLPE | F56: 27 | G56: =ROUND(SUM(H56:K56),0) -> 128 | H56: =VLOOKUP($E56,Cable,8,FALSE) -> 0 | I56: =VLOOKUP($E56,Cable,9,FALSE) -> 0 | J56: =VLOOKUP($E56,Cable,10,FALSE) -> 127.78143 | K56: =VLOOKUP($E56,Cable,11,FALSE) -> 0 | M56: m | N56: 0 | O56: =IF(N56=0,0,$G56*N56) -> 0 | P56: 0 | Q56: =IF(P56=0,0,$G56*P56) -> 0
C57: LV | O57: =SUBTOTAL(9,O58:O64) -> 0 | Q57: =SUBTOTAL(9,Q58:Q64) -> 0
D58: Lay | N58: =SUBTOTAL(9,N59:N60) -> 0 | O58: =SUBTOTAL(9,O59:O60) -> 0 | P58: =SUBTOTAL(9,P59:P60) -> 0 | Q58: =SUBTOTAL(9,Q59:Q60) -> 0
E59: Pull Conductor through Ducts | F59: 28 | G59: =ROUND(SUM(H59:K59),0) -> 13 | H59: =H43 -> 8.0582 | I59: 4.5014 | J59: 0 | K59: 0 | M59: m | N59: 0 | O59: =IF(N59=0,0,$G59*N59) -> 0 | P59: 0 | Q59: =IF(P59=0,0,$G59*P59) -> 0
E60: Directly Buried in Trench | F60: 28 | G60: =ROUND(SUM(H60:K60),0) -> 20 | H60: 10.3688 | I60: 5.2326 | J60: 4.2366 | K60: 0 | M60: m | N60: 0 | O60: 0 | P60: 0 | Q60: =IF(P60=0,0,$G60*P60) -> 0
D61: Materials | N61: =SUBTOTAL(9,N62:N64) -> 0 | O61: =SUBTOTAL(9,O62:O64) -> 0 | P61: =SUBTOTAL(9,P62:P64) -> 0 | Q61: =SUBTOTAL(9,Q62:Q64) -> 0
E62: LV 240mm2 AL 4C XLPE | F62: 28 | G62: =ROUND(SUM(H62:K62),0) -> 15 | H62: =VLOOKUP($E62,Cable,8,FALSE) -> 0 | I62: =VLOOKUP($E62,Cable,9,FALSE) -> 0 | J62: =VLOOKUP($E62,Cable,10,FALSE) -> 15.473072 | K62: =VLOOKUP($E62,Cable,11,FALSE) -> 0 | M62: m | N62: 0 | O62: 0 | P62: 0 | Q62: =IF(P62=0,0,$G62*P62) -> 0
E63: LV 50mm2 CU 4C XLPE/PVC | F63: 28 | G63: =ROUND(SUM(H63:K63),0) -> 25 | H63: =VLOOKUP($E63,Cable,8,FALSE) -> 0 | I63: =VLOOKUP($E63,Cable,9,FALSE) -> 0 | J63: =VLOOKUP($E63,Cable,10,FALSE) -> 25.393634 | K63: =VLOOKUP($E63,Cable,11,FALSE) -> 0 | M63: m | N63: 0 | O63: 0 | P63: 0 | Q63: =IF(P63=0,0,$G63*P63) -> 0
E64: LV 25mm2 CU 4C XLPE/PVC | F64: 28 | G64: =ROUND(SUM(H64:K64),0) -> 15 | H64: =VLOOKUP($E64,Cable,8,FALSE) -> 0 | I64: =VLOOKUP($E64,Cable,9,FALSE) -> 0 | J64: =VLOOKUP($E64,Cable,10,FALSE) -> 14.588344 | K64: =VLOOKUP($E64,Cable,11,FALSE) -> 0 | M64: m | N64: 0 | O64: 0 | P64: 0 | Q64: =IF(P64=0,0,$G64*P64) -> 0
C65: Earthing | O65: =SUBTOTAL(9,O66:O71) -> 0 | Q65: =SUBTOTAL(9,Q66:Q71) -> 0
D66: Lay | N66: =SUBTOTAL(9,N67:N68) -> 0 | O66: =SUBTOTAL(9,O67:O68) -> 0 | P66: =SUBTOTAL(9,P67:P68) -> 0 | Q66: =SUBTOTAL(9,Q67:Q68) -> 0
E67: Pull Conductor through Ducts | F67: 28 | G67: =ROUND(SUM(H67:K67),0) -> 13 | H67: =H59 -> 8.0582 | I67: 4.5014 | J67: 0 | K67: =K59 -> 0 | M67: m | N67: 0 | O67: =IF(N67=0,0,$G67*N67) -> 0 | P67: 0 | Q67: =IF(P67=0,0,$G67*P67) -> 0
E68: Directly Buried in Trench | F68: 28 | G68: =ROUND(SUM(H68:K68),0) -> 20 | H68: 10.3688 | I68: 5.2326 | J68: 4.2366 | K68: =K60 -> 0 | M68: m | N68: 0 | O68: =IF(N68=0,0,$G68*N68) -> 0 | P68: 0 | Q68: =IF(P68=0,0,$G68*P68) -> 0
D69: Materials | N69: =SUBTOTAL(9,N70:N70) -> 0 | O69: =SUBTOTAL(9,O70:O71) -> 0 | P69: =SUBTOTAL(9,P70:P70) -> 0 | Q69: =SUBTOTAL(9,Q70:Q71) -> 0
E70: LV BARE CU Anealed 19/2.14 | F70: 28 | G70: =ROUND(SUM(H70:K70),0) -> 8 | H70: =VLOOKUP($E70,Cable,8,FALSE) -> 0 | I70: =VLOOKUP($E70,Cable,9,FALSE) -> 0 | J70: =VLOOKUP($E70,Cable,10,FALSE) -> 8.01711 | K70: =VLOOKUP($E70,Cable,11,FALSE) -> 0 | M70: m | N70: 0 | O70: =IF(N70=0,0,$G70*N70) -> 0 | P70: 0 | Q70: =IF(P70=0,0,$G70*P70) -> 0
B72: Joints | O72: =SUBTOTAL(9,O73:O92) -> 0 | Q72: =SUBTOTAL(9,Q73:Q92) -> 0
C73: Excavate for Joint | O73: =SUBTOTAL(9,O74:O76) -> 0 | Q73: =SUBTOTAL(9,Q74:Q76) -> 0
D74: 22kV | E74: Light trenching & reinstatement | F74: 26 | G74: =ROUND(SUM(H74:K74),0) -> 103 | H74: =VLOOKUP($E74,Trenching,8,FALSE) -> 36.5411 | I74: =VLOOKUP($E74,Trenching,9,FALSE) -> 11.6093 | J74: =VLOOKUP($E74,Trenching,10,FALSE) -> 0 | K74: =VLOOKUP($E74,Trenching,11,FALSE) -> 55 | M74: =VLOOKUP($E74,Trenching,2,FALSE) -> m | N74: 0 | O74: =IF(N74=0,0,$G74*N74) -> 0 | P74: 0 | Q74: =IF(P74=0,0,$G74*P74) -> 0
D75: 11kV | E75: Light trenching & reinstatement | F75: 27 | G75: =ROUND(SUM(H75:K75),0) -> 103 | H75: =VLOOKUP($E75,Trenching,8,FALSE) -> 36.5411 | I75: =VLOOKUP($E75,Trenching,9,FALSE) -> 11.6093 | J75: =VLOOKUP($E75,Trenching,10,FALSE) -> 0 | K75: =VLOOKUP($E75,Trenching,11,FALSE) -> 55 | M75: =VLOOKUP($E75,Trenching,2,FALSE) -> m | N75: 0 | O75: =IF(N75=0,0,$G75*N75) -> 0 | P75: 0 | Q75: =IF(P75=0,0,$G75*P75) -> 0
D76: LV | E76: Light trenching & reinstatement | F76: 28 | G76: =ROUND(SUM(H76:K76),0) -> 103 | H76: =VLOOKUP($E76,Trenching,8,FALSE) -> 36.5411 | I76: =VLOOKUP($E76,Trenching,9,FALSE) -> 11.6093 | J76: =VLOOKUP($E76,Trenching,10,FALSE) -> 0 | K76: =VLOOKUP($E76,Trenching,11,FALSE) -> 55 | M76: =VLOOKUP($E76,Trenching,2,FALSE) -> m | N76: 0 | O76: =IF(N76=0,0,$G76*N76) -> 0 | P76: 0 | Q76: =IF(P76=0,0,$G76*P76) -> 0
C77: 22kV | O77: =SUBTOTAL(9,O78:O81) -> 0 | Q77: =SUBTOTAL(9,Q78:Q81) -> 0
E78: STJ in Trench (HV) | F78: 26 | G78: =ROUND(SUM(H78:K78),0) -> 1557 | H78: =VLOOKUP($E78,Joints,8,FALSE) -> 714.03 | I78: =VLOOKUP($E78,Joints,9,FALSE) -> 230.2 | J78: =VLOOKUP($E78,Joints,10,FALSE) -> 612.3 | K78: =VLOOKUP($E78,Joints,11,FALSE) -> 0 | M78: ea | N78: 0 | O78: =IF(N78=0,0,$G78*N78) -> 0 | P78: 0 | Q78: =IF(P78=0,0,$G78*P78) -> 0
E79: Straight to Transformer (HV) | F79: 26 | G79: =ROUND(SUM(H79:K79),0) -> 1927 | H79: =VLOOKUP($E79,Joints,8,FALSE) -> 1186.61 | I79: =VLOOKUP($E79,Joints,9,FALSE) -> 151.05 | J79: =VLOOKUP($E79,Joints,10,FALSE) -> 589.27 | K79: =VLOOKUP($E79,Joints,11,FALSE) -> 0 | M79: ea | N79: 0 | O79: =IF(N79=0,0,$G79*N79) -> 0 | P79: 0 | Q79: =IF(P79=0,0,$G79*P79) -> 0
E80: PM Sub Term (HV) | F80: 26 | G80: 2803 | H80: =VLOOKUP($E80,Joints,8,FALSE) -> 1651.78 | I80: =VLOOKUP($E80,Joints,9,FALSE) -> 167.62 | J80: =VLOOKUP($E80,Joints,10,FALSE) -> 916.63 | K80: =VLOOKUP($E80,Joints,11,FALSE) -> 66.78 | M80: ea | N80: 0 | O80: =IF(N80=0,0,$G80*N80) -> 0 | P80: 0 | Q80: =IF(P80=0,0,$G80*P80) -> 0
E81: UG/OH | F81: 26 | G81: 1010 | H81: =VLOOKUP($E81,Joints,8,FALSE) -> 309.71 | I81: =VLOOKUP($E81,Joints,9,FALSE) -> 118.69 | J81: =VLOOKUP($E81,Joints,10,FALSE) -> 137.6 | K81: =VLOOKUP($E81,Joints,11,FALSE) -> 443.97342 | M81: ea | N81: 0 | O81: =IF(N81=0,0,$G81*N81) -> 0 | P81: 0 | Q81: =IF(P81=0,0,$G81*P81) -> 0
C82: 11kV | O82: =SUBTOTAL(9,O83:O86) -> 0 | Q82: =SUBTOTAL(9,Q83:Q86) -> 0
E83: STJ in Trench (HV) | F83: 27 | G83: 1557 | H83: =VLOOKUP($E83,Joints,8,FALSE) -> 714.03 | I83: =VLOOKUP($E83,Joints,9,FALSE) -> 230.2 | J83: =VLOOKUP($E83,Joints,10,FALSE) -> 612.3 | K83: =VLOOKUP($E83,Joints,11,FALSE) -> 0 | M83: ea | N83: 0 | O83: =IF(N83=0,0,$G83*N83) -> 0 | P83: 0 | Q83: =IF(P83=0,0,$G83*P83) -> 0
E84: Straight to Transformer (HV) | F84: 27 | G84: 1927 | H84: =VLOOKUP($E84,Joints,8,FALSE) -> 1186.61 | I84: =VLOOKUP($E84,Joints,9,FALSE) -> 151.05 | J84: =VLOOKUP($E84,Joints,10,FALSE) -> 589.27 | K84: =VLOOKUP($E84,Joints,11,FALSE) -> 0 | M84: ea | N84: 0 | O84: =IF(N84=0,0,$G84*N84) -> 0 | P84: 0 | Q84: =IF(P84=0,0,$G84*P84) -> 0
E85: PM Sub Term (HV) | F85: 27 | G85: 2803 | H85: =VLOOKUP($E85,Joints,8,FALSE) -> 1651.78 | I85: =VLOOKUP($E85,Joints,9,FALSE) -> 167.62 | J85: =VLOOKUP($E85,Joints,10,FALSE) -> 916.63 | K85: =VLOOKUP($E85,Joints,11,FALSE) -> 66.78 | M85: ea | N85: 0 | O85: =IF(N85=0,0,$G85*N85) -> 0 | P85: 0 | Q85: =IF(P85=0,0,$G85*P85) -> 0
E86: UG/OH | F86: 27 | G86: 1010 | H86: =VLOOKUP($E86,Joints,8,FALSE) -> 309.71 | I86: =VLOOKUP($E86,Joints,9,FALSE) -> 118.69 | J86: =VLOOKUP($E86,Joints,10,FALSE) -> 137.6 | K86: =VLOOKUP($E86,Joints,11,FALSE) -> 443.97342 | M86: ea | N86: 0 | O86: =IF(N86=0,0,$G86*N86) -> 0 | P86: 0 | Q86: =IF(P86=0,0,$G86*P86) -> 0
C87: LV | O87: =SUBTOTAL(9,O88:O92) -> 0 | Q87: =SUBTOTAL(9,Q88:Q92) -> 0
E88: STJ in Trench (LV) | F88: 28 | G88: 887 | H88: =VLOOKUP($E88,Joints,8,FALSE) -> 629.9 | I88: =VLOOKUP($E88,Joints,9,FALSE) -> 94.56 | J88: =VLOOKUP($E88,Joints,10,FALSE) -> 162.62 | K88: =VLOOKUP($E88,Joints,11,FALSE) -> 0 | M88: ea | N88: 0 | O88: =IF(N88=0,0,$G88*N88) -> 0 | P88: 0 | Q88: =IF(P88=0,0,$G88*P88) -> 0
E89: Term Cable in Pillar (LV) | F89: 28 | G89: 887 | H89: =VLOOKUP($E89,Joints,8,FALSE) -> 629.9 | I89: =VLOOKUP($E89,Joints,9,FALSE) -> 94.56 | J89: =VLOOKUP($E89,Joints,10,FALSE) -> 162.62 | K89: =VLOOKUP($E89,Joints,11,FALSE) -> 0 | M89: per pillar | N89: 0 | O89: =IF(N89=0,0,$G89*N89) -> 0 | P89: 0 | Q89: =IF(P89=0,0,$G89*P89) -> 0
E90: Term Cable in Column (LV) | F90: 28 | G90: 736 | H90: =VLOOKUP($E90,Joints,8,FALSE) -> 590.13 | I90: =VLOOKUP($E90,Joints,9,FALSE) -> 90.52 | J90: =VLOOKUP($E90,Joints,10,FALSE) -> 55.44 | K90: =VLOOKUP($E90,Joints,11,FALSE) -> 0 | M90: per column | N90: 0 | O90: =IF(N90=0,0,$G90*N90) -> 0 | P90: 0 | Q90: =IF(P90=0,0,$G90*P90) -> 0
E91: Term Cable in PM (LV) | F91: 28 | G91: 738 | H91: =VLOOKUP($E91,Joints,8,FALSE) -> 513.66 | I91: =VLOOKUP($E91,Joints,9,FALSE) -> 82.76 | J91: =VLOOKUP($E91,Joints,10,FALSE) -> 142 | K91: =VLOOKUP($E91,Joints,11,FALSE) -> 0 | M91: ea | N91: 0 | O91: =IF(N91=0,0,$G91*N91) -> 0 | P91: 0 | Q91: =IF(P91=0,0,$G91*P91) -> 0
E92: UG/OH | F92: 28 | G92: 1010 | H92: =VLOOKUP($E92,Joints,8,FALSE) -> 309.71 | I92: =VLOOKUP($E92,Joints,9,FALSE) -> 118.69 | J92: =VLOOKUP($E92,Joints,10,FALSE) -> 137.6 | K92: =VLOOKUP($E92,Joints,11,FALSE) -> 443.97342 | M92: ea | N92: 0 | O92: =IF(N92=0,0,$G92*N92) -> 0 | P92: 0 | Q92: =IF(P92=0,0,$G92*P92) -> 0
B93: Columns & Pillars | O93: =SUBTOTAL(9,O94:O101) -> 0 | Q93: =SUBTOTAL(9,Q94:Q101) -> 0
C94: Excavate for Pillar | O94: =SUBTOTAL(9,O95:O97) -> 0 | Q94: =SUBTOTAL(9,Q95:Q97) -> 0
D95: 22kV | E95: Light trenching & reinstatement | F95: 26 | G95: =ROUND(SUM(H95:K95),0) -> 103 | H95: =VLOOKUP($E95,Trenching,8,FALSE) -> 36.5411 | I95: =VLOOKUP($E95,Trenching,9,FALSE) -> 11.6093 | J95: =VLOOKUP($E95,Trenching,10,FALSE) -> 0 | K95: =VLOOKUP($E95,Trenching,11,FALSE) -> 55 | M95: =VLOOKUP($E95,Trenching,2,FALSE) -> m | N95: 0 | O95: =IF(N95=0,0,$G95*N95) -> 0 | P95: 0 | Q95: =IF(P95=0,0,$G95*P95) -> 0
D96: 11kV | E96: Light trenching & reinstatement | F96: 27 | G96: =ROUND(SUM(H96:K96),0) -> 103 | H96: =VLOOKUP($E96,Trenching,8,FALSE) -> 36.5411 | I96: =VLOOKUP($E96,Trenching,9,FALSE) -> 11.6093 | J96: =VLOOKUP($E96,Trenching,10,FALSE) -> 0 | K96: =VLOOKUP($E96,Trenching,11,FALSE) -> 55 | M96: =VLOOKUP($E96,Trenching,2,FALSE) -> m | N96: 0 | O96: =IF(N96=0,0,$G96*N96) -> 0 | P96: 0 | Q96: =IF(P96=0,0,$G96*P96) -> 0
D97: LV | E97: Light trenching & reinstatement | F97: 28 | G97: =ROUND(SUM(H97:K97),0) -> 103 | H97: =VLOOKUP($E97,Trenching,8,FALSE) -> 36.5411 | I97: =VLOOKUP($E97,Trenching,9,FALSE) -> 11.6093 | J97: =VLOOKUP($E97,Trenching,10,FALSE) -> 0 | K97: =VLOOKUP($E97,Trenching,11,FALSE) -> 55 | M97: =VLOOKUP($E97,Trenching,2,FALSE) -> m | N97: 0 | O97: =IF(N97=0,0,$G97*N97) -> 0 | P97: 0 | Q97: =IF(P97=0,0,$G97*P97) -> 0
C98: Pillars | O98: =SUBTOTAL(9,O99:O101) -> 0 | Q98: =SUBTOTAL(9,Q99:Q101) -> 0
D99: Install | O99: =SUBTOTAL(9,O100:O101) -> 0 | Q99: =SUBTOTAL(9,Q100:Q101) -> 0
E100: Install Service Pillar | F100: 28 | G100: =ROUND(SUM(H100:K100),0) -> 655 | H100: =VLOOKUP($E100,Pillars,8,FALSE) -> 513.66 | I100: =VLOOKUP($E100,Pillars,9,FALSE) -> 82.76 | J100: =VLOOKUP($E100,Pillars,10,FALSE) -> 58.42 | K100: =VLOOKUP($E100,Pillars,11,FALSE) -> 0 | M100: ea | N100: 0 | O100: =IF(N100=0,0,$G100*N100) -> 0 | P100: 0 | Q100: =IF(P100=0,0,$G100*P100) -> 0
E101: Install Mains Pillar | F101: 28 | G101: =ROUND(SUM(H101:K101),0) -> 660 | H101: =VLOOKUP($E101,Pillars,8,FALSE) -> 513.66 | I101: =VLOOKUP($E101,Pillars,9,FALSE) -> 82.76 | J101: =VLOOKUP($E101,Pillars,10,FALSE) -> 63.63 | K101: =VLOOKUP($E101,Pillars,11,FALSE) -> 0 | M101: ea | N101: 0 | O101: =IF(N101=0,0,$G101*N101) -> 0 | P101: 0 | Q101: =IF(P101=0,0,$G101*P101) -> 0
B102: Padmount Substation | O102: =SUBTOTAL(9,O103:O156) -> 0 | Q102: =SUBTOTAL(9,Q103:Q156) -> 0
C103: Packaged PM Substation (exl plinth, culver and cubicle) | O103: =SUBTOTAL(9,O104:O124) -> 0 | Q103: =SUBTOTAL(9,Q104:Q124) -> 0
D104: Unit 1 | O104: =SUBTOTAL(9,O105:O110) -> 0 | Q104: =SUBTOTAL(9,Q105:Q110) -> 0
D105: Installation: | E105: New PM Substation | F105: =IF(LEFT(E105,6)="Remove","R",13) -> 13 | G105: =ROUND(SUM(H105:K105),0) -> 2960 | H105: =VLOOKUP($E105,PMInstall,8,FALSE) -> 1884.75 | I105: =VLOOKUP($E105,PMInstall,9,FALSE) -> 377.52 | J105: =VLOOKUP($E105,PMInstall,10,FALSE) -> 698.04 | K105: =VLOOKUP($E105,PMInstall,11,FALSE) -> 0 | M105: type | N105: 0 | O105: =IF(N105=0,0,$G105*N105) -> 0 | P105: 0 | Q105: =IF(P105=0,0,$G105*P105) -> 0
D106: Select: | E106: 11kV 315kVA RTR CB 1250 + F | F106: 13 | G106: =ROUND(SUM(H106:K106),0) -> 16696 | H106: =VLOOKUP($E106,PMPackage,8,FALSE) -> 0 | I106: =VLOOKUP($E106,PMPackage,9,FALSE) -> 0 | J106: =VLOOKUP($E106,PMPackage,10,FALSE) -> 16696.49781 | K106: =VLOOKUP($E106,PMPackage,11,FALSE) -> 0 | M106: ea | N106: 0 | O106: 0 | P106: 0 | Q106: 0
E107: ="---"&LEFT(E106,12)&" Transformer" -> ---11kV 315kVA Transformer | F107: 14 | G107: 9884 | H107: 0 | I107: 0 | J107: =VLOOKUP($E106,PMPackage,2,FALSE) -> 9884.344865 | K107: 0 | M107: ea | N107: 0 | O107: 0 | P107: 0 | Q107: 0
D108: Earthing: | E108: Deep Earth (Clay 0-25m) | F108: 13 | G108: 463 | H108: =VLOOKUP($E108,Earthing,8,FALSE) -> 297.09 | I108: =VLOOKUP($E108,Earthing,9,FALSE) -> 165.5 | J108: =VLOOKUP($E108,Earthing,10,FALSE) -> 0 | K108: =VLOOKUP($E108,Earthing,11,FALSE) -> 0 | M108: type | N108: 0 | O108: 0 | P108: 0 | Q108: 0
D109: Trenching: | E109: Light trenching & reinstatement | F109: 13 | G109: 103 | H109: =VLOOKUP($E109,Trenching,8,FALSE) -> 36.5411 | I109: =VLOOKUP($E109,Trenching,9,FALSE) -> 11.6093 | J109: =VLOOKUP($E109,Trenching,10,FALSE) -> 0 | K109: =VLOOKUP($E109,Trenching,11,FALSE) -> 55 | M109: m | N109: 0 | O109: 0 | P109: 0 | Q109: 0
D110: Earthing Materials: | E110: Padmount Sub Common | F110: 13 | G110: 158 | H110: =VLOOKUP($E110,EarthingM,8,FALSE) -> 0 | I110: =VLOOKUP($E110,EarthingM,9,FALSE) -> 0 | J110: =VLOOKUP($E110,EarthingM,10,FALSE) -> 158.085 | K110: =VLOOKUP($E110,EarthingM,11,FALSE) -> 0 | M110: type | N110: 0 | O110: 0 | P110: 0 | Q110: 0
D111: Unit 2 | O111: =SUBTOTAL(9,O112:O117) -> 0 | Q111: =SUBTOTAL(9,Q112:Q117) -> 0
D112: Installation: | E112: New PM Substation | F112: =IF(LEFT(E112,6)="Remove","R",13) -> 13 | G112: 2960 | H112: =VLOOKUP($E112,PMInstall,8,FALSE) -> 1884.75 | I112: =VLOOKUP($E112,PMInstall,9,FALSE) -> 377.52 | J112: =VLOOKUP($E112,PMInstall,10,FALSE) -> 698.04 | K112: =VLOOKUP($E112,PMInstall,11,FALSE) -> 0 | M112: type | N112: 0 | O112: =IF(N112=0,0,$G112*N112) -> 0 | P112: 0 | Q112: =IF(P112=0,0,$G112*P112) -> 0
D113: Select: | E113: 11kV 315kVA RTRR FFIFF CAT 1 | F113: 13 | G113: 21424 | H113: =VLOOKUP($E113,PMPackage,8,FALSE) -> 0 | I113: =VLOOKUP($E113,PMPackage,9,FALSE) -> 0 | J113: =VLOOKUP($E113,PMPackage,10,FALSE) -> 21423.78087 | K113: =VLOOKUP($E113,PMPackage,11,FALSE) -> 0 | M113: ea | N113: 0 | O113: 0 | P113: 0 | Q113: 0
E114: ="---"&LEFT(E113,12)&" Transformer" -> ---11kV 315kVA Transformer | F114: 14 | G114: 9884 | H114: 0 | I114: 0 | J114: =VLOOKUP($E113,PMPackage,2,FALSE) -> 9884.344865 | K114: 0 | M114: ea | N114: 0 | O114: 0 | P114: 0 | Q114: 0
D115: Earthing: | E115: Deep Earth (Clay 0-25m) | F115: 13 | G115: 463 | H115: =VLOOKUP($E115,Earthing,8,FALSE) -> 297.09 | I115: =VLOOKUP($E115,Earthing,9,FALSE) -> 165.5 | J115: =VLOOKUP($E115,Earthing,10,FALSE) -> 0 | K115: =VLOOKUP($E115,Earthing,11,FALSE) -> 0 | M115: type | N115: 0 | O115: 0 | P115: 0 | Q115: 0
D116: Trenching: | E116: Light trenching & reinstatement | F116: 13 | G116: 103 | H116: =VLOOKUP($E116,Trenching,8,FALSE) -> 36.5411 | I116: =VLOOKUP($E116,Trenching,9,FALSE) -> 11.6093 | J116: =VLOOKUP($E116,Trenching,10,FALSE) -> 0 | K116: =VLOOKUP($E116,Trenching,11,FALSE) -> 55 | M116: m | N116: 0 | O116: 0 | P116: 0 | Q116: 0
D117: Earthing Materials: | E117: Common Wood Pole | F117: 13 | G117: 409 | H117: =VLOOKUP($E117,EarthingM,8,FALSE) -> 0 | I117: =VLOOKUP($E117,EarthingM,9,FALSE) -> 0 | J117: =VLOOKUP($E117,EarthingM,10,FALSE) -> 409.24 | K117: =VLOOKUP($E117,EarthingM,11,FALSE) -> 0 | M117: type | N117: 0 | O117: 0 | P117: 0 | Q117: 0
D118: Unit 3 | O118: =SUBTOTAL(9,O119:O124) -> 0 | Q118: =SUBTOTAL(9,Q119:Q124) -> 0
D119: Installation: | E119: New PM Substation | F119: =IF(LEFT(E119,6)="Remove","R",13) -> 13 | G119: 2960 | H119: =VLOOKUP($E119,PMInstall,8,FALSE) -> 1884.75 | I119: =VLOOKUP($E119,PMInstall,9,FALSE) -> 377.52 | J119: =VLOOKUP($E119,PMInstall,10,FALSE) -> 698.04 | K119: =VLOOKUP($E119,PMInstall,11,FALSE) -> 0 | M119: type | N119: 0 | O119: =IF(N119=0,0,$G119*N119) -> 0 | P119: 0 | Q119: =IF(P119=0,0,$G119*P119) -> 0
D120: Select: | E120: 11kV 1500kVA RLR 3200CB | F120: 13 | G120: 25383 | H120: =VLOOKUP($E120,PMPackage,8,FALSE) -> 0 | I120: =VLOOKUP($E120,PMPackage,9,FALSE) -> 0 | J120: =VLOOKUP($E120,PMPackage,10,FALSE) -> 25382.61368 | K120: =VLOOKUP($E120,PMPackage,11,FALSE) -> 0 | M120: ea | N120: 0 | O120: 0 | P120: 0 | Q120: 0
E121: ="---"&LEFT(E120,12)&" Transformer" -> ---11kV 1500kVA Transformer | F121: 14 | G121: 33172 | H121: 0 | I121: 0 | J121: =VLOOKUP($E120,PMPackage,2,FALSE) -> 33172.38444 | K121: 0 | M121: ea | N121: 0 | O121: 0 | P121: 0 | Q121: 0
D122: Earthing: | E122: Deep Earth (Clay 0-25m) | F122: 13 | G122: 463 | H122: =VLOOKUP($E122,Earthing,8,FALSE) -> 297.09 | I122: =VLOOKUP($E122,Earthing,9,FALSE) -> 165.5 | J122: =VLOOKUP($E122,Earthing,10,FALSE) -> 0 | K122: =VLOOKUP($E122,Earthing,11,FALSE) -> 0 | M122: type | N122: 0 | O122: 0 | P122: 0 | Q122: 0
D123: Trenching: | E123: Light trenching & reinstatement | F123: 13 | G123: 103 | H123: =VLOOKUP($E123,Trenching,8,FALSE) -> 36.5411 | I123: =VLOOKUP($E123,Trenching,9,FALSE) -> 11.6093 | J123: =VLOOKUP($E123,Trenching,10,FALSE) -> 0 | K123: =VLOOKUP($E123,Trenching,11,FALSE) -> 55 | M123: m | N123: 0 | O123: 0 | P123: 0 | Q123: 0
D124: Earthing Materials: | E124: Padmount Sub Separate | F124: 13 | G124: 202 | H124: =VLOOKUP($E124,EarthingM,8,FALSE) -> 0 | I124: =VLOOKUP($E124,EarthingM,9,FALSE) -> 0 | J124: =VLOOKUP($E124,EarthingM,10,FALSE) -> 202.165 | K124: =VLOOKUP($E124,EarthingM,11,FALSE) -> 0 | M124: type | N124: 0 | O124: 0 | P124: 0 | Q124: 0
C125: Individual PM Substation Components | O125: =SUBTOTAL(9,O126:O156) -> 0 | Q125: =SUBTOTAL(9,Q126:Q156) -> 0
D126: Installation: | O126: =SUBTOTAL(9,O127:O131) -> 0 | Q126: =SUBTOTAL(9,Q127:Q131) -> 0
D127: Installation: | E127: New PM Substation | F127: =IF(LEFT(E127,6)="Remove","R",13) -> 13 | G127: =ROUND(SUM(H127:K127),0) -> 2960 | H127: =VLOOKUP($E127,PMInstall,8,FALSE) -> 1884.75 | I127: =VLOOKUP($E127,PMInstall,9,FALSE) -> 377.52 | J127: =VLOOKUP($E127,PMInstall,10,FALSE) -> 698.04 | K127: =VLOOKUP($E127,PMInstall,11,FALSE) -> 0 | M127: type | N127: 0 | O127: =IF(N127=0,0,$G127*N127) -> 0 | P127: 0 | Q127: =IF(P127=0,0,$G127*P127) -> 0
D128: Installation: | E128: Install Sub Culvert | F128: =IF(LEFT(E128,6)="Remove","R",13) -> 13 | G128: =ROUND(SUM(H128:K128),0) -> 2598 | H128: =VLOOKUP($E128,PMInstall,8,FALSE) -> 921.92 | I128: =VLOOKUP($E128,PMInstall,9,FALSE) -> 195.48 | J128: =VLOOKUP($E128,PMInstall,10,FALSE) -> 1480.18 | K128: =VLOOKUP($E128,PMInstall,11,FALSE) -> 0 | M128: type | N128: 0 | O128: =IF(N128=0,0,$G128*N128) -> 0 | P128: 0 | Q128: =IF(P128=0,0,$G128*P128) -> 0
D129: Installation: | E129: Modify/Uprate/Install CB | F129: =IF(LEFT(E129,6)="Remove","R",13) -> 13 | G129: 1137 | H129: =VLOOKUP($E129,PMInstall,8,FALSE) -> 1032.36 | I129: =VLOOKUP($E129,PMInstall,9,FALSE) -> 104.76 | J129: =VLOOKUP($E129,PMInstall,10,FALSE) -> 0 | K129: =VLOOKUP($E129,PMInstall,11,FALSE) -> 0 | M129: type | N129: 0 | O129: =IF(N129=0,0,$G129*N129) -> 0 | P129: 0 | Q129: =IF(P129=0,0,$G129*P129) -> 0
D130: Installation: | E130: Modify/Uprate HV | F130: =IF(LEFT(E130,6)="Remove","R",13) -> 13 | G130: 1836 | H130: =VLOOKUP($E130,PMInstall,8,FALSE) -> 1633.96 | I130: =VLOOKUP($E130,PMInstall,9,FALSE) -> 202.5 | J130: =VLOOKUP($E130,PMInstall,10,FALSE) -> 0 | K130: =VLOOKUP($E130,PMInstall,11,FALSE) -> 0 | M130: type | N130: 0 | O130: =IF(N130=0,0,$G130*N130) -> 0 | P130: 0 | Q130: =IF(P130=0,0,$G130*P130) -> 0
D131: Installation: | E131: Modify/Uprate LV | F131: =IF(LEFT(E131,6)="Remove","R",13) -> 13 | G131: 1836 | H131: =VLOOKUP($E131,PMInstall,8,FALSE) -> 1633.96 | I131: =VLOOKUP($E131,PMInstall,9,FALSE) -> 202.5 | J131: =VLOOKUP($E131,PMInstall,10,FALSE) -> 0 | K131: =VLOOKUP($E131,PMInstall,11,FALSE) -> 0 | M131: type | N131: 0 | O131: =IF(N131=0,0,$G131*N131) -> 0 | P131: 0 | Q131: =IF(P131=0,0,$G131*P131) -> 0
D132: Materials: | O132: =SUBTOTAL(9,O133:O143) -> 0 | Q132: =SUBTOTAL(9,Q133:Q143) -> 0
D133: Components: | E133: VALUE OF 1000kVA 22kV TRANSFORMER ONLY | F133: 14 | G133: 25840 | H133: =VLOOKUP($E133,PMMisc,8,FALSE) -> 0 | I133: =VLOOKUP($E133,PMMisc,9,FALSE) -> 0 | J133: =VLOOKUP($E133,PMMisc,10,FALSE) -> 25840.442 | K133: =VLOOKUP($E133,PMMisc,11,FALSE) -> 0 | M133: ea | N133: 0 | O133: =IF(N133=0,0,$G133*N133) -> 0 | P133: 0 | Q133: =IF(P133=0,0,$G133*P133) -> 0
D134: Components: | E134: 2500 CB (Weber) | F134: 13 | G134: 9487 | H134: 0 | I134: 0 | J134: 9487.114286 | K134: 0 | M134: ea | N134: 0 | O134: 0 | P134: 0 | Q134: 0
D135: Components: | E135: Siemens RLR (Switch+CB) | F135: 13 | G135: 9870 | H135: 0 | I135: 0 | J135: 9869.703684 | K135: 0 | M135: ea | N135: 0 | O135: 0 | P135: 0 | Q135: 0
D136: Components: | E136: Size 14 Fibreglass Cubicle | F136: 13 | G136: 3580 | H136: 0 | I136: 0 | J136: 3580 | K136: 0 | M136: ea | N136: 0 | O136: 0 | P136: 0 | Q136: 0
D137: Components: | E137: PM Substation Culvert | F137: 13 | G137: 1440 | H137: 0 | I137: 0 | J137: 1440.025682 | K137: 0 | M137: ea | N137: 0 | O137: 0 | P137: 0 | Q137: 0
D138: Components: | E138: Size 14 - 16 concrete plinth | F138: 13 | G138: 1385 | H138: 0 | I138: 0 | J138: 1384.91 | K138: 0 | M138: ea | N138: 0 | O138: 0 | P138: 0 | Q138: 0
D139: Components: | E139: CAT 1 FFIFF | F139: 13 | G139: 3794 | H139: 0 | I139: 0 | J139: 3794.01383 | K139: 0 | M139: ea | N139: 0 | O139: 0 | P139: 0 | Q139: 0
D140: Components: | E140: Galvanised Plinth for 1500kVA | F140: 13 | G140: 2227 | H140: 0 | I140: 0 | J140: 2227.43 | K140: 0 | M140: ea | N140: 0 | O140: 0 | P140: 0 | Q140: 0
D141: Components: | E141: Size 16 Fibreglass Cubicle | F141: 13 | G141: 3777 | H141: 0 | I141: 0 | J141: 3777.01 | K141: 0 | M141: ea | N141: 0 | O141: 0 | P141: 0 | Q141: 0
D142: Components: | E142: 1250 CB (Weber) | F142: 13 | G142: 8469 | H142: 0 | I142: 0 | J142: 8468.804167 | K142: 0 | M142: ea | N142: 0 | O142: 0 | P142: 0 | Q142: 0
D143: Components: | E143: FF+Meter Two Fuse Strips with CT's and Meter arrangement (for use on Circuit Breakers requiring an additional two fuse strips) | F143: 13 | G143: 776 | H143: 0 | I143: 0 | J143: 776.1675 | K143: 0 | M143: ea | N143: 0 | O143: 0 | P143: 0 | Q143: 0
D144: Earthing: | O144: =SUBTOTAL(9,O145:O147) -> 0 | Q144: =SUBTOTAL(9,Q145:Q147) -> 0
D145: Earthing: | E145: Deep Earth (Clay 0-25m) | F145: 13 | G145: 463 | H145: =VLOOKUP($E145,Earthing,8,FALSE) -> 297.09 | I145: =VLOOKUP($E145,Earthing,9,FALSE) -> 165.5 | J145: =VLOOKUP($E145,Earthing,10,FALSE) -> 0 | K145: =VLOOKUP($E145,Earthing,11,FALSE) -> 0 | M145: type | N145: 0 | O145: =IF(N145=0,0,$G145*N145) -> 0 | P145: 0 | Q145: =IF(P145=0,0,$G145*P145) -> 0
D146: Trenching: | E146: Light trenching & reinstatement | F146: 13 | G146: 103 | H146: =VLOOKUP($E146,Trenching,8,FALSE) -> 36.5411 | I146: =VLOOKUP($E146,Trenching,9,FALSE) -> 11.6093 | J146: =VLOOKUP($E146,Trenching,10,FALSE) -> 0 | K146: =VLOOKUP($E146,Trenching,11,FALSE) -> 55 | M146: m | N146: 0 | O146: =IF(N146=0,0,$G146*N146) -> 0 | P146: 0 | Q146: =IF(P146=0,0,$G146*P146) -> 0
D147: Earthing Materials: | E147: Padmount Sub Common | F147: 13 | G147: 158 | H147: =VLOOKUP($E147,EarthingM,8,FALSE) -> 0 | I147: =VLOOKUP($E147,EarthingM,9,FALSE) -> 0 | J147: =VLOOKUP($E147,EarthingM,10,FALSE) -> 158.085 | K147: =VLOOKUP($E147,EarthingM,11,FALSE) -> 0 | M147: type | N147: 0 | O147: =IF(N147=0,0,$G147*N147) -> 0 | P147: 0 | Q147: =IF(P147=0,0,$G147*P147) -> 0
D148: HV Automated RMUs: | O148: =SUBTOTAL(9,O149:O156) -> 0 | Q148: =SUBTOTAL(9,Q149:Q156) -> 0
D149: Components: | E149: ABB Safelink 2 CFC 1 Switch Automated | F149: 13 | G149: =ROUND(SUM(H149:K149),0) -> 10543 | H149: =VLOOKUP($E149,PMMisc,8,FALSE) -> 0 | I149: =VLOOKUP($E149,PMMisc,9,FALSE) -> 0 | J149: =VLOOKUP($E149,PMMisc,10,FALSE) -> 10543.44 | K149: =VLOOKUP($E149,PMMisc,11,FALSE) -> 0 | M149: ea | N149: 0 | O149: =IF(N149=0,0,$G149*N149) -> 0 | P149: 0 | Q149: =IF(P149=0,0,$G149*P149) -> 0
E150: ="---"&" EE Reimbursement" -> --- EE Reimbursement | F150: 13 | G150: =ROUND(SUM(H150:L150),0) -> 4000 | L150: =VLOOKUP($E149,PMMisc,17,FALSE) -> 4000 | M150: ea | N150: 0 | O150: 0 | P150: 0
D151: Components: | E151: ABB Safelink 2 CFCC 3 Switches Automated | F151: 13 | G151: =ROUND(SUM(H151:K151),0) -> 17524 | H151: =VLOOKUP($E151,PMMisc,8,FALSE) -> 0 | I151: 0 | J151: 17523.5 | K151: 0 | M151: ea | N151: 0 | O151: =IF(N151=0,0,$G151*N151) -> 0 | P151: 0 | Q151: =IF(P151=0,0,$G151*P151) -> 0
E152: ="---"&" EE Reimbursement" -> --- EE Reimbursement | F152: 13 | G152: =ROUND(SUM(H152:L152),0) -> 12000 | L152: =VLOOKUP($E151,PMMisc,17,FALSE) -> 12000 | M152: ea | N152: 0 | O152: 0 | P152: 0
D153: Components: | E153: Siemens 8DJH RTR 1 Switch Automated | F153: 13 | G153: 11139 | H153: =VLOOKUP($E153,PMMisc,8,FALSE) -> 0 | I153: 0 | J153: 11139 | K153: 0 | M153: ea | N153: 0 | O153: 0 | P153: 0 | Q153: =IF(P153=0,0,$G153*P153) -> 0
E154: ="---"&" EE Reimbursement" -> --- EE Reimbursement | F154: 13 | G154: =ROUND(SUM(H154:L154),0) -> 4000 | L154: =VLOOKUP($E153,PMMisc,17,FALSE) -> 4000 | M154: ea | N154: 0 | O154: 0 | P154: 0
D155: Components: | E155: Siemens 8DJH RTRR-C 3 Switches Automated - PM Sub | F155: 13 | G155: =ROUND(SUM(H155:K155),0) -> 27055 | H155: =VLOOKUP($E155,PMMisc,8,FALSE) -> 0 | I155: 0 | J155: 27055 | K155: 0 | M155: ea | N155: 0 | O155: =IF(N155=0,0,$G155*N155) -> 0 | P155: 0 | Q155: =IF(P155=0,0,$G155*P155) -> 0
E156: ="---"&" EE Reimbursement" -> --- EE Reimbursement | F156: 13 | G156: =ROUND(SUM(H156:L156),0) -> 12000 | L156: =VLOOKUP($E155,PMMisc,17,FALSE) -> 12000 | M156: ea | N156: 0 | O156: 0 | P156: 0
B157: Miscellaneous | O157: =SUBTOTAL(9,O158:O196) -> 0 | Q157: =SUBTOTAL(9,Q158:Q196) -> 0
C158: Determined | O158: =SUBTOTAL(9,O159:O163) -> 0 | Q158: =SUBTOTAL(9,Q159:Q163) -> 0
E159: Remove UG/OH | F159: 27 | G159: =ROUND(SUM(H159:K159),0) -> 317 | H159: =VLOOKUP($E159,Misc,8,FALSE) -> 229.41 | I159: =VLOOKUP($E159,Misc,9,FALSE) -> 87.92 | J159: =VLOOKUP($E159,Misc,10,FALSE) -> 0 | K159: =VLOOKUP($E159,Misc,11,FALSE) -> 0 | M159: ea | N159: 0 | O159: =IF(N159=0,0,$G159*N159) -> 0 | P159: 0 | Q159: =IF(P159=0,0,$G159*P159) -> 0
E160: IAGL Observer for High Press Gas Mains | F160: 27 | G160: =ROUND(SUM(H160:K160),0) -> 150 | H160: =VLOOKUP($E160,Misc,8,FALSE) -> 0 | I160: =VLOOKUP($E160,Misc,9,FALSE) -> 0 | J160: =VLOOKUP($E160,Misc,10,FALSE) -> 0 | K160: =VLOOKUP($E160,Misc,11,FALSE) -> 150 | M160: ea | N160: 0 | O160: 0 | P160: 0 | Q160: 0
E161: ITraffic Control- 3 men for a day | F161: =VLOOKUP($E161,Misc,2,FALSE) -> 35 | G161: =ROUND(SUM(H161:K161),0) -> 1072 | H161: =VLOOKUP($E161,Misc,8,FALSE) -> 0 | I161: =VLOOKUP($E161,Misc,9,FALSE) -> 0 | J161: =VLOOKUP($E161,Misc,10,FALSE) -> 0 | K161: =VLOOKUP($E161,Misc,11,FALSE) -> 1072 | M161: ea | N161: 0 | O161: 0 | P161: 0 | Q161: 0
E162: ICrane per Hr (4 hr minimum) | F162: =VLOOKUP($E162,Misc,2,FALSE) -> 35 | G162: =ROUND(SUM(H162:K162),0) -> 178 | H162: =VLOOKUP($E162,Misc,8,FALSE) -> 0 | I162: =VLOOKUP($E162,Misc,9,FALSE) -> 0 | J162: =VLOOKUP($E162,Misc,10,FALSE) -> 0 | K162: =VLOOKUP($E162,Misc,11,FALSE) -> 178 | M162: ea | N162: 0 | O162: 0 | P162: 0 | Q162: 0
E163: liD & Spike SINGLE UG Cable - Test & Inst | F163: 27 | G163: =ROUND(SUM(H163:K163),0) -> 1500 | H163: =VLOOKUP($E163,Misc,8,FALSE) -> 0 | I163: =VLOOKUP($E163,Misc,9,FALSE) -> 0 | J163: =VLOOKUP($E163,Misc,10,FALSE) -> 0 | K163: =VLOOKUP($E163,Misc,11,FALSE) -> 1500 | M163: ea | N163: 0 | O163: 0 | P163: 0 | Q163: 0
E164: Cost difference of oil vs FR3 transformer 500kVA 11kV | F164: 27 | G164: =ROUND(VLOOKUP(E164,'AVS Data'!A33:B38,2,FALSE),0) -> 380 | M164: ea | N164: 0 | O164: 0 | P164: 0 | Q164: 0
E165: Cost difference of oil vs FR3 transformer 1500kVA 22kV | F165: 26 | G165: =ROUND(VLOOKUP(E165,'AVS Data'!A33:B40,2,FALSE),0) -> 6232 | M165: ea | N165: 0 | O165: 0 | P165: 0 | Q165: 0
E166: Cost difference of oil vs dry type 1500kVA 11kV | F166: 27 | G166: =ROUND(VLOOKUP(E166,'AVS Data'!A41:B42,2,FALSE),0) -> 70391 | M166: ea | N166: 0 | O166: 0 | P166: 0 | Q166: 0
C167: Ground Subs (excl TX's) | O167: =SUBTOTAL(9,O168:O172) -> 0 | Q167: =SUBTOTAL(9,Q168:Q172) -> 0
F168: 13 | G168: 0 | M168: unit | N168: 0 | O168: =IF(N168=0,0,$G168*N168) -> 0 | P168: 0 | Q168: =IF(P168=0,0,$G168*P168) -> 0
F169: 13 | G169: 0 | M169: unit | N169: 0 | O169: =IF(N169=0,0,$G169*N169) -> 0 | P169: 0 | Q169: =IF(P169=0,0,$G169*P169) -> 0
F170: 13 | G170: 0 | M170: unit | N170: 0 | O170: =IF(N170=0,0,$G170*N170) -> 0 | P170: 0 | Q170: =IF(P170=0,0,$G170*P170) -> 0
F171: 13 | G171: 0 | M171: unit | N171: 0 | O171: =IF(N171=0,0,$G171*N171) -> 0 | P171: 0 | Q171: =IF(P171=0,0,$G171*P171) -> 0
F172: 13 | G172: 0 | M172: unit | N172: 0 | O172: =IF(N172=0,0,$G172*N172) -> 0 | P172: 0 | Q172: =IF(P172=0,0,$G172*P172) -> 0
C173: 22/11kV Ground Substation (TX Only) | O173: =SUBTOTAL(9,O174:O178) -> 0 | Q173: =SUBTOTAL(9,Q174:Q178) -> 0
F174: 14 | G174: 0 | M174: unit | N174: 0 | O174: =IF(N174=0,0,$G174*N174) -> 0 | P174: 0 | Q174: =IF(P174=0,0,$G174*P174) -> 0
F175: 14 | G175: 0 | M175: unit | N175: 0 | O175: =IF(N175=0,0,$G175*N175) -> 0 | P175: 0 | Q175: =IF(P175=0,0,$G175*P175) -> 0
F176: 14 | G176: 0 | M176: unit | N176: 0 | O176: =IF(N176=0,0,$G176*N176) -> 0 | P176: 0 | Q176: =IF(P176=0,0,$G176*P176) -> 0
F177: 14 | G177: 0 | M177: unit | N177: 0 | O177: =IF(N177=0,0,$G177*N177) -> 0 | P177: 0 | Q177: =IF(P177=0,0,$G177*P177) -> 0
F178: 14 | G178: 0 | M178: unit | N178: 0 | O178: =IF(N178=0,0,$G178*N178) -> 0 | P178: 0 | Q178: =IF(P178=0,0,$G178*P178) -> 0
C179: 22kV Underground Cable | O179: =SUBTOTAL(9,O180:O184) -> 0 | Q179: =SUBTOTAL(9,Q180:Q184) -> 0
F180: 26 | G180: 0 | M180: unit | N180: 0 | O180: =IF(N180=0,0,$G180*N180) -> 0 | P180: 0 | Q180: =IF(P180=0,0,$G180*P180) -> 0
F181: 26 | G181: 0 | M181: unit | N181: 0 | O181: =IF(N181=0,0,$G181*N181) -> 0 | P181: 0 | Q181: =IF(P181=0,0,$G181*P181) -> 0
F182: 26 | G182: 0 | M182: unit | N182: 0 | O182: =IF(N182=0,0,$G182*N182) -> 0 | P182: 0 | Q182: =IF(P182=0,0,$G182*P182) -> 0
F183: 26 | G183: 0 | M183: unit | N183: 0 | O183: =IF(N183=0,0,$G183*N183) -> 0 | P183: 0 | Q183: =IF(P183=0,0,$G183*P183) -> 0
F184: 26 | G184: 0 | M184: unit | N184: 0 | O184: =IF(N184=0,0,$G184*N184) -> 0 | P184: 0 | Q184: =IF(P184=0,0,$G184*P184) -> 0
C185: 11kV Underground Cable | O185: =SUBTOTAL(9,O186:O190) -> 0 | Q185: =SUBTOTAL(9,Q186:Q190) -> 0
E186: SPARE DUCT REIMBURSEMENT. | F186: 27 | G186: 27 | M186: unit | N186: 0 | O186: =IF(N186=0,0,$G186*N186) -> 0 | P186: 0 | Q186: =IF(P186=0,0,$G186*P186) -> 0
F187: 27 | G187: 0 | M187: unit | N187: 0 | O187: =IF(N187=0,0,$G187*N187) -> 0 | P187: 0 | Q187: =IF(P187=0,0,$G187*P187) -> 0
F188: 27 | G188: 0 | M188: unit | N188: 0 | O188: =IF(N188=0,0,$G188*N188) -> 0 | P188: 0 | Q188: =IF(P188=0,0,$G188*P188) -> 0
F189: 27 | G189: 0 | M189: unit | N189: 0 | O189: =IF(N189=0,0,$G189*N189) -> 0 | P189: 0 | Q189: =IF(P189=0,0,$G189*P189) -> 0
F190: 27 | G190: 0 | M190: unit | N190: 0 | O190: =IF(N190=0,0,$G190*N190) -> 0 | P190: 0 | Q190: =IF(P190=0,0,$G190*P190) -> 0
C191: LV Underground Cable | O191: =SUBTOTAL(9,O192:O196) -> 0 | Q191: =SUBTOTAL(9,Q192:Q196) -> 0
E192: TERMINATE EX. SERV. CABLE IN NEW PILLAR. | F192: 28 | G192: 750 | M192: unit | N192: 0 | O192: =IF(N192=0,0,$G192*N192) -> 0 | P192: 0 | Q192: =IF(P192=0,0,$G192*P192) -> 0
E193: EX. DUCT USAGE CHARGE. | F193: 28 | G193: 27 | M193: unit | N193: 0 | O193: =IF(N193=0,0,$G193*N193) -> 0 | P193: 0 | Q193: =IF(P193=0,0,$G193*P193) -> 0
E194: REPLACE CABLE IN EX. DUCT. | F194: 28 | G194: 750 | M194: unit | N194: 0 | O194: =IF(N194=0,0,$G194*N194) -> 0 | P194: 0 | Q194: =IF(P194=0,0,$G194*P194) -> 0
F195: 28 | G195: 0 | M195: unit | N195: 0 | O195: =IF(N195=0,0,$G195*N195) -> 0 | P195: 0 | Q195: =IF(P195=0,0,$G195*P195) -> 0
F196: 28 | G196: 0 | M196: unit | N196: 0 | O196: =IF(N196=0,0,$G196*N196) -> 0 | P196: 0 | Q196: =IF(P196=0,0,$G196*P196) -> 0
B197: Overhead Distribution | O197: =SUBTOTAL(9,O198:O403) -> 0 | Q197: =SUBTOTAL(9,Q198:Q403) -> 0
B198: Pole Sub | O198: =SUBTOTAL(9,O199:O224) -> 0 | Q198: =SUBTOTAL(9,Q199:Q224) -> 0
C199: Pole Substation | O199: =SUBTOTAL(9,O200:O223) -> 0 | Q199: =SUBTOTAL(9,Q200:Q223) -> 0
D200: Unit 1 | O200: =SUBTOTAL(9,O201:O207) -> 0 | Q200: =SUBTOTAL(9,Q201:Q207) -> 0
D201: Install: | E201: New 3 Phase < 300kVA | F201: =IF(LEFT(E201,6)="Remove","R",11) -> 11 | G201: =ROUND(SUM(H201:K201),0) -> 5797 | H201: =VLOOKUP($E201,InstallPoleSub,8,FALSE) -> 2185.09 | I201: =VLOOKUP($E201,InstallPoleSub,9,FALSE) -> 444.81 | J201: =VLOOKUP($E201,InstallPoleSub,10,FALSE) -> 3167.3 | K201: =VLOOKUP($E201,InstallPoleSub,11,FALSE) -> 0 | M201: unit | N201: 0 | O201: =IF(N201=0,0,$G201*N201) -> 0 | P201: 0 | Q201: =IF(P201=0,0,$G201*P201) -> 0
D202: Select Type: | E202: 63 KVA 22 KV 3PH | F202: 12 | G202: 6450 | H202: =VLOOKUP($E202,PoleSub,8,FALSE) -> 0 | I202: =VLOOKUP($E202,PoleSub,9,FALSE) -> 0 | J202: =VLOOKUP($E202,PoleSub,10,FALSE) -> 6450 | K202: =VLOOKUP($E202,PoleSub,11,FALSE) -> 0 | M202: unit | N202: 0 | O202: 0 | P202: 0 | Q202: 0
... 560 more rows

Sheet RAVS (hidden)
A1: =AVS!A1 -> UML12345 | D1: =AVS!D1 -> 100 Hello St | M1: Removal
A2: L0 | B2: L1 | C2: L2 | D2: L3 | E2: Activity | F2: Cat | G2: Cost | H2: Labor | I2: P&V | J2: Materials | K2: Direct | L2: Unit | M2: R QTY | N2: R Value
B3: Underground Distribution (REMOVAL) | N3: =SUBTOTAL(9,N4:N168) -> 0
B4: Trenching & Ducts | N4: =SUBTOTAL(9,N5:N16) -> 0
C5: Trenching | N5: =SUBTOTAL(9,N6:N9) -> 0
D6: 22kV: | E6: Commercial | F6: 26 | G6: =SUM(H6:K6) ->  | H6: =VLOOKUP($E6,Trenching,8,FALSE) ->  | I6: =VLOOKUP($E6,Trenching,9,FALSE) ->  | J6: =VLOOKUP($E6,Trenching,10,FALSE) ->  | K6: =VLOOKUP($E6,Trenching,11,FALSE) ->  | L6: =VLOOKUP($E6,Trenching,2,FALSE) ->  | M6: 0 | N6: =IF(M6=0,0,$G6*M6) -> 0 | O6: 0
D7: 11kV: | E7: Commercial | F7: 27 | G7: =SUM(H7:K7) ->  | H7: =VLOOKUP($E7,Trenching,8,FALSE) ->  | I7: =VLOOKUP($E7,Trenching,9,FALSE) ->  | J7: =VLOOKUP($E7,Trenching,10,FALSE) ->  | K7: =VLOOKUP($E7,Trenching,11,FALSE) ->  | L7: =VLOOKUP($E7,Trenching,2,FALSE) ->  | M7: 0 | N7: =IF(M7=0,0,$G7*M7) -> 0 | O7: 0
D8: LV: | E8: Commercial | F8: 28 | G8: =SUM(H8:K8) ->  | H8: =VLOOKUP($E8,Trenching,8,FALSE) ->  | I8: =VLOOKUP($E8,Trenching,9,FALSE) ->  | J8: =VLOOKUP($E8,Trenching,10,FALSE) ->  | K8: =VLOOKUP($E8,Trenching,11,FALSE) ->  | L8: =VLOOKUP($E8,Trenching,2,FALSE) ->  | M8: 0 | N8: =IF(M8=0,0,$G8*M8) -> 0 | O8: 0
D9: SL: | E9: Commercial | F9: 17 | G9: =SUM(H9:K9) ->  | H9: =VLOOKUP($E9,Trenching,8,FALSE) ->  | I9: =VLOOKUP($E9,Trenching,9,FALSE) ->  | J9: =VLOOKUP($E9,Trenching,10,FALSE) ->  | K9: =VLOOKUP($E9,Trenching,11,FALSE) ->  | L9: =VLOOKUP($E9,Trenching,2,FALSE) ->  | M9: 0 | N9: =IF(M9=0,0,$G9*M9) -> 0 | O9: 0
C10: Lay Ducts | N10: =SUBTOTAL(9,N11:N16) -> 0
D11: Trans: | E11: Lay HV 150mm Ducts in Trench | F11: 26 | G11: =SUM(H11:K11) -> 11.29088889 | H11: =UG_Trenching!C11 -> 1.897 | I11: =UG_Trenching!D11 -> 0.4022222222 | J11: =UG_Trenching!E11 -> 8.991666667 | K11: =UG_Trenching!F11 -> 0 | L11: m | M11: 0 | N11: =IF(M11=0,0,$G11*M11) -> 0 | O11: 0
D12: 22kV: | E12: Lay 22kV 125mm Ducts in Trench | F12: 26 | G12: 6.451722222 | H12: =UG_Trenching!C12 -> 1.897 | I12: =UG_Trenching!D12 -> 0.4022222222 | J12: =UG_Trenching!E12 -> 4.1525 | K12: =UG_Trenching!F12 -> 0 | L12: m | M12: 0 | N12: 0 | O12: 0
D13: 11kV: | E13: Lay 11kV 125mm Ducts in Trench | F13: 27 | G13: 6.451722222 | H13: =UG_Trenching!C13 -> 1.897 | I13: =UG_Trenching!D13 -> 0.4022222222 | J13: =UG_Trenching!E13 -> 4.1525 | K13: =UG_Trenching!F13 -> 0 | L13: m | M13: 0 | N13: 0 | O13: 0
D14: LV: | E14: Lay LV 125mm Ducts in Trench | F14: 28 | G14: 6.451722222 | H14: =UG_Trenching!C14 -> 1.897 | I14: =UG_Trenching!D14 -> 0.4022222222 | J14: =UG_Trenching!E14 -> 4.1525 | K14: =UG_Trenching!F14 -> 0 | L14: m | M14: 0 | N14: 0 | O14: 0
D15: LV: | E15: Lay LV 50mm Ducts in Trench | F15: 28 | G15: 4.766722222 | H15: =UG_Trenching!C15 -> 1.897 | I15: =UG_Trenching!D15 -> 0.4022222222 | J15: =UG_Trenching!E15 -> 2.4675 | K15: =UG_Trenching!F15 -> 0 | L15: m | M15: 0 | N15: 0 | O15: 0
D16: LV: | E16: Lay LV 40mm Ducts in Trench | F16: 28 | G16: 4.106722222 | H16: =UG_Trenching!C16 -> 1.897 | I16: =UG_Trenching!D16 -> 0.4022222222 | J16: =UG_Trenching!E16 -> 1.8075 | K16: =UG_Trenching!F16 -> 0 | L16: m | M16: 0 | N16: 0 | O16: 0
B17: Lay Cable | N17: =SUBTOTAL(9,N18:N49) -> 0
C18: 22kV | N18: =SUBTOTAL(9,N19:N24) -> 0
D19: Lay | M19: =SUBTOTAL(9,M20:M21) -> 0 | N19: =SUBTOTAL(9,N20:N21) -> 0
E20: Pull Conductor through Ducts | F20: 26 | G20: =SUM(H20:K20) -> 7.73404 | H20: ='UG_Lay Cable'!J3 -> 5.01251 | I20: ='UG_Lay Cable'!K3 -> 2.72153 | J20: ='UG_Lay Cable'!L3 -> 0 | K20: ='UG_Lay Cable'!M3 -> 0 | L20: m | M20: 0 | N20: =IF(M20=0,0,$G20*M20) -> 0 | O20: 0
E21: Directly Buried in Trench | F21: 26 | G21: =SUM(H21:K21) -> 15.57335 | H21: ='UG_Lay Cable'!J4 -> 8.93468 | I21: ='UG_Lay Cable'!K4 -> 3.03756 | J21: ='UG_Lay Cable'!L4 -> 3.60111 | K21: ='UG_Lay Cable'!M4 -> 0 | L21: m | M21: 0 | N21: =IF(M21=0,0,$G21*M21) -> 0 | O21: 0
D22: Materials | M22: =SUBTOTAL(9,M23:M24) -> 0 | N22: =SUBTOTAL(9,N23:N24) -> 0
E23: 22kV 240mm2 CU 3C XLPE | F23: 26 | G23: =SUM(H23:K23) -> 102.477556 | H23: =VLOOKUP($E23,Cable,8,FALSE) -> 0 | I23: =VLOOKUP($E23,Cable,9,FALSE) -> 0 | J23: =VLOOKUP($E23,Cable,10,FALSE) -> 102.477556 | K23: =VLOOKUP($E23,Cable,11,FALSE) -> 0 | L23: m | M23: 0 | N23: =IF(M23=0,0,$G23*M23) -> 0 | O23: 0
E24: 22kV 240mm2 AL 3C XLPE | F24: 26 | G24: =SUM(H24:K24) -> 34.706175 | H24: =VLOOKUP($E24,Cable,8,FALSE) -> 0 | I24: =VLOOKUP($E24,Cable,9,FALSE) -> 0 | J24: =VLOOKUP($E24,Cable,10,FALSE) -> 34.706175 | K24: =VLOOKUP($E24,Cable,11,FALSE) -> 0 | L24: m | M24: 0 | N24: =IF(M24=0,0,$G24*M24) -> 0 | O24: 0
C25: 11kV | N25: =SUBTOTAL(9,N26:N33) -> 0
D26: Lay | M26: =SUBTOTAL(9,M27:M28) -> 0 | N26: =SUBTOTAL(9,N27:N28) -> 0
E27: Pull Conductor through Ducts | F27: 27 | G27: =SUM(H27:K27) -> 7.73404 | H27: =H20 -> 5.01251 | I27: =I20 -> 2.72153 | J27: 0 | K27: 0 | L27: m | M27: 0 | N27: =IF(M27=0,0,$G27*M27) -> 0 | O27: 0
E28: Directly Buried in Trench | F28: 27 | G28: =SUM(H28:K28) -> 15.57335 | H28: 8.93468 | I28: 3.03756 | J28: 3.60111 | K28: 0 | L28: m | M28: 0 | N28: =IF(M28=0,0,$G28*M28) -> 0 | O28: 0
D29: Materials | M29: =SUBTOTAL(9,M30:M33) -> 0 | N29: =SUBTOTAL(9,N30:N33) -> 0
E30: 11kV 240mm2 CU 3C XLPE | F30: 27 | G30: =SUM(H30:K30) -> 95.619689 | H30: =VLOOKUP($E30,Cable,8,FALSE) -> 0 | I30: =VLOOKUP($E30,Cable,9,FALSE) -> 0 | J30: =VLOOKUP($E30,Cable,10,FALSE) -> 95.619689 | K30: =VLOOKUP($E30,Cable,11,FALSE) -> 0 | L30: m | M30: 0 | N30: =IF(M30=0,0,$G30*M30) -> 0 | O30: 0
E31: 11kV 240mm2 AL 3C XLPE | F31: 27 | G31: =SUM(H31:K31) -> 29.598228 | H31: =VLOOKUP($E31,Cable,8,FALSE) -> 0 | I31: =VLOOKUP($E31,Cable,9,FALSE) -> 0 | J31: =VLOOKUP($E31,Cable,10,FALSE) -> 29.598228 | K31: =VLOOKUP($E31,Cable,11,FALSE) -> 0 | L31: m | M31: 0 | N31: =IF(M31=0,0,$G31*M31) -> 0 | O31: 0
E32: 11kV 185mm2 AL 3C XLPE | F32: 27 | G32: =SUM(H32:K32) -> 34.16 | H32: =VLOOKUP($E32,Cable,8,FALSE) -> 0 | I32: =VLOOKUP($E32,Cable,9,FALSE) -> 0 | J32: =VLOOKUP($E32,Cable,10,FALSE) -> 34.16 | K32: =VLOOKUP($E32,Cable,11,FALSE) -> 0 | L32: m | M32: 0 | N32: =IF(M32=0,0,$G32*M32) -> 0 | O32: 0
E33: 11kV 630mm2 CU 1C XLPE | F33: 27 | G33: =SUM(H33:K33) ->  | H33: =VLOOKUP($E33,Cable,8,FALSE) ->  | I33: =VLOOKUP($E33,Cable,9,FALSE) ->  | J33: =VLOOKUP($E33,Cable,10,FALSE) ->  | K33: =VLOOKUP($E33,Cable,11,FALSE) ->  | L33: m | M33: 0 | N33: =IF(M33=0,0,$G33*M33) -> 0 | O33: 0
C34: LV | N34: =SUBTOTAL(9,N35:N42) -> 0
D35: Lay | M35: =SUBTOTAL(9,M36:M37) -> 0 | N35: =SUBTOTAL(9,N36:N37) -> 0
E36: Pull Conductor through Ducts | F36: 28 | G36: =SUM(H36:K36) -> 7.73404 | H36: =H20 -> 5.01251 | I36: 2.72153 | J36: 0 | K36: 0 | L36: m | M36: 0 | N36: =IF(M36=0,0,$G36*M36) -> 0 | O36: 0
E37: Directly Buried in Trench | F37: 28 | G37: =SUM(H37:K37) -> 15.57335 | H37: 8.93468 | I37: 3.03756 | J37: 3.60111 | K37: 0 | L37: m | M37: 0 | N37: =IF(M37=0,0,$G37*M37) -> 0 | O37: 0
D38: Materials | M38: =SUBTOTAL(9,M39:M42) -> 0 | N38: =SUBTOTAL(9,N39:N42) -> 0
E39: LV 240mm2 AL 4C XLPE | F39: 28 | G39: =SUM(H39:K39) -> 15.473072 | H39: =VLOOKUP($E39,Cable,8,FALSE) -> 0 | I39: =VLOOKUP($E39,Cable,9,FALSE) -> 0 | J39: =VLOOKUP($E39,Cable,10,FALSE) -> 15.473072 | K39: =VLOOKUP($E39,Cable,11,FALSE) -> 0 | L39: m | M39: 0 | N39: =IF(M39=0,0,$G39*M39) -> 0 | O39: 0
E40: LV 50mm2 CU 4C XLPE/PVC | F40: 28 | G40: =SUM(H40:K40) -> 25.393634 | H40: =VLOOKUP($E40,Cable,8,FALSE) -> 0 | I40: =VLOOKUP($E40,Cable,9,FALSE) -> 0 | J40: =VLOOKUP($E40,Cable,10,FALSE) -> 25.393634 | K40: =VLOOKUP($E40,Cable,11,FALSE) -> 0 | L40: m | M40: 0 | N40: =IF(M40=0,0,$G40*M40) -> 0 | O40: 0
E41: LV 25mm2 CU 4C XLPE/PVC | F41: 28 | G41: =SUM(H41:K41) -> 14.588344 | H41: =VLOOKUP($E41,Cable,8,FALSE) -> 0 | I41: =VLOOKUP($E41,Cable,9,FALSE) -> 0 | J41: =VLOOKUP($E41,Cable,10,FALSE) -> 14.588344 | K41: =VLOOKUP($E41,Cable,11,FALSE) -> 0 | L41: m | M41: 0 | N41: =IF(M41=0,0,$G41*M41) -> 0 | O41: 0
E42: LV 4mm2 CU 2C 7/0.85 DI | F42: 28 | G42: =SUM(H42:K42) -> 1.281636 | H42: =VLOOKUP($E42,Cable,8,FALSE) -> 0 | I42: =VLOOKUP($E42,Cable,9,FALSE) -> 0 | J42: =VLOOKUP($E42,Cable,10,FALSE) -> 1.281636 | K42: =VLOOKUP($E42,Cable,11,FALSE) -> 0 | L42: m | M42: 0 | N42: =IF(M42=0,0,$G42*M42) -> 0 | O42: 0
C43: Earthing | N43: =SUBTOTAL(9,N44:N49) -> 0
D44: Lay | M44: =SUBTOTAL(9,M45:M46) -> 0 | N44: =SUBTOTAL(9,N45:N46) -> 0
E45: Pull Conductor through Ducts | F45: 28 | G45: =SUM(H45:K45) -> 7.73404 | H45: =H36 -> 5.01251 | I45: =I36 -> 2.72153 | J45: 0 | K45: 0 | L45: m | M45: 0 | N45: =IF(M45=0,0,$G45*M45) -> 0 | O45: 0
E46: Directly Buried in Trench | F46: 28 | G46: =SUM(H46:K46) -> 15.57335 | H46: =H37 -> 8.93468 | I46: 3.03756 | J46: 3.60111 | K46: 0 | L46: m | M46: 0 | N46: =IF(M46=0,0,$G46*M46) -> 0 | O46: 0
D47: Materials | M47: =SUBTOTAL(9,M48:M48) -> 0 | N47: =SUBTOTAL(9,N48:N49) -> 0
E48: LV BARE CU Anealed 19/2.14 | F48: 28 | G48: =SUM(H48:K48) -> 8.01711 | H48: =VLOOKUP($E48,Cable,8,FALSE) -> 0 | I48: =VLOOKUP($E48,Cable,9,FALSE) -> 0 | J48: =VLOOKUP($E48,Cable,10,FALSE) -> 8.01711 | K48: =VLOOKUP($E48,Cable,11,FALSE) -> 0 | L48: m | M48: 0 | N48: =IF(M48=0,0,$G48*M48) -> 0 | O48: 0
B50: Joints | N50: =SUBTOTAL(9,N51:N76) -> 0
C51: Excavate for Joint | N51: =SUBTOTAL(9,N52:N54) -> 0
D52: 22kV: | E52: Excavate for STJ | F52: 26 | G52: =SUM(H52:K52) -> 692.05 | H52: =VLOOKUP($E52,Trenching,8,FALSE) -> 554.31 | I52: =VLOOKUP($E52,Trenching,9,FALSE) -> 89.21 | J52: =VLOOKUP($E52,Trenching,10,FALSE) -> 48.53 | K52: =VLOOKUP($E52,Trenching,11,FALSE) -> 0 | L52: =VLOOKUP($E52,Trenching,2,FALSE) -> ea | M52: 0 | N52: =IF(M52=0,0,$G52*M52) -> 0 | O52: 0
D53: 11kV: | E53: Excavate for STJ | F53: 27 | G53: =SUM(H53:K53) -> 692.05 | H53: =VLOOKUP($E53,Trenching,8,FALSE) -> 554.31 | I53: =VLOOKUP($E53,Trenching,9,FALSE) -> 89.21 | J53: =VLOOKUP($E53,Trenching,10,FALSE) -> 48.53 | K53: =VLOOKUP($E53,Trenching,11,FALSE) -> 0 | L53: =VLOOKUP($E53,Trenching,2,FALSE) -> ea | M53: 0 | N53: =IF(M53=0,0,$G53*M53) -> 0 | O53: 0
D54: LV: | E54: Excavate for STJ | F54: 28 | G54: =SUM(H54:K54) -> 692.05 | H54: =VLOOKUP($E54,Trenching,8,FALSE) -> 554.31 | I54: =VLOOKUP($E54,Trenching,9,FALSE) -> 89.21 | J54: =VLOOKUP($E54,Trenching,10,FALSE) -> 48.53 | K54: =VLOOKUP($E54,Trenching,11,FALSE) -> 0 | L54: =VLOOKUP($E54,Trenching,2,FALSE) -> ea | M54: 0 | N54: =IF(M54=0,0,$G54*M54) -> 0 | O54: 0
C55: 22kV | N55: =SUBTOTAL(9,N56:N59) -> 0
E56: STJ in Trench (HV) | F56: 26 | G56: =SUM(H56:K56) -> 1556.53 | H56: =VLOOKUP($E56,Joints,8,FALSE) -> 714.03 | I56: =VLOOKUP($E56,Joints,9,FALSE) -> 230.2 | J56: =VLOOKUP($E56,Joints,10,FALSE) -> 612.3 | K56: =VLOOKUP($E56,Joints,11,FALSE) -> 0 | L56: ea | M56: 0 | N56: =IF(M56=0,0,$G56*M56) -> 0 | O56: 0
E57: Straight to Transformer (HV) | F57: 26 | G57: =SUM(H57:K57) -> 1926.93 | H57: =VLOOKUP($E57,Joints,8,FALSE) -> 1186.61 | I57: =VLOOKUP($E57,Joints,9,FALSE) -> 151.05 | J57: =VLOOKUP($E57,Joints,10,FALSE) -> 589.27 | K57: =VLOOKUP($E57,Joints,11,FALSE) -> 0 | L57: ea | M57: 0 | N57: =IF(M57=0,0,$G57*M57) -> 0 | O57: 0
E58: PM Sub Term (HV) | F58: 26 | G58: =SUM(H58:K58) -> 2802.81 | H58: =VLOOKUP($E58,Joints,8,FALSE) -> 1651.78 | I58: =VLOOKUP($E58,Joints,9,FALSE) -> 167.62 | J58: =VLOOKUP($E58,Joints,10,FALSE) -> 916.63 | K58: =VLOOKUP($E58,Joints,11,FALSE) -> 66.78 | L58: ea | M58: 0 | N58: =IF(M58=0,0,$G58*M58) -> 0 | O58: 0
E59: UG/OH (not including cable/pole) | F59: 26 | G59: =SUM(H59:K59) ->  | H59: =VLOOKUP($E59,Joints,8,FALSE) ->  | I59: =VLOOKUP($E59,Joints,9,FALSE) ->  | J59: =VLOOKUP($E59,Joints,10,FALSE) ->  | K59: =VLOOKUP($E59,Joints,11,FALSE) ->  | L59: ea | M59: 0 | N59: =IF(M59=0,0,$G59*M59) -> 0 | O59: 0
C60: 11kV | N60: =SUBTOTAL(9,N61:N64) -> 0
E61: STJ in Trench (HV) | F61: 27 | G61: =SUM(H61:K61) -> 1556.53 | H61: =VLOOKUP($E61,Joints,8,FALSE) -> 714.03 | I61: =VLOOKUP($E61,Joints,9,FALSE) -> 230.2 | J61: =VLOOKUP($E61,Joints,10,FALSE) -> 612.3 | K61: =VLOOKUP($E61,Joints,11,FALSE) -> 0 | L61: ea | M61: 0 | N61: =IF(M61=0,0,$G61*M61) -> 0 | O61: 0
E62: Straight to Transformer (HV) | F62: 27 | G62: =SUM(H62:K62) -> 1926.93 | H62: =VLOOKUP($E62,Joints,8,FALSE) -> 1186.61 | I62: =VLOOKUP($E62,Joints,9,FALSE) -> 151.05 | J62: =VLOOKUP($E62,Joints,10,FALSE) -> 589.27 | K62: =VLOOKUP($E62,Joints,11,FALSE) -> 0 | L62: ea | M62: 0 | N62: =IF(M62=0,0,$G62*M62) -> 0 | O62: 0
E63: PM Sub Term (HV) | F63: 27 | G63: =SUM(H63:K63) -> 2802.81 | H63: =VLOOKUP($E63,Joints,8,FALSE) -> 1651.78 | I63: =VLOOKUP($E63,Joints,9,FALSE) -> 167.62 | J63: =VLOOKUP($E63,Joints,10,FALSE) -> 916.63 | K63: =VLOOKUP($E63,Joints,11,FALSE) -> 66.78 | L63: ea | M63: 0 | N63: =IF(M63=0,0,$G63*M63) -> 0 | O63: 0
E64: UG/OH (not including cable/pole) | F64: 27 | G64: =SUM(H64:K64) ->  | H64: =VLOOKUP($E64,Joints,8,FALSE) ->  | I64: =VLOOKUP($E64,Joints,9,FALSE) ->  | J64: =VLOOKUP($E64,Joints,10,FALSE) ->  | K64: =VLOOKUP($E64,Joints,11,FALSE) ->  | L64: ea | M64: 0 | N64: =IF(M64=0,0,$G64*M64) -> 0 | O64: 0
C65: LV | N65: =SUBTOTAL(9,N66:N70) -> 0
E66: STJ in Trench (LV) | F66: 28 | G66: =SUM(H66:K66) -> 887.08 | H66: =VLOOKUP($E66,Joints,8,FALSE) -> 629.9 | I66: =VLOOKUP($E66,Joints,9,FALSE) -> 94.56 | J66: =VLOOKUP($E66,Joints,10,FALSE) -> 162.62 | K66: =VLOOKUP($E66,Joints,11,FALSE) -> 0 | L66: ea | M66: 0 | N66: =IF(M66=0,0,$G66*M66) -> 0 | O66: 0
E67: Term Cable in Pillar (LV) | F67: 28 | G67: =SUM(H67:K67) -> 887.08 | H67: =VLOOKUP($E67,Joints,8,FALSE) -> 629.9 | I67: =VLOOKUP($E67,Joints,9,FALSE) -> 94.56 | J67: =VLOOKUP($E67,Joints,10,FALSE) -> 162.62 | K67: =VLOOKUP($E67,Joints,11,FALSE) -> 0 | L67: ea | M67: 0 | N67: =IF(M67=0,0,$G67*M67) -> 0 | O67: 0
E68: Term Cable in Column (LV) | F68: 28 | G68: =SUM(H68:K68) -> 736.09 | H68: =VLOOKUP($E68,Joints,8,FALSE) -> 590.13 | I68: =VLOOKUP($E68,Joints,9,FALSE) -> 90.52 | J68: =VLOOKUP($E68,Joints,10,FALSE) -> 55.44 | K68: =VLOOKUP($E68,Joints,11,FALSE) -> 0 | L68: ea | M68: 0 | N68: =IF(M68=0,0,$G68*M68) -> 0 | O68: 0
E69: Term Cable in PM (LV) | F69: 28 | G69: =SUM(H69:K69) -> 738.42 | H69: =VLOOKUP($E69,Joints,8,FALSE) -> 513.66 | I69: =VLOOKUP($E69,Joints,9,FALSE) -> 82.76 | J69: =VLOOKUP($E69,Joints,10,FALSE) -> 142 | K69: =VLOOKUP($E69,Joints,11,FALSE) -> 0 | L69: ea | M69: 0 | N69: =IF(M69=0,0,$G69*M69) -> 0 | O69: 0
E70: UG/OH (not including cable/pole) | F70: 28 | G70: =SUM(H70:K70) ->  | H70: =VLOOKUP($E70,Joints,8,FALSE) ->  | I70: =VLOOKUP($E70,Joints,9,FALSE) ->  | J70: =VLOOKUP($E70,Joints,10,FALSE) ->  | K70: =VLOOKUP($E70,Joints,11,FALSE) ->  | L70: ea | M70: 0 | N70: =IF(M70=0,0,$G70*M70) -> 0 | O70: 0
C71: NON CONTESTABLE Terminations and STJ's | N71: =SUBTOTAL(9,N72:N76) -> 0
E72: Zone Sub Cable Termination | F72: 27 | G72: =SUM(H72:K72) ->  | H72: =VLOOKUP($E72,Joints,8,FALSE) ->  | I72: =VLOOKUP($E72,Joints,9,FALSE) ->  | J72: =VLOOKUP($E72,Joints,10,FALSE) ->  | K72: =VLOOKUP($E72,Joints,11,FALSE) ->  | L72: ea | M72: 0 | N72: =IF(M72=0,0,$G72*M72) -> 0 | O72: 0
E73: Cable Manoeuvring | F73: 27 | G73: =SUM(H73:K73) ->  | H73: =VLOOKUP($E73,Joints,8,FALSE) ->  | I73: =VLOOKUP($E73,Joints,9,FALSE) ->  | J73: =VLOOKUP($E73,Joints,10,FALSE) ->  | K73: =VLOOKUP($E73,Joints,11,FALSE) ->  | L73: ea | M73: 0 | N73: =IF(M73=0,0,$G73*M73) -> 0 | O73: 0
E74: Protection setting | F74: 27 | G74: =SUM(H74:K74) -> 4307.53 | H74: =VLOOKUP($E74,Joints,8,FALSE) -> 4307.53 | I74: =VLOOKUP($E74,Joints,9,FALSE) -> 0 | J74: =VLOOKUP($E74,Joints,10,FALSE) -> 0 | K74: =VLOOKUP($E74,Joints,11,FALSE) -> 0 | L74: ea | M74: 0 | N74: =IF(M74=0,0,$G74*M74) -> 0 | O74: 0
E75: Testing prior to commissioning | F75: 27 | G75: =SUM(H75:K75) -> 4883.7 | H75: =VLOOKUP($E75,Joints,8,FALSE) -> 4883.7 | I75: =VLOOKUP($E75,Joints,9,FALSE) -> 0 | J75: =VLOOKUP($E75,Joints,10,FALSE) -> 0 | K75: =VLOOKUP($E75,Joints,11,FALSE) -> 0 | L75: ea | M75: 0 | N75: =IF(M75=0,0,$G75*M75) -> 0 | O75: 0
E76: First STJ out of zone substation | F76: 27 | G76: =SUM(H76:K76) ->  | H76: =VLOOKUP($E76,Joints,8,FALSE) ->  | I76: =VLOOKUP($E76,Joints,9,FALSE) ->  | J76: =VLOOKUP($E76,Joints,10,FALSE) ->  | K76: =VLOOKUP($E76,Joints,11,FALSE) ->  | L76: ea | M76: 0 | N76: =IF(M76=0,0,$G76*M76) -> 0 | O76: 0
B77: Columns & Pillars | N77: =SUBTOTAL(9,N78:N89) -> 0
C78: Excavate for Pillar | N78: =SUBTOTAL(9,N79:N81) -> 0
D79: 22kV: | E79: Heavy Trenching |_o_o_o_| | F79: 26 | G79: =SUM(H79:K79) ->  | H79: =VLOOKUP($E79,Trenching,8,FALSE) ->  | I79: =VLOOKUP($E79,Trenching,9,FALSE) ->  | J79: =VLOOKUP($E79,Trenching,10,FALSE) ->  | K79: =VLOOKUP($E79,Trenching,11,FALSE) ->  | L79: =VLOOKUP($E79,Trenching,2,FALSE) ->  | M79: 0 | N79: =IF(M79=0,0,$G79*M79) -> 0 | O79: 0
D80: 11kV: | E80: Excavate for STJ | F80: 27 | G80: =SUM(H80:K80) -> 692.05 | H80: =VLOOKUP($E80,Trenching,8,FALSE) -> 554.31 | I80: =VLOOKUP($E80,Trenching,9,FALSE) -> 89.21 | J80: =VLOOKUP($E80,Trenching,10,FALSE) -> 48.53 | K80: =VLOOKUP($E80,Trenching,11,FALSE) -> 0 | L80: =VLOOKUP($E80,Trenching,2,FALSE) -> ea | M80: 0 | N80: =IF(M80=0,0,$G80*M80) -> 0 | O80: 0
D81: LV: | E81: Excavate for STJ | F81: 28 | G81: =SUM(H81:K81) -> 692.05 | H81: =VLOOKUP($E81,Trenching,8,FALSE) -> 554.31 | I81: =VLOOKUP($E81,Trenching,9,FALSE) -> 89.21 | J81: =VLOOKUP($E81,Trenching,10,FALSE) -> 48.53 | K81: =VLOOKUP($E81,Trenching,11,FALSE) -> 0 | L81: =VLOOKUP($E81,Trenching,2,FALSE) -> ea | M81: 0 | N81: =IF(M81=0,0,$G81*M81) -> 0 | O81: 0
C82: Pillars | N82: =SUBTOTAL(9,N83:N89) -> 0
D83: Install | N83: =SUBTOTAL(9,N84:N86) -> 0
E84: Install Ragbolt | F84: 17 | G84: =SUM(H84:K84) -> 674.3775 | H84: =VLOOKUP($E84,Pillars,8,FALSE) -> 190.9075 | I84: =VLOOKUP($E84,Pillars,9,FALSE) -> 70.7 | J84: =VLOOKUP($E84,Pillars,10,FALSE) -> 412.77 | K84: =VLOOKUP($E84,Pillars,11,FALSE) -> 0 | L84: ea | M84: 0 | N84: =IF(M84=0,0,$G84*M84) -> 0 | O84: 0
E85: Install Service Pillar | F85: 18 | G85: =SUM(H85:K85) -> 654.84 | H85: =VLOOKUP($E85,Pillars,8,FALSE) -> 513.66 | I85: =VLOOKUP($E85,Pillars,9,FALSE) -> 82.76 | J85: =VLOOKUP($E85,Pillars,10,FALSE) -> 58.42 | K85: =VLOOKUP($E85,Pillars,11,FALSE) -> 0 | L85: ea | M85: 0 | N85: =IF(M85=0,0,$G85*M85) -> 0 | O85: 0
E86: Install Mains Pillar | F86: 18 | G86: =SUM(H86:K86) -> 660.05 | H86: =VLOOKUP($E86,Pillars,8,FALSE) -> 513.66 | I86: =VLOOKUP($E86,Pillars,9,FALSE) -> 82.76 | J86: =VLOOKUP($E86,Pillars,10,FALSE) -> 63.63 | K86: =VLOOKUP($E86,Pillars,11,FALSE) -> 0 | L86: ea | M86: 0 | N86: =IF(M86=0,0,$G86*M86) -> 0 | O86: 0
D87: Remove | N87: =SUBTOTAL(9,N88:N89) -> 0
E88: Remove Ragbolt | F88: 17 | G88: =SUM(H88:K88) -> 738.32 | H88: =VLOOKUP($E88,Pillars,8,FALSE) -> 510.76 | I88: =VLOOKUP($E88,Pillars,9,FALSE) -> 227.56 | J88: =VLOOKUP($E88,Pillars,10,FALSE) -> 0 | K88: =VLOOKUP($E88,Pillars,11,FALSE) -> 0 | L88: ea | M88: 0 | N88: =IF(M88=0,0,$G88*M88) -> 0 | O88: 0
B90: Padmount Substation | N90: =SUBTOTAL(9,N91:N131) -> 0
C91: Packaged PM Substation | N91: =SUBTOTAL(9,N92:N112) -> 0
D92: Unit 1 | N92: =SUBTOTAL(9,N93:N98) -> 0
D93: Installation: | E93: New PM Substation | F93: 13 | G93: =SUM(H93:K93) -> 2960.31 | H93: =VLOOKUP($E93,PMInstall,8,FALSE) -> 1884.75 | I93: =VLOOKUP($E93,PMInstall,9,FALSE) -> 377.52 | J93: =VLOOKUP($E93,PMInstall,10,FALSE) -> 698.04 | K93: =VLOOKUP($E93,PMInstall,11,FALSE) -> 0 | L93: type | M93: 0 | N93: =IF(M93=0,0,$G93*M93) -> 0 | O93: 0
D94: Select: | E94: 11kV 315kVA CFCC CB 1250 + F | F94: 13 | G94: 18069.06897 | H94: =VLOOKUP($E94,PMPackage,8,FALSE) -> 0 | I94: =VLOOKUP($E94,PMPackage,9,FALSE) -> 0 | J94: =VLOOKUP($E94,PMPackage,10,FALSE) -> 18069.06897 | K94: =VLOOKUP($E94,PMPackage,11,FALSE) -> 0 | L94: ea | M94: 0 | N94: 0 | O94: 0
E95: ="---"&LEFT(E94,12)&" Transformer" -> ---11kV 315kVA Transformer | F95: 14 | G95: 9884.344865 | H95: 0 | I95: 0 | J95: =VLOOKUP($E94,PMPackage,2,FALSE) -> 9884.344865 | K95: 0 | L95: ea | M95: 0 | N95: 0 | O95: 0
D96: Earthing: | E96: Deep Earth (Clay 0-25m) | F96: 13 | G96: 462.59 | H96: =VLOOKUP($E96,Earthing,8,FALSE) -> 297.09 | I96: =VLOOKUP($E96,Earthing,9,FALSE) -> 165.5 | J96: =VLOOKUP($E96,Earthing,10,FALSE) -> 0 | K96: =VLOOKUP($E96,Earthing,11,FALSE) -> 0 | L96: type | M96: 0 | N96: 0 | O96: 0
D97: Trenching: | E97: Commercial | F97: 13 | H97: =VLOOKUP($E97,Trenching,8,FALSE) ->  | I97: =VLOOKUP($E97,Trenching,9,FALSE) ->  | J97: =VLOOKUP($E97,Trenching,10,FALSE) ->  | K97: =VLOOKUP($E97,Trenching,11,FALSE) ->  | L97: m | M97: 0 | N97: 0 | O97: 0
D98: Earthing Materials: | E98: Padmount Sub Common | F98: 13 | G98: 158.085 | H98: =VLOOKUP($E98,EarthingM,8,FALSE) -> 0 | I98: =VLOOKUP($E98,EarthingM,9,FALSE) -> 0 | J98: =VLOOKUP($E98,EarthingM,10,FALSE) -> 158.085 | K98: =VLOOKUP($E98,EarthingM,11,FALSE) -> 0 | L98: type | M98: 0 | N98: 0 | O98: 0
D99: Unit 2 | N99: =SUBTOTAL(9,N100:N105) -> 0
D100: Installation: | E100: New PM Substation | F100: 13 | G100: =SUM(H100:K100) -> 2960.31 | H100: =VLOOKUP($E100,PMInstall,8,FALSE) -> 1884.75 | I100: =VLOOKUP($E100,PMInstall,9,FALSE) -> 377.52 | J100: =VLOOKUP($E100,PMInstall,10,FALSE) -> 698.04 | K100: =VLOOKUP($E100,PMInstall,11,FALSE) -> 0 | L100: type | M100: 0 | N100: =IF(M100=0,0,$G100*M100) -> 0 | O100: 0
D101: Select: | E101: 11kV 315kVA CFC CB 1250 + F | F101: 13 | H101: =VLOOKUP($E101,PMPackage,8,FALSE) ->  | I101: =VLOOKUP($E101,PMPackage,9,FALSE) ->  | J101: =VLOOKUP($E101,PMPackage,10,FALSE) ->  | K101: =VLOOKUP($E101,PMPackage,11,FALSE) ->  | L101: ea | M101: 0 | N101: 0 | O101: 0
E102: ="---"&LEFT(E101,12)&" Transformer" -> ---11kV 315kVA Transformer | F102: 14 | H102: 0 | I102: 0 | J102: =VLOOKUP($E101,PMPackage,2,FALSE) ->  | K102: 0 | L102: ea | M102: 0 | N102: 0 | O102: 0
D103: Earthing: | E103: Deep Earth (Clay 0-25m) | F103: 13 | G103: 462.59 | H103: =VLOOKUP($E103,Earthing,8,FALSE) -> 297.09 | I103: =VLOOKUP($E103,Earthing,9,FALSE) -> 165.5 | J103: =VLOOKUP($E103,Earthing,10,FALSE) -> 0 | K103: =VLOOKUP($E103,Earthing,11,FALSE) -> 0 | L103: type | M103: 0 | N103: 0 | O103: 0
D104: Trenching: | E104: Light Trenching |_o_| | F104: 13 | H104: =VLOOKUP($E104,Trenching,8,FALSE) ->  | I104: =VLOOKUP($E104,Trenching,9,FALSE) ->  | J104: =VLOOKUP($E104,Trenching,10,FALSE) ->  | K104: =VLOOKUP($E104,Trenching,11,FALSE) ->  | L104: m | M104: 0 | N104: 0 | O104: 0
D105: Earthing Materials: | E105: Padmount Sub Common | F105: 13 | G105: 158.085 | H105: =VLOOKUP($E105,EarthingM,8,FALSE) -> 0 | I105: =VLOOKUP($E105,EarthingM,9,FALSE) -> 0 | J105: =VLOOKUP($E105,EarthingM,10,FALSE) -> 158.085 | K105: =VLOOKUP($E105,EarthingM,11,FALSE) -> 0 | L105: type | M105: 0 | N105: 0 | O105: 0
D106: Unit 3 | N106: =SUBTOTAL(9,N107:N112) -> 0
D107: Installation: | E107: New PM Substation | F107: 13 | G107: =SUM(H107:K107) -> 2960.31 | H107: =VLOOKUP($E107,PMInstall,8,FALSE) -> 1884.75 | I107: =VLOOKUP($E107,PMInstall,9,FALSE) -> 377.52 | J107: =VLOOKUP($E107,PMInstall,10,FALSE) -> 698.04 | K107: =VLOOKUP($E107,PMInstall,11,FALSE) -> 0 | L107: type | M107: 0 | N107: =IF(M107=0,0,$G107*M107) -> 0 | O107: 0
D108: Select: | E108: 11kV 315kVA CFC CB 1250 + F | F108: 13 | H108: =VLOOKUP($E108,PMPackage,8,FALSE) ->  | I108: =VLOOKUP($E108,PMPackage,9,FALSE) ->  | J108: =VLOOKUP($E108,PMPackage,10,FALSE) ->  | K108: =VLOOKUP($E108,PMPackage,11,FALSE) ->  | L108: ea | M108: 0 | N108: 0 | O108: 0
E109: ="---"&LEFT(E108,12)&" Transformer" -> ---11kV 315kVA Transformer | F109: 14 | H109: 0 | I109: 0 | J109: =VLOOKUP($E108,PMPackage,2,FALSE) ->  | K109: 0 | L109: ea | M109: 0 | N109: 0 | O109: 0
D110: Earthing: | E110: Deep Earth (Clay 0-25m) | F110: 13 | G110: 462.59 | H110: =VLOOKUP($E110,Earthing,8,FALSE) -> 297.09 | I110: =VLOOKUP($E110,Earthing,9,FALSE) -> 165.5 | J110: =VLOOKUP($E110,Earthing,10,FALSE) -> 0 | K110: =VLOOKUP($E110,Earthing,11,FALSE) -> 0 | L110: type | M110: 0 | N110: 0 | O110: 0
D111: Trenching: | E111: Light Trenching |_o_| | F111: 13 | H111: =VLOOKUP($E111,Trenching,8,FALSE) ->  | I111: =VLOOKUP($E111,Trenching,9,FALSE) ->  | J111: =VLOOKUP($E111,Trenching,10,FALSE) ->  | K111: =VLOOKUP($E111,Trenching,11,FALSE) ->  | L111: m | M111: 0 | N111: 0 | O111: 0
D112: Earthing Materials: | E112: Padmount Sub Separate | F112: 13 | G112: 202.165 | H112: =VLOOKUP($E112,EarthingM,8,FALSE) -> 0 | I112: =VLOOKUP($E112,EarthingM,9,FALSE) -> 0 | J112: =VLOOKUP($E112,EarthingM,10,FALSE) -> 202.165 | K112: =VLOOKUP($E112,EarthingM,11,FALSE) -> 0 | L112: type | M112: 0 | N112: 0 | O112: 0
C113: Individual PM Substation Components | N113: =SUBTOTAL(9,N114:N131) -> 0
D114: Installation: | N114: =SUBTOTAL(9,N115:N119) -> 0
D115: Installation: | E115: Modify/Uprate HV | F115: 13 | G115: =SUM(H115:K115) -> 1836.46 | H115: =VLOOKUP($E115,PMInstall,8,FALSE) -> 1633.96 | I115: =VLOOKUP($E115,PMInstall,9,FALSE) -> 202.5 | J115: =VLOOKUP($E115,PMInstall,10,FALSE) -> 0 | K115: =VLOOKUP($E115,PMInstall,11,FALSE) -> 0 | L115: type | M115: 0 | N115: =IF(M115=0,0,$G115*M115) -> 0 | O115: 0
D116: Installation: | E116: Modify/Uprate LV | F116: 13 | G116: =SUM(H116:K116) -> 1836.46 | H116: =VLOOKUP($E116,PMInstall,8,FALSE) -> 1633.96 | I116: =VLOOKUP($E116,PMInstall,9,FALSE) -> 202.5 | J116: =VLOOKUP($E116,PMInstall,10,FALSE) -> 0 | K116: =VLOOKUP($E116,PMInstall,11,FALSE) -> 0 | L116: type | M116: 0 | N116: =IF(M116=0,0,$G116*M116) -> 0 | O116: 0
D117: Installation: | E117: Modify/Uprate/Install CB | F117: 13 | G117: =SUM(H117:K117) -> 1137.12 | H117: =VLOOKUP($E117,PMInstall,8,FALSE) -> 1032.36 | I117: =VLOOKUP($E117,PMInstall,9,FALSE) -> 104.76 | J117: =VLOOKUP($E117,PMInstall,10,FALSE) -> 0 | K117: =VLOOKUP($E117,PMInstall,11,FALSE) -> 0 | L117: type | M117: 0 | N117: =IF(M117=0,0,$G117*M117) -> 0 | O117: 0
D118: Installation: | E118: Remove PM Substation | F118: 13 | G118: =SUM(H118:K118) -> 864.88 | H118: =VLOOKUP($E118,PMInstall,8,FALSE) -> 715.42 | I118: =VLOOKUP($E118,PMInstall,9,FALSE) -> 149.46 | J118: =VLOOKUP($E118,PMInstall,10,FALSE) -> 0 | K118: =VLOOKUP($E118,PMInstall,11,FALSE) -> 0 | L118: type | M118: 0 | N118: =IF(M118=0,0,$G118*M118) -> 0 | O118: 0
D119: Installation: | E119: Install Sub Culvert | F119: 13 | G119: =SUM(H119:K119) -> 2597.58 | H119: =VLOOKUP($E119,PMInstall,8,FALSE) -> 921.92 | I119: =VLOOKUP($E119,PMInstall,9,FALSE) -> 195.48 | J119: =VLOOKUP($E119,PMInstall,10,FALSE) -> 1480.18 | K119: =VLOOKUP($E119,PMInstall,11,FALSE) -> 0 | L119: type | M119: 0 | N119: =IF(M119=0,0,$G119*M119) -> 0 | O119: 0
D120: Materials: | N120: =SUBTOTAL(9,N121:N127) -> 0
D121: Components: | E121: ABB CF | F121: 13 | G121: =SUM(H121:K121) ->  | H121: =VLOOKUP($E121,PMMisc,8,FALSE) ->  | I121: =VLOOKUP($E121,PMMisc,9,FALSE) ->  | J121: =VLOOKUP($E121,PMMisc,10,FALSE) ->  | K121: =VLOOKUP($E121,PMMisc,11,FALSE) ->  | L121: ea | M121: 0 | N121: =IF(M121=0,0,$G121*M121) -> 0 | O121: 0
D122: Components: | E122: ABB CCFC | F122: 13 | L122: ea | M122: 0 | N122: 0 | O122: 0
D123: Components: | E123: CAT 2 FIF | F123: 13 | G123: 3732.962857 | H123: 0 | I123: 0 | J123: 3732.962857 | K123: 0 | L123: ea | M123: 0 | N123: 0 | O123: 0
D124: Components: | E124: Fuse Strip (Including 3 x 400A fuses) - Weber | F124: 13 | G124: 408.97043 | H124: 0 | I124: 0 | J124: 408.97043 | K124: 0 | L124: ea | M124: 0 | N124: 0 | O124: 0
D125: Components: | E125: 1250 CB ( Weber ) | F125: 13 | L125: ea | M125: 0 | N125: 0 | O125: 0
D126: Components: | E126: PM Substation Culvert | F126: 13 | G126: 1440.025682 | H126: 0 | I126: 0 | J126: 1440.025682 | K126: 0 | L126: ea | M126: 0 | N126: 0 | O126: 0
D127: Components: | E127: 1250 CB ( Weber ) | F127: 13 | L127: ea | M127: 0 | N127: 0 | O127: 0
D128: Earthing: | N128: =SUBTOTAL(9,N129:N131) -> 0
D129: Earthing: | E129: Deep Earth (Clay 0-25m) | F129: 13 | G129: =SUM(H129:K129) -> 462.59 | H129: =VLOOKUP($E129,Earthing,8,FALSE) -> 297.09 | I129: =VLOOKUP($E129,Earthing,9,FALSE) -> 165.5 | J129: =VLOOKUP($E129,Earthing,10,FALSE) -> 0 | K129: =VLOOKUP($E129,Earthing,11,FALSE) -> 0 | L129: type | M129: 0 | N129: =IF(M129=0,0,$G129*M129) -> 0 | O129: 0
D130: Trenching: | E130: Light Trenching |_o_| | F130: 13 | G130: =SUM(H130:K130) ->  | H130: =VLOOKUP($E130,Trenching,8,FALSE) ->  | I130: =VLOOKUP($E130,Trenching,9,FALSE) ->  | J130: =VLOOKUP($E130,Trenching,10,FALSE) ->  | K130: =VLOOKUP($E130,Trenching,11,FALSE) ->  | L130: m | M130: 0 | N130: =IF(M130=0,0,$G130*M130) -> 0 | O130: 0
D131: Earthing Materials: | E131: Padmount Sub Common | F131: 13 | G131: =SUM(H131:K131) -> 158.085 | H131: =VLOOKUP($E131,EarthingM,8,FALSE) -> 0 | I131: =VLOOKUP($E131,EarthingM,9,FALSE) -> 0 | J131: =VLOOKUP($E131,EarthingM,10,FALSE) -> 158.085 | K131: =VLOOKUP($E131,EarthingM,11,FALSE) -> 0 | L131: type | M131: 0 | N131: =IF(M131=0,0,$G131*M131) -> 0 | O131: 0
B132: Miscelaneous | N132: =SUBTOTAL(9,N133:N168) -> 0
C133: Determined | N133: =SUBTOTAL(9,N134:N138) -> 0
E134: Attach Pole Stay Wire and Tension | F134: =VLOOKUP($E134,Misc,2,FALSE) -> 19 | G134: =SUM(H134:K134) -> 588.61 | H134: =VLOOKUP($E134,Misc,8,FALSE) -> 336.26 | I134: =VLOOKUP($E134,Misc,9,FALSE) -> 118.95 | J134: =VLOOKUP($E134,Misc,10,FALSE) -> 133.4 | K134: =VLOOKUP($E134,Misc,11,FALSE) -> 0 | L134: ea | M134: 0 | N134: =IF(M134=0,0,$G134*M134) -> 0 | O134: 0
E135: Pole Sub CB | F135: =VLOOKUP($E135,Misc,2,FALSE) -> 11 | G135: =SUM(H135:K135) -> 8916.07 | H135: =VLOOKUP($E135,Misc,8,FALSE) -> 1002.67 | I135: =VLOOKUP($E135,Misc,9,FALSE) -> 162.9 | J135: =VLOOKUP($E135,Misc,10,FALSE) -> 7750.5 | K135: =VLOOKUP($E135,Misc,11,FALSE) -> 0 | L135: ea | M135: 0 | N135: =IF(M135=0,0,$G135*M135) -> 0 | O135: 0
E136: 11kV auto-recloser | F136: =VLOOKUP($E136,Misc,2,FALSE) -> 11 | G136: =SUM(H136:K136) -> 18260.32 | H136: =VLOOKUP($E136,Misc,8,FALSE) -> 401.07 | I136: =VLOOKUP($E136,Misc,9,FALSE) -> 65.16 | J136: =VLOOKUP($E136,Misc,10,FALSE) -> 17794.09 | K136: =VLOOKUP($E136,Misc,11,FALSE) -> 0 | L136: ea | M136: 0 | N136: =IF(M136=0,0,$G136*M136) -> 0 | O136: 0
E137: UG/OH (not including cable) | F137: =VLOOKUP($E137,Misc,2,FALSE) ->  | G137: =SUM(H137:K137) ->  | H137: =VLOOKUP($E137,Misc,8,FALSE) ->  | I137: =VLOOKUP($E137,Misc,9,FALSE) ->  | J137: =VLOOKUP($E137,Misc,10,FALSE) ->  | K137: =VLOOKUP($E137,Misc,11,FALSE) ->  | L137: ea | M137: 0 | N137: =IF(M137=0,0,$G137*M137) -> 0 | O137: 0
E138: select | F138: =VLOOKUP($E138,Misc,2,FALSE) -> 0 | G138: =SUM(H138:K138) -> 0 | H138: =VLOOKUP($E138,Misc,8,FALSE) -> 0 | I138: =VLOOKUP($E138,Misc,9,FALSE) -> 0 | J138: =VLOOKUP($E138,Misc,10,FALSE) -> 0 | K138: =VLOOKUP($E138,Misc,11,FALSE) -> 0 | L138: ea | M138: 0 | N138: =IF(M138=0,0,$G138*M138) -> 0 | O138: 0
C139: Ground Subs (excl TX's) | N139: =SUBTOTAL(9,N140:N144) -> 0
F140: 13 | G140: 0 | L140: unit | M140: 0 | N140: =IF(M140=0,0,$G140*M140) -> 0 | O140: 0
F141: 13 | G141: 0 | L141: unit | M141: 0 | N141: =IF(M141=0,0,$G141*M141) -> 0 | O141: 0
F142: 13 | G142: 0 | L142: unit | M142: 0 | N142: =IF(M142=0,0,$G142*M142) -> 0 | O142: 0
F143: 13 | G143: 0 | L143: unit | M143: 0 | N143: =IF(M143=0,0,$G143*M143) -> 0 | O143: 0
F144: 13 | G144: 0 | L144: unit | M144: 0 | N144: =IF(M144=0,0,$G144*M144) -> 0 | O144: 0
C145: 22/11kV Ground Substation | N145: =SUBTOTAL(9,N146:N150) -> 0
F146: 14 | G146: 0 | L146: unit | M146: 0 | N146: =IF(M146=0,0,$G146*M146) -> 0 | O146: 0
F147: 14 | G147: 0 | L147: unit | M147: 0 | N147: =IF(M147=0,0,$G147*M147) -> 0 | O147: 0
F148: 14 | G148: 0 | L148: unit | M148: 0 | N148: =IF(M148=0,0,$G148*M148) -> 0 | O148: 0
F149: 14 | G149: 0 | L149: unit | M149: 0 | N149: =IF(M149=0,0,$G149*M149) -> 0 | O149: 0
F150: 14 | G150: 0 | L150: unit | M150: 0 | N150: =IF(M150=0,0,$G150*M150) -> 0 | O150: 0
C151: 22kV Underground Cable | N151: =SUBTOTAL(9,N152:N156) -> 0
F152: 26 | G152: 0 | L152: unit | M152: 0 | N152: =IF(M152=0,0,$G152*M152) -> 0 | O152: 0
F153: 26 | G153: 0 | L153: unit | M153: 0 | N153: =IF(M153=0,0,$G153*M153) -> 0 | O153: 0
F154: 26 | G154: 0 | L154: unit | M154: 0 | N154: =IF(M154=0,0,$G154*M154) -> 0 | O154: 0
F155: 26 | G155: 0 | L155: unit | M155: 0 | N155: =IF(M155=0,0,$G155*M155) -> 0 | O155: 0
F156: 26 | G156: 0 | L156: unit | M156: 0 | N156: =IF(M156=0,0,$G156*M156) -> 0 | O156: 0
C157: 11kV Underground Cable | N157: =SUBTOTAL(9,N158:N162) -> 0
F158: 27 | G158: 0 | L158: unit | M158: 0 | N158: =IF(M158=0,0,$G158*M158) -> 0 | O158: 0
F159: 27 | G159: 0 | L159: unit | M159: 0 | N159: =IF(M159=0,0,$G159*M159) -> 0 | O159: 0
F160: 27 | G160: 0 | L160: unit | M160: 0 | N160: =IF(M160=0,0,$G160*M160) -> 0 | O160: 0
F161: 27 | G161: 0 | L161: unit | M161: 0 | N161: =IF(M161=0,0,$G161*M161) -> 0 | O161: 0
F162: 27 | G162: 0 | L162: unit | M162: 0 | N162: =IF(M162=0,0,$G162*M162) -> 0 | O162: 0
C163: LV Underground Cable | N163: =SUBTOTAL(9,N164:N168) -> 0
F164: 28 | G164: 0 | L164: unit | M164: 0 | N164: =IF(M164=0,0,$G164*M164) -> 0 | O164: 0
F165: 28 | G165: 0 | L165: unit | M165: 0 | N165: =IF(M165=0,0,$G165*M165) -> 0 | O165: 0
F166: 28 | G166: 0 | L166: unit | M166: 0 | N166: =IF(M166=0,0,$G166*M166) -> 0 | O166: 0
F167: 28 | G167: 0 | L167: unit | M167: 0 | N167: =IF(M167=0,0,$G167*M167) -> 0 | O167: 0
F168: 28 | G168: 0 | L168: unit | M168: 0 | N168: =IF(M168=0,0,$G168*M168) -> 0 | O168: 0
B169: Overhead Distribution (REMOVAL) | N169: =SUBTOTAL(9,N170:N364) -> 0
B170: Pole Sub | N170: =SUBTOTAL(9,N171:N195) -> 0
C171: Pole Substation | N171: =SUBTOTAL(9,N172:N195) -> 0
D172: Unit 1 | N172: =SUBTOTAL(9,N173:N179) -> 0
D173: Install: | E173: New 3 Phase < 300kVA | F173: 11 | G173: =SUM(H173:K173) -> 5797.2 | H173: =VLOOKUP($E173,InstallPoleSub,8,FALSE) -> 2185.09 | I173: =VLOOKUP($E173,InstallPoleSub,9,FALSE) -> 444.81 | J173: =VLOOKUP($E173,InstallPoleSub,10,FALSE) -> 3167.3 | K173: =VLOOKUP($E173,InstallPoleSub,11,FALSE) -> 0 | L173: unit | M173: 0 | N173: =IF(M173=0,0,$G173*M173) -> 0 | O173: 0
D174: Select Type: | E174: 25 KVA 11 KV 3PH | F174: 12 | G174: 2056.542069 | H174: =VLOOKUP($E174,PoleSub,8,FALSE) -> 0 | I174: =VLOOKUP($E174,PoleSub,9,FALSE) -> 0 | J174: =VLOOKUP($E174,PoleSub,10,FALSE) -> 2056.542069 | K174: =VLOOKUP($E174,PoleSub,11,FALSE) -> 0 | L174: unit | M174: 0 | N174: 0 | O174: 0
D175: Fittings: | E175: ="---"&E174&" Fittings" -> ---25 KVA 11 KV 3PH Fittings | F175: 11 | G175: 1216.409929 | H175: 0 | I175: 0 | J175: =VLOOKUP($E174,PoleSub,2,FALSE) -> 1216.409929 | K175: 0 | L175: unit | M175: 0 | N175: 0 | O175: 0
D176: Earthing: | E176: Deep Earth (Clay 0-25m) | F176: 11 | G176: 462.59 | H176: =VLOOKUP($E176,Earthing,8,FALSE) -> 297.09 | I176: =VLOOKUP($E176,Earthing,9,FALSE) -> 165.5 | J176: =VLOOKUP($E176,Earthing,10,FALSE) -> 0 | K176: =VLOOKUP($E176,Earthing,11,FALSE) -> 0 | L176: type | M176: 0 | N176: 0 | O176: 0
D177: Trenching: | E177: Industrial | F177: 11 | H177: =VLOOKUP($E177,Trenching,8,FALSE) ->  | I177: =VLOOKUP($E177,Trenching,9,FALSE) ->  | J177: =VLOOKUP($E177,Trenching,10,FALSE) ->  | K177: =VLOOKUP($E177,Trenching,11,FALSE) ->  | L177: m | M177: 0 | N177: 0 | O177: 0
D178: Earthing Materials: | E178: Common Wood Pole | F178: 11 | G178: 409.24 | H178: =VLOOKUP($E178,EarthingM,8,FALSE) -> 0 | I178: =VLOOKUP($E178,EarthingM,9,FALSE) -> 0 | J178: =VLOOKUP($E178,EarthingM,10,FALSE) -> 409.24 | K178: =VLOOKUP($E178,EarthingM,11,FALSE) -> 0 | L178: type | M178: 0 | N178: 0 | O178: 0
A179: 6 | D179: Aerial Earth: | E179: String and Dress HV Aerial Earth | F179: 11 | G179: =SUM(H179:K179) -> 296.895 | H179: =VLOOKUP(A179,Aerial,8,TRUE) -> 191.2833333 | I179: =VLOOKUP((A179),Aerial,9,TRUE) -> 21.19666667 | J179: =VLOOKUP((A179),Aerial,10,TRUE) -> 84.415 | K179: =VLOOKUP(A179,Aerial,11,TRUE) -> 0 | L179: bay | M179: 0 | N179: 0 | O179: 0
D180: Unit 2 | N180: =SUBTOTAL(9,N181:N187) -> 0
D181: Install: | E181: New 3 Phase >= 300kVA | F181: 11 | G181: =SUM(H181:K181) -> 6116.81 | H181: =VLOOKUP($E181,InstallPoleSub,8,FALSE) -> 2433.41 | I181: =VLOOKUP($E181,InstallPoleSub,9,FALSE) -> 496.53 | J181: =VLOOKUP($E181,InstallPoleSub,10,FALSE) -> 3186.87 | K181: =VLOOKUP($E181,InstallPoleSub,11,FALSE) -> 0 | L181: unit | M181: 0 | N181: =IF(M181=0,0,$G181*M181) -> 0 | O181: 0
D182: Select Type: | E182: 400 KVA 11KV 3PH | F182: 12 | G182: 8672.252 | H182: =VLOOKUP($E182,PoleSub,8,FALSE) -> 0 | I182: =VLOOKUP($E182,PoleSub,9,FALSE) -> 0 | J182: =VLOOKUP($E182,PoleSub,10,FALSE) -> 8672.252 | K182: =VLOOKUP($E182,PoleSub,11,FALSE) -> 0 | L182: unit | M182: 0 | N182: 0 | O182: 0
E183: ="---"&E182&" Fittings" -> ---400 KVA 11KV 3PH Fittings | F183: 11 | G183: 1216.409929 | H183: 0 | I183: 0 | J183: =VLOOKUP($E182,PoleSub,2,FALSE) -> 1216.409929 | K183: 0 | L183: unit | M183: 0 | N183: 0 | O183: 0
D184: Earthing: | E184: Deep Earth (Clay 0-25m) | F184: 11 | G184: 462.59 | H184: =VLOOKUP($E184,Earthing,8,FALSE) -> 297.09 | I184: =VLOOKUP($E184,Earthing,9,FALSE) -> 165.5 | J184: =VLOOKUP($E184,Earthing,10,FALSE) -> 0 | K184: =VLOOKUP($E184,Earthing,11,FALSE) -> 0 | L184: type | M184: 0 | N184: 0 | O184: 0
D185: Trenching: | E185: Trenching & Earthwork | F185: 11 | H185: =VLOOKUP($E185,Trenching,8,FALSE) ->  | I185: =VLOOKUP($E185,Trenching,9,FALSE) ->  | J185: =VLOOKUP($E185,Trenching,10,FALSE) ->  | K185: =VLOOKUP($E185,Trenching,11,FALSE) ->  | L185: m | M185: 0 | N185: 0 | O185: 0
D186: Earthing Materials: | E186: Common Concrete Pole | F186: 11 | G186: 301.24 | H186: =VLOOKUP($E186,EarthingM,8,FALSE) -> 0 | I186: =VLOOKUP($E186,EarthingM,9,FALSE) -> 0 | J186: =VLOOKUP($E186,EarthingM,10,FALSE) -> 301.24 | K186: =VLOOKUP($E186,EarthingM,11,FALSE) -> 0 | L186: type | M186: 0 | N186: 0 | O186: 0
D187: Aerial Earth: | E187: String and Dress HV Aerial Earth | F187: 11 | G187: 296.895 | H187: =H$179 -> 191.2833333 | I187: =I$179 -> 21.19666667 | J187: =J$179 -> 84.415 | K187: =K$179 -> 0 | L187: bay | M187: 0 | N187: 0 | O187: 0
D188: Unit 3 | N188: =SUBTOTAL(9,N189:N195) -> 0
D189: Install: | E189: New 3 Phase >= 300kVA | F189: 11 | G189: =SUM(H189:K189) -> 6116.81 | H189: =VLOOKUP($E189,InstallPoleSub,8,FALSE) -> 2433.41 | I189: =VLOOKUP($E189,InstallPoleSub,9,FALSE) -> 496.53 | J189: =VLOOKUP($E189,InstallPoleSub,10,FALSE) -> 3186.87 | K189: =VLOOKUP($E189,InstallPoleSub,11,FALSE) -> 0 | L189: unit | M189: 0 | N189: =IF(M189=0,0,$G189*M189) -> 0 | O189: 0
D190: Select Type: | E190: 400 KVA 11KV 3PH | F190: 12 | G190: 8672.252 | H190: =VLOOKUP($E190,PoleSub,8,FALSE) -> 0 | I190: =VLOOKUP($E190,PoleSub,9,FALSE) -> 0 | J190: =VLOOKUP($E190,PoleSub,10,FALSE) -> 8672.252 | K190: =VLOOKUP($E190,PoleSub,11,FALSE) -> 0 | L190: unit | M190: 0 | N190: 0 | O190: 0
D191: Fittings: | E191: ="---"&E190&" Fittings" -> ---400 KVA 11KV 3PH Fittings | F191: 11 | G191: 1216.409929 | H191: 0 | I191: 0 | J191: =VLOOKUP($E190,PoleSub,2,FALSE) -> 1216.409929 | K191: 0 | L191: unit | M191: 0 | N191: 0 | O191: 0
D192: Earthing: | E192: Deep Earth (Clay 0-25m) | F192: 11 | G192: 462.59 | H192: =VLOOKUP($E192,Earthing,8,FALSE) -> 297.09 | I192: =VLOOKUP($E192,Earthing,9,FALSE) -> 165.5 | J192: =VLOOKUP($E192,Earthing,10,FALSE) -> 0 | K192: =VLOOKUP($E192,Earthing,11,FALSE) -> 0 | L192: type | M192: 0 | N192: 0 | O192: 0
D193: Trenching: | E193: Industrial | F193: 11 | H193: =VLOOKUP($E193,Trenching,8,FALSE) ->  | I193: =VLOOKUP($E193,Trenching,9,FALSE) ->  | J193: =VLOOKUP($E193,Trenching,10,FALSE) ->  | K193: =VLOOKUP($E193,Trenching,11,FALSE) ->  | L193: m | M193: 0 | N193: 0 | O193: 0
D194: Earthing Materials: | E194: Common Concrete Pole | F194: 11 | G194: 301.24 | H194: =VLOOKUP($E194,EarthingM,8,FALSE) -> 0 | I194: =VLOOKUP($E194,EarthingM,9,FALSE) -> 0 | J194: =VLOOKUP($E194,EarthingM,10,FALSE) -> 301.24 | K194: =VLOOKUP($E194,EarthingM,11,FALSE) -> 0 | L194: type | M194: 0 | N194: 0 | O194: 0
D195: Aerial Earth: | E195: String and Dress HV Aerial Earth | F195: 11 | G195: 296.895 | H195: =H$179 -> 191.2833333 | I195: =I$179 -> 21.19666667 | J195: =J$179 -> 84.415 | K195: =K$179 -> 0 | L195: bay | M195: 0 | N195: 0 | O195: 0
B196: Poles | N196: =SUBTOTAL(9,N197:N251) -> 0
C197: Install | N197: =SUBTOTAL(9,N198:N251) -> 0
D198: Delivery and Installation | M198: =SUBTOTAL(9,M199:M200) -> 0 | N198: =SUBTOTAL(9,N199:N200) -> 0
A199: 4 | E199: Wood or Concrete Poles | F199: 18 | G199: =SUM(H199:K199) -> 701.39 | H199: =VLOOKUP((A199),InstallPole,8,TRUE) -> 371.5225 | I199: =VLOOKUP((A199),InstallPole,9,TRUE) -> 237.8975 | J199: =VLOOKUP(A199,InstallPole,10,TRUE) -> 91.97 | K199: =VLOOKUP((A199),InstallPole,11,TRUE) -> 0 | L199: ea | M199: 0 | N199: =IF(M199=0,0,$G199*M199) -> 0 | O199: 0
D201: Materials | M201: =SUBTOTAL(9,M202:M251) -> 0 | N201: =SUBTOTAL(9,N202:N251) -> 0
D202: Wood: | E202: Pole Impregnated 8/15 | F202: 18 | G202: =SUM(H202:K202) -> 261.1193 | H202: =VLOOKUP($E202,Poles,8,FALSE) -> 0 | I202: =VLOOKUP($E202,Poles,9,FALSE) -> 0 | J202: =VLOOKUP($E202,Poles,10,FALSE) -> 261.1193 | K202: =VLOOKUP($E202,Poles,11,FALSE) -> 0 | L202: ea | M202: 0 | N202: =IF(M202=0,0,$G202*M202) -> 0 | O202: 0
E203: Pole Impregnated 8/30 | F203: 18 | G203: 736.000278 | H203: 0 | I203: 0 | J203: 736.000278 | K203: 0 | L203: ea | M203: 0 | N203: 0 | O203: 0
... 465 more rows

Sheet Summary Sheet
A1: ="EE Asset Valuation Summary inclusive of PM & design costs for "&AVS!A1 -> EE Asset Valuation Summary inclusive of PM & design costs for UML12345 | E1: =IF(M9=1,"","CLICK REFRESH") ->  | J1: =AV -> 1 | O1: =RA -> 0
A8: Cat | B8: Asset Type | C8: Network Funded | D8: Customer Funded | E8: Current Rem/Rep V
A9: 1 | B9: SubTran Sub incl bldg, excl tx | C9: ='Final Valuation'!H4 -> 0 | D9: ='Final Valuation'!I4 -> 0 | E9: ='Final Valuation'!J4 -> 0 | K9: Check: | M9: =M10*M11*M12 -> 1
A10: 2 | B10: Zone Sub inc bldg, excl transf | C10: ='Final Valuation'!H5 -> 0 | D10: ='Final Valuation'!I5 -> 0 | E10: ='Final Valuation'!J5 -> 0 | K10: =ROUND(SUBTOTAL(9,AVS!O:O),2) -> 0 | L10: =IF(ROUND('Final Valuation'!K41,2)=1,0,ROUND('Final Valuation'!K41,2)) -> 0 | M10: =K10=L10 -> TRUE
A11: 3 | B11: 132/66/33kV Transf | C11: ='Final Valuation'!H6 -> 0 | D11: ='Final Valuation'!I6 -> 0 | E11: ='Final Valuation'!J6 -> 0 | K11: =ROUND(SUBTOTAL(9,AVS!Q:Q),2) -> 0 | L11: =IF(ROUND('Final Valuation'!C41,2)=1,0,ROUND('Final Valuation'!C41,2)) -> 0 | M11: =K11=L11 -> TRUE
A12: 4 | B12: 132kV Tower Line | C12: ='Final Valuation'!H7 -> 0 | D12: ='Final Valuation'!I7 -> 0 | E12: ='Final Valuation'!J7 -> 0 | K12: =ROUND(SUBTOTAL(9,RAVS!N:N),2) -> 0 | L12: =IF(ROUND('Final Valuation'!D41,2)=1,0,ROUND('Final Valuation'!D41,2)) -> 0 | M12: =K12=L12 -> TRUE
A13: 5 | B13: 132kV Conc/Steel Pole Line | C13: ='Final Valuation'!H8 -> 0 | D13: ='Final Valuation'!I8 -> 0 | E13: ='Final Valuation'!J8 -> 0
A14: 6 | B14: 132kV Other Line | C14: ='Final Valuation'!H9 -> 0 | D14: ='Final Valuation'!I9 -> 0 | E14: ='Final Valuation'!J9 -> 0
A15: 7 | B15: 66kV Concrete Pole Line | C15: ='Final Valuation'!H10 -> 0 | D15: ='Final Valuation'!I10 -> 0 | E15: ='Final Valuation'!J10 -> 0
A16: 8 | B16: 66kV Other Lines | C16: ='Final Valuation'!H11 -> 0 | D16: ='Final Valuation'!I11 -> 0 | E16: ='Final Valuation'!J11 -> 0
A17: 9 | B17: 33kV Concrete Pole Line | C17: ='Final Valuation'!H12 -> 0 | D17: ='Final Valuation'!I12 -> 0 | E17: ='Final Valuation'!J12 -> 0
A18: 10 | B18: 33kV Other Lines | C18: ='Final Valuation'!H13 -> 0 | D18: ='Final Valuation'!I13 -> 0 | E18: ='Final Valuation'!J13 -> 0
A19: 11 | B19: Pole Subs excl transf | C19: ='Final Valuation'!H14 -> 0 | D19: ='Final Valuation'!I14 -> 0 | E19: ='Final Valuation'!J14 -> 0
A20: 12 | B20: 22/11kV Pole Transformers | C20: ='Final Valuation'!H15 -> 0 | D20: ='Final Valuation'!I15 -> 0 | E20: ='Final Valuation'!J15 -> 0
A21: 13 | B21: Ground Subs excl transf | C21: ='Final Valuation'!H16 -> 0 | D21: ='Final Valuation'!I16 -> 0 | E21: ='Final Valuation'!J16 -> 0
A22: 14 | B22: 22/11kV Ground Sub Transf | C22: ='Final Valuation'!H17 -> 0 | D22: ='Final Valuation'!I17 -> 0 | E22: ='Final Valuation'!J17 -> 0
A23: 15 | B23: Cust Metering & Load control | C23: ='Final Valuation'!H18 -> 0 | D23: ='Final Valuation'!I18 -> 0 | E23: ='Final Valuation'!J18 -> 0
A24: 16 | B24: Overhead SL incl mains | C24: ='Final Valuation'!H19 -> 0 | D24: ='Final Valuation'!I19 -> 0 | E24: ='Final Valuation'!J19 -> 0
A25: 17 | B25: Underground SL incl mains | C25: ='Final Valuation'!H20 -> 0 | D25: ='Final Valuation'!I20 -> 0 | E25: ='Final Valuation'!J20 -> 0
A26: 18 | B26: 22kV Overhead Lines | C26: ='Final Valuation'!H21 -> 0 | D26: ='Final Valuation'!I21 -> 0 | E26: ='Final Valuation'!J21 -> 0
A27: 19 | B27: 11kV Overhead Lines | C27: ='Final Valuation'!H22 -> 0 | D27: ='Final Valuation'!I22 -> 0 | E27: ='Final Valuation'!J22 -> 0
A28: 20 | B28: LV Overhead Lines | C28: ='Final Valuation'!H23 -> 0 | D28: ='Final Valuation'!I23 -> 0 | E28: ='Final Valuation'!J23 -> 0
A29: 21 | B29: Power Station Dist Equip | C29: ='Final Valuation'!H24 -> 0 | D29: ='Final Valuation'!I24 -> 0 | E29: ='Final Valuation'!J24 -> 0
A30: 22 | B30: SWER Lines | C30: ='Final Valuation'!H25 -> 0 | D30: ='Final Valuation'!I25 -> 0 | E30: ='Final Valuation'!J25 -> 0
A31: 23 | B31: 132kV UG cable | C31: ='Final Valuation'!H26 -> 0 | D31: ='Final Valuation'!I26 -> 0 | E31: ='Final Valuation'!J26 -> 0
A32: 24 | B32: 66kV UG cable | C32: ='Final Valuation'!H27 -> 0 | D32: ='Final Valuation'!I27 -> 0 | E32: ='Final Valuation'!J27 -> 0
A33: 25 | B33: 33kV UG cable | C33: ='Final Valuation'!H28 -> 0 | D33: ='Final Valuation'!I28 -> 0 | E33: ='Final Valuation'!J28 -> 0
A34: 26 | B34: 22kV UG cable | C34: ='Final Valuation'!H29 -> 0 | D34: ='Final Valuation'!I29 -> 0 | E34: ='Final Valuation'!J29 -> 0
A35: 27 | B35: 11kV UG cable | C35: ='Final Valuation'!H30 -> 0 | D35: ='Final Valuation'!I30 -> 0 | E35: ='Final Valuation'!J30 -> 0
A36: 28 | B36: LV UG cable | C36: ='Final Valuation'!H31 -> 0 | D36: ='Final Valuation'!I31 -> 0 | E36: ='Final Valuation'!J31 -> 0
A37: 29 | B37: SCADA/Cent Control Facility | C37: ='Final Valuation'!H32 -> 0 | D37: ='Final Valuation'!I32 -> 0 | E37: ='Final Valuation'!J32 -> 0
A38: 30 | B38: Easements | C38: ='Final Valuation'!H33 -> 0 | D38: ='Final Valuation'!I33 -> 0 | E38: ='Final Valuation'!J33 -> 0
A39: 31 | B39: Emergency Spares | C39: ='Final Valuation'!H34 -> 0 | D39: ='Final Valuation'!I34 -> 0 | E39: ='Final Valuation'!J34 -> 0
A40: 32 | B40: Land (Infrastructure) | C40: ='Final Valuation'!H35 -> 0 | D40: ='Final Valuation'!I35 -> 0 | E40: ='Final Valuation'!J35 -> 0
A41: 33 | B41: Generation Assets | C41: ='Final Valuation'!H36 -> 0 | D41: ='Final Valuation'!I36 -> 0 | E41: ='Final Valuation'!J36 -> 0
A42: 34 | B42: Jointly Owned Spare Transf | C42: ='Final Valuation'!H37 -> 0 | D42: ='Final Valuation'!I37 -> 0 | E42: ='Final Valuation'!J37 -> 0
A43: 35 | B43: Tools & Sundry Plant | C43: ='Final Valuation'!H38 -> 0 | D43: ='Final Valuation'!I38 -> 0 | E43: ='Final Valuation'!J38 -> 0
A44: 36 | B44: Computer Equipment | C44: ='Final Valuation'!H39 -> 0 | D44: ='Final Valuation'!I39 -> 0 | E44: ='Final Valuation'!J39 -> 0
A45: Total EE Capital Contribution ( excluding PM & Design) | C45: ='Final Valuation'!K41 -> 1 | D45: =ROUNDUP(SUM(D9:D44),0) -> 0 | E45: =SUM(E9:E44) -> 0
A46: Combined CAPEX | C46: =ROUNDUP((C45+D45),0) -> 1 | E46: =E45 -> 0
A47: EE Capital Contribution(HV reimbursed) | C47: =ROUNDUP(SUM(C9:C44),0) -> 0
A48: R | B48: Physical Removal Costs | C48: ='Final Valuation'!B40 -> 0 | D48: ='Final Valuation'!C40 -> 0 | E48: na
A50: AVS v22 | E50: =NOW() -> 2022-07-18T20:57:18.730
A51: Notes:

Sheet Mapping (hidden)
A1: Asset Class | B1: Asset Class Name | C1: CAT | D1: Asset Type | E1: Cat | F1: Asset Type
A2: 30000 | B2: Tower Line-132KV | C2: 4 | D2: 132kV Tower Line | E2: 1 | F2: SubTran Sub incl bldg, excl tx
A3: 30010 | B3: Other Line-132kV | C3: 6 | D3: 132kV Other Line | E3: 2 | F3: Zone Sub inc bldg, excl transf
A4: 30020 | B4: Other Line-66KV | C4: 8 | D4: 66kV Other Lines | E4: 3 | F4: 132/66/33kV Transf
A5: 30030 | B5: Other Line-33kV | C5: 10 | D5: 33kV Other Lines | E5: 4 | F5: 132kV Tower Line
A6: 30090 | B6: Conc/SteelPole-132kV | C6: 5 | D6: 132kV Conc/Steel Pole Line | E6: 5 | F6: 132kV Conc/Steel Pole Line
A7: 30100 | B7: Concrete Pole-66kV | C7: 7 | D7: 66kV Concrete Pole Line | E7: 6 | F7: 132kV Other Line
A8: 30110 | B8: Concrete Pole-33kV | C8: 9 | D8: 33kV Concrete Pole Line | E8: 7 | F8: 66kV Concrete Pole Line
A9: 30120 | B9: UG Cable-132kV | C9: 23 | D9: 132kV UG cable | E9: 8 | F9: 66kV Other Lines
A10: 30130 | B10: UG Cable-66kV | C10: 24 | D10: 66kV UG cable | E10: 9 | F10: 33kV Concrete Pole Line
A11: 30140 | B11: UG Cable-33kV | C11: 25 | D11: 33kV UG cable | E11: 10 | F11: 33kV Other Lines
A12: 30150 | B12: Emergency Spares | C12: 31 | D12: Emergency Spares | E12: 11 | F12: Pole Subs excl transf
A13: 30160 | B13: Communic Bearer CSRV | C13: NA | E13: 12 | F13: 22/11kV Pole Transformers
A14: 30180 | B14: SCADA/CCF | C14: 29 | D14: SCADA/Cent Control Facility | E14: 13 | F14: Ground Subs excl transf
A15: 30250 | B15: Transformers-Spare | C15: 34 | D15: Jointly Owned Spare Transf | E15: 14 | F15: 22/11kV Ground Sub Transf
A16: 40000 | B16: Meters & Load Contrl | C16: 15 | D16: Cust Metering & Load control | E16: 15 | F16: Cust Metering & Load control
A17: 40010 | B17: OH Lines-22kV | C17: 18 | D17: 22kV Overhead Lines | E17: 16 | F17: Overhead SL incl mains
A18: 40020 | B18: OH Lines-11kV | C18: 19 | D18: 11kV Overhead Lines | E18: 17 | F18: Underground SL incl mains
A19: 40030 | B19: OH Lines-LV | C19: 20 | D19: LV Overhead Lines | E19: 18 | F19: 22kV Overhead Lines
A20: 40040 | B20: OH Lines-SWER | C20: 22 | D20: SWER Lines | E20: 19 | F20: 11kV Overhead Lines
A21: 40050 | B21: UG Cable-22kV | C21: 26 | D21: 22kV UG cable | E21: 20 | F21: LV Overhead Lines
A22: 40060 | B22: UG Cable-11kV | C22: 27 | D22: 11kV UG cable | E22: 21 | F22: Power Station Dist Equip
A23: 40070 | B23: UG Cable-LV | C23: 28 | D23: LV UG cable | E23: 22 | F23: SWER Lines
A24: 40080 | B24: Pole Nailing | C24: NA | E24: 23 | F24: 132kV UG cable
A25: 40090 | B25: Gr Subs Excl Transf | C25: 13 | D25: Ground Subs excl transf | E25: 24 | F25: 66kV UG cable
A26: 40100 | B26: Gr Sub Trans-22/11kV | C26: 14 | D26: 22/11kV Ground Sub Transf | E26: 25 | F26: 33kV UG cable
A27: 40110 | B27: Pole Subs Excl Trans | C27: 11 | D27: Pole Subs excl transf | E27: 26 | F27: 22kV UG cable
A28: 40120 | B28: Pole Transf-22/11kV | C28: 12 | D28: 22/11kV Pole Transformers | E28: 27 | F28: 11kV UG cable
A29: 40130 | B29: Streetlights-OH | C29: 16 | D29: Overhead SL incl mains | E29: 28 | F29: LV UG cable
A30: 40140 | B30: Streetlights-UG | C30: 17 | D30: Underground SL incl mains | E30: 29 | F30: SCADA/Cent Control Facility
A31: 40150 | B31: Nightwatch | C31: NA | E31: 30 | F31: Easements
A32: 40160 | B32: Distribution Equip | C32: 21 | D32: Power Station Dist Equip | E32: 31 | F32: Emergency Spares
A33: 30160 | B33: Communic Bearer CSRV | C33: NA | E33: 32 | F33: Land (Infrastructure)
A34: 30160 | B34: Communic Bearer CSRV | C34: NA | E34: 33 | F34: Generation Assets
E35: 34 | F35: Jointly Owned Spare Transf
E36: 35 | F36: Tools & Sundry Plant
E37: 36 | F37: Computer Equipment

Sheet SAPJOB (hidden)
A1: PROJNUM | B1: PROJADDRESS | C1: PROJDESC | D1: L3ASP | E1: DEVELOPER | F1: DRAWINGNUM1 | G1: DRAWINGNUM2 | H1: CERTDATE | I1: CERTBY | J1: CERTEMAIL | K1: PROJWBS | L1: DEVVENDORNUM | M1: UPLOADBY | N1: UPLOADDATE | O1: UPLOADTIME
A2: UML12345 | D2: UML12345 | H2: 20211201 | J2: XXX.XX@endeavourenergy.com.au | N2: 20220706 | O2: 172939

Sheet SAPAVS (hidden)
A1: ASSETCLASS | B1: NETWORKFUNDED | C1: CUSTOMERFUNDED
A2: 30000 | B2: 0 | C2: 0
A3: 30010 | B3: 0 | C3: 0
A4: 30020 | B4: 0 | C4: 0
A5: 30030 | B5: 0 | C5: 0
A6: 30090 | B6: 0 | C6: 0
A7: 30100 | B7: 0 | C7: 0
A8: 30110 | B8: 0 | C8: 0
A9: 30120 | B9: 0 | C9: 0
A10: 30130 | B10: 0 | C10: 0
A11: 30140 | B11: 0 | C11: 0
A12: 30150 | B12: 0 | C12: 0
A13: 30180 | B13: 0 | C13: 0
A14: 30250 | B14: 0 | C14: 0
A15: 40000 | B15: 0 | C15: 0
A16: 40010 | B16: 0 | C16: 0
A17: 40020 | B17: 0 | C17: 0
A18: 40030 | B18: 0 | C18: 0
A19: 40040 | B19: 0 | C19: 0
A20: 40050 | B20: 0 | C20: 0
A21: 40060 | B21: 0 | C21: 0
A22: 40070 | B22: 0 | C22: 0
A23: 40090 | B23: 0 | C23: 0
A24: 40100 | B24: 0 | C24: 0
A25: 40110 | B25: 0 | C25: 9654
A26: 40120 | B26: 12366 | C26: 0
A27: 40130 | B27: 0 | C27: 0
A28: 40140 | B28: 0 | C28: 8988
A29: 40160 | B29: 0 | C29: 0

Sheet Dataload WMS (hidden)
A1: No | B1: Title | D1: Labor | E1: P&V | F1: Materials | G1: Direct | H1: Units
A3: 1 | B3: Common Concrete pole earth mat | F3: 301.24 | H3: 1 | J3: Updated 28/05/21
A4: 2 | B4: Common Wood Pole Earth mat | F4: 409.24 | H4: 1
A5: 3 | B5: Earth_Deep Earth Clay 0-25m | D5: 297.09 | E5: 165.5 | H5: 1
A6: 4 | B6: Earth_Deep Earth Clay 26m | D6: 445.63 | E6: 248.25 | H6: 1
A7: 5 | B7: Earth_Granite 0 - 15m | D7: 802.13 | E7: 446.85 | H7: 1
A8: 6 | B8: Earth_Granite 15 - 25m | D8: 1304.21 | E8: 726.55 | H8: 1
A9: 7 | B9: Earth_Granite 26m+ | D9: 1675.57 | E9: 933.42 | H9: 1
A10: 8 | B10: Earth_PMSub_Common | F10: 316.17 | H10: 2
A11: 9 | B11: Earth_PMSub_Seperate | F11: 404.33 | H11: 2
A12: 10 | B12: Earth_Sandstone >26m | D12: 601.6 | E12: 335.14 | H12: 1
A13: 11 | B13: Earth_Sandstone 0 - 25m | D13: 576.35 | E13: 321.07 | H13: 1
A14: 12 | B14: Earth_Separate Concrete Pole | F14: 383.78 | H14: 1
A15: 13 | B15: Earth_Seperate Wood | F15: 511.56 | H15: 1
A17: 14 | B17: OH_Dress XArm Double LV (3 units) | D17: 201.75 | E17: 36.2 | F17: 792.24
A18: 15 | B18: OH_Dress XArm LV (6 units) | D18: 605.26 | E18: 108.6 | F18: 782.04
A19: 16 | B19: OH_Dress_XA Double HV (1 unit) | D19: 269.01 | E19: 36.2 | F19: 533.66
A20: 17 | B20: OH_Dress_XA Double HV (3 units) | D20: 269.01 | E20: 36.2 | F20: 1595.13
A21: 18 | B21: OH_Dress_XA Double HV (6 units) | D21: 511.11 | E21: 68.78 | F21: 3161.4
A22: 19 | B22: OH_Dress_XA Double LV (1 unit) | D22: 201.75 | E22: 36.2 | F22: 264.57
A23: 20 | B23: OH_Dress_XA Double LV(6 units) | D23: 201.75 | E23: 36.2 | F23: 782.04
A24: 21 | B24: OH_Dress_XA Single HV (1 unit) | D24: 269.01 | E24: 36.2 | F24: 247.36
A25: 22 | B25: OH_Dress_XA Single HV (3 units) | D25: 538.01 | E25: 72.4 | F25: 742.08
A26: 23 | B26: OH_Dress_XA Single HV (6 units) | D26: 807.02 | E26: 144.8 | F26: 1468.32
A27: 24 | B27: OH_Dress_XA Single LV (1 unit) | D27: 201.75 | E27: 36.2 | F27: 130.34
A28: 25 | B28: OH_Dress_Xarm Single LV (3 units) | D28: 201.75 | E28: 36.2 | F28: 389.55
A30: 26 | B30: OH_Mains_ABC 1 bay | D30: 474.12 | E30: 85.07 | F30: 90.1 | H30: 1
A31: 27 | B31: OH_Mains_ABC 3 bays | D31: 950.27 | E31: 170.5 | F31: 253.02 | H31: 3
A32: 28 | B32: OH_Mains_ABC 6 bays | D32: 1700.79 | E32: 305.17 | F32: 357 | H32: 6
A33: 29 | B33: OH_Mains_ABC 9 bays | D33: 2449.3 | E33: 439.47 | F33: 460.98 | H33: 9
A34: 30 | B34: OH_Mains_Bare(existing) 1 bay | D34: 558.19 | E34: 158.77 | F34: 0 | H34: 1
A35: 31 | B35: OH_Mains_Bare(existing) 3 bays | D35: 735.73 | E35: 190.63 | F35: 0 | H35: 3
A36: 32 | B36: OH_Mains_Bare(existing) 6 bays | D36: 1074.68 | E36: 251.44 | F36: 0 | H36: 6
A37: 33 | B37: OH_Mains_Bare(existing) 9 bays | D37: 1139.24 | E37: 263.03 | F37: 0 | H37: 9
A38: 34 | B38: OH_Mains_CCT 1 bay | D38: 665.12 | E38: 177.96 | F38: 1211.02 | H38: 1
A39: 35 | B39: OH_Mains_CCT 3 bays | D39: 816.43 | E39: 205.11 | F39: 2059.62 | H39: 3
A40: 36 | B40: OH_Mains_CCT 6 bays | D40: 1046.43 | E40: 246.37 | F40: 3334.02 | H40: 6
A41: 37 | B41: OH_Mains_CCT 9 bays | D41: 1637.58 | E41: 352.44 | F41: 4608.42 | H41: 9
A42: 38 | B42: OH_Mains_HVABC(new) 1 bay | D42: 1327 | E42: 616.74 | F42: 197.22 | H42: 1
A43: 39 | B43: OH_Mains_HVABC(new) 3 bays | D43: 2661.56 | E43: 1204.67 | F43: 788.88 | H43: 3
A44: 40 | B44: OH_Mains_HVABC(new)_6 bays | D44: 4087.37 | E44: 1836.12 | F44: 1360.55 | H44: 6
A45: 41 | B45: OH_Mains_HVABC(new) 9 bays | D45: 5418.15 | E45: 2438.46 | F45: 1952.21 | H45: 9
A46: 42 | B46: OH_Mains_SWER (1 bay) | D46: 365.18 | E46: 65.52 | F46: 90.04 | H46: 1
A47: 43 | B47: OH_Mains_SWER (18 bays) | D47: 1844.04 | E47: 330.87 | F47: 845.88 | H47: 18
A48: 44 | B48: OH_Mains_SWER (3 bays) | D48: 401.49 | E48: 72.04 | F48: 179.08 | H48: 3
A49: 45 | B49: OH_Mains_SWER (6 bays) | D49: 728.33 | E49: 130.68 | F49: 311.64 | H49: 6
A50: 46 | B50: OH_Mains_SWER (9 bays) | D50: 917.98 | E50: 164.71 | F50: 445.2 | H50: 9
A52: 47 | B52: OH_Misc_Ints all Pole Stay wire and Tension | D52: 336.26 | E52: 118.95 | F52: 133.4 | H52: 1
A53: 48 | B53: OH_Misc_PoleSubCB | D53: 1002.67 | E53: 162.9 | F53: 7750.5 | H53: 1
A54: 49 | B54: OH_Misc_Recloser | D54: 401.07 | E54: 65.16 | F54: 17794.09 | H54: 1
A55: 50 | B55: OH_Misc_Remove UGOH | D55: 229.41 | E55: 87.92 | F55: 0 | H55: 1
A56: 51 | B56: OH_Misc_Run earth cable up standing pole | D56: 201.75 | E56: 36.2 | F56: 160.25 | H56: 1
A57: 52 | B57: 22 kV OH_Misc_UGOH | D57: 309.71 | E57: 118.69 | F57: 137.6 | H57: 1
A58: 53 | B58: 11kV OH_Misc_UGOH | D58: 309.71 | E58: 118.69 | F58: 137.6 | H58: 1
A60: 54 | B60: OH_Poles_1 unit | D60: 419.05 | E60: 175.84 | F60: 64.92 | H60: 1
A61: 55 | B61: OH_Poles_2 units | D61: 903.91 | E61: 528.34 | F61: 119.02 | H61: 2
A62: 56 | B62: OH_Poles_4 units | D62: 1486.09 | E62: 951.59 | F62: 367.88 | H62: 4
A63: 57 | B63: OH_Poles_8 units | D63: 2184.36 | E63: 1459.24 | F63: 476.08 | H63: 8
A64: 58 | B64: OH_Poles_Remove 1 | D64: 315.57 | E64: 124.12 | F64: 0
A65: 59 | B65: OH_Poles_Remove 16 | D65: 1885.7 | E65: 916.01 | F65: 0
A66: 60 | B66: OH_Poles_Remove 4 | D66: 707.31 | E66: 409.39 | F66: 0
A67: 61 | B67: OH_Poles_Remove 8 | D67: 1385.6 | E67: 800.01 | F67: 0
A69: 62 | B69: OH_PoleSub_1 to 3 Phase uprate | D69: 4450.09 | E69: 891.47 | F69: 181.7 | H69: 1
A70: 63 | B70: OH_PoleSub_New 3-p < 300KVA | D70: 2185.09 | E70: 444.81 | F70: 3167.3 | H70: 1
A71: 64 | B71: OH_PoleSub_New 3-p > 300KVA | D71: 2433.41 | E71: 496.53 | F71: 3186.87 | H71: 1
A72: 65 | B72: OH_Pole Sub_New Single Phase | D72: 3079.57 | E72: 648.73 | F72: 2808 | H72: 1
A73: 66 | B73: OH_PoleSub_Remove 1 | D73: 1185.43 | E73: 212.36 | F73: 0 | H73: 1
A74: 67 | B74: OH_Pole Sub_Uprate sub (3-3 phase uprate) | D74: 5307.33 | E74: 1304.53 | F74: 84.53 | H74: 1
A76: 68 | B76: OH_SG LBS auto op | D76: 897.15 | E76: 457.34 | F76: 16559.89 | H76: 1
A77: 69 | B77: OH_SG LBS manual op | D77: 897.15 | E77: 457.34 | F77: 8002.72 | H77: 1
A78: 70 | B78: OH_SG LV USL | D78: 733.2 | E78: 139.64 | F78: 524.25 | H78: 1
A79: 71 | B79: OH_SG USL | D79: 531.45 | E79: 103.44 | F79: 2306.83 | H79: 1
A80: 72 | B80: OH_SG_ABS 1 unit | D80: 733.2 | E80: 139.64 | F80: 3316.87 | H80: 1
A81: 73 | B81: OH_SG_DOF 1 units | D81: 531.45 | E81: 103.44 | F81: 1345.46 | H81: 1
A82: 74 | B82: OH_SG_Remove ABS | D82: 1348.78 | E82: 639.23 | F82: 0 | H82: 1
A83: 75 | B83: OH_SG_Remove USL or LVL | D83: 780.28 | E83: 329.45 | F83: 0 | H83: 1
A85: 76 | B85: SL_Overhead_ABC (1 bay) | D85: 701.09 | E85: 290.25 | F85: 61.32 | H85: 1
A86: 77 | B86: SL_Overhead_ABC (2 bays) | D86: 963.99 | E86: 427.17 | F86: 75.72 | H86: 2
A87: 78 | B87: SL_Overhead_ABC (4 bays) | D87: 1611.07 | E87: 760.43 | F87: 144.45 | H87: 4
A88: 79 | B88: SL_Overhead_ABC (8 units) | D88: 2658.24 | E88: 1376.04 | F88: 211.23 | H88: 8
A90: 80 | B90: UG_Col&Pil_Instal Mains Pillar | D90: 513.66 | E90: 82.76 | F90: 63.63 | H90: 1
A91: 81 | B91: UG_Col&Pil_LV Service Pillar | D91: 513.66 | E91: 82.76 | F91: 58.42 | H91: 1
A92: 82 | B92: UG_Col&Pil_Ragbolt (4 units) | D92: 763.63 | E92: 282.8 | F92: 1651.08 | H92: 4
A93: 83 | B93: UG_Col&Pil_Remove Ragbolt (1 unit) | D93: 510.76 | E93: 227.56 | F93: 0 | H93: 1
A95: 84 | B95: UG_Joints_Joint in Column (LV) | D95: 590.13 | E95: 90.52 | F95: 55.44 | G95: 0 | H95: 1
A96: 85 | B96: UG_Joints_Joint in PM (LV) | D96: 513.66 | E96: 82.76 | F96: 142 | G96: 0 | H96: 1
A97: 86 | B97: UG_Joints_STJ in Pillar (LV) | D97: 629.9 | E97: 94.56 | F97: 162.62 | G97: 0 | H97: 1
A98: 87 | B98: UG_Joints_STJ in Trench (HV) | D98: 714.03 | E98: 230.2 | F98: 612.3 | G98: 0 | H98: 1
A99: 88 | B99: UG_Joints_Straight to Transformer (HV) | D99: 1186.61 | E99: 151.05 | F99: 589.27 | G99: 0 | H99: 1
A100: 89 | B100: UG Joints Sub Term (HV) | D100: 1651.78 | E100: 167.62 | F100: 916.63 | G100: 66.78 | H100: 1
A102: 90 | B102: UG_PMSub_Culvert Only | D102: 921.92 | E102: 195.48 | F102: 1480.18 | H102: 1
A103: 91 | B103: UG_PMSub_Modify HV | D103: 3267.92 | E103: 405 | F103: 0 | H103: 2
A104: 92 | B104: UG_PMSub_Modify LV | D104: 3267.92 | E104: 405 | F104: 0 | H104: 2
A105: 93 | B105: UG PMSub_Modify/Install CB | D105: 1032.36 | E105: 104.76 | F105: 0 | H105: 1
A106: 94 | B106: UG_PM Sub_New Install | D106: 1884.75 | E106: 377.52 | F106: 698.04 | H106: 1
A107: 95 | B107: UG_PMSub_Remove PM | D107: 715.42 | E107: 149.46 | F107: 0 | H107: 1
A108: 96 | B108: UG_PMSub_Uprate TX only | D108: 2064.72 | E108: 209.52 | F108: 0 | H108: 1
A110: 97 | B110: UG_Trenching_Excavate for Joint/Pillar | D110: 554.31 | E110: 89.21 | F110: 48.53 | G110: 0 | H110: 1 | J110: Updated 28/05/2021
A111: 98 | B111: UG_Trenching_Heavy | D111: 21671.44 | E111: 10145.77 | F111: 0 | G111: 25250 | H111: 100 | J111: Materials eg. polymeric covers are in Lay New Cable in Trench Duct
A112: 99 | B112: UG_Trenching_Light | D112: 3654.11 | E112: 1160.93 | F112: 0 | G112: 5500 | H112: 100
A113: 100 | B113: UG_Trenching_Medium | D113: 6123.96 | E113: 1950.96 | F113: 0 | G113: 8250 | H113: 100
A115: 101 | B115: UG_Lay New Cable in Existing Duct (50m) | D115: 402.91 | E115: 225.07 | F115: 0 | H115: 1 | J115: Updated 21.05.21
A116: 102 | B116: UG_Lay New Cable in Existing Duct (250m) | D116: 999.32 | E116: 532.06 | F116: 0 | H116: 1
A117: 103 | B117: UG_Lay New Cable in Existing Duct (1000m) | D117: 3189.17 | E117: 1736.44 | F117: 0 | H117: 1
A119: 104 | B119: UG_Lay New Cable in Trench Duct (50m) | D119: 518.44 | E119: 261.63 | F119: 211.83 | H119: 1 | J119: Updated 28/05/2021
A120: 105 | B120: UG_Lay New Cable in Trench Duct (250m) | D120: 2114.16 | E120: 576.47 | F120: 847.32 | H120: 1
A121: 106 | B121: UG_Lay New Cable in Trench Duct (1000m) | D121: 2114.16 | E121: 576.47 | F121: 847.32 | H121: 1
A123: 107 | B123: UG_Ducts_1 length | D123: 170.73 | E123: 36.2 | F123: 0 | H123: 1 | J123: Updated 21.05.21
A124: 108 | B124: UG_Ducts_50 lengths | D124: 346.57 | E124: 73.49 | F124: 0 | H124: 1
A126: 109 | B126: SL_Columns_Install (1 unit) | D126: 829.08 | E126: 398.39 | F126: 0 | H126: 1 | J126: Updated 21.05.21
A127: 110 | B127: SL_Columns_Install (2 units) | D127: 868.06 | E127: 323.61 | F127: 0 | H127: 1
A128: 111 | B128: SL_Columns_Install (4 units) | D128: 1490.52 | E128: 761.51 | F128: 0 | H128: 1
A129: 112 | B129: SL_Columns_Install (8 units) | D129: 2949.5 | E129: 1515.41 | F129: 0 | H129: 1

Sheet Dataload Ellipse (hidden)
A1: No | C1: Title | D1: Stock Code | E1: Labor | F1: P&V | G1: Materials | H1: Direct | I1: Units
C3: Poles
A4: 1 | B4: OH_Poles | C4: Pole Impregnated 8/15 | D4: SP11869 | G4: 261.1193 | N4: Updated 3/6/21
A5: 2 | B5: OH_Poles | C5: Pole Impregnated 8/30 | D5: SP11877 | G5: 736.000278
A6: 3 | B6: OH_Poles | C6: Pole Impregnated 9.5/4 | D6: SP11885 | G6: 316.305676
A7: 4 | B7: OH_Poles | C7: Pole Impregnated 9.5/8 | D7: SP11893 | G7: 509.456703
A8: 5 | B8: OH_Poles | C8: Pole Impregnated 11/4 | D8: SP11907 | G8: 447.694583
A9: 6 | B9: OH_Poles | C9: Pole Impregnated 11/8 | D9: SP11915 | G9: 701.917619
A10: 7 | B10: OH_Poles | C10: Pole Impregnated 11/12 | D10: SP11923 | G10: 839.257059
A11: 8 | B11: OH_Poles | C11: Pole Impregnated 12.5/4 | D11: SP11931 | G11: 630.886786
A12: 9 | B12: OH_Poles | C12: Pole Impregnated 12.5/8 | D12: SP11958 | G12: 850.975897
A13: 10 | B13: OH_Poles | C13: Pole Impregnated 12.5/12 | D13: SP11966 | G13: 1121.818099
A14: 11 | B14: OH_Poles | C14: Pole Impregnated 12.5S | D14: SP11974 | G14: 657.2066
A15: 12 | B15: OH_Poles | C15: Pole Impregnated 12.5/18 | D15: SP11982 | G15: 1257.4625
A16: 13 | B16: OH_Poles | C16: Pole Impregnated 14/8 | D16: SP11990 | G16: 993.629091
A17: 14 | B17: OH_Poles | C17: Pole Impregnated 14/12 | D17: SP12008 | G17: 1283.595139
A18: 15 | B18: OH_Poles | C18: Pole Impregnated 18.5/8 | D18: SP12059 | G18: 2073.252188
A19: 16 | B19: OH_Poles | C19: Pole Impregnated 15.5/12 | D19: SP12105 | G19: 1851.508
A20: 17 | B20: OH_Poles | C20: Pole Impregnated 17/12 | D20: SP12288 | G20: 2252.93
A21: 18 | B21: OH_Poles | C21: Pole Impregnated 18.5/12 | D21: SP12296 | G21: 2512.65
A22: 19 | B22: OH_Poles | C22: Pole Impregnated 20/12 | D22: SP12326 | G22: 3011.036429
A23: 20 | B23: OH_Poles | C23: Pole Impregnated 21.5/12 | D23: SP12334 | G23: 3564.75375
A24: 21 | B24: OH_Poles | C24: Pole Impregnated 9.5/12 | D24: SP12458 | G24: 640.477
A25: 22 | B25: OH_Poles | C25: Pole Impregnated 23/12 | D25: SP13717 | G25: 640.477
A26: 23 | B26: OH_Poles | C26: Pole Concrete 11/8 C1 | D26: 1548718 | G26: 1054
A27: 24 | B27: OH_Poles | C27: Pole Concrete 11/8 E1 | D27: 1548734 | G27: 1065
A28: 25 | B28: OH_Poles | C28: Pole Concrete 11/8 G2 | D28: 1548759 | G28: 1212
A29: 26 | B29: OH_Poles | C29: Pole Concrete 12.5/5 G3 | D29: 1548767 | G29: 932.5536
A30: 27 | B30: OH_Poles | C30: Pole Concrete 12.5/8 G4 | D30: 1548775 | G30: 1059.3409
A31: 28 | B31: OH_Poles | C31: Pole Concrete 12.5/12 G5 | D31: 1548783 | G31: 1319.8418
A32: 29 | B32: OH_Poles | C32: Pole Concrete 12.5/20 G6 | D32: 1548791 | G32: 1691.36
A33: 30 | B33: OH_Poles | C33: Pole Concrete 14/8 G7 | D33: 1548809 | G33: 1271.559
A34: 31 | B34: OH_Poles | C34: Pole Concrete 14/12 G8 | D34: 1548817 | G34: 1578.3748
A35: 32 | B35: OH_Poles | C35: Pole Concrete 14/12 REGULATOR | D35: 1550078 | G35: 2450.53
A36: 33 | B36: OH_Poles | C36: Pole Concrete 14/12 D2 | D36: 1550557 | G36: 1207
A37: 34 | B37: OH_Poles | C37: Pole Concrete 12.5/8 C6 ABS | D37: 1551977 | G37: 1238.3402
A38: 35 | B38: OH_Poles | C38: Pole Concrete 11/8 B2 | D38: 1552074 | G38: 993.62
A39: 36 | B39: OH_Poles | C39: Pole Concrete 9.5/8 A4 | D39: SP17328 | G39: 894.049
A40: 37 | B40: OH_Poles | C40: Pole Concrete 11/8 A7 | D40: SP17344 | G40: 1090.7515
A41: 38 | B41: OH_Poles | C41: Pole Concrete 11/12 A8 | D41: SP17352 | G41: 1165.9163
A42: 39 | B42: OH_Poles | C42: Pole Concrete 12.5/8 B4 | D42: SP17387 | G42: 1928.89718
A43: 40 | B43: OH_Poles | C43: Pole Concrete 12.5/12 C2 ABS | D43: SP17409 | G43: 1468.6311
A44: 41 | B44: OH_Poles | C44: Pole Concrete 14/12 C5 ABS | D44: SP17425 | G44: 1718.4316
A45: 42 | B45: OH_Poles | C45: Pole Concrete 14/8 C4 ABS | D45: SP17484 | G45: 1424.81
A46: 43 | B46: OH_Poles | C46: Pole Concrete 9.5/12 A5 | D46: SP17506 | G46: 1011.4688
A47: 44 | B47: OH_Poles | C47: Pole Concrete 8/30 H2 | D47: SP17514 | G47: 2672
A48: 45 | B48: OH_Poles | C48: Pole Concrete 18.5/12 | D48: SP17522 | G48: 2738.5
A49: 46 | B49: OH_Poles | C49: Pole Concrete 20/12 | D49: SP17557 | G49: 4407.467
A50: 47 | B50: OH_Poles | C50: Pole Concrete 8/15 H1 | D50: SP17638 | G50: 1596.1421
A51: 48 | B51: OH_Poles | C51: Pole Concrete 12.5/20 C3 ABS | D51: SP17646 | G51: 1912
A52: 49 | B52: OH_Poles | C52: Pole Concrete 17/12 | D52: SP17786 | G52: 3158
A53: 50 | B53: OH_Poles | C53: Pole Concrete 12.5 SUBSTATION | D53: SP17913 | G53: 1881.6986
A54: 51 | B54: OH_Poles | C54: Pole 1PH Service Steel 6.5M | D54: 1546126 | G54: 594.7
A55: 52 | B55: OH_Poles | C55: Pole 3PH Service Steel 6.5M | D55: 1546134 | G55: 594.7
C57: String Bare (on existing pole/s air dress)
A59: 1 | B59: OH_String Mains | C59: BARE AAC 7/3.00 | D59: 001031636 | G59: =0.798035*250 -> 199.50875
A60: 2 | B60: OH_String Mains | C60: BARE AAC 19/4.75 | D60: 001031673 | G60: =3.9964*250 -> 999.1
A61: 3 | B61: OH_String Mains | C61: BARE AAAC 7/4.50 | D61: 001113588 | G61: =1.547689*250 -> 386.92225
A62: 4 | B62: OH_String Mains | C62: BARE AAC 19/3.75 | D62: SZ12538 | G62: =2.62333*250 -> 655.8325
A63: 5 | B63: OH_String Mains | C63: BARE AAC 7/4.50 | D63: SZ12562 | G63: =1.264475*250 -> 316.11875
A64: 6 | B64: OH_String Mains | C64: BARE AAAC 7/3.75 | D64: SZ15464 | G64: =1.367823*250 -> 341.95575
A65: 7 | B65: OH_String Mains | C65: BARE AAAC 7/2.50 | D65: SZ15472 | G65: =0.606182*250 -> 151.5455
A66: 8 | B66: OH_String Mains | C66: BARE AAC 19/3.25 | D66: SZ12554 | G66: =2.082907*250 -> 520.72675
A67: 9 | B67: OH_String Mains | C67: BARE ACSR 6/1/2.5 | D67: 001031697 | G67: =0.528337*250 -> 132.08425
A68: 10 | B68: OH_String Mains | C68: BARE ACSR 6/4.75+7/1.6 | D68: 001031727 | G68: =2.233284*250 -> 558.321
C70: String ABC(grd dress)
A72: 1 | B72: OH_String Mains | C72: 4C 150mm2 ABC | D72: 001547686 | G72: =10.866212*250 -> 2716.553
A73: 2 | B73: OH_String Mains | C73: 4C 95mm2 ABC | D73: 001066213 | G73: =6.716531*250 -> 1679.13275
A74: 3 | B74: OH_String Mains | C74: 4C 25mm2 ABC | D74: SZ15278 | G74: =2.153625*250 -> 538.40625
A75: 4 | B75: OH_String Mains | C75: 4C 95mm2 ABC + 1C 16mm2 SL | D75: 001135466 | G75: =9.563391*250 -> 2390.84775
A76: 5 | B76: OH_String Mains | C76: 4C 150mm2 ABC + 1C 16mm2 SL | D76: 001553569 | G76: =10.924438*250 -> 2731.1095
C78: String CCT
A80: 1 | B80: OH_String Mains | C80: CCT 11kV 40mm2 XLPE | D80: 1501204 | G80: =6.807361*250 -> 1701.84025
A81: 2 | B81: OH_String Mains | C81: CCT 11kV 80mm2 XLPE | D81: 1103910 | G81: =7.511267*250 -> 1877.81675
A82: 3 | B82: OH_String Mains | C82: CCT 11kV 120mm2 XLPE | D82: 1103928 | G82: =9.664896*250 -> 2416.224
A83: 4 | B83: OH_String Mains | C83: CCT 11kV 180mm2 XLPE | D83: 1116540 | G83: =14.324683*250 -> 3581.17075
A84: 5 | B84: OH_String Mains | C84: CCT 22kV 120mm2 Grey XLPE | D84: 001502020 | G84: =15.607202*250 -> 3901.8005
C86: String HV ABC
A88: 1 | B88: OH_String Mains | C88: ABC AL 3C 50mm2 NMS | D88: SZ10020 | G88: =22.79*250 -> 5697.5
A89: 2 | B89: OH_String Mains | C89: ABC AL 3C 150mm2 NMS | D89: SZ10055 | G89: =29.221387*250 -> 7305.34675
C91: Conductor
A93: 1 | B93: UG_Lay Cable | C93: 11kV 240mm2 CU 3C XLPE | D93: SZ15391 | G93: =95.619689*50 -> 4780.98445 | I93: 50
A94: 2 | B94: UG_Lay Cable | C94: 11kV 240mm2 AL 3C XLPE | D94: SZ15294 | G94: =29.598228*50 -> 1479.9114 | I94: 50
A95: 3 | B95: UG_Lay Cable | C95: 11kV 185mm2 AL 3C XLPE | D95: SZ15286 | G95: =34.16*50 -> 1708 | I95: 50
A96: 4 | B96: UG_Lay Cable | C96: 11kV 300mm2 CU 3C XLPE | D96: SZ12791 | G96: =127.78143*50 -> 6389.0715 | I96: 50
A97: 5 | B97: UG_Lay Cable | C97: 22kV 240mm2 CU 3C XLPE | D97: SZ10136 | G97: =102.477556*50 -> 5123.8778 | I97: 50
A98: 6 | B98: UG_Lay Cable | C98: 22kV 240mm2 AL 3C XLPE | D98: SZ15324 | G98: =34.706175*50 -> 1735.30875 | I98: 50
A99: 7 | B99: UG_Lay Cable | C99: 33kV 300mm2 CU 1C PLYPV | D99: SZ12872 | G99: 1718.5 | I99: 50
A100: 8 | B100: UG_Lay Cable | C100: 33kV 630mm2 CU 1C XLPE | D100: SZ13577 | G100: =35.373*50 -> 1768.65 | I100: 50
A101: 9 | B101: UG_Lay Cable | C101: LV 240mm2 AL 4C XLPE | D101: SZ15308 | G101: =15.473072*50 -> 773.6536 | I101: 50
A102: 10 | B102: UG_Lay Cable | C102: LV 50mm2 CU 4C XLPE/PVC | D102: SZ14611 | G102: =25.393634*50 -> 1269.6817 | I102: 50
A103: 11 | B103: UG_Lay Cable | C103: LV 25mm2 CU 4C XLPE/PVC | D103: SZ10012 | G103: =14.588344*50 -> 729.4172 | I103: 50
A104: 12 | B104: UG_Lay Cable | C104: LV BARE CU Anealed 19/2.14 | D104: SZ13771 | G104: =8.01711*50 -> 400.8555 | I104: 50
A105: 13 | B105: UG_Lay Cable | C105: 16MM2 0.6/1KV DOUBLE INSULATED | D105: 1007403 | G105: =2.385186*1 -> 2.385186 | I105: 1
A106: 14 | B106: UG_Lay Cable | C106: LV 4mm2 CU 2C 7/0.85 DI | D106: SZ15332 | G106: =1.281636*50 -> 64.0818 | I106: 50
C108: Bracket on Pole
A110: 1 | B110: SL_Brackets | C110: LTG Bracket B1 1.2m x 0.5m | D110: 001019739 | G110: 171.954759
A111: 2 | B111: SL_Brackets | C111: LTG Bracket B3 2.5m x 1.5m | D111: 001019752 | G111: 362.718571
A112: 3 | B112: SL_Brackets | C112: LTG Bracket B4 2.8m x 3.2m | D112: 001542216 | G112: 140
A113: 4 | B113: SL_Brackets | C113: LTG Bracket B5 3.7m x 4.2m | D113: 001542224 | G113: 255
A114: 5 | B114: SL_Brackets | C114: LTG Bracket B6 4.5m x 2.0m | D114: 001542232 | G114: 208
A115: 6 | B115: SL_Brackets | C115: LTG Bracket B7 6.0m x 2.6m | D115: 001542240 | G115: 281
C117: Columns
A119: 1 | B119: UG_Columns&Pillars | C119: COLUMN 7M | D119: 1540137 | G119: 561.5 | N119: Updated 31/05/21
A120: 2 | B120: UG_Columns&Pillars | C120: COLUMN 8.5M | D120: 1540145 | G120: 563.2525
A121: 3 | B121: UG_Columns&Pillars | C121: COLUMN 10M | D121: 1540152 | G121: 955
A122: 4 | B122: UG_Columns&Pillars | C122: COLUMN 11.5M | D122: 1540160 | G122: 878
A123: 5 | B123: UG_Columns&Pillars | C123: COLUMN 7M IMPACT ABSORB | D123: 1540178 | G123: 515.353043
A124: 6 | B124: UG_Columns&Pillars | C124: COLUMN 8.5M IMPACT ABSORB | D124: 1540186 | G124: 582.5008
A125: 7 | B125: UG_Columns&Pillars | C125: COLUMN 10M IMPACT ABSORB | D125: 1540194 | G125: 857.804878
A126: 8 | B126: UG_Columns&Pillars | C126: OUTREACH 3M SINGLE CURVED | D126: 1540210 | G126: 126.796444
A127: 9 | B127: UG_Columns&Pillars | C127: OUTREACH 4.5M SINGLE CURVED | D127: 1540228 | G127: 164.2731
A128: 10 | B128: UG_Columns&Pillars | C128: OUTREACH EXTN 1.5M | D128: 1540236 | G128: 25.752353
A129: 11 | B129: UG_Columns&Pillars | C129: COLUMN OCT 6.5M T LANE WAY | D129: 1542208 | G129: 860
A130: 12 | B130: UG_Columns&Pillars | C130: LTG BKT 2XCURVE O'REACH 3M | D130: 1542257 | G130: 225.833333
A131: 13 | B131: UG_Columns&Pillars | C131: COLUMN TOP EXTN 2M | D131: 1542265 | G131: 265
A132: 14 | B132: UG_Columns&Pillars | C132: COLUMN TOP EXTN 2WAY ADAPTOR | D132: 1542307 | G132: 325.909091
A133: 15 | B133: UG_Columns&Pillars | C133: COLUMN LARGE BASE 4.5M | D133: 1545110 | G133: 322.74055
A134: 16 | B134: UG_Columns&Pillars | C134: COLUMN LARGE BASE 5.5M | D134: 1545128 | G134: 388.647143
A135: 17 | B135: UG_Columns&Pillars | C135: OUTREACH 1.5M | D135: 1545193 | G135: 116.374977
A136: 18 | B136: UG_Columns&Pillars | C136: OUTREACH 3M | D136: 1545201 | G136: 151.049623
A137: 19 | B137: UG_Columns&Pillars | C137: OUTREACH 4.5M | D137: 1545219 | G137: 207.914
A138: 20 | B138: UG_Columns&Pillars | C138: OUTREACH 4.5M | D138: 1545227 | G138: 230
A139: 21 | B139: UG_Columns&Pillars | C139: DOUBLE OUTREACH 3M DWG 262717 | D139: 1545235 | G139: 273.333333
A140: 22 | B140: UG_Columns&Pillars | C140: DOUBLE OUTREACH 4.5M DWG262717 | D140: 1545243 | G140: 394.6216
C142: Ducts
A144: 1 | B144: UG_Trenching | C144: 125x6m | D144: 1138767 | G144: 25.06 | I144: 6 | N144: Updated 31/05/21
A145: 2 | B145: UG_Trenching | C145: 125x6m | D145: SC19039 | G145: 24.77 | I145: 6
A146: 3 | B146: UG_Trenching | C146: 40mm Conduit | D146: 001005893 | G146: 7.23 | I146: 4
A147: 4 | B147: UG_Trenching | C147: 50mm Conduit | D147: 1005900 | G147: 9.87 | I147: 4
A148: 5 | B148: UG_Trenching | C148: M150x6m | D148: 001546662 | G148: 53.95 | I148: 6
C150: Pole Mount Sub Components
A152: 1 | B152: UG_PMSub | C152: FUSE CART HRC 3 1/4"CNT W 250A | D152: 1143874 | G152: 9.35 | I152: 1
A153: 2 | B153: UG_PMSub | C153: FUSE CART HRC 3 1/4"CNT W 400A | D153: 1013166 | G153: 10.74 | I153: 1
A154: 3 | B154: UG_PMSub | C154: Size 16 Fibreglass Cubicle | D154: 1547108 | G154: 3777.01 | I154: 1
A155: 4 | B155: UG_PMSub | C155: Size 14 Fibreglass Cubicle | D155: 1547983 | G155: 3580 | I155: 1
A156: 5 | B156: UG_PMSub | C156: Size 14 - 16 concrete plinth | D156: 1547785 | G156: 1384.91 | I156: 1
A157: 6 | B157: UG_PMSub | C157: Switching Station Size 16 Cubicle | D157: 1550193 | G157: 2330.25 | I157: 1
A158: 7 | B158: UG_PMSub | C158: Galvanised Plinth for 1500kVA | D158: 1553254 | G158: 2227.43 | I158: 1
C160: Lights | G160: Lantern | H160: Lamp | K160: Lantern | L160: Lamp
K161: Stockcodes
A162: 1 | B162: SL_Lights | C162: 14 watt FL (lamp and lantern) F14 | D162: 1548395 | G162: 231.09 | H162: 1.05 | I162: 1 | K162: 1548395 | L162: 1551217 | N162: Updated 31/05/21
A163: 2 | B163: SL_Lights | C163: 24 watt FL (lamp and lantern) F24 | D163: 1548403 | G163: 265.75 | H163: 1.75 | I163: 1 | K163: 1548403 | L163: 1551225
A164: 3
A165: 4 | B165: SL_Lights | C165: ECO 42W CFL | D165: 1555564 | G165: 169.48 | H165: 6.2 | I165: 1 | K165: 1555564 | L165: 1555572
A166: 5 | B166: SL_Lights | C166: 50 watt MF (lamp and lantern) M50 | D166: 1542703 | G166: 152.27 | H166: 5.09 | I166: 1 | K166: 1542703 | L166: 1015618
A167: 6 | B167: SL_Lights | C167: 80 watt MF (lamp and lantern) M80 | D167: 1542703 | G167: 152.26 | H167: 2.61 | I167: 1 | K167: 1542703 | L167: 1015620
A168: 7 | B168: SL_Lights | C168: 70 watt HPSL (lamp and lantern) S70 | D168: 1082942 | G168: 147.77 | H168: 6.68 | I168: 1 | K168: 1082942 | L168: 1083960
A169: 8 | B169: SL_Lights | C169: 100 watt HPSL (lamp and lantern) S100 | D169: 1540483 | G169: 237.91 | H169: 9.3 | I169: 1 | K169: 1540483 | L169: 1081081
A170: 9 | B170: SL_Lights | C170: 150 watt HPSL (lamp and lantern) S150 | D170: 1540509 | G170: 293.01 | H170: 6.77 | I170: 1 | K170: 1540509 | L170: 1015539
A171: 10 | B171: SL_Lights | C171: 250 watt HPSL (lamp and lantern) S250 | D171: 1540525 | G171: 273.46 | H171: 6.9 | I171: 1 | K171: 1540525 | L171: 1015527
A172: 11 | B172: SL_Lights | C172: 400 watt HPSL (lamp and lantern) S400 | D172: 1541192 | G172: 239.88 | H172: 8.17 | I172: 1 | K172: 1541192 | L172: SL25888
A173: 12 | B173: SL_Lights | C173: 70 watt MH (lamp and tantern) MH70 | D173: 1082942 | G173: 147.77 | H173: 6.68 | I173: 1 | K173: 1082942 | L173: 1083960
A174: 13 | B174: SL_Lights | C174: 100 watt MH (lamp and tantern) MH100 | D174: 1540483 | G174: 237.91 | H174: 32.13 | I174: 1 | K174: 1540483 | L174: 1544964
A175: 14 | B175: SL_Lights | C175: 150 watt MH (lamp and tantern) MH150 | D175: 1540509 | G175: 293.01 | H175: 41 | I175: 1 | K175: 1540509 | L175: 1544386
A176: 15 | B176: SL_Lights | C176: 250 watt MH (lamp and tantern) MH250 | D176: 1540525 | G176: 273.46 | H176: 17.05 | I176: 1 | K176: 1540525 | L176: 1156090
A177: 16 | B177: SL_Lights | C177: 400 watt MH (lamp and tantern) MH400 | D177: 1541192 | G177: 239.88 | H177: 17.11 | I177: 1 | K177: 1541192 | L177: 1082784
A178: 17 | B178: SL_Lights | C178: 75 watt LED Aglo Nilum Plus FloodLight | D178: 1561240 | G178: 410 | I178: 1 | N178: Updated 21/06/21
A179: 18 | B179: SL_Lights | C179: 100 watt LED Aglo Nilum Plus FloodLight | D179: 1561257 | G179: 435 | I179: 1 | N179: New LEDS
A180: 19 | B180: SL_Lights | C180: 150 watt LED Aglo Nilum Plus FloodLight | D180: 1561265 | G180: 485 | I180: 1
A181: 20 | B181: SL_Lights | C181: 300 watt LED Aglo Nilum Plus FloodLight | G181: 798 | I181: 1
A182: 21 | B182: SL_Lights | C182: 17 watt StreetLED3 4K | D182: 1564129 | G182: 170 | I182: 1
A183: 22 | B183: SL_Lights | C183: 33 watt StreetLEDII 4K | D183: 1567643 | G183: 252 | I183: 1
A184: 23 | B184: SL_Lights | C184: 80 watt RoadLED | G184: 375 | I184: 1
A185: 24 | B185: SL_Lights | C185: 100 watt RoadLED | G185: 395 | I185: 1
A186: 25 | B186: SL_Lights | C186: 200 watt RoadLED | G186: 410 | I186: 1
A187: 26 | B187: SL_Lights | C187: 70 watt LED RoadLED Midi | D187: 1568815 | G187: 375 | I187: 1
A188: 27 | B188: SL_Lights | C188: 80 watt LED RoadLED Midi | D188: 1568807 | G188: 395 | I188: 1
A189: 28 | B189: SL_Lights | C189: 165 watt LED RoadLED Midi | D189: 1568823 | G189: 410 | I189: 1
A190: 29 | B190: SL_Lights | C190: 60 watt LED RoadLED Midi Optic Tuner | G190: 435 | I190: 1
A191: 30 | B191: SL_Lights | C191: 80 watt LED RoadLED Midi Optic Tuner | G191: 515 | I191: 1
A192: 31 | B192: SL_Lights | C192: 17 Watt LED B2001 NUWE Post Top | G192: 550 | I192: 1
A193: 32 | B193: SL_Lights | C193: 150W LED SastaLED Maximus | G193: 620 | I193: 1
A194: 33 | B194: SL_Lights | C194: 175W LED SastaLED Maximus | G194: 735 | I194: 1
A195: 34 | B195: SL_Lights | C195: 250W HPS/ MH Asymmetrical Floodlight | D195: 1565555 | G195: 470 | I195: 1 | N195: Updated 21/06/21
A196: 35 | B196: SL_Lights | C196: 400W HPS/ MH Asymmetrical Floodlight | D196: 1565563 | G196: 510 | I196: 1 | N196: New LEDS
B197: SL_Lights | C197: 24W LED STREETLED3 STD Visor | G197: 195 | I197: 1 | N197: Updated 26/06/22
B198: SL_Lights | C198: 17W LED STREETLED3 Aeroscreen | G198: 165 | I198: 1 | N198: New LEDS
B199: SL_Lights | C199: 13W LED STREETLED3 STD Visor | G199: 160 | I199: 1
B200: SL_Lights | C200: 9W LED STREETLED Aeroscreen | G200: 160 | I200: 1
B201: SL_Lights | C201: 17W LED Post Top B2001 | G201: 550 | I201: 1
B202: SL_Lights | C202: 28W LED Post Top B2001 | G202: 585 | I202: 1
B203: SL_Lights | C203: 18W LED Bourke Hill | G203: 720 | I203: 1
B204: SL_Lights | C204: 24W LED Bourke Hill | G204: 745 | I204: 1
B205: SL_Lights | C205: 37W LED 4K ROADLED MIDI STD Visor | G205: 373 | I205: 1
B206: SL_Lights | C206: 40W LED 3K ROADLED MIDI STD Visor | G206: 373 | I206: 1
B207: SL_Lights | C207: 36W LED 4K ROADLED MIDI Aeroscreen | G207: 373 | I207: 1
B208: SL_Lights | C208: 39W LED 3K ROADLED MIDI Aeroscreen | G208: 373 | I208: 1
B209: SL_Lights | C209: 55W LED 4K ROADLED MIDI STD Visor | G209: 381 | I209: 1
B210: SL_Lights | C210: 61W LED 3K ROADLED MIDI STD Visor | G210: 381 | I210: 1
B211: SL_Lights | C211: 57W LED 4K ROADLED MIDI Aeroscreen | G211: 381 | I211: 1
B212: SL_Lights | C212: 63W LED 3K ROADLED MIDI Aerosreen | G212: 381 | I212: 1
B213: SL_Lights | C213: 113W LED ROADLED MIDI STD Visor | G213: 412 | I213: 1
B214: SL_Lights | C214: 120W LED 4K ROADLED MIDI Aeroscreen | G214: 412 | I214: 1
B215: SL_Lights | C215: 121W LED 3K ROADLED MIDI Aeroscreen | G215: 412 | I215: 1
B216: SL_Lights | C216: 275W LED ROADLED | G216: 770 | I216: 1
B217: SL_Lights | C217: 254W LED 3K ROADLED MIDI STD Visor | G217: 770 | I217: 1
B218: SL_Lights | C218: 230W LED Avento | G218: 432 | I218: 1
B219: SL_Lights | C219: 205W LED 3K ROADLED MIDI Aeroscreen | G219: 770 | I219: 1
B220: SL_Lights | C220: 30W LED ATS PLED MKII | G220: 220 | I220: 1
... 13 more rows

Sheet Dataload TXWS (hidden)
A1: Substation Price List ex Ellipse for E.E. INTERNAL Work | B1: 2021-12-01
A3: ITEM | C3: GST Exclusive Price - Complete Package Substation | D3: GST Exclusive Price - Excluding Transformer | E3: Stock Code | F3: SAP Material Noo.
A4: VALUE OF 315kVA 11kV TRANSFORMER ONLY = | B4: 9884.344865 | E4: 1553734
A5: VALUE OF 315kVA 22kV TRANSFORMER ONLY = | B5: 10855.305 | E5: 1553742
A6: 315kVA Padmount Substation
A7: VALUE OF 500kVA 11kV TRANSFORMER ONLY = | B7: 12576.41659 | E7: 1547090
A8: VALUE OF 500kVA 22kV TRANSFORMER ONLY = | B8: 12291.53455 | E8: 1548544
A9: 500kVA Padmount Substation
A10: VALUE OF 1000kVA 11kV TRANSFORMER ONLY = | B10: 18034.4494 | E10: 1044965
A11: VALUE OF 1000kVA 22kV TRANSFORMER ONLY = | B11: 25840.442 | E11: 1546514
A12: 1000kVA Padmount Substation
A13: VALUE OF 1500kVA 11kV TRANSFORMER ONLY = | B13: 33172.38444 | E13: 1546506
A14: VALUE OF 1500kVA 22kV TRANSFORMER ONLY = | B14: 41216.028 | E14: 1546522
A15: 1500kVA Padmount Substations
A16: Other Items
A17: Fuse Strip - No CT's (Including 3 x 400A fuses) - Weber | C17: 408.97043 | E17: 1558196
A18: FF+Meter - Two Fuse Strips with CT's and Meter arrangement (for use on Circuit Breakers requiring an additional two fuse strips) | C18: 776.1675 | E18: SF15908
A19: CAT 1 FFIFF | C19: 3794.01383 | E19: 1548429
A20: CAT 2 FFIFF | C20: 5289.101667 | E20: 1548445
A21: CAT 2 FIF | C21: 3732.962857 | E21: 1548437
A22: Siemens RT (Switch Fuse) | C22: 5835.173529 | E22: 1547843
A23: Siemens RTR (Switch Fuse Switch) | C23: 7042.555714 | E23: 1548072
A24: Siemens RTRR (Switch Fuse Switch Switch) | C24: 17629.76704 | E24: 1547959
A25: Siemens RL (Switch+CB) | C25: 9816.915 | E25: 1563626
A26: Siemens RLR (Switch+CB) | C26: 9869.703684 | E26: 1548080
A27: Siemens RLRR (Switch+CB) | C27: 12340.61 | E27: 1563600
A28: 1250 CB (Weber) | C28: 8468.804167 | E28: 1548452
A29: 2500 CB (Weber) | C29: 9487.114286 | E29: 1548460
A30: 3200 CB (Weber) | C30: 15512.91 | E30: 1550102
A31: Padmount Substation Culvert | C31: 1440.025682 | E31: YT10615
A32: Switching Station
A33: RRR Switching Station | C33: 9742 | E33: 1570613
A34: RRRR Switching Station | C34: 9242.6875 | E34: 1563592
A36: CUBICLES
A37: 11KV PADMOUNT SUBSTATION SIZE 5 WITH 2 LV ENDS | C37: 9112.056 | E37: 1557958
A38: 11/22KV PADMOUNT SUBSTATION SIZE 14 TO SDI308 | C38: 9387 | E38: 1558980
A39: 11/22KV PADMOUNT SUBSTATION SIZE 10 WITH 2 LV ENDS | C39: 8492.555 | E39: 1558998
A40: 11/22KV PADMOUNT SUBSTATION SIZE 16 TO SDI308 | C40: 9019.8725 | E40: 1559004
A41: Pole Mounted Transformers
A42: POLE TRANSFORMERS - WITH FITTINGS
A43: 400 KVA 11KV 3PH | C43: 8672.252 | E43: YT10327
A44: 300 KVA 11KV 3PH | C44: 7392.846667 | E44: YT10319
A45: 200 KVA 11 KV 3PH | C45: 5674.561304 | E45: YT10297
A46: 100 KVA 11 KV 3PH | C46: 3910.256765 | E46: YT10270
A47: 63 KVA 11 KV 3PH | C47: 2997.995385 | E47: YT10556
A48: 25 KVA 11 KV 3PH | C48: 2056.542069 | E48: YT10254
A49: 400 KVA 22 KV 3PH | C49: 16146.08667 | E49: YT10400
A50: 315 KVA 22 KV 3PH | C50: 9936.43 | E50: YT10572
A51: 100 KVA 22 KV 3PH | C51: 6654.639091 | E51: YT10432
A52: 50 KVA 11 KV 1 PH | C52: 2404.155185 | E52: YT10491
A53: 25 KVA 11 KV 1 PH | C53: 1458.854808 | E53: YT10378
A54: 25 KVA 22 KV 1 PH | C54: 2367.73375 | E54: YT10394
A55: 25 KVA 11 KV (SWER) | C55: 1716.743636 | E55: YT10475
A56: 50 KVA 22kV 1 PH | C56: 2648 | E56: 1547116
A57: 25 KVA 22 KV 3 PH | C57: 3916.01 | E57: YT10416
A58: 63 KVA 22 KV 3PH | C58: 6450 | E58: YT10363
A59: Switchgear
A60: CFC Safelink Switchgear | C60: 6982.448125 | E60: 1547819
A61: CFCC Safelink Switchgear | C61: 8415.126875 | E61: 1547827
A62: 8DJ10 HV switchgear | C62: 15620 | E62: Not available
A63: Autotransformer
A64: 11/22KV AUTOTRANSFORMER 3000 kVA | C64: 77500 | E64: 1553726
A65: Switchgear - Automated
A66: ABB Safelink 2 CFC 1 Switch Automated | C66: 10543.44 | E66: 1573732 | F66: 1000007186
A67: ABB Safelink 2 CFC 2 Switches Automated | C67: 13544.03 | E67: 1573740 | F67: 1000007187
A68: ABB Safelink 2 CFCC 3 Switches Automated | C68: 17523.5 | E68: 1573757 | F68: 1000007188
A69: ABB Safelink 2 CCC 3 Switches Automated | C69: 16651 | E69: 1573765 | F69: 1000007189
A70: ABB Safelink 2 CCCC 4 Switches Automated | C70: 21103 | E70: 1573773 | F70: 1000007190
A71: Siemens 8DJH RTR 1 Switch Automated | C71: 11139 | E71: 1574722 | F71: 1000007283
A72: Siemens 8DJH RTR 2 Switches Automated | C72: 14714 | E72: 1574730 | F72: 1000007284
A73: Siemens 8DJH RTRR-C 3 Switches Automated - PM Sub | C73: 27055 | E73: 1574805 | F73: 1000007291
A74: Siemens 8DJH RTRR-S 3 Switches Automated- Indoor | C74: 20469 | E74: 1574748 | F74: 1000007285
A75: Siemens 8DJH RLR 1 Switch Automated | C75: 12980 | E75: 1574771 | F75: 1000007288
A76: Siemens 8DJH RLR 2 Switches Automated | C76: 16740 | E76: 1574789 | F76: 1000007289
A77: Siemens 8DJH RLRR 3 Switches Automated - Indoor | C77: 22828 | E77: 1574797 | F77: 1000007290
A78: Siemens 8DJH RRR 3 Switches Automated | C78: 17228 | E78: 1574755 | F78: 1000007286
A79: Siemens 8DJH RRRR 4 Switches Automated | C79: 22266 | E79: 1574763 | F79: 1000007287

Sheet AVS Data (hidden)
A1: TrenchVoltage | B1: CAT
A2: TR 132 kV | B2: 23
A3: TR 66 kV | B3: 24
A4: TR 33 kV | B4: 25
A5: HV 22 kV | B5: 26
A6: HV 11 kV | B6: 27
A7: LV | B7: 28
A8: SL | B8: 17
A10: Greenfield duct 01 | B10: 61
A11: Greenfield duct 02 | B11: 118
A12: Greenfield duct 03 | B12: 157
A13: Greenfield duct 04 | B13: 187
A14: Greenfield duct 05 | B14: 249
A15: Greenfield duct 06 | B15: 279
A16: Greenfield duct 11 | B16: 71
A17: Greenfield duct 12 | B17: 128
A18: Greenfield duct 13 | B18: 167
A19: Greenfield duct 14 | B19: 197
A20: Greenfield duct 15 | B20: 258
A21: Greenfield duct 16 | B21: 288
A22: Greenfield duct 21 | B22: 81
A23: Greenfield duct 22 | B23: 138
A24: Greenfield duct 23 | B24: 177
A25: Greenfield duct 24 | B25: 207
A26: Greenfield duct 25 | B26: 268
A27: Greenfield duct 26 | B27: 298
A29: 11kV | B29: 19
A30: 22kV | B30: 18
D32: FR3 Transformer Stockcode | G32: Price | I32: Oil Transformer Price
A33: Cost difference of oil vs FR3 transformer 315kVA 11kV | B33: =G33-I33 -> 1076.655135 | D33: 1569524 | G33: 10961 | I33: ='Dataload TXWS'!B4 -> 9884.344865
A34: Cost difference of oil vs FR3 transformer 500kVA 11kV | B34: =G34-I34 -> 379.583409 | D34: 1557909 | G34: 12956 | I34: ='Dataload TXWS'!B7 -> 12576.41659
A35: Cost difference of oil vs FR3 transformer 1000kVA 11kV | B35: =G35-I35 -> 2384.5506 | D35: 1557917 | G35: 20419 | I35: ='Dataload TXWS'!B10 -> 18034.4494
A36: Cost difference of oil vs FR3 transformer 1500kVA 11kV | B36: =G36-I36 -> 7174.625556 | D36: 1558477 | G36: 40347.01 | I36: ='Dataload TXWS'!B13 -> 33172.38444
A37: Cost difference of oil vs FR3 transformer 315kVA 22kV | B37: 2003.44 | D37: 1572494 | G37: 12528 | I37: ='Dataload TXWS'!B5 -> 10855.305
A38: Cost difference of oil vs FR3 transformer 500kVA 22kV | B38: 2052.2 | D38: 1572502 | G38: 15072 | I38: ='Dataload TXWS'!B8 -> 12291.53455
A39: Cost difference of oil vs FR3 transformer 1000kVA 22kV | B39: 3742 | D39: 1572510 | G39: 28693.37 | I39: ='Dataload TXWS'!B11 -> 25840.442
A40: Cost difference of oil vs FR3 transformer 1500kVA 22kV | B40: 6231.6 | D40: 1572528 | G40: 49850.2 | I40: ='Dataload TXWS'!B14 -> 41216.028
A41: Cost difference of oil vs dry type 1000kVA 11kV | B41: 33375
A42: Cost difference of oil vs dry type 1500kVA 11kV | B42: 70391
A44: 1
A45: 2
A46: 3
A47: 4
A48: 5
A49: 6
A50: 7
A51: 8
A52: 9
A53: 10
A54: 11
A55: 12
A56: 13
A57: 14
A58: 15
A59: 16
A60: 17
A61: 18
A62: 19
A63: 20
A64: 21
A65: 22
A66: 23
A67: 24
A68: 25
A69: 26
A70: 27
A71: 28
A72: 29
A73: 30
A74: 31
A75: 32
A76: 33
A77: 34
A78: 35
A79: 36
A80: R
A82: Ancilliary Network Services - Non Contestable | C82: Price Excluding GST
A83: Zone sub access & supervision | C83: 3382.98
A84: Protection setting | C84: 4307.53
A85: Testing prior to commissioning | C85: 4883.7
A86: Zone Sub 11kV CB termination | C86: 4021.6
A87: Zone Sub 22kV CB termination | C87: 4171.29
A88: PM/Indoor 11kV sub termination | C88: 4361.92
A89: PM/Indoor 22kV sub termination | C89: 5293.43
A90: Pole top 11kV UGOH termination | C90: 5170.76
A91: Pole top 22kV UGOH termination | C91: 5793.2
A92: First STJ out of zone substation 11kV | C92: 4293.67
A93: First STJ out of zone substation 22kV | C93: 4483.63
A95: Network Need Only Duct | C95: Price Excluding GST
A96: 45 deg concrete encased bend - Network Need Only | C96: 175
A97: 90 deg concrete encased bend - Network Need Only | C97: 250

Sheet Admin (hidden)
A1: Project Tracking | B1: Project No | C1: Address | D1: Description | E1: L3ASP | F1: Developer | G1: DWG | H1: Ammendment | I1: Certifier | J1: CERTDATE | K1: CERTBY | L1: CERTEMAIL | M1: Vendor Number | N1: Username | O1: Project WBS
A3: 2022-07-18T20:57:16.840
A4: 2022-07-18T20:49:20.010
A5: 2022-07-18T09:15:18.330
A6: 2022-07-14T09:03:11.850
A7: 2022-07-08T21:13:23.550
A8: 2022-07-07T23:32:42.530
A9: 2022-07-07T23:14:39.570 | C9: 100 Hello St | D9: Installation of xzy | G9: 123456
A10: 2022-07-07T23:08:16.900
A11: 2022-07-07T22:35:16.700
A12: 2022-07-06T17:27:35.240
A13: 2022-07-06T17:07:57.320
A14: 2022-07-06T16:50:14.750
A15: 2022-07-06T16:38:18.560
A16: 2022-07-06T08:40:50.940
A17: 2022-06-27T19:31:08.970
A18: 2022-06-27T19:28:51.970
A19: 2022-06-27T18:21:03.060
A20: 2022-06-27T18:16:33
A21: 2022-06-27T18:16:08.460 | B21: UML12345
A22: 2022-06-27T18:15:50.410
A23: 2022-06-27T18:07:49.380
A24: 2022-06-27T18:00:09.480 | E24: UML12345
A25: 2022-06-27T17:35:24.880
A26: 2022-06-27T17:34:07.250
A27: 2022-06-27T17:33:31.940
A28: 2022-06-27T17:27:57.800
A29: 2022-06-27T17:27:41.540
A30: 2022-06-27T17:27:30.270
A31: 2022-06-27T17:25:16.970
A32: 2022-06-24T20:58:40.050 | B32: AVS v17

Sheet Final Valuation (hidden)
A1: Determination for the final "Summary Sheet":
B2: Initial Values | E2: Portion of Total Values | H2: Including overheads:
A3: Cat | B3: Network | C3: Customer | D3: Current R Value | E3: Network Portion Overheads | F3: Customer Portion Overheads | G3: R Portions | H3: Network including OH | I3: Customer Including Overhead | K3: checker
A4: 1 | B4: =GETPIVOTDATA("Sum of EE Value",$A$57,"Cat",A4) -> 0 | C4: =GETPIVOTDATA("Sum of C Value",$A$57,"Cat",A4) -> 0 | D4: =GETPIVOTDATA("Sum of R Value",$E$57,"Cat",A4) -> 0 | E4: =B4/SUM($B$41:$C$41) -> 0 | F4: =C4/SUM($B$41:$C$41) -> 0 | G4: =D4/$D$41 -> 0 | H4: =ROUND(B4+E4*$C$48,0) -> 0 | I4: =ROUND(C4+F4*$C$48,0) -> 0 | J4: =D4+G4*$D$48 -> 0 | K4: =GETPIVOTDATA("Sum of EE Value",$A$57,"Cat",A4) -> 0
A5: 2 | B5: =GETPIVOTDATA("Sum of EE Value",$A$57,"Cat",A5) -> 0 | C5: =GETPIVOTDATA("Sum of C Value",$A$57,"Cat",A5) -> 0 | D5: 0 | E5: =B5/SUM($B$41:$C$41) -> 0 | F5: 0 | G5: =D5/$D$41 -> 0 | H5: =ROUND(B5+E5*$C$48,0) -> 0 | I5: =ROUND(C5+F5*$C$48,0) -> 0 | J5: =D5+G5*$D$48 -> 0 | K5: =GETPIVOTDATA("Sum of EE Value",$A$57,"Cat",A5) -> 0
A6: 3 | B6: =GETPIVOTDATA("Sum of EE Value",$A$57,"Cat",A6) -> 0 | C6: 0 | D6: 0 | E6: 0 | F6: 0 | G6: 0 | H6: 0 | I6: 0 | J6: 0 | K6: 0
A7: 4 | B7: 0 | C7: 0 | D7: 0 | E7: 0 | F7: 0 | G7: 0 | H7: 0 | I7: 0 | J7: 0 | K7: 0
A8: 5 | B8: 0 | C8: 0 | D8: 0 | E8: 0 | F8: 0 | G8: 0 | H8: 0 | I8: 0 | J8: 0 | K8: 0
A9: 6 | B9: 0 | C9: 0 | D9: 0 | E9: 0 | F9: 0 | G9: 0 | H9: 0 | I9: 0 | J9: 0 | K9: 0
A10: 7 | B10: 0 | C10: 0 | D10: 0 | E10: 0 | F10: 0 | G10: 0 | H10: 0 | I10: 0 | J10: 0 | K10: 0
A11: 8 | B11: 0 | C11: 0 | D11: 0 | E11: 0 | F11: 0 | G11: 0 | H11: 0 | I11: 0 | J11: 0 | K11: 0
A12: 9 | B12: 0 | C12: 0 | D12: 0 | E12: 0 | F12: 0 | G12: 0 | H12: 0 | I12: 0 | J12: 0 | K12: 0
A13: 10 | B13: 0 | C13: 0 | D13: 0 | E13: 0 | F13: 0 | G13: 0 | H13: 0 | I13: 0 | J13: 0 | K13: 0
A14: 11 | B14: 0 | C14: 0 | D14: 0 | E14: 0 | F14: 0 | G14: 0 | H14: 0 | I14: 0 | J14: 0 | K14: 0
A15: 12 | B15: 0 | C15: 0 | D15: =GETPIVOTDATA("Sum of R Value",$E$57,"Cat",A15) -> 0 | E15: 0 | F15: 0 | G15: 0 | H15: 0 | I15: 0 | J15: 0 | K15: 0
A16: 13 | B16: 0 | C16: 0 | D16: 0 | E16: 0 | F16: 0 | G16: 0 | H16: 0 | I16: 0 | J16: 0 | K16: 0
A17: 14 | B17: =GETPIVOTDATA("Sum of EE Value",$A$57,"Cat",A17) -> 0 | C17: 0 | D17: 0 | E17: 0 | F17: 0 | G17: 0 | H17: 0 | I17: 0 | J17: 0 | K17: 0
A18: 15 | B18: =GETPIVOTDATA("Sum of EE Value",$A$57,"Cat",A18) -> 0 | C18: 0 | D18: 0 | E18: 0 | F18: 0 | G18: 0 | H18: 0 | I18: 0 | J18: 0 | K18: 0
A19: 16 | B19: 0 | C19: 0 | D19: 0 | E19: 0 | F19: 0 | G19: 0 | H19: 0 | I19: 0 | J19: 0 | K19: 0
A20: 17 | B20: 0 | C20: 0 | D20: 0 | E20: 0 | F20: 0 | G20: 0 | H20: 0 | I20: 0 | J20: 0 | K20: 0
A21: 18 | B21: 0 | C21: 0 | D21: 0 | E21: 0 | F21: 0 | G21: 0 | H21: 0 | I21: 0 | J21: 0 | K21: 0
A22: 19 | B22: 0 | C22: 0 | D22: 0 | E22: 0 | F22: 0 | G22: 0 | H22: 0 | I22: 0 | J22: 0 | K22: 0
A23: 20 | B23: 0 | C23: 0 | D23: 0 | E23: 0 | F23: 0 | G23: 0 | H23: 0 | I23: 0 | J23: 0 | K23: 0
A24: 21 | B24: 0 | C24: 0 | D24: 0 | E24: 0 | F24: 0 | G24: 0 | H24: 0 | I24: 0 | J24: 0 | K24: 0
A25: 22 | B25: 0 | C25: 0 | D25: 0 | E25: 0 | F25: 0 | G25: 0 | H25: 0 | I25: 0 | J25: 0 | K25: 0
A26: 23 | B26: 0 | C26: 0 | D26: 0 | E26: 0 | F26: 0 | G26: 0 | H26: 0 | I26: 0 | J26: 0 | K26: 0
A27: 24 | B27: 0 | C27: 0 | D27: 0 | E27: 0 | F27: 0 | G27: 0 | H27: 0 | I27: 0 | J27: 0 | K27: 0
A28: 25 | B28: 0 | C28: 0 | D28: 0 | E28: 0 | F28: 0 | G28: 0 | H28: 0 | I28: 0 | J28: 0 | K28: 0
A29: 26 | B29: 0 | C29: 0 | D29: 0 | E29: 0 | F29: 0 | G29: 0 | H29: 0 | I29: 0 | J29: 0 | K29: 0
A30: 27 | B30: 0 | C30: 0 | D30: 0 | E30: 0 | F30: 0 | G30: 0 | H30: 0 | I30: 0 | J30: 0 | K30: 0
A31: 28 | B31: 0 | C31: 0 | D31: =GETPIVOTDATA("Sum of R Value",$E$57,"Cat",A31) -> 0 | E31: 0 | F31: 0 | G31: 0 | H31: 0 | I31: 0 | J31: 0 | K31: 0
A32: 29 | B32: 0 | C32: 0 | D32: 0 | E32: 0 | F32: 0 | G32: 0 | H32: 0 | I32: 0 | J32: 0 | K32: 0
A33: 30 | B33: 0 | C33: 0 | D33: 0 | E33: 0 | F33: 0 | G33: 0 | H33: 0 | I33: 0 | J33: 0 | K33: 0
A34: 31 | B34: 0 | C34: 0 | D34: 0 | E34: 0 | F34: 0 | G34: 0 | H34: 0 | I34: 0 | J34: 0 | K34: 0
A35: 32 | B35: 0 | C35: 0 | D35: 0 | E35: 0 | F35: 0 | G35: 0 | H35: 0 | I35: 0 | J35: 0 | K35: 0
A36: 33 | B36: 0 | C36: 0 | D36: 0 | E36: 0 | F36: 0 | G36: 0 | H36: 0 | I36: 0 | J36: 0 | K36: 0
A37: 34 | B37: 0 | C37: 0 | D37: 0 | E37: 0 | F37: 0 | G37: 0 | H37: 0 | I37: 0 | J37: 0 | K37: 0
A38: 35 | B38: 0 | C38: 0 | D38: 0 | E38: 0 | F38: 0 | G38: 0 | H38: 0 | I38: 0 | J38: 0 | K38: 0
A39: 36 | B39: 0 | C39: 0 | D39: 0 | E39: 0 | F39: 0 | G39: 0 | H39: 0 | I39: 0 | J39: 0 | K39: 0
A40: R | B40: =GETPIVOTDATA("Sum of EE Value",$A$57,"Cat",A40) -> 0 | C40: =GETPIVOTDATA("Sum of C Value",$A$57,"Cat",A40) -> 0 | D40: 0 | E40: 0 | F40: 0 | G40: 0 | H40: 0 | I40: 0 | J40: 0 | K40: 0
A41: Total | B41: =IF(SUM(B4:B40)=0,1,SUM(B4:B40)) -> 1 | C41: 1 | D41: =IF(SUM(D4:D40)=0,1,SUM(D4:D40)) -> 1 | E41: 1 | F41: 1 | G41: 1 | H41: 1 | I41: 1 | J41: 1 | K41: 1
A42: total | C42: =IF(SUM(B41:C41)=2,0,SUM(B41:C41)) -> 0 | D42: =IF(SUM(D41)=1,0,SUM(D41)) -> 0
A43: overheads:
A44: Project Management | C44: =(APM*EXP(-$C$42/TPM)+KPM)*C42 -> 0 | D44: =KPM*D42 -> 0
A45: Design | C45: =(AD*EXP(-$C$42/TD)+KD)*C42 -> 0 | D45: =KD*D42 -> 0
A46: Travel | C46: =(AT*EXP(-$C$42/TT)+KT)*C42 -> 0 | D46: =KT*D42 -> 0
A47: Notification/Supervision etc | C47: =(ATS*EXP(-$C$42/TTS)+KTS)*C42 -> 0 | D47: =KTS*D42 -> 0
C48: =SUM(C44:C47) -> 0 | D48: =SUM(D44:D47) -> 0
A49: Total | C49: =C48+C42 -> 0 | D49: =D48+D42 -> 0
B57: Data | E57: Sum of R Value
A58: Cat | B58: Sum of EE Value | C58: Sum of C Value | E58: Cat | F58: Total
A59: 0 | B59: 0 | C59: 0 | E59: 0 | F59: 0
A60: 1 | B60: 0 | C60: 0 | E60: 1 | F60: 0
A61: 2 | B61: 0 | C61: 0 | E61: 2 | F61: 0
A62: 3 | B62: 0 | C62: 0 | E62: 3 | F62: 0
A63: 4 | B63: 0 | C63: 0 | E63: 4 | F63: 0
A64: 5 | B64: 0 | C64: 0 | E64: 5 | F64: 0
A65: 6 | B65: 0 | C65: 0 | E65: 6 | F65: 0
A66: 7 | B66: 0 | C66: 0 | E66: 7 | F66: 0
A67: 8 | B67: 0 | C67: 0 | E67: 8 | F67: 0
A68: 9 | B68: 0 | C68: 0 | E68: 9 | F68: 0
A69: 10 | B69: 0 | C69: 0 | E69: 10 | F69: 0
A70: 11 | B70: 0 | C70: 0 | E70: 11 | F70: 0
A71: 12 | B71: 0 | C71: 0 | E71: 12 | F71: 0
A72: 13 | B72: 0 | C72: 0 | E72: 13 | F72: 0
A73: 14 | B73: 0 | C73: 0 | E73: 14 | F73: 0
A74: 15 | E74: 15
A75: 16 | B75: 0 | C75: 0 | E75: 16 | F75: 0
A76: 17 | B76: 0 | C76: 0 | E76: 17 | F76: 0
A77: 18 | B77: 0 | C77: 0 | E77: 18 | F77: 0
A78: 19 | B78: 0 | C78: 0 | E78: 19 | F78: 0
A79: 20 | B79: 0 | C79: 0 | E79: 20 | F79: 0
A80: 21 | E80: 21
A81: 22 | B81: 0 | C81: 0 | E81: 22 | F81: 0
A82: 23 | B82: 0 | C82: 0 | E82: 23 | F82: 0
A83: 24 | B83: 0 | C83: 0 | E83: 24
A84: 25 | B84: 0 | C84: 0 | E84: 25
A85: 26 | B85: 0 | C85: 0 | E85: 26 | F85: 0
A86: 27 | B86: 0 | C86: 0 | E86: 27 | F86: 0
A87: 28 | B87: 0 | C87: 0 | E87: 28 | F87: 0
A88: 29 | E88: 29
A89: 30 | E89: 30
A90: 31 | B90: 0 | C90: 0 | E90: 31
A91: 32 | E91: 32
A92: 33 | E92: 33
A93: 34 | E93: 34
A94: 35 | B94: 0 | C94: 0 | E94: 35
A95: 36 | E95: 36
A96: (blank) | B96: 0 | C96: 0 | E96: (blank) | F96: 0
A97: 53 | E97: R
A98: 101 | E98: #N/A | F98: 0
A99: 133 | E99: Grand Total | F99: 0
A100: 157
A101: 209
A102: 233
A103: 61
A104: 110
A105: 142
A106: 166
A107: 218
A108: 242
A109: 70
A110: 119
A111: 151
A112: 175
A113: 227
A114: 251
A115: R
A116: #N/A | B116: 0 | C116: 0
A117: Grand Total | B117: 0 | C117: 0

Sheet Compatibility Report (hidden)
B1: Compatibility Report for Copy+of+AVS+v14+final from website.xls
B2: Run on 10/07/2017 8:48
B4: The following features in this workbook are not supported by earlier versions of Excel. These features may be lost or degraded when opening this workbook in an earlier version of Excel or if you save this workbook in an earlier file format.
B6: Minor loss of fidelity | E6: # of occurrences | F6: Version
B8: Some formulas in this workbook are linked to other workbooks that are closed. When these formulas are recalculated in earlier versions of Excel without opening the linked workbooks, characters beyond the 255-character limit cannot be returned. | E8: 22
E9: UG_Columns&Pillars'!M22:M43 | F9: Excel 97-2003
B11: Some cells or styles in this workbook contain formatting that is not supported by the selected file format. These formats will be converted to the closest format available. | E11: 25 | F11: Excel 97-2003

Sheet Indirect (hidden)
K1: PM | L1: Design | M1: Travel | N1: Travel
B2: Const (direct cost) | C2: Proj Mgmt | D2: Design | E2: PM portion | F2: Design Portion | J2: A | K2: 0.27 | L2: 0.64 | M2: 0.07 | N2: 0.07 | O2: A
A3: SLCD0011 | B3: 866.24 | C3: 232.56 | D3: =427.47+209.63 -> 637.1 | E3: =C3/$B3 -> 0.2684706317 | F3: =D3/$B3 -> 0.7354774658 | J3: direction | K3: 1 | L3: 1 | M3: 1 | N3: 1 | O3: direction
A4: DSCE0017 | B4: 4285.79 | C4: 820.54 | D4: 2137.88 | E4: 0.1914559509 | F4: 0.498829854 | J4: direction | K4: -1 | L4: -1 | M4: -1 | N4: -1 | O4: direction
A5: DSCL0082 | B5: 5537.84 | C5: 951.42 | D5: 1355.25 | E5: 0.1718034468 | F5: 0.2447253803 | J5: t | K5: 6000 | L5: 6000 | M5: 4000 | N5: 4000 | O5: t
A6: SLCD0048 | B6: 8931.95 | C6: 472.44 | D6: =782.44+260.81 -> 1043.25 | E6: 0.05289326519 | F6: 0.116799803 | J6: offset | K6: 0.02 | L6: 0.04 | M6: 0.019 | N6: 0.018 | O6: offset
A7: DSCE0108 | B7: 10106.8 | C7: 904.98 | D7: 2108.6 | E7: 0.0895416947 | F7: 0.2086318122 | J7: 0 | K7: =K$2*K$3*EXP(K$4*$J7/K$5)+K$6 -> 0.29 | L7: =L$2*L$3*EXP(L$4*$J7/L$5)+L$6 -> 0.68 | M7: =M$2*M$3*EXP(M$4*$J7/M$5)+M$6 -> 0.089 | N7: =N$2*N$3*EXP(N$4*$J7/N$5)+N$6 -> 0.088 | O7: =K7+L7+M7 -> 1.059
A8: LVS00135 | B8: 10678.03 | C8: 757.12 | D8: 962.4 | E8: 0.07090446459 | F8: 0.09012898447 | J8: 1500 | K8: =K$2*K$3*EXP(K$4*$J8/K$5)+K$6 -> 0.2302762114 | L8: =L$2*L$3*EXP(L$4*$J8/L$5)+L$6 -> 0.5384325012 | M8: 0.06711024952 | N8: 0.06611024952 | O8: =K8+L8+M8 -> 0.8358189621
A9: LVCU0445 | B9: 12784.72 | C9: 1286.67 | D9: 1498.03 | E9: 0.1006412342 | F9: 0.1171734696 | J9: =J8+$J$8 -> 3000 | K9: 0.1837632781 | L9: 0.4281796222 | M9: 0.05206565869 | N9: 0.05106565869 | O9: 0.664008559
A10: LVN00451 | B10: 19640.77 | C10: 314.96 | D10: =1043.26+521.63 -> 1564.89 | E10: 0.01603603117 | F10: 0.07967559317 | J10: 4500 | K10: 0.1475389692 | L10: 0.3423145938 | M10: 0.04172567272 | N10: 0.04072567272 | O10: 0.5315792357
A11: LVCU0400 | B11: 23740 | C11: 787.4 | D11: 1564.89 | E11: 0.03316764954 | F11: 0.06591786015 | J11: 6000 | K11: 0.1193274491 | L11: 0.2754428423 | M11: 0.03461911121 | N11: 0.03361911121 | O11: 0.4293894027
A12: DSCE0016 | B12: 24192 | C12: 1094.06 | D12: 1785.96 | E12: 0.04522404101 | F12: 0.07382440476 | J12: 7500 | K12: =K$2*K$3*EXP(K$4*$J12/K$5)+K$6 -> 0.09735629515 | L12: =L$2*L$3*EXP(L$4*$J12/L$5)+L$6 -> 0.22336307 | M12: 0.02973484768 | N12: 0.02873484768 | O12: 0.3504542128
A13: DSCE0018 | B13: 26789 | C13: 547.03 | D13: 1785.96 | E13: 0.02041994849 | F13: 0.0666676621 | J13: 9000 | K13: 0.08024514324 | L13: 0.1828033025 | M13: 0.02637794572 | N13: 0.02537794572 | O13: =K13+L13+M13 -> 0.2894263915
A14: LVCU0402 | B14: =1076.68+29782.74 -> 30859.42 | C14: 944.88 | D14: 1564.89 | E14: 0.03061885155 | F14: 0.05071028555 | J14: 10500 | K14: 0.06691896473 | L14: 0.1512153238 | M14: 0.02407078299 | N14: 0.02307078299 | O14: 0.2422050715
A15: LVCU0346 | B15: 37484.96 | C15: 1164.63 | D15: 1833.02 | E15: 0.03106926084 | F15: 0.04890014555 | J15: 12000 | K15: 0.05654052647 | L15: 0.1266145813 | M15: 0.02248509479 | N15: 0.02148509479 | O15: 0.2056402025
A16: LVCU0477 | B16: 38428.4 | C16: 302.26 | D16: 2138.62 | E16: 0.007865536947 | F16: 0.05565206982 | J16: 13500 | K16: 0.04845779063 | L16: 0.1074555037 | M16: 0.02139526828 | N16: 0.02039526828 | O16: 0.1773085626
A17: LVCF0096 | B17: 41475.76 | C17: 1430.58 | D17: 1878.66 | E17: 0.03449195385 | F17: 0.04529537253 | J17: 15000 | K17: 0.04216294963 | L17: 0.09253439912 | M17: 0.02064624221 | N17: 0.01964624221 | O17: 0.155343591
A18: ULL0877Q | B18: 42938.7 | C18: 1414.88 | D18: 1920.1 | E18: 0.03295116061 | F18: 0.04471723643 | J18: 16500 | K18: 0.03726052253 | L18: 0.08091383117 | M18: 0.02013144462 | N18: 0.01913144462 | O18: 0.1383057983
A19: QAN3702 | B19: 45883.4 | C19: 1916.5 | D19: 4466.79 | E19: 0.04176891861 | F19: 0.09735089379 | J19: 18000 | K19: 0.03344250846 | L19: 0.07186372376 | M19: 0.01977762976 | N19: 0.01877762976 | O19: 0.125083862
A20: QAC3528 | B20: 57986.57 | C20: 306.5 | D20: 2336.84 | E20: 0.005285706673 | F20: 0.04029967629 | J20: 19500 | K20: 0.03046903611 | L20: 0.06481549301 | M20: 0.0195344566 | N20: 0.0185344566 | O20: 0.1148189857
A21: QAC3585 | B21: 72492.94 | C21: 2934.14 | D21: 1178.42 | E21: 0.04047483796 | F21: 0.01625565193 | J21: 21000 | K21: 0.02815329352 | L21: 0.05932632539 | M21: 0.01936732629 | N21: 0.01836732629 | O21: 0.1068469452
A22: ncl2582q | B22: 81535.89 | C22: 2358.06 | D22: 2859.08 | E22: 0.02892051586 | F22: 0.03506529456 | J22: 22500 | K22: 0.02634979138 | L22: 0.05505135735 | M22: 0.01925245942 | N22: 0.01825245942 | O22: 0.1006536081
A23: LVN00454 | B23: =65448.94+56648.42 -> 122097.36 | C23: 1259.84 | D23: =2608.14+2608.14 -> 5216.28 | E23: 0.01031832302 | F23: 0.04272229965 | J23: 24000 | K23: 0.0249452225 | L23: 0.05172200889 | M23: 0.01917351265 | N23: 0.01817351265 | O23: 0.09584074404
A24: ucl4774 | B24: 127879.89 | C24: 1956.76 | D24: 2662.73 | E24: 0.01530154585 | F24: 0.02082211675 | J24: 25500 | K24: 0.02385134316 | L24: 0.0491291097 | M24: 0.01911925339 | N24: 0.01811925339 | O24: 0.09209970624
E25: average | F25: =AVERAGE(F3:F24) -> 0.1270746969 | J25: 27000 | K25: 0.02299942907 | L25: 0.04710975778 | M25: 0.01908196157 | N25: 0.01808196157 | O25: 0.08919114842
J26: 28500 | K26: 0.0223359577 | L26: 0.04553708493 | M26: 0.01905633131 | N26: 0.01805633131 | O26: 0.08692937395
J27: 30000 | K27: 0.02181924569 | L27: 0.04431228608 | M27: 0.01903871591 | N27: 0.01803871591 | O27: 0.08517024768
J28: 31500 | K28: 0.02141682997 | L28: 0.04335841178 | M28: 0.01902660903 | N28: 0.01802660903 | O28: 0.08380185077
J29: 33000 | K29: 0.02110342829 | L29: 0.04261553372 | M29: 0.0190182881 | N29: 0.0180182881 | O29: 0.08273725011
J30: 34500 | K30: 0.02085935082 | L30: 0.04203697971 | M30: 0.01901256921 | N30: 0.01801256921 | O30: 0.08190889974
J31: 36000 | K31: 0.02066926309 | L31: 0.04158640139 | M31: 0.01900863869 | N31: 0.01800863869 | O31: 0.08126430317
J32: 37500 | K32: 0.02052122262 | L32: 0.04123549065 | M32: 0.01900593728 | N32: 0.01800593728 | O32: 0.08076265054
J33: 39000 | K33: 0.02040592858 | L33: 0.04096220108 | M33: 0.01900408063 | N33: 0.01800408063 | O33: 0.08037221029
J34: 40500 | K34: 0.0203161375 | L34: 0.04074936296 | M34: 0.01900280457 | N34: 0.01800280457 | O34: 0.08006830503
J35: 42000 | K35: 0.02024620813 | L35: 0.04058360446 | M35: 0.01900192755 | N35: 0.01800192755 | O35: 0.07983174014
J36: 43500 | K36: 0.02019174708 | L36: 0.04045451161 | M36: 0.01900132479 | N36: 0.01800132479 | O36: 0.07964758348
J37: 45000 | K37: 0.02014933278 | L37: 0.040353974 | M37: 0.01900091051 | N37: 0.01800091051 | O37: 0.07950421729
J38: 46500 | K38: 0.02011630049 | L38: 0.04027567523 | M38: 0.01900062578 | N38: 0.01800062578 | O38: 0.0793926015
J39: 48000 | K39: 0.02009057491 | L39: 0.04021469608 | M39: 0.01900043009 | N39: 0.01800043009 | O39: 0.07930570109
J40: 49500 | K40: 0.02007053981 | L40: 0.04016720548 | M40: 0.0190002956 | N40: 0.0180002956 | O40: 0.07923804089
J41: =J40+$J$8 -> 51000 | K41: 0.02005493646 | L41: 0.04013021976 | M41: 0.01900020316 | N41: 0.01800020316 | O41: 0.07918535938
J42: 52500 | K42: 0.02004278456 | L42: 0.04010141525 | M42: 0.01900013963 | N42: 0.01800013963 | O42: 0.07914433944
J43: 54000 | K43: 0.02003332065 | L43: 0.04007898227 | M43: 0.01900009597 | N43: 0.01800009597 | O43: 0.07911239889
J44: 55500 | K44: 0.02002595015 | L44: 0.04006151146 | M44: 0.01900006596 | N44: 0.01800006596 | O44: 0.07908752756
J45: 57000 | K45: 0.02002020999 | L45: 0.04004790517 | M45: 0.01900004533 | N45: 0.01800004533 | O45: 0.0790681605
J46: 58500 | K46: 0.02001573956 | L46: 0.04003730858 | M46: 0.01900003116 | N46: 0.01800003116 | O46: 0.0790530793
J47: 60000 | K47: 0.02001225798 | L47: 0.04002905596 | M47: 0.01900002141 | N47: 0.01800002141 | O47: 0.07904133535
J48: 61500 | K48: 0.02000954653 | L48: 0.0400226288 | M48: 0.01900001472 | N48: 0.01800001472 | O48: 0.07903219004
J49: 63000 | K49: 0.02000743484 | L49: 0.04001762333 | M49: 0.01900001011 | N49: 0.01800001011 | O49: 0.07902506828
J50: 64500 | K50: 0.02000579026 | L50: 0.04001372506 | M50: 0.01900000695 | N50: 0.01800000695 | O50: 0.07901952227
J51: 66000 | K51: 0.02000450946 | L51: 0.04001068909 | M51: 0.01900000478 | N51: 0.01800000478 | O51: 0.07901520333
J52: 67500 | K52: 0.02000351197 | L52: 0.04000832467 | M52: 0.01900000328 | N52: 0.01800000328 | O52: 0.07901183992
J53: 69000 | K53: 0.02000273513 | L53: 0.04000648326 | M53: 0.01900000226 | N53: 0.01800000226 | O53: 0.07900922064
J54: 70500 | K54: 0.02000213012 | L54: 0.04000504917 | M54: 0.01900000155 | N54: 0.01800000155 | O54: 0.07900718084
J55: 72000 | K55: 0.02000165894 | L55: 0.0400039323 | M55: 0.01900000107 | N55: 0.01800000107 | O55: 0.0790055923
J56: 73500 | K56: 0.02000129198 | L56: 0.04000306248 | M56: 0.01900000073 | N56: 0.01800000073 | O56: 0.07900435519
J57: 75000 | K57: 0.0200010062 | L57: 0.04000238506 | M57: 0.0190000005 | N57: 0.0180000005 | O57: 0.07900339176
J58: 76500 | K58: 0.02000078363 | L58: 0.04000185749 | M58: 0.01900000035 | N58: 0.01800000035 | O58: 0.07900264146
J59: 78000 | K59: 0.02000061029 | L59: 0.04000144661 | M59: 0.01900000024 | N59: 0.01800000024 | O59: 0.07900205714
J60: 79500 | K60: 0.02000047529 | L60: 0.04000112662 | M60: 0.01900000016 | N60: 0.01800000016 | O60: 0.07900160208
J61: 81000 | K61: 0.02000037016 | L61: 0.04000087741 | M61: 0.01900000011 | N61: 0.01800000011 | O61: 0.07900124769
J62: 82500 | K62: 0.02000028828 | L62: 0.04000068333 | M62: 0.01900000008 | N62: 0.01800000008 | O62: 0.07900097169
J63: 84000 | K63: 0.02000022451 | L63: 0.04000053218 | M63: 0.01900000005 | N63: 0.01800000005 | O63: 0.07900075674
J64: 85500 | K64: 0.02000017485 | L64: 0.04000041446 | M64: 0.01900000004 | N64: 0.01800000004 | O64: 0.07900058935
J65: 87000 | K65: 0.02000013617 | L65: 0.04000032278 | M65: 0.01900000003 | N65: 0.01800000003 | O65: 0.07900045898
J66: 88500 | K66: 0.02000010605 | L66: 0.04000025138 | M66: 0.01900000002 | N66: 0.01800000002 | O66: 0.07900035745
J67: 90000 | K67: 0.02000008259 | L67: 0.04000019578 | M67: 0.01900000001 | N67: 0.01800000001 | O67: 0.07900027838
J68: 91500 | K68: 0.02000006432 | L68: 0.04000015247 | M68: 0.01900000001 | N68: 0.01800000001 | O68: 0.0790002168
J69: 93000 | K69: 0.0200000501 | L69: 0.04000011875 | M69: 0.01900000001 | N69: 0.01800000001 | O69: 0.07900016885
J70: 94500 | K70: 0.02000003901 | L70: 0.04000009248 | M70: 0.019 | N70: 0.018 | O70: 0.0790001315
J71: 96000 | K71: 0.02000003038 | L71: 0.04000007202 | M71: 0.019 | N71: =N$2*N$3*EXP(N$4*$J71/N$5)+N$6 -> 0.018 | O71: 0.07900010241
J72: 97500 | K72: =K$2*K$3*EXP(K$4*$J72/K$5)+K$6 -> 0.02000002366 | L72: 0.04000005609 | M72: 0.019 | N72: 0.018 | O72: =K72+L72+M72 -> 0.07900007976
J73: =J72+$J$8 -> 99000 | K73: 0.02000001843 | L73: 0.04000004368 | M73: 0.019 | N73: 0.018 | O73: 0.07900006211
J74: 100500 | K74: 0.02000001435 | L74: 0.04000003402 | M74: 0.019 | N74: 0.018 | O74: 0.07900004837
J75: 102000 | K75: 0.02000001118 | L75: 0.0400000265 | M75: 0.019 | N75: 0.018 | O75: 0.07900003767
J76: 103500 | K76: 0.02000000871 | L76: 0.04000002063 | M76: 0.019 | N76: 0.018 | O76: 0.07900002934
J77: 105000 | K77: 0.02000000678 | L77: 0.04000001607 | M77: 0.019 | N77: 0.018 | O77: 0.07900002285
J78: 106500 | K78: 0.02000000528 | L78: 0.04000001252 | M78: 0.019 | N78: 0.018 | O78: 0.0790000178
J79: 108000 | K79: 0.02000000411 | L79: 0.04000000975 | M79: 0.019 | N79: 0.018 | O79: 0.07900001386
J80: 109500 | K80: 0.0200000032 | L80: 0.04000000759 | M80: 0.019 | N80: 0.018 | O80: 0.07900001079
J81: 111000 | K81: 0.02000000249 | L81: 0.04000000591 | M81: 0.019 | N81: 0.018 | O81: 0.07900000841
J82: 112500 | K82: 0.02000000194 | L82: 0.0400000046 | M82: 0.019 | N82: 0.018 | O82: 0.07900000655
J83: 114000 | K83: 0.02000000151 | L83: 0.04000000359 | M83: 0.019 | N83: 0.018 | O83: 0.0790000051
J84: 115500 | K84: 0.02000000118 | L84: 0.04000000279 | M84: 0.019 | N84: 0.018 | O84: 0.07900000397
J85: 117000 | K85: 0.02000000092 | L85: 0.04000000217 | M85: 0.019 | N85: 0.018 | O85: 0.07900000309
J86: 118500 | K86: 0.02000000071 | L86: 0.04000000169 | M86: 0.019 | N86: 0.018 | O86: 0.07900000241
J87: 120000 | K87: 0.02000000056 | L87: 0.04000000132 | M87: 0.019 | N87: 0.018 | O87: 0.07900000188

Sheet Transmission (hidden)
A1: 2002 Applicable Transmission Costs (Treasury Guidelines) | H1: 0.1 | I1: 0.05 | J1: =1-(H1+I1) -> 0.85 | K1: 0
A2: Sections and Bays | B2: D2 | C2: Labour | D2: Plant and Vehicles | E2: Materials | F2: Direct | G2: Units | H2: Labour/Unit | I2: Plant & Vehicles / Unit | J2: Materials / Unit | K2: Direct / Unit | L2: Total / Unit
A3: 132 CB outdoor – feeder | E3: 375000 | H3: =$E3*H$1 -> 37500 | I3: =$E3*I$1 -> 18750 | J3: =$E3*J$1 -> 318750 | K3: =$E3*K$1 -> 0 | L3: =SUM(H3:K3) -> 375000
A4: 132 CB outdoor – bus section | E4: 335000 | H4: =$E4*H$1 -> 33500 | I4: 16750 | J4: 284750 | K4: 0 | L4: =SUM(H4:K4) -> 335000
A5: 132 CB outdoor – transformer | E5: 425000 | H5: 42500 | I5: 21250 | J5: 361250 | K5: 0 | L5: 425000
A6: 132 CB outdoor – feeder or bus section (no CB) | E6: 175000 | H6: 17500 | I6: 8750 | J6: 148750 | K6: 0 | L6: 175000
A7: 132 CB outdoor – transformer feeder (no CB) | E7: 325000 | H7: 32500 | I7: 16250 | J7: 276250 | K7: 0 | L7: 325000
A8: 66 CB outdoor – feeder | E8: 330000 | H8: 33000 | I8: 16500 | J8: 280500 | K8: 0 | L8: 330000
A9: 66 CB outdoor – bus section | E9: 250000 | H9: 25000 | I9: 12500 | J9: 212500 | K9: 0 | L9: 250000
A10: 66 CB outdoor – transformer | E10: 280000 | H10: 28000 | I10: 14000 | J10: 238000 | K10: 0 | L10: 280000
A11: 66 CB indoor – feeder | E11: 270000 | H11: 27000 | I11: 13500 | J11: 229500 | K11: 0 | L11: 270000
A12: 66 CB indoor – bus section | E12: 190000 | H12: 19000 | I12: 9500 | J12: 161500 | K12: 0 | L12: 190000
A13: 66 CB indoor – transformer | E13: 300000 | H13: 30000 | I13: 15000 | J13: 255000 | K13: 0 | L13: 300000
A14: 66 outdoor – feeder (no CB) | E14: 170000 | H14: 17000 | I14: 8500 | J14: 144500 | K14: 0 | L14: 170000
A15: 66 outdoor – bus section (no CB) | E15: 130000 | H15: 13000 | I15: 6500 | J15: 110500 | K15: 0 | L15: 130000
A16: 66 outdoor – transformer (no CB) | E16: 200000 | H16: 20000 | I16: 10000 | J16: 170000 | K16: 0 | L16: 200000
A17: 66 capacitor bank | E17: 430000 | H17: 43000 | I17: 21500 | J17: 365500 | K17: 0 | L17: 430000
A18: 33 CB outdoor feeder | E18: 250000 | H18: 25000 | I18: 12500 | J18: 212500 | K18: 0 | L18: 250000
A19: 33 CB outdoor – bus section | E19: 200000 | H19: 20000 | I19: 10000 | J19: 170000 | K19: 0 | L19: 200000
A20: 33 CB outdoor – bus section (no CB) | E20: 151000 | H20: 15100 | I20: 7550 | J20: 128350 | K20: 0 | L20: 151000
A21: 33 CB outdoor – transformer | E21: 190000 | H21: 19000 | I21: 9500 | J21: 161500 | K21: 0 | L21: 190000
A22: 33 indoor – transformer (no CB) | E22: 96000 | H22: 9600 | I22: 4800 | J22: 81600 | K22: 0 | L22: 96000
A23: 33 outdoor – transformer (no CB) | E23: 70000 | H23: 7000 | I23: 3500 | J23: 59500 | K23: 0 | L23: 70000
A24: 33 outdoor – transformer (expulsion fuse) | E24: 60000 | H24: 6000 | I24: 3000 | J24: 51000 | K24: 0 | L24: 60000
A25: 33 outdoor - feeder (no CB) | E25: 110000 | H25: 11000 | I25: 5500 | J25: 93500 | K25: 0 | L25: 110000
A26: 33 CB indoor – feeder | E26: 230000 | H26: 23000 | I26: 11500 | J26: 195500 | K26: 0 | L26: 230000
A27: 33 CB indoor – bus section | E27: 154000 | H27: 15400 | I27: 7700 | J27: 130900 | K27: 0 | L27: 154000
A28: 33 CB indoor - transformer | E28: 250000 | H28: 25000 | I28: 12500 | J28: 212500 | K28: 0 | L28: 250000
A29: 33 Capacitor bank | E29: 350000 | H29: 35000 | I29: 17500 | J29: 297500 | K29: 0 | L29: 350000
A30: 11/22 CB outdoor - bus section | E30: 83000 | H30: 8300 | I30: 4150 | J30: 70550 | K30: 0 | L30: 83000
A31: 11/22 CB outdoor – feeder | E31: 90000 | H31: 9000 | I31: 4500 | J31: 76500 | K31: 0 | L31: 90000
A32: 11/22 CB outdoor – transformer | E32: 110000 | H32: 11000 | I32: 5500 | J32: 93500 | K32: 0 | L32: 110000
A33: 11/22 outdoor – feeder recloser | E33: 45000 | H33: 4500 | I33: 2250 | J33: 38250 | K33: 0 | L33: 45000
A34: 11/22 CB indoor – single feeder | E34: 45000 | H34: 4500 | I34: 2250 | J34: 38250 | K34: 0 | L34: 45000
A35: 11/22 CB indoor – double feeder single protection | E35: 80000 | H35: 8000 | I35: 4000 | J35: 68000 | K35: 0 | L35: 80000
A36: 11/22 CB indoor – double feeder double protection | E36: 90000 | H36: 9000 | I36: 4500 | J36: 76500 | K36: 0 | L36: 90000
A37: 11/22 CB indoor – bus section | E37: 80000 | H37: 8000 | I37: 4000 | J37: 68000 | K37: 0 | L37: 80000
A38: 11/22 CB indoor – transformer | E38: 105000 | H38: 10500 | I38: 5250 | J38: 89250 | K38: 0 | L38: 105000
A39: 11/22 CB indoor – transformer (no CB) | E39: 25000 | H39: 2500 | I39: 1250 | J39: 21250 | K39: 0 | L39: 25000
A40: 11/22 CB indoor – transformer (two CBs) | E40: 185000 | H40: 18500 | I40: 9250 | J40: 157250 | K40: 0 | L40: 185000
A41: 11/22 load control injection | E41: 140000 | H41: 14000 | I41: 7000 | J41: 119000 | K41: 0 | L41: 140000
A42: 11 indoor - feeder (no CB) | E42: 25000 | H42: 2500 | I42: 1250 | J42: 21250 | K42: 0 | L42: 25000
A43: 11 outdoor - bus section (no CB) | E43: 63000 | H43: 6300 | I43: 3150 | J43: 53550 | K43: 0 | L43: 63000
A44: Switchyard | E44: 125000 | H44: 12500 | I44: 6250 | J44: 106250 | K44: 0 | L44: 125000
A45: Ancillaries | E45: 80000 | H45: 8000 | I45: 4000 | J45: 68000 | K45: 0 | L45: 80000
A46: Building (Brick or Concrete) | E46: 160000 | H46: 16000 | I46: 8000 | J46: 136000 | K46: 0 | L46: 160000
A47: Building (Wood) | E47: 160000 | H47: 16000 | I47: 8000 | J47: 136000 | K47: 0 | L47: 160000
A48: Pilot cable | E48: 30000 | H48: 3000 | I48: 1500 | J48: 25500 | K48: 0 | L48: 30000
A49: 66 Regulator | E49: 115000 | H49: 11500 | I49: 5750 | J49: 97750 | K49: 0 | L49: 115000
A50: 33 Regulator | E50: 76000 | H50: 7600 | I50: 3800 | J50: 64600 | K50: 0 | L50: 76000
A51: 66 Air break switch, 3 phase | E51: 18100 | H51: 1810 | I51: 905 | J51: 15385 | K51: 0 | L51: 18100
A52: 33 Air break switch, 3 phase | E52: 11500 | H52: 1150 | I52: 575 | J52: 9775 | K52: 0 | L52: 11500
A53: 33 Fuse, 3 phase set | E53: 11400 | H53: 1140 | I53: 570 | J53: 9690 | K53: 0 | L53: 11400
A54: 33 Link, 3 phase set | E54: 8100 | H54: 810 | I54: 405 | J54: 6885 | K54: 0 | L54: 8100
A55: Cap Bank 11 kV 2.5 MVAr | E55: 126781 | H55: 12678.1 | I55: 6339.05 | J55: 107763.85 | K55: 0 | L55: 126781
A56: Cap Bank 11 kV 5 MVAr | E56: 162583 | H56: 16258.3 | I56: 8129.15 | J56: 138195.55 | K56: 0 | L56: 162583
A57: Cap Bank 11 kV 10 MVAr | E57: 247057 | H57: 24705.7 | I57: 12352.85 | J57: 209998.45 | K57: 0 | L57: 247057
A58: HV metering, incl meter, CT & VT | E58: 20000 | H58: 2000 | I58: 1000 | J58: 17000 | K58: 0 | L58: 20000
A59: 33kV Recloser 3 phase | E59: 580 | H59: 58 | I59: 29 | J59: 493 | K59: 0 | L59: 580
A61: Power Transformers | B61: D2 | C61: Labour | D61: Plant and Vehicles | E61: Materials | F61: Direct | G61: Units | H61: Labour/Unit | I61: Plant & Vehicles / Unit | J61: Materials / Unit | K61: Direct / Unit | L61: Total / Unit
A62: 33/11 1.5 MVA ONAN | E62: 115500 | H62: =$E62*H$1 -> 11550 | I62: =$E62*I$1 -> 5775 | J62: =$E62*J$1 -> 98175 | K62: =$E62*K$1 -> 0 | L62: =SUM(H62:K62) -> 115500
A63: 33/11 2.5 MVA ONAN | E63: 177500 | H63: =$E63*H$1 -> 17750 | I63: 8875 | J63: 150875 | K63: 0 | L63: =SUM(H63:K63) -> 177500
A64: 33/11 5 MVA ONAN | E64: 268500 | H64: 26850 | I64: 13425 | J64: 228225 | K64: 0 | L64: 268500
A65: 33/11 7.5 MVA ONAN | E65: 294000 | H65: 29400 | I65: 14700 | J65: 249900 | K65: 0 | L65: 294000
A66: 33/11 10 MVA ONAN | E66: 319500 | H66: 31950 | I66: 15975 | J66: 271575 | K66: 0 | L66: 319500
A67: 33/11 10/12.5 MVA ONAN/ONAF | E67: 345000 | H67: 34500 | I67: 17250 | J67: 293250 | K67: 0 | L67: 345000
A68: 33/11 15/20 MVA ONAN/ONAF | E68: 421000 | H68: 42100 | I68: 21050 | J68: 357850 | K68: 0 | L68: 421000
A69: 33/11 15/20/25 MVA ONAN/ONAF/OFAF | E69: 472500 | H69: 47250 | I69: 23625 | J69: 401625 | K69: 0 | L69: 472500
A70: 33/11 20/28/35 MVA ONAN/ONAF/OFAF | E70: 560000 | H70: 56000 | I70: 28000 | J70: 476000 | K70: 0 | L70: 560000
A71: 66/11 2.5 MVA ONAN | E71: 187000 | H71: 18700 | I71: 9350 | J71: 158950 | K71: 0 | L71: 187000
A72: 66/11 5 MVA ONAN | E72: 280000 | H72: 28000 | I72: 14000 | J72: 238000 | K72: 0 | L72: 280000
A73: 66/11 7.5 MVA ONAN | E73: 305000 | H73: 30500 | I73: 15250 | J73: 259250 | K73: 0 | L73: 305000
A74: 66/11 10 MVA ONAN | E74: 375500 | H74: 37550 | I74: 18775 | J74: 319175 | K74: 0 | L74: 375500
A75: 66/11 10/14 MVA ONAN/ONAF | E75: 420000 | H75: 42000 | I75: 21000 | J75: 357000 | K75: 0 | L75: 420000
A76: 66/11 15/20/25 MVA ONAN/ONAF/OFAF | E76: 507500 | H76: 50750 | I76: 25375 | J76: 431375 | K76: 0 | L76: 507500
A77: 66/11 20/28/35 MVA ONAN/ONAF/OFAF | E77: 607500 | H77: 60750 | I77: 30375 | J77: 516375 | K77: 0 | L77: 607500
A78: 66/33/11 7.5 MVA ONAN | E78: 360000 | H78: 36000 | I78: 18000 | J78: 306000 | K78: 0 | L78: 360000
A79: 66/33/11 15 MVA ONAN | E79: 700000 | H79: 70000 | I79: 35000 | J79: 595000 | K79: 0 | L79: 700000
A80: 132/11 15/20/25 MVA ONAN/ONAF/OFAF | E80: 638000 | H80: 63800 | I80: 31900 | J80: 542300 | K80: 0 | L80: 638000
A81: 132/11 35/40/45 MVA ONAN/ONAF/OFAF | E81: 858000 | H81: 85800 | I81: 42900 | J81: 729300 | K81: 0 | L81: 858000
A82: 132/11 50/60/65 MVA ONAN/ONAF/OFAF | E82: 1025000 | H82: 102500 | I82: 51250 | J82: 871250 | K82: 0 | L82: 1025000
A83: 132/33 20/30 MVA ONAN/ONAF | E83: 717500 | H83: 71750 | I83: 35875 | J83: 609875 | K83: 0 | L83: 717500
A84: 132/33 40/60 MVA ONAN/ONAF | E84: 914500 | H84: 91450 | I84: 45725 | J84: 777325 | K84: 0 | L84: 914500
A85: 132/33 60/120 MVA ONAN/ONAF | E85: 1456500 | H85: 145650 | I85: 72825 | J85: 1238025 | K85: 0 | L85: 1456500
A86: 132/66 20/30 MVA ONAN/ONAF | E86: 815000 | H86: 81500 | I86: 40750 | J86: 692750 | K86: 0 | L86: 815000
A87: 132/66 30/60 MVA ONAN/ONAF | E87: 1025000 | H87: 102500 | I87: 51250 | J87: 871250 | K87: 0 | L87: 1025000
A88: 132/66 60/120 MVA ONAN/ONAF | E88: 1456000 | H88: 145600 | I88: 72800 | J88: 1237600 | K88: 0 | L88: 1456000
A89: 132/22 45 MVA ONAN/ONAF | E89: 914500 | H89: 91450 | I89: 45725 | J89: 777325 | K89: 0 | L89: 914500

Sheet Trench & duct detail cal (hidden)
A1: Excavation Cost | D1: Type | E1: Number 125 | F1: Rows 125 | G1: Colums 125 | H1: Number 50 | I1: Exc Depth | J1: Exc Width | K1: Sand Depth | L1: Sand Width | M1: 125 Volume | N1: 50 Volume | O1: Sand Volume | P1: Excavation Volume | Q1: 125 Duct Cost | R1: 50 duct cost | S1: Excavate Cost | T1: Duct lay cost | U1: Sand Cost Bedding and compact Cost | V1: Disposal spoil | W1: Sand Cost | X1: Total Cost/m trench | Y1: cost/125 | AB1: =SUM(E72:E77) -> 0.485 | AC1: EA Cost
A2: Excavate rate | B2: 5 | C2: Cu.m/hr | D2: 01 | E2: 1 | F2: 1 | G2: 1 | H2: 0 | I2: =750+F2*(125)+(F2-1)*25+50 -> 925 | J2: =G2*(125)+(G2+1)*25 -> 175 | K2: =75+F2*(125)+(F2-1)*25+50 -> 250 | L2: =G2*(125)+(G2+1)*25 -> 175 | M2: =E2*PI()*(125/2)^2/1000000 -> 0.0122718463 | N2: =H2*PI()*(50/2)^2/1000000 -> 0 | O2: =K2*L2/1000000-M2-N2 -> 0.0314781537 | P2: =I2*J2/1000000 -> 0.161875 | Q2: =E2*$B$13 -> 4.1767 | R2: =H2*$B$14 -> 0 | S2: =P2*$B$6 -> 11.03858 | T2: =(E2+H2)*$B$11 -> 5 | U2: =E2*$B$32 -> 11.82527778 | V2: =(P2-O2-N2-M2)*$B$18*$B$19 -> 7.23515625 | W2: =O2*$B$17*$B$16 -> 1.928036914 | X2: =SUM(Q2:W2) -> 41.20375094 | Y2: =X2/E2 -> 41.20375094 | AB2: =X2*(1+$AB$1) -> 61.18757015 | AC2: =E2*7.84+G2*46.86+P2*49.5 -> 62.7128125
A3: Backhoe | B3: 125.71 | C3: per hr | D3: 02 | E3: 2 | F3: 1 | G3: 2 | H3: 0 | I3: 925 | J3: 325 | K3: 250 | L3: 325 | M3: 0.02454369261 | N3: 0 | O3: 0.05670630739 | P3: 0.300625 | Q3: 8.3534 | R3: 0 | S3: 20.50022 | T3: 10 | U3: 23.65055556 | V3: 13.43671875 | W3: 3.473261328 | X3: =SUM(Q3:W3) -> 79.41415563 | Y3: 39.70707782 | AB3: =X3*(1+$AB$1) -> 117.9300211 | AC3: =E3*7.84+G3*46.86+P3*49.5 -> 124.2809375
A4: Labourers | B4: 180 | C4: (3lab.)per hr | D4: 03 | E4: 3 | F4: 2 | G4: 2 | H4: 0 | I4: 1075 | J4: 325 | K4: 400 | L4: 325 | M4: 0.03681553891 | N4: 0 | O4: 0.09318446109 | P4: 0.349375 | Q4: 12.5301 | R4: 0 | S4: 23.82458 | T4: 15 | U4: 35.47583333 | V4: 13.43671875 | W4: 5.707548242 | X4: 105.9747803 | Y4: 35.32492678 | AB4: 157.3725488 | AC4: 134.5340625
A5: Tipper | B5: 35.25 | C5: per hr | D5: 04 | E5: 4 | F5: 2 | G5: 2 | H5: 0 | I5: 1075 | J5: 325 | K5: 400 | L5: 325 | M5: 0.04908738521 | N5: 0 | O5: 0.08091261479 | P5: 0.349375 | Q5: 16.7068 | R5: 0 | S5: 23.82458 | T5: 20 | U5: 47.30111111 | V5: 13.43671875 | W5: 4.955897656 | X5: 126.2251075 | Y5: 31.55627688 | AB5: 187.4442847 | AC5: 142.3740625
A6: Total | B6: =SUM(B3:B5)/B2 -> 68.192 | C6: per Cu.m | D6: 05 | E6: 5 | F6: 2 | G6: 3 | H6: 0 | I6: 1075 | J6: 475 | K6: 400 | L6: 475 | M6: 0.06135923152 | N6: 0 | O6: 0.1286407685 | P6: 0.510625 | Q6: 20.8835 | R6: 0 | S6: 34.82054 | T6: 25 | U6: 59.12638889 | V6: 19.63828125 | W6: 7.87924707 | X6: 167.3479572 | Y6: 33.46959144 | AB6: 248.5117165 | AC6: 205.0559375
D7: 06 | E7: 6 | F7: 2 | G7: 3 | H7: 0 | I7: 1075 | J7: 475 | K7: 400 | L7: 475 | M7: 0.07363107782 | N7: 0 | O7: 0.1163689222 | P7: 0.510625 | Q7: 25.0602 | R7: 0 | S7: 34.82054 | T7: 30 | U7: 70.95166667 | V7: 19.63828125 | W7: 7.127596484 | X7: 187.5982844 | Y7: 31.26638073 | AB7: 278.5834523 | AC7: 212.8959375
A8: Pipe laying cost | D8: 11 | E8: 1 | F8: 1 | G8: 1 | H8: 1 | I8: 925 | J8: 175 | K8: 250 | L8: 175 | M8: 0.0122718463 | N8: 0.001963495408 | O8: 0.02951465829 | P8: 0.161875 | Q8: 4.1767 | R8: 1.7896205 | S8: 11.03858 | T8: 10 | U8: 11.82527778 | V8: 7.23515625 | W8: 1.80777282 | X8: 47.87310735 | Y8: 47.87310735 | AB8: 71.09156441 | AC8: 62.7128125
A9: Laying rate | B9: 36 | C9: m/hr | D9: 12 | E9: 2 | F9: 1 | G9: 2 | H9: 1 | I9: 925 | J9: 325 | K9: 250 | L9: 325 | M9: 0.02454369261 | N9: 0.001963495408 | O9: 0.05474281199 | P9: 0.300625 | Q9: 8.3534 | R9: 1.7896205 | S9: 20.50022 | T9: 15 | U9: 23.65055556 | V9: 13.43671875 | W9: 3.352997234 | X9: 86.08351204 | Y9: 43.04175602 | Z9: 100 | AA9: =Z9/X9 -> 1.161662642 | AB9: 127.8340154 | AC9: 124.2809375
A10: labour | B10: 180 | C10: (3lab.)per hr | D10: 13 | E10: 3 | F10: 2 | G10: 2 | H10: 1 | I10: 1075 | J10: 325 | K10: 400 | L10: 325 | M10: 0.03681553891 | N10: 0.001963495408 | O10: 0.09122096568 | P10: 0.349375 | Q10: 12.5301 | R10: 1.7896205 | S10: 23.82458 | T10: 20 | U10: 35.47583333 | V10: 13.43671875 | W10: 5.587284148 | X10: 112.6441367 | Y10: 37.54804558 | AB10: 167.276543 | AC10: 134.5340625
A11: Total | B11: =B10/B9 -> 5 | D11: 14 | E11: 4 | F11: 2 | G11: 2 | H11: 1 | I11: 1075 | J11: 325 | K11: 400 | L11: 325 | M11: 0.04908738521 | N11: 0.001963495408 | O11: 0.07894911938 | P11: 0.349375 | Q11: 16.7068 | R11: 1.7896205 | S11: 23.82458 | T11: 25 | U11: 47.30111111 | V11: 13.43671875 | W11: 4.835633562 | X11: 132.8944639 | Y11: 33.22361598 | AB11: 197.3482789 | AC11: 142.3740625
D12: 15 | E12: 5 | F12: 2 | G12: 3 | H12: 1 | I12: 1075 | J12: 475 | K12: 400 | L12: 475 | M12: 0.06135923152 | N12: 0.001963495408 | O12: 0.1266772731 | P12: 0.510625 | Q12: 20.8835 | R12: 1.7896205 | S12: 34.82054 | T12: 30 | U12: 59.12638889 | V12: 19.63828125 | W12: 7.758982976 | X12: 174.0173136 | Y12: 34.80346272 | AB12: 258.4157107 | AC12: 205.0559375
A13: 125mm Duct Cost (001138767) | B13: 4.1767 | C13: per m | D13: 16 | E13: 6 | F13: 2 | G13: 3 | H13: 1 | I13: 1075 | J13: 475 | K13: 400 | L13: 475 | M13: 0.07363107782 | N13: 0.001963495408 | O13: 0.1144054268 | P13: 0.510625 | Q13: 25.0602 | R13: 1.7896205 | S13: 34.82054 | T13: 35 | U13: 70.95166667 | V13: 19.63828125 | W13: 7.00733239 | X13: 194.2676408 | Y13: 32.37794013 | AB13: 288.4874466 | AC13: 212.8959375
A14: 50mm Duct Cost (001005900) | B14: =10.737723/6 -> 1.7896205 | C14: per m | D14: 21 | E14: 1 | F14: 1 | G14: 1 | H14: 2 | I14: 925 | J14: 175 | K14: 250 | L14: 175 | M14: 0.0122718463 | N14: 0.003926990817 | O14: 0.02755116288 | P14: 0.161875 | Q14: 4.1767 | R14: 3.579241 | S14: 11.03858 | T14: 15 | U14: 11.82527778 | V14: 7.23515625 | W14: 1.687508726 | X14: 54.54246375 | Y14: 54.54246375 | AB14: 80.99555867 | AC14: 62.7128125
D15: 22 | E15: 2 | F15: 1 | G15: 2 | H15: 2 | I15: 925 | J15: 325 | K15: 250 | L15: 325 | M15: 0.02454369261 | N15: 0.003926990817 | O15: 0.05277931658 | P15: 0.300625 | Q15: 8.3534 | R15: 3.579241 | S15: 20.50022 | T15: 20 | U15: 23.65055556 | V15: 13.43671875 | W15: 3.23273314 | X15: 92.75286845 | Y15: 46.37643422 | AB15: 137.7380096 | AC15: 124.2809375
A16: Sand Cost | B16: 35 | C16: $/t | D16: 23 | E16: 3 | F16: 2 | G16: 2 | H16: 2 | I16: 1075 | J16: 325 | K16: 400 | L16: 325 | M16: 0.03681553891 | N16: 0.003926990817 | O16: 0.08925747027 | P16: 0.349375 | Q16: 12.5301 | R16: 3.579241 | S16: 23.82458 | T16: 25 | U16: 35.47583333 | V16: 13.43671875 | W16: 5.467020054 | X16: 119.3134931 | Y16: 39.77116438 | AB16: 177.1805373 | AC16: 134.5340625
A17: Sand Density | B17: 1.75 | C17: t/cu.m | D17: 24 | E17: 4 | F17: 2 | G17: 2 | H17: 2 | I17: 1075 | J17: 325 | K17: 400 | L17: 325 | M17: 0.04908738521 | N17: 0.003926990817 | O17: 0.07698562397 | P17: 0.349375 | Q17: 16.7068 | R17: 3.579241 | S17: 23.82458 | T17: 30 | U17: 47.30111111 | V17: 13.43671875 | W17: 4.715369468 | X17: =SUM(Q17:W17) -> 139.5638203 | Y17: 34.89095508 | Z17: 160 | AA17: =Z17/X17 -> 1.146428921 | AB17: 207.2522732 | AC17: 142.3740625
A18: Soil Density | B18: 1.75 | C18: t/cu.m | D18: 25 | E18: 5 | F18: 2 | G18: 3 | H18: 2 | I18: 1075 | J18: 475 | K18: 400 | L18: 475 | M18: 0.06135923152 | N18: 0.003926990817 | O18: 0.1247137777 | P18: 0.510625 | Q18: 20.8835 | R18: 3.579241 | S18: 34.82054 | T18: 35 | U18: 59.12638889 | V18: 19.63828125 | W18: 7.638718882 | X18: 180.68667 | Y18: 36.137334 | AB18: 268.319705 | AC18: 205.0559375
A19: Soil Tipping | B19: 35 | C19: $/t | D19: 26 | E19: 6 | F19: 2 | G19: 3 | H19: 2 | I19: 1075 | J19: 475 | K19: 400 | L19: 475 | M19: 0.07363107782 | N19: 0.003926990817 | O19: 0.1124419314 | P19: 0.510625 | Q19: 25.0602 | R19: 3.579241 | S19: 34.82054 | T19: 40 | U19: 70.95166667 | V19: 19.63828125 | W19: 6.887068296 | X19: 200.9369972 | Y19: 33.48949954 | Z19: 180 | AA19: =Z19/X19 -> 0.8958031746 | AB19: 298.3914409 | AC19: 212.8959375
A20: Bedding and compacting cost | G20: Direct | H20: Benchmark | J20: Contractor Rates Average using Sheet 4.4 - Schedules of Rates - Milestone 4 - 10/05/21
A21: Excavate rate | B21: 5 | C21: Cu.m/hr | G21: New Trench | H21: New Trench | J21: Austonne | K21: Diona | L21: Connect | M21: UEA | N21: Variance | O21: Average
A22: Bobcat | B22: 125.71 | C22: per hr | D22: Type | E22: at $23 and $7 | F22: at $19 and $6 | G22: Total Cost/m trench
A23: Labourers | B23: 180 | C23: (3lab.)per hr | D23: 01 | E23: 23 | F23: =19 -> 19 | G23: =X2 -> 41.20375094 | H23: =G23*1.528 -> 62.95933144
A24: Water Cart | B24: 120 | C24: per hr | D24: 02 | E24: =23*D24 -> 46 | F24: =19*D24 -> 38 | G24: =X3 -> 79.41415563 | H24: =G24*1.528 -> 121.3448298
A25: Total | B25: =SUM(B22:B24)/B21 -> 85.142 | C25: per Cu.m | D25: 03 | E25: =23*D25 -> 69 | F25: =19*D25 -> 57 | G25: 105.9747803 | H25: 161.9294643
D26: 04 | E26: =23*D26 -> 92 | F26: =19*D26 -> 76 | G26: 126.2251075 | H26: 192.8719643
A27: Bedding and compacting cost Per m | D27: 05 | E27: =23*D27 -> 115 | F27: =19*D27 -> 95 | G27: 167.3479572 | H27: 255.7076786
A28: Excavate rate | B28: 36 | C28: m/hr | D28: 06 | E28: =23*D28 -> 138 | F28: =19*D28 -> 114 | G28: 187.5982844 | H28: 286.6501786
A29: Bobcat | B29: 125.71 | C29: per hr | D29: 11 | E29: =7+E23 -> 30 | F29: =F23+6 -> 25 | G29: 47.87310735 | H29: 73.15010803
A30: Labourers | B30: =3*60 -> 180 | C30: (3lab.)per hr | D30: 12 | E30: 53 | F30: 44 | G30: 86.08351204 | H30: 131.5356064
A31: Water Cart | B31: 120 | C31: per hr | D31: 13 | E31: 76 | F31: 63 | G31: 112.6441367 | H31: 172.1202409
A32: Total | B32: =SUM(B29:B31)/B28 -> 11.82527778 | C32: per m | D32: 14 | E32: 99 | F32: 82 | G32: 132.8944639 | H32: 203.0627409
D33: 15 | E33: 122 | F33: 101 | G33: 174.0173136 | H33: 265.8984552
D34: 16 | E34: 145 | F34: 120 | G34: 194.2676408 | H34: 296.8409552
D35: 21 | E35: =14+E23 -> 37 | F35: =12+F23 -> 31 | G35: 54.54246375 | H35: 83.34088462
D36: 22 | E36: 60 | F36: 50 | G36: 92.75286845 | H36: 141.726383 | J36: 112.68 | K36: 370.18 | L36: 225.65 | M36: 176 | N36: =((M36-J36)/J36) -> 0.5619453319 | O36: 113
D37: 23 | E37: 83 | F37: 69 | G37: 119.3134931 | H37: 182.3110175
D38: 24 | E38: 106 | F38: 88 | G38: 139.5638203 | H38: 213.2535175 | J38: 154.99 | K38: 480.41 | L38: 332.2 | M38: 231 | N38: =((M38-J38)/J38) -> 0.4904187367 | O38: 155
D39: 25 | E39: 129 | F39: 107 | G39: 180.68667 | H39: 276.0892318
D40: 26 | E40: 152 | F40: 126 | G40: 200.9369972 | H40: 307.0317317 | J40: 215.86 | K40: 588.5 | L40: 482.55 | M40: 318 | N40: =((M40-J40)/J40) -> 0.4731770592 | O40: 216
A43: Duct reimbursement rates calculated using | J43: Above Column N37 to N40 average External Contractor reimbursed rates
A44: External Civil Rates Provided by Samantha Oliver - Procurement, Logistics & Fleet 16/03/21
B45: Incremental Cost
A46: Duct type | B46: 125mm2 | C46: 50mm2 | K46: Duct type | M46: 125mm2 | N46: 50mm2 | O46: Comments
A47: 22-24 | B47: =(G38-G36)/2 -> 23.40547594 | K47: 22-24 | M47: =(O38-O36)/2 -> 21
A48: 22-26 | B48: =(G40-G36)/4 -> 27.04603219 | K48: 22-26 | M48: =(O40-O36)/4 -> 25.75
A49: 24- 26 | B49: =(G40-G38)/2 -> 30.68658844 | K49: 24-26 | M49: =(O40-O38)/2 -> 30.5
A50: 02-22 | C50: =(G36-G24)/2 -> 6.669356406 | K50: Direct | N50: =17.98/2 -> 8.99 | O50: Unable to derive 50mm duct from external contractor rates.
A51: 04-24 | C51: =(G38-G26)/2 -> 6.669356406 | O51: $17.98/m for Type 20 CW14 ontractor cost provided by
A52: 06-26 | C52: =(G40-G28)/2 -> 6.669356406 | O52: Samantha on 12 May 2021 CW14 is $17.98
A53: Average refreshed rates | B53: =AVERAGE(B47:B49) -> 27.04603219 | C53: =AVERAGE(C50:C52) -> 6.669356406 | J53: Average refreshed rates | M53: =AVERAGE(M47:M49) -> 25.75 | N53: =N50 -> 8.99
A54: Recommended new rates | B54: 27 | C54: 8 | J54: Recommended new rates
A55: Current rate | B55: 23 | C55: 6 | D55: (This rate is for AVS15b)
K56: 2021-05-27 | M56: 125mm2 | N56: 50mm2 | O56: Comments
K57: Direct calculation | M57: 27.05 | N57: 6.67
A58: ENDEAVOUR ENERGY EXTRA OVER COST 125 PIPE TYPE A | K58: External Contractor | M58: 26 | N58: 8.99
A59: COST BREAKDOWN | K59: Average | M59: =AVERAGE(M57:M58) -> 26.525 | N59: =AVERAGE(N57:N58) -> 7.83
K60: Recommended unit rates | M60: 27 | N60: 8
A61: Item | B61: Quantity | C61: Unit | D61: quant/metre trench | E61: Crew Rate/hr | F61: Rate/m3 | G61: Rate/metre | H61: Comments
A62: Excavate | B62: 5 | C62: m3/hr | D62: 0.15 | E62: 229 | F62: =E62/B62 -> 45.8 | G62: =F62*D62 -> 6.87 | H62: Backhoe,2 labourers,Tipper
A63: Pipe Install | B63: 36 | C63: lm/hr | D63: 4 | E63: 84 | G63: =E63/(B63/D63) -> 9.333333333 | H63: 2 labourers
A64: Bedding and compact | B64: 18 | C64: lm/hr | D64: 0.1008m3 | E64: 231 | G64: =E64/B64 -> 12.83333333 | H64: Backhoe, 2 labourers,Water cart.
A65: Supply sand | B65: 0.1764 | C65: t/m | D65: 0.1008m3 | E65: 22.5 | G65: =B65*E65 -> 3.969 | H65: .1008 m3/m*1.75 t/m =0.1764t
A66: Disposal excavated materiual | B66: 0.262 | C66: t/m | D66: 0.150m3 | E66: 12 | G66: =B66*E66 -> 3.144 | H66: 0.15*1.75=.109 t/m
A67: Pipe Delivery | B67: 4 | C67: m/m | D67: 4m | E67: 0.4 | G67: =B67*E67 -> 1.6 | H67: 1200lm /truck at $480/load
A70: Direct Costs (based on industry pratice) | G70: =SUM(G62:G69) -> 37.74966667
A72: Design Min 8% of Direct | E72: 0.08 | G72: =0.08*G70 -> 3.019973333
A73: Verifier Min 1% of Direct | E73: 0.03 | G73: =0.01*G70 -> 0.3774966667
A74: Sub-total | G74: =SUM(G70:G73) -> 41.14713667
A75: Contingency | E75: 0.1 | G75: =0.1*G74 -> 4.114713667
A76: Sub Total | G76: =G74+G75 -> 45.26185033
A77: project mgt, site control, mobilisation costs 27.5% | E77: 0.275 | G77: =G76*E77 -> 12.44700884
A78: Total | G78: =G76+G77 -> 57.70885918 | H78: per metre of trench ie 4 metres pipe
G79: =G78/4 -> 14.42721479 | H79: PER METRE OF PIPE
A80: Rates assumed | E80: Assumptions
A82: Backhoe | B82: 72 | C82: hr | E82: Excavation crew | G82: 5m3/hr
A83: Tipper | B83: 73 | C83: hr | E83: Pipe Laying Crew | G83: 36m/hr
A84: Water Cart | B84: 42 | C84: hr | E84: Bedding and Compact crew | G84: 36m/hr
A85: Sand | B85: 22.5 | C85: tonne | E85: Sand and soil density | G85: 1.75t/m3
A86: Labourer | B86: 42 | C86: hr | E86: Delivery truck | G86: $120/hr
A87: Material Disposal | B87: 12 | C87: tonne | E87: Pipe /delivery

Sheet Service (hidden)
A1: String and Dress SWER | B1: 2 | C1: 3 | D1: 4 | E1: 5 | F1: 6 | G1: 7 | H1: 8 | I1: 9 | J1: 10 | K1: 11 | L1: 12
A2: Bays | B2: D2 | C2: Labour | D2: Plant and Vehicles | E2: Materials | F2: Direct | G2: Units | H2: Labour/Unit | I2: Plant & Vehicles / Unit | J2: Materials / Unit | K2: Direct / Unit | L2: Total / Unit
A3: Single Phase Service (excl conductor) | B3: n | C3: 196.19 | D3: 21.74 | E3: 63.68 | F3: 0 | G3: 1 | H3: =C3/$G3 -> 196.19 | I3: 21.74 | J3: 63.68 | K3: 0 | L3: =SUM(H3:K3) -> 281.61
A4: Two/Three Phase Service (excl conductor) | B4: n | C4: 196.19 | D4: 21.74 | E4: 63.68 | F4: 0 | G4: 1 | H4: 196.19 | I4: 21.74 | J4: 63.68 | K4: 0 | L4: =SUM(H4:K4) -> 281.61

Sheet RXarms (hidden)
A4: NC_AVS | D4: Labour | E4: Plant & Vehicles | F4: Materials | G4: Direct | H4: Total | I4: Number | J4: Price | K4: Column1
A5: Remove Xarm | B5: 0 | D5: 0 | E5: 0 | F5: 0 | G5: 0 | H5: 0 | I5: 0 | J5: 0
B6: 1 | D6: 160.54 | E6: 97.99 | F6: 0 | G6: 0 | H6: =SUM(D6:G6) -> 258.53 | I6: 1 | J6: =H6/I6 -> 258.53
B7: 12 | D7: 260.08 | E7: 158.74 | F7: 0 | G7: 0 | H7: =SUM(D7:G7) -> 418.82 | I7: 12 | J7: =H7/I7 -> 34.90166667
B8: 24 | D8: 635.65 | E8: 293.38 | F8: 85.15 | G8: 0 | H8: =SUM(D8:G8) -> 1014.18 | I8: 24 | J8: =H8/I8 -> 42.2575
A13: Remove Xarm | B13: 2 | C13: 3 | D13: 4 | E13: 5 | F13: 6 | G13: 7 | H13: 8 | I13: 9 | J13: 10 | K13: 11 | L13: 12
A14: Number Removed | B14: D2 | C14: Labour | D14: Plant and Vehicles | E14: Materials | F14: Direct | G14: Units | H14: Labour/Unit | I14: Plant & Vehicles / Unit | J14: Materials / Unit | K14: Direct / Unit | L14: Total / Unit
A15: 0 | C15: 0 | D15: 0 | E15: 0 | F15: 0 | G15: 1 | H15: =C15/$G15 -> 0 | I15: 0 | J15: 0 | K15: 0 | L15: =SUM(H15:K15) -> 0
A16: 1 | C16: 160.54 | D16: 97.99 | E16: 0 | F16: 0 | G16: 1 | H16: 160.54 | I16: 97.99 | J16: 0 | K16: 0 | L16: =SUM(H16:K16) -> 258.53
A17: 12 | C17: 260.08 | D17: 158.74 | E17: 0 | F17: 0 | G17: 2 | H17: 130.04 | I17: 79.37 | J17: 0 | K17: 0 | L17: =SUM(H17:K17) -> 209.41
A18: 24 | C18: 635.65 | D18: 293.38 | E18: 113.39 | F18: 0 | G18: 3 | H18: 211.8833333 | I18: 97.79333333 | J18: 37.79666667 | K18: 0 | L18: =SUM(H18:K18) -> 347.4733333
H19: =C19/$G19 ->  | I19: =D19/$G19 ->  | J19: =E19/$G19 ->  | K19: =F19/$G19 ->  | L19: =SUM(H19:K19) -> 

Sheet Remove OH (hidden)
A1: bays | B1: D2 | C1: Labour | D1: Plant and Vehicles | E1: Materials2 | F1: Direct | G1: Units | H1: Labour/Unit | I1: Plant & Vehicles / Unit | J1: Materials / Unit | K1: Direct / Unit | L1: Total / Unit
A2: 0 | C2: 0 | D2: 0 | E2: 0 | F2: 0 | G2: 1 | H2: =C2/$G2 -> 0 | I2: 0 | J2: 0 | K2: 0 | L2: =SUM(H2:K2) -> 0
A3: 1 | C3: 867.86 | D3: 274.8 | E3: 0 | F3: 0 | G3: 1 | H3: 867.86 | I3: 274.8 | J3: 0 | K3: 0 | L3: 1142.66
A4: 2 | C4: 867.86 | D4: 274.8 | E4: 0 | F4: 0 | G4: 2 | H4: 433.93 | I4: 137.4 | J4: 0 | K4: 0 | L4: 571.33
A5: 3 | C5: =((C$6-C$4)/($A$6-$A$4))*($A$5-$A$4)+C$4 -> 881.095 | D5: =((D$6-D$4)/($A$6-$A$4))*($A$5-$A$4)+D$4 -> 361.705 | E5: =((E$6-E$4)/($A$6-$A$4))*($A$5-$A$4)+E$4 -> 0 | F5: =((F$6-F$4)/($A$6-$A$4))*($A$5-$A$4)+F$4 -> 0 | G5: 3 | H5: 293.6983333 | I5: 120.5683333 | J5: 0 | K5: 0 | L5: 414.2666667
A6: 4 | C6: 894.33 | D6: 448.61 | E6: 0 | F6: 0 | G6: 4 | H6: 223.5825 | I6: 112.1525 | J6: 0 | K6: 0 | L6: 335.735
A7: 5 | C7: =((C$8-C$6)/($A$8-$A$6))*($A$7-$A$6)+C$6 -> 993.44 | D7: =((D$8-D$6)/($A$8-$A$6))*($A$7-$A$6)+D$6 -> 519.815 | E7: =((E$8-E$6)/($A$8-$A$6))*($A$7-$A$6)+E$6 -> 0 | F7: =((F$8-F$6)/($A$8-$A$6))*($A$7-$A$6)+F$6 -> 0 | G7: 5 | H7: 198.688 | I7: 103.963 | J7: 0 | K7: 0 | L7: 302.651
A8: 6 | C8: 1092.55 | D8: 591.02 | E8: 0 | F8: 0 | G8: 6 | H8: 182.0916667 | I8: 98.50333333 | J8: 0 | K8: 0 | L8: 280.595
A9: 7 | C9: =((C$14-C$8)/($A$14-$A$8))*($A9-$A$8)+C$8 -> 1190.976667 | D9: =((D$14-D$8)/($A$14-$A$8))*($A9-$A$8)+D$8 -> 661.7333333 | E9: =((E$14-E$8)/($A$14-$A$8))*($A9-$A$8)+E$8 -> 0 | F9: =((F$14-F$8)/($A$14-$A$8))*($A9-$A$8)+F$8 -> 0 | G9: 7 | H9: 170.1395238 | I9: 94.53333333 | J9: 0 | K9: 0 | L9: 264.6728571
A10: 8 | C10: =((C$14-C$8)/($A$14-$A$8))*($A10-$A$8)+C$8 -> 1289.403333 | D10: 732.4466667 | E10: 0 | F10: 0 | G10: 8 | H10: 161.1754167 | I10: 91.55583333 | J10: 0 | K10: 0 | L10: 252.73125
A11: 9 | C11: 1387.83 | D11: 803.16 | E11: 0 | F11: 0 | G11: 9 | H11: 154.2033333 | I11: 89.24 | J11: 0 | K11: 0 | L11: 243.4433333
A12: 10 | C12: 1486.256667 | D12: 873.8733333 | E12: 0 | F12: 0 | G12: 10 | H12: 148.6256667 | I12: 87.38733333 | J12: 0 | K12: 0 | L12: 236.013
A13: 11 | C13: 1584.683333 | D13: 944.5866667 | E13: 0 | F13: 0 | G13: 11 | H13: 144.0621212 | I13: 85.87151515 | J13: 0 | K13: 0 | L13: 229.9336364
A14: 12 | C14: 1683.11 | D14: 1015.3 | E14: 0 | F14: 0 | G14: 12 | H14: 140.2591667 | I14: 84.60833333 | J14: 0 | K14: 0 | L14: 224.8675

Sheet UG_Lay Cable (hidden)
A1: new | H1: remove
B2: m pulled | C2: Lab/unit | D2: P&V/unit | E2: M/unit | F2: D/unit | I2: m pulled | J2: Lab/unit | K2: P&V/unit | L2: M/unit | M2: D/unit
A3: pull through ducts | B3: =AVS!N43+AVS!P43+AVS!N50+AVS!P50+AVS!N59+AVS!P59+AVS!N508+AVS!P508+AVS!N67+AVS!P67 -> 0 | C3: =IF($B$3<=$A$10,C$7*$B$3+C$10,IF($B$3<$A$11,C$8*$B$3+C$11,IF($B$3<$A$12,C$9*$B$3+C$12,$C$13))) -> 8.0582 | D3: =IF($B$3<=$A$10,D$7*$B$3+D$10,IF($B$3<$A$11,D$8*$B$3+D$11,IF($B$3<$A$12,D$9*$B$3+D$12,$D$13))) -> 4.5014 | E3: =IF($B$3<=$A$10,E$7*$B$3+E$10,IF($B$3<$A$11,E$8*$B$3+E$11,IF($B$3<$A$12,E$9*$B$3+E$12,$E$13))) -> 0 | F3: =IF($B$3<=$A$10,F$7*$B$3+F$10,IF($B$3<$A$11,F$8*$B$3+F$11,IF($B$3<$A$12,F$9*$B$3+F$12,$F$13))) -> 0 | H3: pull through ducts | I3: 200 | J3: =IF($I$3<=$H$10,J$7*$I$3+J$10,IF($I$3<$H$11,J$8*$I$3+J$11,IF($I$3<$H$12,J$9*$I$3+J$12,$J$13))) -> 5.01251 | K3: =IF($I$3<=$H$10,K$7*$I$3+K$10,IF($I$3<$H$11,K$8*$I$3+K$11,IF($I$3<$H$12,K$9*$I$3+K$12,$K$13))) -> 2.72153 | L3: =IF($I$3<=$H$10,L$7*$I$3+L$10,IF($I$3<$H$11,L$8*$I$3+L$11,IF($I$3<$H$12,L$9*$I$3+L$12,$L$13))) -> 0 | M3: =IF($I$3<=$H$10,M$7*$I$3+M$10,IF($I$3<$H$11,M$8*$I$3+M$11,IF($I$3<$H$12,M$9*$I$3+M$12,$M$13))) -> 0
A4: lay in trench | B4: =AVS!N44+AVS!P44+AVS!N51+AVS!P51+AVS!N60+AVS!P60+AVS!N509+AVS!P509+AVS!N68+AVS!P68 -> 0 | C4: =IF($B$4<=$A$19,C$16*$B$4+C$19,IF($B$4<$A$20,C$17*$B$4+C$20,IF($B$4<$A$21,C$18*$B$4+C$21,$C$22))) -> 10.3688 | D4: =IF($B$4<=$A$19,D$16*$B$4+D$19,IF($B$4<$A$20,D$17*$B$4+D$20,IF($B$4<$A$21,D$18*$B$4+D$21,$D$22))) -> 5.2326 | E4: =IF($B$4<=$A$19,E$16*$B$4+E$19,IF($B$4<$A$20,E$17*$B$4+E$20,IF($B$4<$A$21,E$18*$B$4+E$21,$E$22))) -> 4.2366 | F4: =IF($B$3<=$A$19,F$16*$B$3+F$19,IF($B$3<$A$20,F$17*$B$3+F$20,IF($B$3<$A$21,F$18*$B$3+F$21,$F$22))) -> 0 | H4: lay in trench | I4: 200 | J4: =IF($I$4<=$H$19,J$16*$I$4+J$19,IF($I$4<$H$20,J$17*$I$4+J$20,IF($I$4<$H$21,J$18*$I$4+J$21,$J$22))) -> 8.93468 | K4: =IF($I$4<=$H$19,K$16*$I$4+K$19,IF($I$4<$H$20,K$17*$I$4+K$20,IF($I$4<$H$21,K$18*$I$4+K$21,$K$22))) -> 3.03756 | L4: =IF($I$4<=$H$19,L$16*$I$4+L$19,IF($I$4<$H$20,L$17*$I$4+L$20,IF($I$4<$H$21,L$18*$I$4+L$21,$L$22))) -> 3.60111 | M4: =IF($I$4<=$H$19,M$16*$I$4+M$19,IF($I$4<$H$20,M$17*$I$4+M$20,IF($I$4<$H$21,M$18*$I$4+M$21,$M$22))) -> 0
A6: Pull Through Ducts | C6: Lab/unit | D6: P&V/unit | E6: M/unit | F6: D/unit | H6: Pull Through Ducts | J6: Lab/unit | K6: P&V/unit | L6: M/unit | M6: D/unit
A7: =G26 -> 50 | B7: m50 | C7: =0 -> 0 | D7: =0 -> 0 | E7: =J26 -> 0 | F7: =K26 -> 0 | H7: =A7 -> 50 | I7: m50 | J7: =C7 -> 0 | K7: =D7 -> 0 | L7: =E7 -> 0 | M7: =F7 -> 0
A8: =G27 -> 250 | B8: m250 | C8: =($H26-$H27)/($G$26-$G$27) -> -0.0203046 | D8: =($I26-$I27)/($G$26-$G$27) -> -0.0118658 | E8: =($J26-$J27)/($G$26-$G$27) -> 0 | F8: =($K26-$K27)/($G$26-$G$27) -> 0 | H8: =A8 -> 250 | I8: m250 | J8: =C8 -> -0.0203046 | K8: -0.0118658 | L8: 0 | M8: 0
A9: =G28 -> 1000 | B9: m1000 | C9: =($H27-$H28)/($G$27-$G$28) -> -0.00107748 | D9: =($I27-$I28)/($G$27-$G$28) -> -0.0005224 | E9: =($J27-$J28)/($G$27-$G$28) -> 0 | F9: =($K27-$K28)/($G$27-$G$28) -> 0 | H9: 1000 | I9: m1000 | J9: -0.00107748 | K9: -0.0005224 | L9: 0 | M9: 0
A10: =G26 -> 50 | B10: b50 | C10: =H26 -> 8.0582 | D10: =I26 -> 4.5014 | E10: =J26 -> 0 | F10: =K26 -> 0 | H10: 50 | I10: b50 | J10: 8.0582 | K10: 4.5014 | L10: 0 | M10: 0
A11: =G27 -> 250 | B11: b250 | C11: =H26-(G26*C8) -> 9.07343 | D11: =I26-(G26*D8) -> 5.09469 | E11: =J26-(G26*E8) -> 0 | F11: =K26-(H26*F8) -> 0 | H11: 250 | I11: b250 | J11: 9.07343 | K11: 5.09469 | L11: 0 | M11: 0
A12: =G28 -> 1000 | B12: b1000 | C12: =H27-(G27*C9) -> 4.26665 | D12: =I27-(G27*D9) -> 2.25884 | E12: =J27-(G27*E9) -> 0 | F12: =K27-(H27*F9) -> 0 | H12: 1000 | I12: b1000 | J12: 4.26665 | K12: 2.25884 | L12: 0 | M12: 0
A13: =">"&A12 -> >1000 | B13: b>1000 | C13: =H28 -> 3.18917 | D13: =I28 -> 1.73644 | E13: =J28 -> 0 | F13: =K28 -> 0 | H13: >1000 | I13: b>1000 | J13: 3.18917 | K13: 1.73644 | L13: 0 | M13: 0
A15: Lay in Trench | C15: Lab/unit | D15: P&V/unit | E15: M/unit | F15: D/unit | H15: Lay in Trench | J15: Lab/unit | K15: P&V/unit | L15: M/unit | M15: D/unit
A16: =G32 -> 50 | B16: m50 | C16: =0 -> 0 | D16: =0 -> 0 | E16: =0 -> 0 | F16: =0 -> 0 | H16: 50 | I16: m50 | J16: 0 | K16: 0 | L16: 0 | M16: 0
A17: =G33 -> 250 | B17: m250 | C17: =($H32-$H33)/($G$32-$G$33) -> -0.0095608 | D17: =($I32-$I33)/($G$32-$G$33) -> -0.0146336 | E17: =($J32-$J33)/($G$32-$G$33) -> -0.0042366 | F17: =($K32-$K33)/($G$32-$G$33) -> 0 | H17: 250 | I17: m250 | J17: -0.0095608 | K17: -0.0146336 | L17: -0.0042366 | M17: 0
A18: =G34 -> 1000 | B18: m1000 | C18: =($H33-$H34)/($G$33-$G$34) -> -0.00845664 | D18: =($I33-$I34)/($G$33-$G$34) -> -0.00230588 | E18: =($J33-$J34)/($G$33-$G$34) -> -0.00338928 | F18: =($K33-$K34)/($G$33-$G$34) -> 0 | H18: 1000 | I18: m1000 | J18: -0.00845664 | K18: -0.00230588 | L18: -0.00338928 | M18: 0
A19: =G32 -> 50 | B19: b50 | C19: =H32 -> 10.3688 | D19: =I32 -> 5.2326 | E19: =J32 -> 4.2366 | F19: =K32 -> 0 | H19: 50 | I19: b50 | J19: 10.3688 | K19: 5.2326 | L19: 4.2366 | M19: 0
A20: =G33 -> 250 | B20: b250 | C20: =H32-(G32*C17) -> 10.84684 | D20: =I32-(G32*D17) -> 5.96428 | E20: =J32-(G32*E17) -> 4.44843 | F20: =K32-(G32*F17) -> 0 | H20: 250 | I20: b250 | J20: 10.84684 | K20: 5.96428 | L20: 4.44843 | M20: 0
A21: =G34 -> 1000 | B21: b1000 | C21: =H33-(G33*C18) -> 10.5708 | D21: =I33-(G33*D18) -> 2.88235 | E21: =J33-(G33*E18) -> 4.2366 | F21: =K33-(G33*F18) -> 0 | H21: 1000 | I21: b1000 | J21: 10.5708 | K21: 2.88235 | L21: 4.2366 | M21: 0
A22: =">"&A21 -> >1000 | B22: b>1000 | C22: =H34 -> 2.11416 | D22: =I34 -> 0.57647 | E22: =J34 -> 0.84732 | F22: =K34 -> 0 | H22: >1000 | I22: b>1000 | J22: 2.11416 | K22: 0.57647 | L22: 0.84732 | M22: 0
A25: Pull Through Ducts | B25: Column1 | C25: Labour | D25: Plant and Vehicles | E25: Materials | F25: Direct | G25: Units | H25: Labour/Unit | I25: Plant & Vehicles / Unit | J25: Materials / Unit | K25: Direct / Unit | L25: Total / Unit
A26: 50 | C26: ='Dataload WMS'!D115 -> 402.91 | D26: ='Dataload WMS'!E115 -> 225.07 | E26: 0 | F26: 0 | G26: 50 | H26: =C26/$G26 -> 8.0582 | I26: =D26/$G26 -> 4.5014 | J26: =E26/$G26 -> 0 | K26: =F26/$G26 -> 0 | L26: =SUM(H26:K26) -> 12.5596
A27: 250 | C27: ='Dataload WMS'!D116 -> 999.32 | D27: ='Dataload WMS'!E116 -> 532.06 | E27: 0 | F27: 0 | G27: 250 | H27: =C27/$G27 -> 3.99728 | I27: =D27/$G27 -> 2.12824 | J27: 0 | K27: 0 | L27: =SUM(H27:K27) -> 6.12552
A28: 1000 | C28: ='Dataload WMS'!D117 -> 3189.17 | D28: ='Dataload WMS'!E117 -> 1736.44 | E28: 0 | F28: 0 | G28: 1000 | H28: =C28/$G28 -> 3.18917 | I28: 1.73644 | J28: 0 | K28: 0 | L28: =SUM(H28:K28) -> 4.92561
A31: Lay in Trench | B31: Column1 | C31: Labour | D31: Plant and Vehicles | E31: Materials | F31: Direct | G31: Units | H31: Labour/Unit | I31: Plant & Vehicles / Unit | J31: Materials / Unit | K31: Direct / Unit | L31: Total / Unit
A32: 50 | C32: ='Dataload WMS'!D119 -> 518.44 | D32: ='Dataload WMS'!E119 -> 261.63 | E32: ='Dataload WMS'!F119 -> 211.83 | F32: 0 | G32: 50 | H32: =C32/$G32 -> 10.3688 | I32: 5.2326 | J32: 4.2366 | K32: 0 | L32: =SUM(H32:K32) -> 19.838
A33: 250 | C33: ='Dataload WMS'!D120 -> 2114.16 | D33: ='Dataload WMS'!E120 -> 576.47 | E33: ='Dataload WMS'!F120 -> 847.32 | F33: 0 | G33: 250 | H33: 8.45664 | I33: 2.30588 | J33: 3.38928 | K33: 0 | L33: =SUM(H33:K33) -> 14.1518
A34: 1000 | C34: ='Dataload WMS'!D121 -> 2114.16 | D34: ='Dataload WMS'!E121 -> 576.47 | E34: ='Dataload WMS'!F121 -> 847.32 | F34: 0 | G34: 1000 | H34: 2.11416 | I34: 0.57647 | J34: 0.84732 | K34: 0 | L34: =SUM(H34:K34) -> 3.53795
A36: Conductor | B36: Column1 | C36: Labour | D36: Plant and Vehicles | E36: Materials | F36: Direct | G36: Units | H36: Labour/Unit | I36: Plant & Vehicles / Unit | J36: Materials / Unit | K36: Direct / Unit | L36: Total / Unit
A37: 11kV 240mm2 CU 3C XLPE | B37: SZ15391 | E37: ='Dataload Ellipse'!G93 -> 4780.98445 | G37: 50 | H37: =C37/$G37 -> 0 | I37: =D37/$G37 -> 0 | J37: =E37/$G37 -> 95.619689 | K37: =F37/$G37 -> 0 | L37: =SUM(H37:K37) -> 95.619689
A38: 11kV 240mm2 AL 3C XLPE | B38: SZ15294 | E38: ='Dataload Ellipse'!G94 -> 1479.9114 | G38: 50 | H38: 0 | I38: 0 | J38: =E38/$G38 -> 29.598228 | K38: 0 | L38: 29.598228
A39: 11kV 185mm2 AL 3C XLPE | B39: SZ15286 | E39: ='Dataload Ellipse'!G95 -> 1708 | G39: 50 | H39: 0 | I39: 0 | J39: 34.16 | K39: 0 | L39: 34.16
A40: 11kV 300mm2 CU 3C XLPE | B40: SZ12791 | E40: ='Dataload Ellipse'!G96 -> 6389.0715 | G40: 50 | H40: 0 | I40: 0 | J40: 127.78143 | K40: 0 | L40: 127.78143
A41: 22kV 240mm2 CU 3C XLPE | B41: SZ10136 | E41: ='Dataload Ellipse'!G97 -> 5123.8778 | G41: 50 | H41: 0 | I41: 0 | J41: 102.477556 | K41: 0 | L41: 102.477556
A42: 22kV 240mm2 AL 3C XLPE | B42: SZ15324 | E42: ='Dataload Ellipse'!G98 -> 1735.30875 | G42: 50 | H42: 0 | I42: 0 | J42: 34.706175 | K42: 0 | L42: 34.706175
A43: 33kV 300mm2 CU 1C PLYPV | B43: SZ12872 | E43: ='Dataload Ellipse'!G99 -> 1718.5 | G43: 50 | H43: 0 | I43: 0 | J43: 34.37 | K43: 0 | L43: 34.37
A44: 33kV 630mm2 CU 1C XLPE | B44: SZ13577 | E44: ='Dataload Ellipse'!G100 -> 1768.65 | G44: 50 | H44: 0 | I44: 0 | J44: 35.373 | K44: 0 | L44: 35.373
A45: LV 240mm2 AL 4C XLPE | B45: SZ15308 | E45: ='Dataload Ellipse'!G101 -> 773.6536 | G45: 50 | H45: 0 | I45: 0 | J45: 15.473072 | K45: 0 | L45: 15.473072
A46: LV 50mm2 CU 4C XLPE/PVC | B46: SZ14611 | E46: ='Dataload Ellipse'!G102 -> 1269.6817 | G46: 50 | H46: 0 | I46: 0 | J46: 25.393634 | K46: 0 | L46: 25.393634
A47: LV 25mm2 CU 4C XLPE/PVC | B47: SZ10012 | E47: ='Dataload Ellipse'!G103 -> 729.4172 | G47: 50 | H47: 0 | I47: 0 | J47: 14.588344 | K47: 0 | L47: 14.588344
A48: LV BARE CU Anealed 19/2.14 | B48: SZ13771 | E48: ='Dataload Ellipse'!G104 -> 400.8555 | G48: 50 | H48: 0 | I48: 0 | J48: 8.01711 | K48: 0 | L48: 8.01711
A49: 16MM2 0.6/1KV DOUBLE INSULATED | B49: 1007403 | E49: ='Dataload Ellipse'!G105 -> 2.385186 | G49: 1 | H49: 0 | I49: 0 | J49: 2.385186 | K49: 0 | L49: 2.385186
A50: LV 4mm2 CU 2C 7/0.85 DI | B50: SZ15332 | E50: ='Dataload Ellipse'!G106 -> 64.0818 | G50: 50 | H50: 0 | I50: 0 | J50: 1.281636 | K50: 0 | L50: 1.281636

Sheet OH_PoleSub (hidden)
A1: Pole Sub | B1: 2008-11-06 | C1: 3 | D1: 4 | E1: 5 | F1: 6 | G1: 7 | H1: 8 | I1: 9 | J1: 10 | K1: 11 | L1: 12
A2: Install Pole Sub | B2: D2 | C2: Labour | D2: Plant and Vehicles | E2: Materials | F2: Direct | G2: Units | H2: Labour/Unit | I2: Plant & Vehicles / Unit | J2: Materials / Unit | K2: Direct / Unit | L2: Total / Unit
A3: 1 to 3 Phase Uprate | B3: n | C3: ='Dataload WMS'!D69 -> 4450.09 | D3: ='Dataload WMS'!E69 -> 891.47 | E3: ='Dataload WMS'!F69 -> 181.7 | F3: ='Dataload WMS'!G69 -> 0 | G3: ='Dataload WMS'!H69 -> 1 | H3: =C3/$G3 -> 4450.09 | I3: 891.47 | J3: 181.7 | K3: 0 | L3: =SUM(H3:K3) -> 5523.26
A4: 3 to 3 Phase Sub Uprate | B4: n | C4: ='Dataload WMS'!D74 -> 5307.33 | D4: ='Dataload WMS'!E74 -> 1304.53 | E4: ='Dataload WMS'!F74 -> 84.53 | F4: ='Dataload WMS'!G74 -> 0 | G4: ='Dataload WMS'!H74 -> 1 | H4: 5307.33 | I4: 1304.53 | J4: 84.53 | K4: 0 | L4: 6696.39
A5: New Single Phase | B5: n | C5: ='Dataload WMS'!D72 -> 3079.57 | D5: ='Dataload WMS'!E72 -> 648.73 | E5: ='Dataload WMS'!F72 -> 2808 | F5: ='Dataload WMS'!G72 -> 0 | G5: ='Dataload WMS'!H72 -> 1 | H5: 3079.57 | I5: 648.73 | J5: 2808 | K5: 0 | L5: 6536.3
A6: New 3 Phase < 300kVA | B6: n | C6: ='Dataload WMS'!D70 -> 2185.09 | D6: ='Dataload WMS'!E70 -> 444.81 | E6: ='Dataload WMS'!F70 -> 3167.3 | F6: ='Dataload WMS'!G70 -> 0 | G6: ='Dataload WMS'!H70 -> 1 | H6: 2185.09 | I6: 444.81 | J6: 3167.3 | K6: 0 | L6: 5797.2
A7: New 3 Phase >= 300kVA | B7: n | C7: ='Dataload WMS'!D71 -> 2433.41 | D7: ='Dataload WMS'!E71 -> 496.53 | E7: ='Dataload WMS'!F71 -> 3186.87 | F7: ='Dataload WMS'!G71 -> 0 | G7: ='Dataload WMS'!H71 -> 1 | H7: 2433.41 | I7: 496.53 | J7: 3186.87 | K7: 0 | L7: 6116.81
A8: Remove Pole Substation | B8: n | C8: ='Dataload WMS'!D73 -> 1185.43 | D8: ='Dataload WMS'!E73 -> 212.36 | E8: ='Dataload WMS'!F73 -> 0 | F8: ='Dataload WMS'!G73 -> 0 | G8: ='Dataload WMS'!H73 -> 1 | H8: 1185.43 | I8: 212.36 | J8: 0 | K8: 0 | L8: 1397.79
A10: Pole Sub | B10: Fittings | C10: Labour | D10: Plant and Vehicles | E10: Materials | F10: Direct | G10: Units | H10: Labour/Unit | I10: Plant & Vehicles / Unit | J10: Materials / Unit | K10: Direct / Unit | L10: Total / Unit
A11: 400 KVA 11KV 3PH | B11: 1216.409929 | E11: ='Dataload TXWS'!C43 -> 8672.252 | G11: 1 | H11: =C11/$G11 -> 0 | I11: =D11/$G11 -> 0 | J11: =E11/$G11 -> 8672.252 | K11: =F11/$G11 -> 0 | L11: =SUM(H11:K11) -> 8672.252
A12: 300 KVA 11KV 3PH | B12: 1216.409929 | E12: ='Dataload TXWS'!C44 -> 7392.846667 | G12: 1 | H12: 0 | I12: 0 | J12: =E12/$G12 -> 7392.846667 | K12: 0 | L12: 7392.846667
A13: 200 KVA 11 KV 3PH | B13: 1216.409929 | E13: ='Dataload TXWS'!C45 -> 5674.561304 | G13: 1 | H13: 0 | I13: 0 | J13: 5674.561304 | K13: 0 | L13: 5674.561304
A14: 100 KVA 11 KV 3PH | B14: 1216.409929 | E14: ='Dataload TXWS'!C46 -> 3910.256765 | G14: 1 | H14: 0 | I14: 0 | J14: 3910.256765 | K14: 0 | L14: 3910.256765
A15: 63 KVA 11 KV 3PH | B15: 1216.409929 | E15: ='Dataload TXWS'!C47 -> 2997.995385 | G15: 1 | H15: 0 | I15: 0 | J15: 2997.995385 | K15: 0 | L15: 2997.995385
A16: 25 KVA 11 KV 3PH | B16: 1216.409929 | E16: ='Dataload TXWS'!C48 -> 2056.542069 | G16: 1 | H16: 0 | I16: 0 | J16: 2056.542069 | K16: 0 | L16: 2056.542069
A17: 400 KVA 22 KV 3PH | B17: 1553.830772 | E17: ='Dataload TXWS'!C49 -> 16146.08667 | G17: 1 | H17: 0 | I17: 0 | J17: 16146.08667 | K17: 0 | L17: 16146.08667
A18: 300 KVA 22 KV 3PH | B18: 1553.830772 | E18: ='Dataload TXWS'!C50 -> 9936.43 | G18: 1 | H18: 0 | I18: 0 | J18: 9936.43 | K18: 0 | L18: 9936.43
A19: 200 KVA 22 KV 3PH | B19: 1553.830772 | E19: 11185 | G19: 1 | H19: =C19/$G19 -> 0 | I19: =D19/$G19 -> 0 | J19: =E19/$G19 -> 11185 | K19: =F19/$G19 -> 0 | L19: =SUM(H19:K19) -> 11185
A20: 100 KVA 22 KV 3PH | B20: 1553.830772 | E20: ='Dataload TXWS'!C51 -> 6654.639091 | G20: 1 | H20: 0 | I20: 0 | J20: 6654.639091 | K20: 0 | L20: 6654.639091
A21: 50 KVA 11 KV 1 PH | B21: 845.8470365 | E21: ='Dataload TXWS'!C52 -> 2404.155185 | G21: 1 | H21: 0 | I21: 0 | J21: 2404.155185 | K21: 0 | L21: 2404.155185
A22: 25 KVA 11 KV 1 PH | B22: 845.8470365 | E22: ='Dataload TXWS'!C53 -> 1458.854808 | G22: 1 | H22: 0 | I22: 0 | J22: 1458.854808 | K22: 0 | L22: 1458.854808
A23: 25 KVA 22 KV 1 PH | B23: 914.1656536 | E23: ='Dataload TXWS'!C54 -> 2367.73375 | G23: 1 | H23: 0 | I23: 0 | J23: 2367.73375 | K23: 0 | L23: 2367.73375
A24: 25 KVA 11 KV (SWER) | B24: 638.0458046 | E24: ='Dataload TXWS'!C55 -> 1716.743636 | G24: 1 | H24: 0 | I24: 0 | J24: 1716.743636 | K24: 0 | L24: 1716.743636
A25: 63 KVA 22 KV 3PH | B25: 1216 | E25: ='Dataload TXWS'!C58 -> 6450 | G25: 1 | H25: =C25/$G25 -> 0 | I25: =D25/$G25 -> 0 | J25: =E25/$G25 -> 6450 | K25: =F25/$G25 -> 0 | L25: =SUM(H25:K25) -> 6450

Sheet UG_PMSub (hidden)
A2: PM Sub | B2: Column1 | C2: Labour | D2: Plant and Vehicles | E2: Materials | F2: Direct | G2: Units | H2: Labour/Unit | I2: Plant & Vehicles / Unit | J2: Materials / Unit | K2: Direct / Unit | L2: Total / Unit
A3: New PM Substation | C3: ='Dataload WMS'!D106 -> 1884.75 | D3: ='Dataload WMS'!E106 -> 377.52 | E3: ='Dataload WMS'!F106 -> 698.04 | F3: ='Dataload WMS'!G106 -> 0 | G3: ='Dataload WMS'!H106 -> 1 | H3: =C3/$G3 -> 1884.75 | I3: =D3/$G3 -> 377.52 | J3: 698.04 | K3: 0 | L3: =SUM(H3:K3) -> 2960.31
A4: Modify/Uprate TX Only | C4: ='Dataload WMS'!D108 -> 2064.72 | D4: ='Dataload WMS'!E108 -> 209.52 | E4: ='Dataload WMS'!F108 -> 0 | F4: ='Dataload WMS'!G108 -> 0 | G4: ='Dataload WMS'!H108 -> 1 | H4: 2064.72 | I4: 209.52 | J4: 0 | K4: 0 | L4: 2274.24
A5: Remove PM Substation | C5: ='Dataload WMS'!D107 -> 715.42 | D5: ='Dataload WMS'!E107 -> 149.46 | E5: ='Dataload WMS'!F107 -> 0 | F5: ='Dataload WMS'!G107 -> 0 | G5: ='Dataload WMS'!H107 -> 1 | H5: 715.42 | I5: 149.46 | J5: 0 | K5: 0 | L5: 864.88
A6: Install Sub Culvert | C6: ='Dataload WMS'!D102 -> 921.92 | D6: ='Dataload WMS'!E102 -> 195.48 | E6: ='Dataload WMS'!F102 -> 1480.18 | F6: ='Dataload WMS'!G102 -> 0 | G6: ='Dataload WMS'!H102 -> 1 | H6: 921.92 | I6: 195.48 | J6: 1480.18 | K6: 0 | L6: 2597.58
A7: Modify/Uprate HV | C7: ='Dataload WMS'!D103 -> 3267.92 | D7: ='Dataload WMS'!E103 -> 405 | E7: ='Dataload WMS'!F103 -> 0 | F7: ='Dataload WMS'!G103 -> 0 | G7: ='Dataload WMS'!H103 -> 2 | H7: 1633.96 | I7: 202.5 | J7: 0 | K7: 0 | L7: 1836.46
A8: Modify/Uprate LV | C8: ='Dataload WMS'!D104 -> 3267.92 | D8: ='Dataload WMS'!E104 -> 405 | E8: ='Dataload WMS'!F104 -> 0 | F8: ='Dataload WMS'!G104 -> 0 | G8: ='Dataload WMS'!H104 -> 2 | H8: 1633.96 | I8: 202.5 | J8: 0 | K8: 0 | L8: 1836.46
A9: Modify/Uprate/Install CB | C9: ='Dataload WMS'!D105 -> 1032.36 | D9: ='Dataload WMS'!E105 -> 104.76 | E9: ='Dataload WMS'!F105 -> 0 | F9: ='Dataload WMS'!G105 -> 0 | G9: ='Dataload WMS'!H105 -> 1 | H9: 1032.36 | I9: 104.76 | J9: 0 | K9: 0 | L9: 1137.12
A12: PM Package | B12: Transformer Only | C12: Labour | D12: Plant and Vehicles | E12: SG | F12: Direct | G12: Units | H12: Labour/Unit | I12: Plant & Vehicles / Unit | J12: Materials / Unit | K12: Direct / Unit | L12: Total / Unit | M12: Total all
A13: 11kV 315kVA CFCC CB 1250 + F | B13: ='Dataload TXWS'!$B$4 -> 9884.344865 | C13: 0 | D13: 0 | E13: =CFCC+_sw1250+fuse+ffmeter -> 18069.06897 | F13: 0 | G13: 1 | H13: =C13/$G13 -> 0 | I13: =D13/$G13 -> 0 | J13: =E13/$G13 -> 18069.06897 | K13: =F13/$G13 -> 0 | L13: =SUM(H13:K13) -> 18069.06897 | M13: =B13+E13 -> 27953.41384
A14: 11kV 315kVA CFCC CB 1250 + FF | B14: ='Dataload TXWS'!$B$4 -> 9884.344865 | C14: 0 | D14: 0 | E14: =CFCC+_sw1250+fuse+fuse+ffmeter -> 18478.0394 | F14: 0 | G14: 1 | H14: =C14/$G14 -> 0 | I14: 0 | J14: =E14/$G14 -> 18478.0394 | K14: 0 | L14: =SUM(H14:K14) -> 18478.0394 | M14: =B14+E14 -> 28362.38427
A15: 11kV 315kVA CFCC CB 1250 | B15: ='Dataload TXWS'!$B$4 -> 9884.344865 | C15: 0 | D15: 0 | E15: =CFCC+_sw1250 -> 16883.93104 | F15: 0 | G15: 1 | H15: =C15/$G15 -> 0 | I15: 0 | J15: 16883.93104 | K15: 0 | L15: =SUM(H15:K15) -> 16883.93104 | M15: 26768.27591
A16: 11kV 315kVA CFCC FFIFF CAT 1 | B16: ='Dataload TXWS'!$B$4 -> 9884.344865 | C16: 0 | D16: 0 | E16: =CFCC+cat1ffiff -> 12209.1407 | F16: 0 | G16: 1 | H16: 0 | I16: 0 | J16: 12209.1407 | K16: 0 | L16: 12209.1407 | M16: 22093.48557
A17: 11kV 315kVA CFCC FFIFF CAT 2 | B17: ='Dataload TXWS'!$B$4 -> 9884.344865 | C17: 0 | D17: 0 | E17: =CFCC+cat2ffiff -> 13704.22854 | F17: 0 | G17: 1 | H17: 0 | I17: 0 | J17: 13704.22854 | K17: 0 | L17: 13704.22854 | M17: 23588.57341
A18: 11kV 315kVA CFCC FIF CAT 2 | B18: ='Dataload TXWS'!$B$4 -> 9884.344865 | C18: 0 | D18: 0 | E18: =CFCC+cat2fif -> 12148.08973 | F18: 0 | G18: 1 | H18: 0 | I18: 0 | J18: 12148.08973 | K18: 0 | L18: 12148.08973 | M18: 22032.4346
A19: 11kV 315kVA RTRR CB 1250 + F | B19: ='Dataload TXWS'!$B$4 -> 9884.344865 | C19: 0 | D19: 0 | E19: =RTRR+_sw1250+fuse+ffmeter -> 27283.70914 | F19: 0 | G19: 1 | H19: 0 | I19: 0 | J19: 27283.70914 | K19: 0 | L19: 27283.70914 | M19: 37168.054
A20: 11kV 315kVA RTRR CB 1250 + FF | B20: ='Dataload TXWS'!$B$4 -> 9884.344865 | C20: 0 | D20: 0 | E20: =RTRR+_sw1250+fuse+fuse+ffmeter -> 27692.67957 | F20: 0 | G20: 1 | H20: 0 | I20: 0 | J20: 27692.67957 | K20: 0 | L20: 27692.67957 | M20: 37577.02443
A21: 11kV 315kVA RTRR CB 1250 | B21: ='Dataload TXWS'!$B$4 -> 9884.344865 | C21: 0 | D21: 0 | E21: =RTRR+_sw1250 -> 26098.57121 | F21: 0 | G21: 1 | H21: 0 | I21: 0 | J21: 26098.57121 | K21: 0 | L21: 26098.57121 | M21: 35982.91607
A22: 11kV 315kVA RTRR FFIFF CAT 1 | B22: ='Dataload TXWS'!$B$4 -> 9884.344865 | C22: 0 | D22: 0 | E22: =RTRR+cat1ffiff -> 21423.78087 | F22: 0 | G22: 1 | H22: 0 | I22: 0 | J22: =E22/$G22 -> 21423.78087 | K22: 0 | L22: =SUM(H22:K22) -> 21423.78087 | M22: 31308.12574
A23: 11kV 315kVA RTRR FFIFF CAT 2 | B23: ='Dataload TXWS'!$B$4 -> 9884.344865 | C23: 0 | D23: 0 | E23: =RTRR+cat2ffiff -> 22918.86871 | F23: 0 | G23: 1 | H23: 0 | I23: 0 | J23: 22918.86871 | K23: 0 | L23: 22918.86871 | M23: 32803.21357
A24: 11kV 315kVA RTRR FIF CAT 2 | B24: ='Dataload TXWS'!$B$4 -> 9884.344865 | C24: 0 | D24: 0 | E24: =RTRR+cat2fif -> 21362.7299 | F24: 0 | G24: 1 | H24: 0 | I24: 0 | J24: 21362.7299 | K24: 0 | L24: 21362.7299 | M24: 31247.07476
A25: 11kV 315kVA RTR CB 1250 + F | B25: ='Dataload TXWS'!$B$4 -> 9884.344865 | C25: 0 | D25: 0 | E25: =RTR+_sw1250+fuse+ffmeter -> 16696.49781 | F25: 0 | G25: 1 | H25: 0 | I25: 0 | J25: 16696.49781 | K25: 0 | L25: 16696.49781 | M25: 26580.84268
A26: 11kV 315kVA RTR CB 1250 + FF | B26: ='Dataload TXWS'!$B$4 -> 9884.344865 | C26: 0 | D26: 0 | E26: =RTR+_sw1250+fuse+fuse+ffmeter -> 17105.46824 | F26: 0 | G26: 1 | H26: 0 | I26: 0 | J26: 17105.46824 | K26: 0 | L26: 17105.46824 | M26: 26989.81311
A27: 11kV 315kVA RTR CB 1250 | B27: ='Dataload TXWS'!$B$4 -> 9884.344865 | C27: 0 | D27: 0 | E27: =RTR+_sw1250 -> 15511.35988 | F27: 0 | G27: 1 | H27: 0 | I27: 0 | J27: 15511.35988 | K27: 0 | L27: 15511.35988 | M27: 25395.70475
A28: 11kV 315kVA RTR FFIFF CAT 1 | B28: ='Dataload TXWS'!$B$4 -> 9884.344865 | C28: 0 | D28: 0 | E28: =RTR+cat1ffiff -> 10836.56954 | F28: 0 | G28: 1 | H28: 0 | I28: 0 | J28: 10836.56954 | K28: 0 | L28: 10836.56954 | M28: 20720.91441
A29: 11kV 315kVA RTR FFIFF CAT 2 | B29: ='Dataload TXWS'!$B$4 -> 9884.344865 | C29: 0 | D29: 0 | E29: =RTR+cat2ffiff -> 12331.65738 | F29: 0 | G29: 1 | H29: 0 | I29: 0 | J29: 12331.65738 | K29: 0 | L29: 12331.65738 | M29: 22216.00225
A30: 11kV 315kVA RTR FIF CAT 2 | B30: ='Dataload TXWS'!$B$4 -> 9884.344865 | C30: 0 | D30: 0 | E30: =RTR+cat2fif -> 10775.51857 | F30: 0 | G30: 1 | H30: 0 | I30: 0 | J30: 10775.51857 | K30: 0 | L30: 10775.51857 | M30: 20659.86344
A31: 11kV 315kVA RT CB 1250 + F | B31: ='Dataload TXWS'!$B$4 -> 9884.344865 | C31: 0 | D31: 0 | E31: =RT+_sw1250+fuse+ffmeter -> 15489.11563 | F31: 0 | G31: 1 | H31: 0 | I31: 0 | J31: 15489.11563 | K31: 0 | L31: 15489.11563 | M31: 25373.46049
A32: 11kV 315kVA RT CB 1250 + FF | B32: ='Dataload TXWS'!$B$4 -> 9884.344865 | C32: 0 | D32: 0 | E32: =RT+_sw1250+fuse+fuse+ffmeter -> 15898.08606 | F32: 0 | G32: 1 | H32: 0 | I32: 0 | J32: 15898.08606 | K32: 0 | L32: 15898.08606 | M32: 25782.43092
A33: 11kV 315kVA RT CB 1250 | B33: ='Dataload TXWS'!$B$4 -> 9884.344865 | C33: 0 | D33: 0 | E33: =RT+_sw1250 -> 14303.9777 | F33: 0 | G33: 1 | H33: 0 | I33: 0 | J33: 14303.9777 | K33: 0 | L33: 14303.9777 | M33: 24188.32256
A34: 11kV 315kVA RT FFIFF CAT 1 | B34: ='Dataload TXWS'!$B$4 -> 9884.344865 | C34: 0 | D34: 0 | E34: =RT+cat1ffiff -> 9629.187359 | F34: 0 | G34: 1 | H34: 0 | I34: 0 | J34: 9629.187359 | K34: 0 | L34: 9629.187359 | M34: 19513.53222
A35: 11kV 315kVA RT FFIFF CAT 2 | B35: ='Dataload TXWS'!$B$4 -> 9884.344865 | C35: 0 | D35: 0 | E35: =RT+cat2ffiff -> 11124.2752 | F35: 0 | G35: 1 | H35: 0 | I35: 0 | J35: 11124.2752 | K35: 0 | L35: 11124.2752 | M35: 21008.62006
A36: 11kV 315kVA RT FIF CAT 2 | B36: ='Dataload TXWS'!$B$4 -> 9884.344865 | C36: 0 | D36: 0 | E36: =RT+cat2fif -> 9568.136386 | F36: 0 | G36: 1 | H36: 0 | I36: 0 | J36: 9568.136386 | K36: 0 | L36: 9568.136386 | M36: 19452.48125
A37: 22kV 315kVA 8DJ10 CAT 1 | B37: ='Dataload TXWS'!$B$5 -> 10855.305 | C37: 0 | D37: 0 | E37: =old8DJ10+cat1ffiff -> 10776.46195 | F37: 0 | G37: 1 | H37: 0 | I37: 0 | J37: 10776.46195 | K37: 0 | L37: 10776.46195 | M37: 21631.76695
A38: 22kV 315kVA 8DJ10 CB 1250 | B38: ='Dataload TXWS'!$B$5 -> 10855.305 | C38: 0 | D38: 0 | E38: =old8DJ10+_sw1250 -> 15451.25229 | F38: 0 | G38: 1 | H38: 0 | I38: 0 | J38: 15451.25229 | K38: 0 | L38: 15451.25229 | M38: 26306.55729
A39: 22kV 315kVA RTR CAT 1 | B39: ='Dataload TXWS'!$B$5 -> 10855.305 | C39: 0 | D39: 0 | E39: =RTR+cat1ffiff -> 10836.56954 | F39: 0 | G39: 1 | H39: 0 | I39: 0 | J39: 10836.56954 | K39: 0 | L39: 10836.56954 | M39: 21691.87454
A40: 22kV 315kVA RTRR CAT 1 | B40: ='Dataload TXWS'!$B$5 -> 10855.305 | C40: 0 | D40: 0 | E40: =RTRR+cat1ffiff -> 21423.78087 | F40: 0 | G40: 1 | H40: 0 | I40: 0 | J40: 21423.78087 | K40: 0 | L40: 21423.78087 | M40: 32279.08587
A41: 22kV 315kVA RTR CB 1250 | B41: ='Dataload TXWS'!$B$5 -> 10855.305 | C41: 0 | D41: 0 | E41: =RTR+_sw1250 -> 15511.35988 | F41: 0 | G41: 1 | H41: 0 | I41: 0 | J41: 15511.35988 | K41: 0 | L41: 15511.35988 | M41: 26366.66488
A42: 22kV 315kVA RTRR CB 1250 | B42: ='Dataload TXWS'!$B$5 -> 10855.305 | C42: 0 | D42: 0 | E42: =RTRR+_sw1250 -> 26098.57121 | F42: 0 | G42: 1 | H42: 0 | I42: 0 | J42: 26098.57121 | K42: 0 | L42: 26098.57121 | M42: 36953.87621
A43: 11kV 500kVA CFCC CB 1250 + F | B43: ='Dataload TXWS'!$B$7 -> 12576.41659 | C43: 0 | D43: 0 | E43: =CFCC+_sw1250+fuse+ffmeter -> 18069.06897 | F43: 0 | G43: 1 | H43: 0 | I43: 0 | J43: =E43/$G43 -> 18069.06897 | K43: 0 | L43: 18069.06897 | M43: 30645.48556
A44: 11kV 500kVA CFCC CB 1250 + FF | B44: ='Dataload TXWS'!$B$7 -> 12576.41659 | C44: 0 | D44: 0 | E44: =CFCC+_sw1250+fuse+fuse+ffmeter -> 18478.0394 | F44: 0 | G44: 1 | H44: 0 | I44: 0 | J44: 18478.0394 | K44: 0 | L44: 18478.0394 | M44: 31054.45599
A45: 11kV 500kVA CFCC CB 1250 | B45: ='Dataload TXWS'!$B$7 -> 12576.41659 | C45: 0 | D45: 0 | E45: =CFCC+_sw1250 -> 16883.93104 | F45: 0 | G45: 1 | H45: 0 | I45: 0 | J45: 16883.93104 | K45: 0 | L45: 16883.93104 | M45: 29460.34763
A46: 11kV 500kVA CFCC FFIFF CAT 1 | B46: ='Dataload TXWS'!$B$7 -> 12576.41659 | C46: 0 | D46: 0 | E46: =CFCC+cat1ffiff -> 12209.1407 | F46: 0 | G46: 1 | H46: 0 | I46: 0 | J46: 12209.1407 | K46: 0 | L46: 12209.1407 | M46: 24785.5573
A47: 11kV 500kVA CFCC FFIFF CAT 2 | B47: ='Dataload TXWS'!$B$7 -> 12576.41659 | C47: 0 | D47: 0 | E47: =CFCC+cat2ffiff -> 13704.22854 | F47: 0 | G47: 1 | H47: 0 | I47: 0 | J47: 13704.22854 | K47: 0 | L47: 13704.22854 | M47: 26280.64513
A48: 11kV 500kVA CFCC FIF CAT 2 | B48: ='Dataload TXWS'!$B$7 -> 12576.41659 | C48: 0 | D48: 0 | E48: =CFCC+cat2fif -> 12148.08973 | F48: 0 | G48: 1 | H48: 0 | I48: 0 | J48: 12148.08973 | K48: 0 | L48: 12148.08973 | M48: 24724.50632
A49: 11kV 500kVA RTRR CB 1250 + F | B49: ='Dataload TXWS'!$B$7 -> 12576.41659 | C49: 0 | D49: 0 | E49: =RTRR+_sw1250+fuse+ffmeter -> 27283.70914 | F49: 0 | G49: 1 | H49: 0 | I49: 0 | J49: 27283.70914 | K49: 0 | L49: 27283.70914 | M49: 39860.12573
A50: 11kV 500kVA RTRR CB 1250 + FF | B50: ='Dataload TXWS'!$B$7 -> 12576.41659 | C50: 0 | D50: 0 | E50: =RTRR+_sw1250+fuse+fuse+ffmeter -> 27692.67957 | F50: 0 | G50: 1 | H50: 0 | I50: 0 | J50: 27692.67957 | K50: 0 | L50: 27692.67957 | M50: 40269.09616
A51: 11kV 500kVA RTRR CB 1250 | B51: ='Dataload TXWS'!$B$7 -> 12576.41659 | C51: 0 | D51: 0 | E51: =RTRR+_sw1250 -> 26098.57121 | F51: 0 | G51: 1 | H51: 0 | I51: 0 | J51: 26098.57121 | K51: 0 | L51: 26098.57121 | M51: 38674.9878
A52: 11kV 500kVA RTRR FFIFF CAT 1 | B52: ='Dataload TXWS'!$B$7 -> 12576.41659 | C52: 0 | D52: 0 | E52: =RTRR+cat1ffiff -> 21423.78087 | F52: 0 | G52: 1 | H52: 0 | I52: 0 | J52: 21423.78087 | K52: 0 | L52: 21423.78087 | M52: 34000.19746
A53: 11kV 500kVA RTRR FFIFF CAT 2 | B53: ='Dataload TXWS'!$B$7 -> 12576.41659 | C53: 0 | D53: 0 | E53: =RTRR+cat2ffiff -> 22918.86871 | F53: 0 | G53: 1 | H53: 0 | I53: 0 | J53: 22918.86871 | K53: 0 | L53: 22918.86871 | M53: 35495.2853
A54: 11kV 500kVA RTRR FIF CAT 2 | B54: ='Dataload TXWS'!$B$7 -> 12576.41659 | C54: 0 | D54: 0 | E54: =RTRR+cat2fif -> 21362.7299 | F54: 0 | G54: 1 | H54: 0 | I54: 0 | J54: 21362.7299 | K54: 0 | L54: 21362.7299 | M54: 33939.14649
A55: 11kV 500kVA RTR CB 1250 + F | B55: ='Dataload TXWS'!$B$7 -> 12576.41659 | C55: 0 | D55: 0 | E55: =RTR+_sw1250+fuse+ffmeter -> 16696.49781 | F55: 0 | G55: 1 | H55: 0 | I55: 0 | J55: 16696.49781 | K55: 0 | L55: 16696.49781 | M55: 29272.9144
A56: 11kV 500kVA RTR CB 1250 + FF | B56: ='Dataload TXWS'!$B$7 -> 12576.41659 | C56: 0 | D56: 0 | E56: =RTR+_sw1250+fuse+fuse+ffmeter -> 17105.46824 | F56: 0 | G56: 1 | H56: 0 | I56: 0 | J56: 17105.46824 | K56: 0 | L56: 17105.46824 | M56: 29681.88483
A57: 11kV 500kVA RTR CB 1250 | B57: ='Dataload TXWS'!$B$7 -> 12576.41659 | C57: 0 | D57: 0 | E57: =RTR+_sw1250 -> 15511.35988 | F57: 0 | G57: 1 | H57: 0 | I57: 0 | J57: 15511.35988 | K57: 0 | L57: 15511.35988 | M57: 28087.77647
A58: 11kV 500kVA RTR FFIFF CAT 1 | B58: ='Dataload TXWS'!$B$7 -> 12576.41659 | C58: 0 | D58: 0 | E58: =RTR+cat1ffiff -> 10836.56954 | F58: 0 | G58: 1 | H58: 0 | I58: 0 | J58: 10836.56954 | K58: 0 | L58: 10836.56954 | M58: 23412.98613
A59: 11kV 500kVA RTR FFIFF CAT 2 | B59: ='Dataload TXWS'!$B$7 -> 12576.41659 | C59: 0 | D59: 0 | E59: =RTR+cat2ffiff -> 12331.65738 | F59: 0 | G59: 1 | H59: 0 | I59: 0 | J59: 12331.65738 | K59: 0 | L59: 12331.65738 | M59: 24908.07397
A60: 11kV 500kVA RTR FIF CAT 2 | B60: ='Dataload TXWS'!$B$7 -> 12576.41659 | C60: 0 | D60: 0 | E60: =RTR+cat2fif -> 10775.51857 | F60: 0 | G60: 1 | H60: 0 | I60: 0 | J60: 10775.51857 | K60: 0 | L60: 10775.51857 | M60: 23351.93516
A61: 11kV 500kVA RT CB 1250 + F | B61: ='Dataload TXWS'!$B$7 -> 12576.41659 | C61: 0 | D61: 0 | E61: =RT+_sw1250+fuse+ffmeter -> 15489.11563 | F61: 0 | G61: 1 | H61: 0 | I61: 0 | J61: 15489.11563 | K61: 0 | L61: 15489.11563 | M61: 28065.53222
A62: 11kV 500kVA RT CB 1250 + FF | B62: ='Dataload TXWS'!$B$7 -> 12576.41659 | C62: 0 | D62: 0 | E62: =RT+_sw1250+fuse+fuse+ffmeter -> 15898.08606 | F62: 0 | G62: 1 | H62: 0 | I62: 0 | J62: 15898.08606 | K62: 0 | L62: 15898.08606 | M62: 28474.50265
A63: 11kV 500kVA RT CB 1250 | B63: ='Dataload TXWS'!$B$7 -> 12576.41659 | C63: 0 | D63: 0 | E63: =RT+_sw1250 -> 14303.9777 | F63: 0 | G63: 1 | H63: 0 | I63: 0 | J63: 14303.9777 | K63: 0 | L63: 14303.9777 | M63: 26880.39429
A64: 11kV 500kVA RT FFIFF CAT 1 | B64: ='Dataload TXWS'!$B$7 -> 12576.41659 | C64: 0 | D64: 0 | E64: =RT+cat1ffiff -> 9629.187359 | F64: 0 | G64: 1 | H64: 0 | I64: 0 | J64: 9629.187359 | K64: 0 | L64: 9629.187359 | M64: 22205.60395
A65: 11kV 500kVA RT FFIFF CAT 2 | B65: ='Dataload TXWS'!$B$7 -> 12576.41659 | C65: 0 | D65: 0 | E65: =RT+cat2ffiff -> 11124.2752 | F65: 0 | G65: 1 | H65: 0 | I65: 0 | J65: 11124.2752 | K65: 0 | L65: 11124.2752 | M65: 23700.69179
A66: 11kV 500kVA RT FIF CAT 2 | B66: ='Dataload TXWS'!$B$7 -> 12576.41659 | C66: 0 | D66: 0 | E66: =RT+cat2fif -> 9568.136386 | F66: 0 | G66: 1 | H66: 0 | I66: 0 | J66: 9568.136386 | K66: 0 | L66: 9568.136386 | M66: 22144.55298
A67: 22kV 500kVA 8DJ10 CAT 1 | B67: ='Dataload TXWS'!$B$8 -> 12291.53455 | C67: 0 | D67: 0 | E67: =old8DJ10+cat1ffiff -> 10776.46195 | F67: 0 | G67: 1 | H67: 0 | I67: 0 | J67: 10776.46195 | K67: 0 | L67: 10776.46195 | M67: 23067.9965
A68: 22kV 500kVA 8DJ10 CB 1250 | B68: ='Dataload TXWS'!$B$8 -> 12291.53455 | C68: 0 | D68: 0 | E68: =old8DJ10+_sw1250 -> 15451.25229 | F68: 0 | G68: 1 | H68: 0 | I68: 0 | J68: 15451.25229 | K68: 0 | L68: 15451.25229 | M68: 27742.78684
A69: 22kV 500kVA RTR CAT 1 | B69: ='Dataload TXWS'!$B$8 -> 12291.53455 | C69: 0 | D69: 0 | E69: =RTR+cat1ffiff -> 10836.56954 | F69: 0 | G69: 1 | H69: 0 | I69: 0 | J69: 10836.56954 | K69: 0 | L69: 10836.56954 | M69: 23128.10409
A70: 22kV 500kVA RTRR CAT 1 | B70: ='Dataload TXWS'!$B$8 -> 12291.53455 | C70: 0 | D70: 0 | E70: =RTRR+cat1ffiff -> 21423.78087 | F70: 0 | G70: 1 | H70: 0 | I70: 0 | J70: 21423.78087 | K70: 0 | L70: 21423.78087 | M70: 33715.31542
A71: 22kV 500kVA RTR CB 1250 | B71: ='Dataload TXWS'!$B$8 -> 12291.53455 | C71: 0 | D71: 0 | E71: =RTR+_sw1250 -> 15511.35988 | F71: 0 | G71: 1 | H71: 0 | I71: 0 | J71: 15511.35988 | K71: 0 | L71: 15511.35988 | M71: 27802.89443
A72: 22kV 500kVA RTRR CB 1250 | B72: ='Dataload TXWS'!$B$8 -> 12291.53455 | C72: 0 | D72: 0 | E72: =RTRR+_sw1250 -> 26098.57121 | F72: 0 | G72: 1 | H72: 0 | I72: 0 | J72: 26098.57121 | K72: 0 | L72: 26098.57121 | M72: 38390.10575
A74: 11kV 1000kVA CFCC CB 2500 + F | B74: ='Dataload TXWS'!$B$10 -> 18034.4494 | C74: 0 | D74: 0 | E74: =CFCC+_sw2500+fuse+ffmeter -> 19087.37909 | F74: 0 | G74: 1 | H74: 0 | I74: 0 | J74: 19087.37909 | K74: 0 | L74: 19087.37909 | M74: 37121.82849
A75: 11kV 1000kVA CFCC CB 2500 + FF | B75: ='Dataload TXWS'!$B$10 -> 18034.4494 | C75: 0 | D75: 0 | E75: =CFCC+_sw2500+fuse+fuse+ffmeter -> 19496.34952 | F75: 0 | G75: 1 | H75: 0 | I75: 0 | J75: 19496.34952 | K75: 0 | L75: 19496.34952 | M75: 37530.79892
A76: 11kV 1000kVA CFCC CB 2500A | B76: ='Dataload TXWS'!$B$10 -> 18034.4494 | C76: 0 | D76: 0 | E76: =CFCC+_sw2500 -> 17902.24116 | F76: 0 | G76: 1 | H76: 0 | I76: 0 | J76: 17902.24116 | K76: 0 | L76: 17902.24116 | M76: 35936.69056
A77: 11kV 1000kVA RTRR CB 2500 + F | B77: ='Dataload TXWS'!$B$10 -> 18034.4494 | C77: 0 | D77: 0 | E77: =RTRR+_sw2500+fuse+ffmeter -> 28302.01926 | F77: 0 | G77: 1 | H77: 0 | I77: 0 | J77: 28302.01926 | K77: 0 | L77: 28302.01926 | M77: 46336.46866
A78: 11kV 1000kVA RTRR CB 2500 + FF | B78: ='Dataload TXWS'!$B$10 -> 18034.4494 | C78: 0 | D78: 0 | E78: =RTRR+_sw2500+fuse+fuse+ffmeter -> 28710.98969 | F78: 0 | G78: 1 | H78: 0 | I78: 0 | J78: 28710.98969 | K78: 0 | L78: 28710.98969 | M78: 46745.43909
A79: 11kV 1000kVA RTRR CB 2500A | B79: ='Dataload TXWS'!$B$10 -> 18034.4494 | C79: 0 | D79: 0 | E79: =RTRR+_sw2500 -> 27116.88133 | F79: 0 | G79: 1 | H79: 0 | I79: 0 | J79: 27116.88133 | K79: 0 | L79: 27116.88133 | M79: 45151.33073
A80: 11kV 1000kVA RTR CB 2500 + F | B80: ='Dataload TXWS'!$B$10 -> 18034.4494 | C80: 0 | D80: 0 | E80: =RTR+_sw2500+fuse+ffmeter -> 17714.80793 | F80: 0 | G80: 1 | H80: 0 | I80: 0 | J80: 17714.80793 | K80: 0 | L80: 17714.80793 | M80: 35749.25733
A81: 11kV 1000kVA RTR CB 2500 + FF | B81: ='Dataload TXWS'!$B$10 -> 18034.4494 | C81: 0 | D81: 0 | E81: =RTR+_sw2500++fuse+fuse+ffmeter -> 18123.77836 | F81: 0 | G81: 1 | H81: 0 | I81: 0 | J81: 18123.77836 | K81: 0 | L81: 18123.77836 | M81: 36158.22776
A82: 11kV 1000kVA RTR CB 2500A | B82: ='Dataload TXWS'!$B$10 -> 18034.4494 | C82: 0 | D82: 0 | E82: =RTR+_sw2500 -> 16529.67 | F82: 0 | G82: 1 | H82: 0 | I82: 0 | J82: 16529.67 | K82: 0 | L82: 16529.67 | M82: 34564.1194
A83: 11kV 1000kVA RT CB 2500 + F | B83: ='Dataload TXWS'!$B$10 -> 18034.4494 | C83: 0 | D83: 0 | E83: =RT+_sw2500+fuse+ffmeter -> 16507.42575 | F83: 0 | G83: 1 | H83: 0 | I83: 0 | J83: 16507.42575 | K83: 0 | L83: 16507.42575 | M83: 34541.87514
A84: 11kV 1000kVA RT CB 2500 + FF | B84: ='Dataload TXWS'!$B$10 -> 18034.4494 | C84: 0 | D84: 0 | E84: =RT+_sw2500+fuse+fuse+ffmeter -> 16916.39617 | F84: 0 | G84: 1 | H84: 0 | I84: 0 | J84: 16916.39617 | K84: 0 | L84: 16916.39617 | M84: 34950.84557
A85: 11kV 1000kVA RT CB 2500A | B85: ='Dataload TXWS'!$B$10 -> 18034.4494 | C85: 0 | D85: 0 | E85: =RT+_sw2500 -> 15322.28781 | F85: 0 | G85: 1 | H85: 0 | I85: 0 | J85: 15322.28781 | K85: 0 | L85: 15322.28781 | M85: 33356.73722
A86: 11kV 1000kVA RTR CAT2 FFIFF | B86: ='Dataload TXWS'!$B$10 -> 18034.4494 | C86: 0 | D86: 0 | E86: =RTR+cat2ffiff -> 12331.65738 | F86: 0 | G86: 1 | H86: 0 | I86: 0 | J86: 12331.65738 | K86: 0 | L86: 12331.65738 | M86: 30366.10678
A87: 22kV 1000kVA 8DJ10 CB 2500A | B87: ='Dataload TXWS'!$B$11 -> 25840.442 | C87: 0 | D87: 0 | E87: =old8DJ10+_sw2500 -> 16469.56241 | F87: 0 | G87: 1 | H87: 0 | I87: 0 | J87: 16469.56241 | K87: 0 | L87: 16469.56241 | M87: 42310.00441
A88: 22kV 1000kVA RTR CB 2500A | B88: ='Dataload TXWS'!$B$11 -> 25840.442 | C88: 0 | D88: 0 | E88: =RTR+_sw2500 -> 16529.67 | F88: 0 | G88: 1 | H88: 0 | I88: 0 | J88: 16529.67 | K88: 0 | L88: 16529.67 | M88: 42370.112
A89: 22kV 1000kVA RTRR CB 2500A | B89: ='Dataload TXWS'!$B$11 -> 25840.442 | C89: 0 | D89: 0 | E89: =RTRR+_sw2500 -> 27116.88133 | F89: 0 | G89: 1 | H89: 0 | I89: 0 | J89: 27116.88133 | K89: 0 | L89: 27116.88133 | M89: 52957.32333
A90: 11kV 1500kVA RL 3200CB | B90: ='Dataload TXWS'!$B$13 -> 33172.38444 | C90: 0 | D90: 0 | E90: =RL+_sw3200 -> 25329.825 | F90: 0 | G90: 1 | H90: 0 | I90: 0 | J90: 25329.825 | K90: 0 | L90: 25329.825 | M90: 58502.20944
A91: 11kV 1500kVA RLR 3200CB | B91: ='Dataload TXWS'!$B$13 -> 33172.38444 | C91: 0 | D91: 0 | E91: =RLR+_sw3200 -> 25382.61368 | F91: 0 | G91: 1 | H91: 0 | I91: 0 | J91: 25382.61368 | K91: 0 | L91: 25382.61368 | M91: 58554.99813
A92: 22kV 1500kVA RL 3200CB | B92: ='Dataload TXWS'!$B$14 -> 41216.028 | C92: 0 | D92: 0 | E92: =RL+_sw3200 -> 25329.825 | F92: 0 | G92: 1 | H92: 0 | I92: 0 | J92: 25329.825 | K92: 0 | L92: 25329.825 | M92: 66545.853
A93: 22kV 1500kVA RLR 3200CB | B93: ='Dataload TXWS'!$B$14 -> 41216.028 | C93: 0 | D93: 0 | E93: =RLR+_sw3200 -> 25382.61368 | F93: 0 | G93: 1 | H93: 0 | I93: 0 | J93: 25382.61368 | K93: 0 | L93: 25382.61368 | M93: 66598.64168
A95: PM Individual Components | B95: Transformer Only | C95: Labour | D95: Plant and Vehicles | E95: SG | F95: Direct | G95: Units | H95: Labour/Unit | I95: Plant & Vehicles / Unit | J95: Materials / Unit | K95: Direct / Unit | L95: Total / Unit
A96: Fuse Strip (Including 3 x 400A fuses) - Weber | C96: 0 | D96: 0 | E96: ='Dataload TXWS'!C17 -> 408.97043 | F96: 0 | G96: 1 | H96: =C96/$G96 -> 0 | I96: =D96/$G96 -> 0 | J96: =E96/$G96 -> 408.97043 | K96: =F96/$G96 -> 0 | L96: =SUM(H96:K96) -> 408.97043
A97: Stainless steel cubicle size 14 | C97: 0 | D97: 0 | E97: ='Dataload TXWS'!C38 -> 9387 | F97: 0 | G97: 1 | H97: 0 | I97: =D97/$G97 -> 0 | J97: 9387 | K97: 0 | L97: 9387
A98: FUSE CART HRC 3 1/4"CNT W 250A(1143874) | C98: 0 | D98: 0 | E98: ='Dataload Ellipse'!G152 -> 9.35 | F98: 0 | G98: 1 | H98: 0 | I98: 0 | J98: 9.35 | K98: 0 | L98: 9.35
A99: FUSE CART HRC 3 1/4"CNT W 400A(1013166) | C99: 0 | D99: 0 | E99: ='Dataload Ellipse'!G153 -> 10.74 | F99: 0 | G99: 1 | H99: 0 | I99: 0 | J99: 10.74 | K99: 0 | L99: 10.74
A100: Stainless steel cubicle size 16 | E100: ='Dataload TXWS'!C40 -> 9019.8725 | G100: 1 | H100: 0 | I100: 0 | J100: 9019.8725 | K100: 0 | L100: 9019.8725
A101: CAT 1 FFIFF | C101: 0 | D101: 0 | E101: ='Dataload TXWS'!C19 -> 3794.01383 | F101: 0 | G101: 1 | H101: 0 | I101: 0 | J101: 3794.01383 | K101: 0 | L101: 3794.01383
A102: CAT 2 FFIFF | C102: 0 | D102: 0 | E102: ='Dataload TXWS'!C20 -> 5289.101667 | F102: 0 | G102: 1 | H102: =C102/$G102 -> 0 | I102: 0 | J102: 5289.101667 | K102: 0 | L102: 5289.101667
A103: CAT 2 FIF | C103: 0 | D103: 0 | E103: ='Dataload TXWS'!C21 -> 3732.962857 | F103: 0 | G103: 1 | H103: 0 | I103: 0 | J103: 3732.962857 | K103: 0 | L103: 3732.962857
A104: Siemens RT (Switch Fuse) | C104: 0 | D104: 0 | E104: ='Dataload TXWS'!C22 -> 5835.173529 | F104: 0 | G104: 1 | H104: 0 | I104: 0 | J104: 5835.173529 | K104: 0 | L104: 5835.173529
A105: Siemens RTR (Switch Fuse Switch) | C105: 0 | D105: 0 | E105: ='Dataload TXWS'!C23 -> 7042.555714 | F105: 0 | G105: 1 | H105: 0 | I105: 0 | J105: 7042.555714 | K105: 0 | L105: 7042.555714
A106: Siemens RTRR (Switch Fuse Switch Switch) | C106: 0 | D106: 0 | E106: ='Dataload TXWS'!C24 -> 17629.76704 | F106: 0 | G106: 1 | H106: 0 | I106: 0 | J106: 17629.76704 | K106: 0 | L106: 17629.76704
A107: Siemens RL (Switch+CB) | C107: 0 | D107: 0 | E107: ='Dataload TXWS'!C25 -> 9816.915 | F107: 0 | G107: 1 | H107: 0 | I107: 0 | J107: 9816.915 | K107: 0 | L107: 9816.915
A108: Siemens RLR (Switch+CB) | C108: 0 | D108: 0 | E108: ='Dataload TXWS'!C26 -> 9869.703684 | F108: 0 | G108: 1 | H108: 0 | I108: 0 | J108: 9869.703684 | K108: 0 | L108: 9869.703684
A109: Siemens RLRR (Switch+CB) | C109: 0 | D109: 0 | E109: ='Dataload TXWS'!C27 -> 12340.61 | F109: 0 | G109: 1 | H109: 0 | I109: 0 | J109: 12340.61 | K109: 0 | L109: 12340.61
A110: CFC Safelink Switchgear | C110: 0 | D110: 0 | E110: ='Dataload TXWS'!C60 -> 6982.448125 | F110: 0 | G110: 1 | H110: =C110/$G110 -> 0 | I110: 0 | J110: 6982.448125 | K110: 0 | L110: 6982.448125
A111: CFCC Safelink Switchgear | C111: 0 | D111: 0 | E111: ='Dataload TXWS'!C61 -> 8415.126875 | F111: 0 | G111: 1 | H111: 0 | I111: 0 | J111: 8415.126875 | K111: 0 | L111: 8415.126875
A112: Stainless steel cubicle size 10 | C112: 0 | D112: 0 | E112: ='Dataload TXWS'!C39 -> 8492.555 | F112: 0 | G112: 1 | H112: 0 | I112: 0 | J112: 8492.555 | K112: 0 | L112: 8492.555
A113: 1250 CB (Weber) | C113: 0 | D113: 0 | E113: ='Dataload TXWS'!C28 -> 8468.804167 | F113: 0 | G113: 1 | H113: 0 | I113: 0 | J113: 8468.804167 | K113: 0 | L113: 8468.804167
A114: 2500 CB (Weber) | C114: 0 | D114: 0 | E114: ='Dataload TXWS'!C29 -> 9487.114286 | F114: 0 | G114: 1 | H114: =C114/$G114 -> 0 | I114: =D114/$G114 -> 0 | J114: =E114/$G114 -> 9487.114286 | K114: =F114/$G114 -> 0 | L114: 9487.114286
A115: 3200 CB (Weber) | C115: 0 | D115: 0 | E115: ='Dataload TXWS'!C30 -> 15512.91 | F115: 0 | G115: 1 | H115: 0 | I115: 0 | J115: 15512.91 | K115: 0 | L115: 15512.91
A116: RRR Switching Station | C116: 0 | D116: 0 | E116: ='Dataload TXWS'!C33 -> 9742 | F116: 0 | G116: 1 | H116: 0 | I116: 0 | J116: 9742 | K116: 0 | L116: 9742
A117: RRRR Switching Station | C117: 0 | D117: 0 | E117: ='Dataload TXWS'!C34 -> 9242.6875 | F117: 0 | G117: 1 | H117: =C117/$G117 -> 0 | I117: =D117/$G117 -> 0 | J117: 9242.6875 | K117: =F117/$G117 -> 0 | L117: 9242.6875
A118: Size 16 Fibreglass Cubicle | C118: 0 | D118: 0 | E118: ='Dataload Ellipse'!G154 -> 3777.01 | F118: 0 | G118: 1 | H118: 0 | I118: 0 | J118: 3777.01 | K118: 0 | L118: 3777.01
A119: Size 14 Fibreglass Cubicle | C119: 0 | D119: 0 | E119: ='Dataload Ellipse'!G155 -> 3580 | F119: 0 | G119: 1 | H119: =C119/$G119 -> 0 | I119: 0 | J119: 3580 | K119: 0 | L119: 3580
A120: Size 14 - 16 concrete plinth | C120: 0 | D120: 0 | E120: ='Dataload Ellipse'!G156 -> 1384.91 | F120: 0 | G120: 1 | H120: =C120/$G120 -> 0 | I120: 0 | J120: 1384.91 | K120: 0 | L120: 1384.91
A121: Stainless steel cubicle size 5 | C121: 0 | D121: 0 | E121: ='Dataload TXWS'!C37 -> 9112.056 | F121: 0 | G121: 1 | H121: 0 | I121: 0 | J121: 9112.056 | K121: 0 | L121: 9112.056
A122: 8DJ10 HV switchgear | C122: 0 | D122: 0 | E122: ='Dataload TXWS'!C60 -> 6982.448125 | F122: 0 | G122: 1 | H122: =C122/$G122 -> 0 | I122: 0 | J122: 6982.448125 | K122: 0 | L122: 6982.448125
A123: FF+Meter Two Fuse Strips with CT's and Meter arrangement (for use on Circuit Breakers requiring an additional two fuse strips) | C123: 0 | D123: 0 | E123: ='Dataload TXWS'!C18 -> 776.1675 | F123: 0 | G123: 1 | H123: 0 | I123: 0 | J123: 776.1675 | K123: 0 | L123: 776.1675
A124: Switching Station Size 16 Cubicle | C124: 0 | D124: 0 | E124: ='Dataload Ellipse'!G157 -> 2330.25 | F124: 0 | G124: 1 | H124: 0 | I124: 0 | J124: 2330.25 | K124: 0 | L124: 2330.25
A125: Galvanised Plinth for 1500kVA | C125: 0 | D125: 0 | E125: ='Dataload Ellipse'!G158 -> 2227.43 | F125: 0 | G125: 1 | H125: 0 | I125: 0 | J125: 2227.43 | K125: 0 | L125: 2227.43
A126: PM Substation Culvert | C126: 0 | D126: 0 | E126: ='Dataload TXWS'!C31 -> 1440.025682 | F126: 0 | G126: 1 | H126: 0 | I126: 0 | J126: 1440.025682 | K126: 0 | L126: 1440.025682
A127: VALUE OF 315kVA 11kV TRANSFORMER ONLY | E127: =B13 -> 9884.344865 | G127: 1 | H127: 0 | I127: 0 | J127: 9884.344865 | K127: 0 | L127: 9884.344865
A128: VALUE OF 315kVA 22kV TRANSFORMER ONLY | E128: =B37 -> 10855.305 | G128: 1 | H128: 0 | I128: 0 | J128: 10855.305 | K128: 0 | L128: 10855.305
A129: VALUE OF 500kVA 11kV TRANSFORMER ONLY | E129: =B43 -> 12576.41659 | G129: 1 | H129: 0 | I129: 0 | J129: 12576.41659 | K129: 0 | L129: 12576.41659
A130: VALUE OF 500kVA 22kV TRANSFORMER ONLY | E130: =B67 -> 12291.53455 | G130: 1 | H130: 0 | I130: 0 | J130: 12291.53455 | K130: 0 | L130: 12291.53455
A131: VALUE OF 1000kVA 11kV TRANSFORMER ONLY | E131: =B74 -> 18034.4494 | G131: 1 | H131: 0 | I131: 0 | J131: 18034.4494 | K131: 0 | L131: 18034.4494
A132: VALUE OF 1000kVA 22kV TRANSFORMER ONLY | E132: =B89 -> 25840.442 | G132: 1 | H132: 0 | I132: 0 | J132: 25840.442 | K132: 0 | L132: 25840.442
A133: VALUE OF 1500kVA 11kV TRANSFORMER ONLY | E133: =B90 -> 33172.38444 | G133: 1 | H133: 0 | I133: 0 | J133: 33172.38444 | K133: 0 | L133: 33172.38444
A134: VALUE OF 1500kVA 22kV TRANSFORMER ONLY | E134: =B93 -> 41216.028 | G134: 1 | H134: 0 | I134: 0 | J134: 41216.028 | K134: 0 | L134: 41216.028
A135: 11/22KV AUTOTRANSFORMER 3000 kVA ONLY | E135: ='Dataload TXWS'!C64 -> 77500 | G135: 1 | H135: =C135/$G135 -> 0 | I135: =D135/$G135 -> 0 | J135: =E135/$G135 -> 77500 | K135: =F135/$G135 -> 0 | L135: 77500
A136: ABB Safelink 2 CFC 1 Switch Automated | E136: ='Dataload TXWS'!C66 -> 10543.44 | G136: 1 | H136: =C136/$G136 -> 0 | I136: 0 | J136: 10543.44 | K136: 0 | L136: =SUM(H136:K136) -> 10543.44 | Q136: =$S$136*R136 -> 4000 | R136: 1 | S136: 4000
A137: ABB Safelink 2 CFC 2 Switches Automated | E137: ='Dataload TXWS'!C67 -> 13544.03 | G137: 1 | H137: 0 | I137: 0 | J137: 13544.03 | K137: 0 | L137: 13544.03 | Q137: =$S$136*R137 -> 8000 | R137: 2
A138: ABB Safelink 2 CFCC 3 Switches Automated | E138: ='Dataload TXWS'!C68 -> 17523.5 | G138: 1 | H138: 0 | I138: 0 | J138: 17523.5 | K138: 0 | L138: 17523.5 | Q138: 12000 | R138: 3
A139: ABB Safelink 2 CCC 3 Switches Automated | E139: ='Dataload TXWS'!C69 -> 16651 | G139: 1 | H139: 0 | I139: 0 | J139: 16651 | K139: 0 | L139: 16651 | Q139: 12000 | R139: 3
A140: ABB Safelink 2 CCCC 4 Switches Automated | E140: ='Dataload TXWS'!C70 -> 21103 | G140: 1 | H140: 0 | I140: 0 | J140: 21103 | K140: 0 | L140: 21103 | Q140: 16000 | R140: 4
A141: Siemens 8DJH RTR 1 Switch Automated | E141: ='Dataload TXWS'!C71 -> 11139 | G141: 1 | H141: 0 | I141: 0 | J141: 11139 | K141: 0 | L141: 11139 | Q141: 4000 | R141: 1
A142: Siemens 8DJH RTR 2 Switches Automated | E142: ='Dataload TXWS'!C72 -> 14714 | G142: 1 | H142: 0 | I142: 0 | J142: 14714 | K142: 0 | L142: 14714 | Q142: 8000 | R142: 2
A143: Siemens 8DJH RTRR-C 3 Switches Automated - PM Sub | E143: ='Dataload TXWS'!C73 -> 27055 | G143: 1 | H143: 0 | I143: 0 | J143: 27055 | K143: 0 | L143: 27055 | Q143: 12000 | R143: 3
A144: Siemens 8DJH RTRR-S 3 Switches Automated- Indoor | E144: ='Dataload TXWS'!C74 -> 20469 | G144: 1 | H144: 0 | I144: 0 | J144: 20469 | K144: 0 | L144: 20469 | Q144: 12000 | R144: 3
A145: Siemens 8DJH RLR 1 Switch Automated | E145: ='Dataload TXWS'!C75 -> 12980 | G145: 1 | H145: 0 | I145: 0 | J145: 12980 | K145: 0 | L145: 12980 | Q145: 4000 | R145: 1
A146: Siemens 8DJH RLR 2 Switches Automated | E146: ='Dataload TXWS'!C76 -> 16740 | G146: 1 | H146: 0 | I146: 0 | J146: 16740 | K146: 0 | L146: 16740 | Q146: 8000 | R146: 2
A147: Siemens 8DJH RLRR 3 Switches Automated - Indoor | E147: ='Dataload TXWS'!C77 -> 22828 | G147: 1 | H147: 0 | I147: 0 | J147: 22828 | K147: 0 | L147: 22828 | Q147: 12000 | R147: 3
A148: Siemens 8DJH RRR 3 Switches Automated | E148: ='Dataload TXWS'!C78 -> 17228 | G148: 1 | H148: 0 | I148: 0 | J148: 17228 | K148: 0 | L148: 17228 | Q148: 12000 | R148: 3
A149: Siemens 8DJH RRRR 4 Switches Automated | E149: ='Dataload TXWS'!C79 -> 22266 | G149: 1 | H149: 0 | I149: 0 | J149: 22266 | K149: 0 | L149: 22266 | Q149: 16000 | R149: 4
A152: stock code
A153: 1547108 | B153: Size 16 Fibreglass Cubicle
A154: 1547983 | B154: Size 14 Fibreglass Cubicle
A155: YT10505 | B155: Size 5 Fibreglass Cubicle
A156: YT10513 | B156: Size 10 Fibreglass Cubicle
A157: 1550193 | B157: Switching Station Size 16 Cubicle
A158: 1547785 | B158: Size 14 - 16 concrete plinth
A159: 1553254 | B159: Galvanised Plinth for 1500kVA

Sheet SG (hidden)
A1: SwitchGear | B1: 2 | C1: 3 | D1: 4 | E1: 5 | F1: 6 | G1: 7 | H1: 8 | I1: 9 | J1: 10 | K1: 11 | L1: 12
A2: Type Installed | B2: D2 | C2: Labour | D2: Plant and Vehicles | E2: Materials | F2: Direct | G2: Units | H2: Labour/Unit | I2: Plant & Vehicles / Unit | J2: Materials / Unit | K2: Direct / Unit | L2: Total / Unit
A3: USL | C3: ='Dataload WMS'!D79 -> 531.45 | D3: ='Dataload WMS'!E79 -> 103.44 | E3: ='Dataload WMS'!F79 -> 2306.83 | F3: ='Dataload WMS'!G79 -> 0 | G3: ='Dataload WMS'!H79 -> 1 | H3: =C3/$G3 -> 531.45 | I3: 103.44 | J3: 2306.83 | K3: 0 | L3: =SUM(H3:K3) -> 2941.72
A4: DOF | C4: ='Dataload WMS'!D81 -> 531.45 | D4: ='Dataload WMS'!E81 -> 103.44 | E4: ='Dataload WMS'!F81 -> 1345.46 | F4: ='Dataload WMS'!G81 -> 0 | G4: ='Dataload WMS'!H81 -> 1 | H4: 531.45 | I4: 103.44 | J4: 1345.46 | K4: 0 | L4: 1980.35
A5: ABS | C5: ='Dataload WMS'!D80 -> 733.2 | D5: ='Dataload WMS'!E80 -> 139.64 | E5: ='Dataload WMS'!F80 -> 3316.87 | F5: ='Dataload WMS'!G80 -> 0 | G5: ='Dataload WMS'!H80 -> 1 | H5: 733.2 | I5: 139.64 | J5: 3316.87 | K5: 0 | L5: 4189.71
A6: LBS SF6 manual op. | C6: ='Dataload WMS'!D77 -> 897.15 | D6: ='Dataload WMS'!E77 -> 457.34 | E6: ='Dataload WMS'!F77 -> 8002.72 | F6: ='Dataload WMS'!G77 -> 0 | G6: ='Dataload WMS'!H77 -> 1 | H6: 897.15 | I6: 457.34 | J6: 8002.72 | K6: 0 | L6: 9357.21
A7: LBS SF6 auto op. | C7: ='Dataload WMS'!D76 -> 897.15 | D7: ='Dataload WMS'!E76 -> 457.34 | E7: ='Dataload WMS'!F76 -> 16559.89 | F7: ='Dataload WMS'!G76 -> 0 | G7: ='Dataload WMS'!H76 -> 1 | H7: 897.15 | I7: 457.34 | J7: 16559.89 | K7: 0 | L7: 17914.38
A8: LV Links | C8: ='Dataload WMS'!D78 -> 733.2 | D8: ='Dataload WMS'!E78 -> 139.64 | E8: ='Dataload WMS'!F78 -> 524.25 | F8: ='Dataload WMS'!G78 -> 0 | G8: ='Dataload WMS'!H78 -> 1 | H8: 733.2 | I8: 139.64 | J8: 524.25 | K8: 0 | L8: 1397.09
A9: Remove SwitchGear | B9: 2 | C9: 3 | D9: 4 | E9: 5 | F9: 6 | G9: 7 | H9: 8 | I9: 9 | J9: 10 | K9: 11 | L9: 12
A10: Number/Type Removed | B10: D2 | C10: Labour | D10: Plant and Vehicles | E10: Materials | F10: Direct | G10: Units | H10: Labour/Unit | I10: Plant & Vehicles / Unit | J10: Materials / Unit | K10: Direct / Unit | L10: Total / Unit
A11: Remove ABS | B11: m | C11: ='Dataload WMS'!D82 -> 1348.78 | D11: ='Dataload WMS'!E82 -> 639.23 | E11: ='Dataload WMS'!F82 -> 0 | F11: ='Dataload WMS'!G82 -> 0 | G11: ='Dataload WMS'!H82 -> 1 | H11: =C11/$G11 -> 1348.78 | I11: =D11/$G11 -> 639.23 | J11: =E11/$G11 -> 0 | K11: =F11/$G11 -> 0 | L11: =SUM(H11:K11) -> 1988.01
A12: Remove LV Links | B12: n | C12: ='Dataload WMS'!D83 -> 780.28 | D12: ='Dataload WMS'!E83 -> 329.45 | E12: ='Dataload WMS'!F83 -> 0 | F12: ='Dataload WMS'!G83 -> 0 | G12: ='Dataload WMS'!H83 -> 1 | H12: 780.28 | I12: 329.45 | J12: 0 | K12: 0 | L12: =SUM(H12:K12) -> 1109.73
A13: Remove USL | B13: n | C13: ='Dataload WMS'!D83 -> 780.28 | D13: ='Dataload WMS'!E83 -> 329.45 | E13: ='Dataload WMS'!F83 -> 0 | F13: ='Dataload WMS'!G83 -> 0 | G13: ='Dataload WMS'!H83 -> 1 | H13: 780.28 | I13: 329.45 | J13: 0 | K13: 0 | L13: =SUM(H13:K13) -> 1109.73

Sheet Earthing (hidden)
A1: Title | B1: 2 | C1: 3 | D1: 4 | E1: 5 | F1: 6 | G1: 7 | H1: 8 | I1: 9 | J1: 10 | K1: 11 | L1: 12
A2: Earthing | B2: D2 | C2: Labour | D2: Plant and Vehicles | E2: Materials | F2: Direct | G2: Units | H2: Labour/Unit | I2: Plant & Vehicles / Unit | J2: Materials / Unit | K2: Direct / Unit | L2: Total / Unit
A3: Deep Earth (Clay 0-25m) | B3: n | C3: ='Dataload WMS'!D5 -> 297.09 | D3: ='Dataload WMS'!E5 -> 165.5 | E3: ='Dataload WMS'!F5 -> 0 | F3: ='Dataload WMS'!G5 -> 0 | G3: ='Dataload WMS'!H5 -> 1 | H3: =C3/$G3 -> 297.09 | I3: 165.5 | J3: 0 | K3: 0 | L3: =SUM(H3:K3) -> 462.59
A4: Deep Earth (Clay 26m+) | C4: ='Dataload WMS'!D6 -> 445.63 | D4: ='Dataload WMS'!E6 -> 248.25 | E4: ='Dataload WMS'!F6 -> 0 | F4: ='Dataload WMS'!G6 -> 0 | G4: ='Dataload WMS'!H6 -> 1 | H4: 445.63 | I4: 248.25 | J4: 0 | K4: 0 | L4: 693.88
A5: Deep Earth (sandstone 0-25m) | C5: ='Dataload WMS'!D13 -> 576.35 | D5: ='Dataload WMS'!E13 -> 321.07 | E5: ='Dataload WMS'!F13 -> 0 | F5: ='Dataload WMS'!G13 -> 0 | G5: ='Dataload WMS'!H13 -> 1 | H5: 576.35 | I5: 321.07 | J5: 0 | K5: 0 | L5: 897.42
A6: Deep Earth (sandstone26m+) | C6: ='Dataload WMS'!D12 -> 601.6 | D6: ='Dataload WMS'!E12 -> 335.14 | E6: ='Dataload WMS'!F12 -> 0 | F6: ='Dataload WMS'!G12 -> 0 | G6: ='Dataload WMS'!H12 -> 1 | H6: 601.6 | I6: 335.14 | J6: 0 | K6: 0 | L6: 936.74
A7: Deep Earth (Granite 0 - 15m) | C7: ='Dataload WMS'!D7 -> 802.13 | D7: ='Dataload WMS'!E7 -> 446.85 | E7: ='Dataload WMS'!F7 -> 0 | F7: ='Dataload WMS'!G7 -> 0 | G7: ='Dataload WMS'!H7 -> 1 | H7: 802.13 | I7: 446.85 | J7: 0 | K7: 0 | L7: 1248.98
A8: Deep Earth (Granite 16 - 25m) | C8: ='Dataload WMS'!D8 -> 1304.21 | D8: ='Dataload WMS'!E8 -> 726.55 | E8: ='Dataload WMS'!F8 -> 0 | F8: ='Dataload WMS'!G8 -> 0 | G8: ='Dataload WMS'!H8 -> 1 | H8: 1304.21 | I8: 726.55 | J8: 0 | K8: 0 | L8: 2030.76
A9: Deep Earth (Granite 26m+) | C9: ='Dataload WMS'!D9 -> 1675.57 | D9: ='Dataload WMS'!E9 -> 933.42 | E9: ='Dataload WMS'!F9 -> 0 | F9: ='Dataload WMS'!G9 -> 0 | G9: ='Dataload WMS'!H9 -> 1 | H9: 1675.57 | I9: 933.42 | J9: 0 | K9: 0 | L9: 2608.99
A10: Earthing | B10: 2 | C10: 3 | D10: 4 | E10: 5 | F10: 6 | G10: 7 | H10: 8 | I10: 9 | J10: 10 | K10: 11 | L10: 12
A11: Common Wood Pole | C11: ='Dataload WMS'!D4 -> 0 | D11: ='Dataload WMS'!E4 -> 0 | E11: ='Dataload WMS'!F4 -> 409.24 | F11: ='Dataload WMS'!G4 -> 0 | G11: ='Dataload WMS'!H4 -> 1 | H11: =C11/$G11 -> 0 | I11: =D11/$G11 -> 0 | J11: 409.24 | K11: 0 | L11: =SUM(H11:K11) -> 409.24
A12: Common Concrete Pole | C12: ='Dataload WMS'!D3 -> 0 | D12: ='Dataload WMS'!E3 -> 0 | E12: ='Dataload WMS'!F3 -> 301.24 | F12: ='Dataload WMS'!G3 -> 0 | G12: ='Dataload WMS'!H3 -> 1 | H12: 0 | I12: 0 | J12: 301.24 | K12: 0 | L12: 301.24
A13: Separate Wood Pole | C13: ='Dataload WMS'!D15 -> 0 | D13: ='Dataload WMS'!E15 -> 0 | E13: ='Dataload WMS'!F15 -> 511.56 | F13: ='Dataload WMS'!G15 -> 0 | G13: ='Dataload WMS'!H15 -> 1 | H13: 0 | I13: 0 | J13: 511.56 | K13: 0 | L13: 511.56
A14: Separate Concrete Pole | C14: ='Dataload WMS'!D14 -> 0 | D14: ='Dataload WMS'!E14 -> 0 | E14: ='Dataload WMS'!F14 -> 383.78 | F14: ='Dataload WMS'!G14 -> 0 | G14: ='Dataload WMS'!H14 -> 1 | H14: =C14/$G14 -> 0 | I14: 0 | J14: 383.78 | K14: 0 | L14: 383.78
A15: Padmount Sub Separate | C15: ='Dataload WMS'!D11 -> 0 | D15: ='Dataload WMS'!E11 -> 0 | E15: ='Dataload WMS'!F11 -> 404.33 | F15: ='Dataload WMS'!G11 -> 0 | G15: ='Dataload WMS'!H11 -> 2 | H15: 0 | I15: 0 | J15: 202.165 | K15: 0 | L15: 202.165
A16: Padmount Sub Common | C16: ='Dataload WMS'!D10 -> 0 | D16: ='Dataload WMS'!E10 -> 0 | E16: ='Dataload WMS'!F10 -> 316.17 | F16: ='Dataload WMS'!G10 -> 0 | G16: ='Dataload WMS'!H10 -> 2 | H16: 0 | I16: 0 | J16: 158.085 | K16: 0 | L16: 158.085

Sheet OH_XArms (hidden)
B1: Type | C1: No | D1: Material | E1: Plant & Vehicles | F1: Labour | G1: Total | H1: Price/unit | I1: lab pu | J1: PV pu | K1: mat pu | L1: Dir pu | M1: Linear | N1: Plant and Vehiles | O1: m | P1: b | R1: Labour | S1: m | T1: b | V1: Material | W1: b
B2: Single LV | C2: =AVS!N345+AVS!P345 -> 0 | D2: =W2*C2 -> 0 | E2: =IF($C$8=0,0,(C2/$C$8)*$E$8) -> 0 | F2: =IF($C$4=0,0,(C2/$C$4)*$F$4) -> 0 | G2: =IF(C2=0,0,SUM(D2:F2)) -> 0 | H2: =IF(C2=0,0,G2/C2) -> 0 | I2: =IF($C2=0,0,F2/$C2) -> 0 | J2: =IF($C2=0,0,E2/$C2) -> 0 | K2: =IF($C2=0,0,D2/$C2) -> 0 | L2: 0 | M2: Regression | N2: Single LV | O2: =(E27-E25)/(I27-I25) -> 14.48 | P2: =O2*-1+E25 -> 21.72 | S2: =(D27-D25)/(I27-I25) -> 80.702 | T2: =S2*-1+D25 -> 121.048 | W2: =F25 -> 130.34
B3: Double LV | C3: =AVS!N346+AVS!P346 -> 0 | D3: =W3*C3 -> 0 | E3: =IF($C$8=0,0,(C3/$C$8)*$E$8) -> 0 | F3: =IF($C$4=0,0,(C3/$C$4)*$F$4) -> 0 | G3: =IF(C3=0,0,SUM(D3:F3)) -> 0 | H3: =IF(C3=0,0,G3/C3) -> 0 | I3: =IF($C3=0,0,F3/$C3) -> 0 | J3: =IF($C3=0,0,E3/$C3) -> 0 | K3: =IF($C3=0,0,D3/$C3) -> 0 | L3: 0 | M3: Model | N3: Double LV | O3: =(E28-E26)/(I28-I26) -> 0 | P3: =O3*-1+E28 -> 36.2 | S3: =(D30-D28)/(I30-I28) -> 0 | T3: =S3*-1+D28 -> 201.75 | W3: =F28 -> 264.57
C4: =SUM(C2:C3) -> 0 | F4: =C4*(S4)+T4 -> 161.399 | I4: =IF($C4=0,0,F4/$C4) -> 0 | J4: =IF($C4=0,0,E4/$C4) -> 0 | K4: =IF($C4=0,0,D4/$C4) -> 0 | S4: =AVERAGE(S2:S3) -> 40.351 | T4: =AVERAGE(T2:T3) -> 161.399
B5: Single HV | C5: =AVS!N347+AVS!P347 -> 0 | D5: =W5*C5 -> 0 | E5: =IF($C$8=0,0,(C5/$C$8)*$E$8) -> 0 | F5: =IF($C$7=0,0,(C5/$C$7)*$F$7) -> 0 | G5: =IF(C5=0,0,SUM(D5:F5)) -> 0 | H5: =IF(C5=0,0,G5/C5) -> 0 | I5: =IF($C5=0,0,F5/$C5) -> 0 | J5: =IF($C5=0,0,E5/$C5) -> 0 | K5: =IF($C5=0,0,D5/$C5) -> 0 | L5: 0 | N5: Single HV | O5: =(E29-E27)/(I29-I27) -> 24.13333333 | P5: =O5*-1+E31 -> 12.06666667 | S5: =(D33-D31)/(I33-I31) -> 107.602 | T5: =S5*-1+D31 -> 161.408 | W5: =F31 -> 247.36
B6: Double HV | C6: =AVS!N348+AVS!P348 -> 0 | D6: =W6*C6 -> 0 | E6: =IF($C$8=0,0,(C6/$C$8)*$E$8) -> 0 | F6: =IF($C$7=0,0,(C6/$C$7)*$F$7) -> 0 | G6: =IF(C6=0,0,SUM(D6:F6)) -> 0 | H6: =IF(C6=0,0,G6/C6) -> 0 | I6: =IF($C6=0,0,F6/$C6) -> 0 | J6: =IF($C6=0,0,E6/$C6) -> 0 | K6: =IF($C6=0,0,D6/$C6) -> 0 | L6: 0 | N6: Double HV | O6: =(E30-E28)/(I30-I28) -> 0 | P6: =O6*-1+E34 -> 36.2 | S6: =(D36-D34)/(I36-I34) -> 48.42 | T6: =S6*-1+D34 -> 220.59 | W6: =F34 -> 533.66
C7: =SUM(C5:C6) -> 0 | F7: =C7*(S7)+T7 -> 190.999 | S7: =AVERAGE(S5:S6) -> 78.011 | T7: =AVERAGE(T5:T6) -> 190.999
B8: Total | C8: =C4+C7 -> 0 | D8: =SUM(D2:D6) -> 0 | E8: =$O$8*$C$8+$P$8 -> 26.54666667 | F8: =F4+F7 -> 352.398 | G8: =SUM(G2:G6) -> 0 | N8: Average | O8: =AVERAGE(O2:O6) -> 9.653333333 | P8: =AVERAGE(P2:P6) -> 26.54666667
B9: Removal: | O9: Plant | S9: Labour | W9: Materials
B10: Type | C10: No | D10: Material | E10: Plant & Vehicles | F10: Labour | G10: Total | H10: Price/unit | I10: lab pu | J10: PV pu | K10: mat pu | L10: Dir pu | M10: Linear | N10: Plant and Vehiles | O10: m | P10: b | R10: Labour | S10: m | T10: b | V10: Material | W10: b
B11: Single LV | C11: 1 | D11: =W11*C11 -> 130.34 | E11: =IF($C$17=0,0,(C11/$C$17)*$E$17) -> 6.636666667 | F11: =IF($C$13=0,0,(C11/$C$13)*$F$13) -> 121.0505 | G11: =IF(C11=0,0,SUM(D11:F11)) -> 258.0271667 | H11: =IF(C11=0,0,G11/C11) -> 258.0271667 | I11: =IF($C11=0,0,F11/$C11) -> 121.0505 | J11: =IF($C11=0,0,E11/$C11) -> 6.636666667 | K11: =IF($C11=0,0,D11/$C11) -> 130.34 | L11: 0 | M11: Regression | N11: Single LV | O11: =O2 -> 14.48 | P11: =P2 -> 21.72 | Q11: =Q2 -> 0 | S11: =S2 -> 80.702 | T11: 121.048 | U11: 0 | W11: =W2 -> 130.34
B12: Double LV | C12: 1 | D12: =W12*C12 -> 264.57 | E12: =IF($C$17=0,0,(C12/$C$17)*$E$17) -> 6.636666667 | F12: =IF($C$13=0,0,(C12/$C$13)*$F$13) -> 121.0505 | G12: =IF(C12=0,0,SUM(D12:F12)) -> 392.2571667 | H12: =IF(C12=0,0,G12/C12) -> 392.2571667 | I12: =IF($C12=0,0,F12/$C12) -> 121.0505 | J12: =IF($C12=0,0,E12/$C12) -> 6.636666667 | K12: =IF($C12=0,0,D12/$C12) -> 264.57 | L12: 0 | M12: Model | N12: Double LV | O12: =O3 -> 0 | P12: 36.2 | Q12: 0 | S12: 0 | T12: 201.75 | U12: 0 | W12: 264.57
C13: =SUM(C11:C12) -> 2 | F13: =C13*(S13)+T13 -> 242.101 | I13: =IF($C13=0,0,F13/$C13) -> 121.0505 | J13: =IF($C13=0,0,E13/$C13) -> 0 | K13: =IF($C13=0,0,D13/$C13) -> 0 | O13: 0 | P13: 0 | Q13: 0 | S13: 40.351 | T13: 161.399 | U13: 0 | W13: 0
B14: Single HV | C14: 1 | D14: =W14*C14 -> 247.36 | E14: =IF($C$17=0,0,(C14/$C$17)*$E$17) -> 6.636666667 | F14: =IF($C$16=0,0,(C14/$C$16)*$F$16) -> 173.5105 | G14: =IF(C14=0,0,SUM(D14:F14)) -> 427.5071667 | H14: =IF(C14=0,0,G14/C14) -> 427.5071667 | I14: =IF($C14=0,0,F14/$C14) -> 173.5105 | J14: =IF($C14=0,0,E14/$C14) -> 6.636666667 | K14: =IF($C14=0,0,D14/$C14) -> 247.36 | L14: 0 | N14: Single HV | O14: 24.13333333 | P14: 12.06666667 | Q14: 0 | S14: 107.602 | T14: 161.408 | U14: 0 | W14: 247.36
B15: Double HV | C15: 1 | D15: =W15*C15 -> 533.66 | E15: =IF($C$17=0,0,(C15/$C$17)*$E$17) -> 6.636666667 | F15: =IF($C$16=0,0,(C15/$C$16)*$F$16) -> 173.5105 | G15: =IF(C15=0,0,SUM(D15:F15)) -> 713.8071667 | H15: =IF(C15=0,0,G15/C15) -> 713.8071667 | I15: =IF($C15=0,0,F15/$C15) -> 173.5105 | J15: =IF($C15=0,0,E15/$C15) -> 6.636666667 | K15: =IF($C15=0,0,D15/$C15) -> 533.66 | L15: 0 | N15: Double HV | O15: 0 | P15: 36.2 | Q15: 0 | S15: 48.42 | T15: 220.59 | U15: 0 | W15: 533.66
C16: =SUM(C14:C15) -> 2 | F16: =C16*(S16)+T16 -> 347.021 | O16: 0 | P16: 0 | Q16: 0 | S16: 78.011 | T16: 190.999 | U16: 0 | W16: 0
B17: Total | C17: =C13+C16 -> 4 | D17: =SUM(D11:D15) -> 1175.93 | E17: =$O$8*$C$8+$P$8 -> 26.54666667 | F17: =F13+F16 -> 589.122 | G17: =SUM(G11:G15) -> 1791.598667 | N17: Average | O17: 9.653333333 | P17: 26.54666667 | Q17: 0 | S17: 0 | T17: 0 | U17: 0 | W17: 0
O18: Plant | S18: Labour | W18: Materials
D21: vary green fields above to vary the removal economies of scale/scope
D22: only vary the prices/units shown in green below
A23: NC_AVS | D23: Labour | E23: Plant & Vehicles | F23: Materials | G23: Direct | H23: Total | K23: pu Excluding Material
A24: X-Arms | H24: =SUM(D24:G24) -> 0 | I24: 1 | J24: =H24/I24 -> 0
A25: 1 | B25: Single LV | D25: ='Dataload WMS'!D27 -> 201.75 | E25: ='Dataload WMS'!E27 -> 36.2 | F25: ='Dataload WMS'!F27 -> 130.34 | G25: ='Dataload WMS'!G27 -> 0 | H25: 368.29 | I25: 1 | J25: 368.29 | K25: =SUM(D25:E25)/I25 -> 237.95
A26: 3 | B26: Single LV | D26: ='Dataload WMS'!D28 -> 201.75 | E26: ='Dataload WMS'!E28 -> 36.2 | F26: ='Dataload WMS'!F28 -> 389.55 | G26: ='Dataload WMS'!G28 -> 0 | H26: 627.5 | I26: 3 | J26: 209.1666667 | K26: =SUM(D26:E26)/I26 -> 79.31666667
A27: 6 | B27: Single LV | D27: ='Dataload WMS'!D18 -> 605.26 | E27: ='Dataload WMS'!E18 -> 108.6 | F27: ='Dataload WMS'!F18 -> 782.04 | G27: ='Dataload WMS'!G18 -> 0 | H27: 1495.9 | I27: 6 | J27: 249.3166667 | K27: 118.9766667
A28: 1 | B28: Double LV | D28: ='Dataload WMS'!D22 -> 201.75 | E28: ='Dataload WMS'!E22 -> 36.2 | F28: ='Dataload WMS'!F22 -> 264.57 | G28: ='Dataload WMS'!G22 -> 0 | H28: 502.52 | I28: 1 | J28: 502.52 | K28: 237.95
A29: 3 | B29: Double LV | D29: ='Dataload WMS'!D17 -> 201.75 | E29: ='Dataload WMS'!E17 -> 36.2 | F29: ='Dataload WMS'!F17 -> 792.24 | G29: ='Dataload WMS'!G17 -> 0 | H29: 1030.19 | I29: 3 | J29: 343.3966667 | K29: 79.31666667
A30: 6 | B30: Double LV | D30: ='Dataload WMS'!D23 -> 201.75 | E30: ='Dataload WMS'!E23 -> 36.2 | F30: ='Dataload WMS'!F23 -> 782.04 | G30: ='Dataload WMS'!G23 -> 0 | H30: 1019.99 | I30: 6 | J30: =H30/I30 -> 169.9983333 | K30: 39.65833333
A31: 1 | B31: Single HV | D31: ='Dataload WMS'!D24 -> 269.01 | E31: ='Dataload WMS'!E24 -> 36.2 | F31: ='Dataload WMS'!F24 -> 247.36 | G31: ='Dataload WMS'!G24 -> 0 | H31: 552.57 | I31: 1 | J31: 552.57 | K31: 305.21
A32: 3 | B32: Single HV | D32: ='Dataload WMS'!D25 -> 538.01 | E32: ='Dataload WMS'!E25 -> 72.4 | F32: ='Dataload WMS'!F25 -> 742.08 | G32: ='Dataload WMS'!G25 -> 0 | H32: 1352.49 | I32: 3 | J32: 450.83 | K32: 203.47
A33: 6 | B33: Single HV | D33: ='Dataload WMS'!D26 -> 807.02 | E33: ='Dataload WMS'!E26 -> 144.8 | F33: ='Dataload WMS'!F26 -> 1468.32 | G33: ='Dataload WMS'!G26 -> 0 | H33: 2420.14 | I33: 6 | J33: 403.3566667 | K33: 158.6366667
A34: 1 | B34: Double HV | D34: ='Dataload WMS'!D19 -> 269.01 | E34: ='Dataload WMS'!E19 -> 36.2 | F34: ='Dataload WMS'!F19 -> 533.66 | G34: ='Dataload WMS'!G19 -> 0 | H34: 838.87 | I34: 1 | J34: 838.87 | K34: 305.21
A35: 3 | B35: Double HV | D35: ='Dataload WMS'!D20 -> 269.01 | E35: ='Dataload WMS'!E20 -> 36.2 | F35: ='Dataload WMS'!F20 -> 1595.13 | G35: ='Dataload WMS'!G20 -> 0 | H35: 1900.34 | I35: 3 | J35: 633.4466667 | K35: 101.7366667
A36: 6 | B36: Double HV | D36: ='Dataload WMS'!D21 -> 511.11 | E36: ='Dataload WMS'!E21 -> 68.78 | F36: ='Dataload WMS'!F21 -> 3161.4 | G36: ='Dataload WMS'!G21 -> 0 | H36: 3741.29 | I36: 6 | J36: 623.5483333 | K36: 96.64833333

Sheet UG_Trenching (hidden)
A1: Lay Ducts (install) | C1: L/unit | D1: P&V/unit | E1: M/Unit | F1: D/Unit | H1: constants
A2: =B2/$B$8 -> 0 | B2: =AVS!N19+AVS!P19 -> 0 | C2: =IF(B2=0,0,A2*$C$8/B2) -> 0 | D2: =IF(B2=0,0,A2*$D$8/B2) -> 0 | E2: =E37 -> 8.991666667 | F2: =IF($B$8<20,(K$28/$B$8),K$29) -> 0 | G2: =SUM(C2:F2)*B2 -> 0
A3: 0 | B3: =AVS!N20+AVS!P20+AVS!N30+AVS!P30 -> 0 | C3: 0 | D3: 0 | E3: =AVERAGE(E33:E34) -> 4.1525 | F3: =IF($B$8<20,(K$28/$B$8),K$29) -> 0 | G3: 0 | H3: =B8 -> 1 | I3: =G28 -> 4.6 | J3: =H28 -> 37.11521739 | K3: =I28 -> 7.869565217
A4: 0 | B4: =AVS!N21+AVS!P21+AVS!N31+AVS!P31 -> 0 | C4: 0 | D4: 0 | E4: =E3 -> 4.1525 | F4: =F3 -> 0 | G4: 0 | H4: =B4*C4 -> 0 | I4: =G29 -> 115 | J4: =($H$3-$G$29)*L4+H29 -> 38.27708507 | K4: =($H$3-$G$29)*M4+I29 -> 8.115916824 | L4: =(H28-H29)/(G28-G29) -> -0.3227410208 | M4: =(I28-I29)/(G28-G29) -> -0.06843100189
A5: 0 | B5: =AVS!N22+AVS!P22+AVS!N32+AVS!P32 -> 0 | C5: 0 | D5: 0 | E5: =E4 -> 4.1525 | F5: =F4 -> 0 | G5: 0 | I5: =G30 -> 230 | J5: =($H$3-$G$30)*L5+H30 -> 1.462584499 | K5: =($H$3-$G$30)*M5+I30 -> 0.3100846881 | L5: =(H29-H30)/(G29-G30) -> 0.000193194707 | M5: =(I29-I30)/(G29-G30) -> 4.120982987e-05
A6: 0 | B6: =AVS!N23+AVS!P23+AVS!N33+AVS!P33 -> 0 | C6: 0 | D6: 0 | E6: =E36 -> 2.4675 | F6: =F5 -> 0 | G6: =SUM(C6:F6)*B6 -> 0 | J6: =H30 -> 1.506826087 | K6: =I30 -> 0.3195217391
A7: 0 | B7: =AVS!N24+AVS!P24+AVS!N34+AVS!P34 -> 0 | C7: 0 | D7: 0 | E7: =E35 -> 1.8075 | F7: =F6 -> 0 | G7: 0
A8: =INT(B8/$I$4)+1 -> 1 | B8: =IF(SUM(B3:B7)=0,1,SUM(B3:B7)) -> 1 | C8: =A8*$C$28 -> 170.73 | D8: =A8*D28 -> 36.2
A10: Lay Ducts (remove) | C10: L/unit | D10: P&V/unit | E10: M/Unit | F10: D/Unit | H10: constants
A11: =B11/$B$17 -> 0.1666666667 | B11: 45 | C11: =IF(B11=0,0,A11*$C$17/B11) -> 1.897 | D11: =IF(B11=0,0,A11*$D$17/B11) -> 0.4022222222 | E11: =E37 -> 8.991666667 | F11: =IF($B$8<20,(K$28/$B$8),K$29) -> 0 | G11: =SUM(C11:F11)*B11 -> 508.09
A12: 0.1666666667 | B12: 45 | C12: 1.897 | D12: 0.4022222222 | E12: =AVERAGE($E$33:$E$34) -> 4.1525 | F12: =IF($B$8<20,(K$28/$B$8),K$29) -> 0 | G12: 290.3275 | H12: =H3 -> 1 | I12: 4.6 | J12: 37.11521739 | K12: 7.869565217 | L12: 0 | M12: 0
A13: 0.1666666667 | B13: 45 | C13: 1.897 | D13: 0.4022222222 | E13: =E12 -> 4.1525 | F13: =F12 -> 0 | G13: 290.3275 | H13: =H4 -> 0 | I13: 115 | J13: 38.27708507 | K13: 8.115916824 | L13: -0.3227410208 | M13: -0.06843100189
A14: 0.1666666667 | B14: 45 | C14: 1.897 | D14: 0.4022222222 | E14: =E13 -> 4.1525 | F14: =F13 -> 0 | G14: 290.3275 | H14: 0 | I14: 230 | J14: 1.462584499 | K14: 0.3100846881 | L14: 0.000193194707 | M14: 4.120982987e-05
A15: 0.1666666667 | B15: 45 | C15: 1.897 | D15: 0.4022222222 | E15: =E36 -> 2.4675 | F15: =F14 -> 0 | G15: 214.5025 | H15: 0 | I15: 0 | J15: 1.506826087 | K15: 0.3195217391 | L15: 0 | M15: 0
A16: 0.1666666667 | B16: 45 | C16: 1.897 | D16: 0.4022222222 | E16: =E35 -> 1.8075 | F16: =F15 -> 0 | G16: 184.8025 | H16: 0 | I16: 0 | J16: 0 | K16: 0 | L16: 0 | M16: 0
A17: =INT(B17/$I$4)+1 -> 3 | B17: =IF(SUM(B11:B16)=0,1,SUM(B11:B16)) -> 270 | C17: =A17*$C$28 -> 512.19 | D17: =A17*D28 -> 108.6
A19: Trenching | B19: 2 | C19: 3 | D19: 4 | E19: 5 | F19: 6 | G19: 7 | H19: 8 | I19: 9 | J19: 10 | K19: 11 | L19: 12
A20: Trenching | B20: D2 | C20: Labour | D20: Plant and Vehicles | E20: Materials2 | F20: Direct | G20: Units | H20: Labour/Unit | I20: Plant & Vehicles / Unit | J20: Materials / Unit | K20: Direct / Unit | L20: Total / Unit
A21: Heavy trenching & reinstatement | B21: m | C21: ='Dataload WMS'!D111 -> 21671.44 | D21: ='Dataload WMS'!E111 -> 10145.77 | E21: ='Dataload WMS'!F111 -> 0 | F21: ='Dataload WMS'!G111 -> 25250 | G21: ='Dataload WMS'!H111 -> 100 | H21: =C21/$G21 -> 216.7144 | I21: =D21/$G21 -> 101.4577 | J21: 0 | K21: 252.5 | L21: =SUM(H21:K21) -> 570.6721
A22: Medium trenching & reinstatement | B22: m | C22: ='Dataload WMS'!D113 -> 6123.96 | D22: ='Dataload WMS'!E113 -> 1950.96 | E22: ='Dataload WMS'!F113 -> 0 | F22: ='Dataload WMS'!G113 -> 8250 | G22: ='Dataload WMS'!H113 -> 100 | H22: 61.2396 | I22: 19.5096 | J22: 0 | K22: 82.5 | L22: =SUM(H22:K22) -> 163.2492
A23: Light trenching & reinstatement | B23: m | C23: ='Dataload WMS'!D112 -> 3654.11 | D23: ='Dataload WMS'!E112 -> 1160.93 | E23: ='Dataload WMS'!F112 -> 0 | F23: ='Dataload WMS'!G112 -> 5500 | G23: ='Dataload WMS'!H112 -> 100 | H23: =C23/$G23 -> 36.5411 | I23: =D23/$G23 -> 11.6093 | J23: =E23/$G23 -> 0 | K23: =F23/$G23 -> 55 | L23: =SUM(H23:K23) -> 103.1504
A24: Excavate for STJ | B24: ea | C24: ='Dataload WMS'!D110 -> 554.31 | D24: ='Dataload WMS'!E110 -> 89.21 | E24: ='Dataload WMS'!F110 -> 48.53 | F24: ='Dataload WMS'!G110 -> 0 | G24: ='Dataload WMS'!H110 -> 1 | H24: 554.31 | I24: 89.21 | J24: 48.53 | K24: 0 | L24: =SUM(H24:K24) -> 692.05
A26: Ducts | B26: D2 | C26: Labour | D26: Plant and Vehicles | E26: Materials2 | F26: Direct | G26: Metres | H26: Labour/Unit | I26: Plant & Vehicles / Unit | J26: Materials / Unit | K26: Direct / Unit | L26: Total / Unit
A27: 0 | E27: 0 | F27: 0 | G27: 1 | H27: =C27/$G27 -> 0 | I27: 0 | J27: 0 | K27: 0 | L27: =SUM(H27:K27) -> 0
A28: 1 | C28: ='Dataload WMS'!D123 -> 170.73 | D28: ='Dataload WMS'!E123 -> 36.2 | E28: 0 | F28: 0 | G28: =A28*4.6 -> 4.6 | H28: 37.11521739 | I28: 7.869565217 | J28: 0 | K28: 0 | L28: =SUM(H28:K28) -> 44.98478261
A29: 25 | C29: =C28 -> 170.73 | D29: =D28 -> 36.2 | E29: 0 | F29: 0 | G29: =A29*4.6 -> 115 | H29: 1.484608696 | I29: 0.3147826087 | J29: 0 | K29: 0 | L29: =SUM(H29:K29) -> 1.799391304
A30: 50 | C30: ='Dataload WMS'!D124 -> 346.57 | D30: ='Dataload WMS'!E124 -> 73.49 | E30: 0 | F30: 0 | G30: =A30*4.6 -> 230 | H30: 1.506826087 | I30: 0.3195217391 | J30: 0 | K30: 0 | L30: =SUM(H30:K30) -> 1.826347826
A32: Ducts | B32: Column1 | C32: Price / unit | D32: length of unit | E32: Price / meter | F32: Column2
A33: 125x6m | B33: 1138767 | C33: ='Dataload Ellipse'!G144 -> 25.06 | D33: 6 | E33: =C33/D33 -> 4.176666667
A34: 125x6m | B34: SC19039 | C34: ='Dataload Ellipse'!G145 -> 24.77 | D34: 6 | E34: =C34/D34 -> 4.128333333
A35: 40mm Conduit | B35: 001005893 | C35: ='Dataload Ellipse'!G146 -> 7.23 | D35: 4 | E35: =C35/D35 -> 1.8075
A36: 50mm Conduit | B36: 1005900 | C36: ='Dataload Ellipse'!G147 -> 9.87 | D36: 4 | E36: =C36/D36 -> 2.4675
A37: M150x6m | B37: 001546662 | C37: ='Dataload Ellipse'!G148 -> 53.95 | D37: 6 | E37: =C37/D37 -> 8.991666667
A41: 1 | B41: 128.37 | C41: =B41/A41 -> 128.37 | D41: =A41/4.6 -> 0.2173913043 | E41: =A33&" SC:"&B33 -> 125x6m SC:1138767
A42: 2 | B42: 133.69 | C42: =B42/A42 -> 66.845 | D42: =A42/4.6 -> 0.4347826087 | E42: 125x6m SC:SC19039
A43: 3 | B43: 139 | C43: 46.33333333 | D43: 0.652173913 | E43: 40mm Conduit SC:001005893
A44: 5 | B44: 149.64 | C44: 29.928 | D44: 1.086956522 | E44: 50mm Conduit SC:1005900
A45: 8 | B45: 165.6 | C45: 20.7 | D45: 1.739130435 | E45: M150x6m SC:001546662
A46: 12 | B46: 186.87 | C46: 15.5725 | D46: 2.608695652 | E46: SC:
A47: =A46+4 -> 16 | B47: 208.14 | C47: 13.00875 | D47: 3.47826087
A48: 20 | B48: 229.42 | C48: 11.471 | D48: 4.347826087
A49: 25 | B49: 256.01 | C49: 10.2404 | D49: 5.434782609
A50: 90 | B50: 601.69 | C50: 7.5 | D50: 19.56521739
A51: 125 | B51: 910.18 | C51: =B51/A51 -> 7.28144 | D51: 27.17391304
A52: =125*4.6 -> 575 | B52: 3796.3 | C52: =B52/A52 -> 6.60226087 | D52: 125
B54: AVS
A55: type | B55: $/m (10m) | C55: $/m (100m) | D55: $/m (1000m) | E55: FS11 | F55: dedicated ducts (FS11)
A56: 01 | B56: 29.6 | C56: =18.53 -> 18.53 | D56: =18.4 -> 18.4 | E56: 19 | F56: 37
A57: 02 | B57: =20.8*2 -> 41.6 | C57: =15.88*2 -> 31.76 | D57: =15.76*2 -> 31.52 | E57: =$E$56*2 -> 38 | F57: 70
A58: 03 | B58: =15.65*3 -> 46.95 | C58: =12.78*3 -> 38.34 | D58: =12.66*3 -> 37.98 | E58: =$E$56*3 -> 57 | F58: 96
A59: 04 | B59: =13.08*4 -> 52.32 | C59: =11.23*4 -> 44.92 | D59: =11.08*4 -> 44.32 | E59: =$E$56*4 -> 76 | F59: 114
A60: 05 | B60: =12.77*5 -> 63.85 | C60: =11.54*5 -> 57.7 | D60: =11.39*5 -> 56.95 | E60: =$E$56*5 -> 95 | F60: 151
A61: 06 | B61: =11.53*6 -> 69.18 | C61: =10.51*6 -> 63.06 | D61: =10.57*6 -> 63.42 | E61: =$E$56*6 -> 114 | F61: 170
A64: medium trench (WMS)
A65: 250 | B65: 4979.72 | C65: =B65/A65 -> 19.91888
A66: 2500 | B66: 49797.16 | C66: =B66/A66 -> 19.918864
A69: outside civil contractors
A70: type | B70: distance | C70: price | D70: duct cost | E70: other costs | F70: other cost /m
A71: 01 | B71: 100 | C71: 8050 | D71: =$E$33*100 -> 417.6666667 | E71: =C71-D71 -> 7632.333333 | F71: =E71/B71 -> 76.32333333 | G71: =C71/B71 -> 80.5
B72: 1000 | C72: 80500 | F72: 0
A73: 02 | B73: 100 | C73: 9400 | D73: =$E$33*100*2 -> 835.3333333 | E73: =C73-D73 -> 8564.666667 | F73: 85.64666667 | G73: =C73/B73 -> 94
B74: 1000 | C74: 94000 | F74: 0
A75: 04 | B75: 100 | C75: 15000 | D75: =$E$33*100*4 -> 1670.666667 | E75: =C75-D75 -> 13329.33333 | F75: 133.2933333 | G75: =C75/B75 -> 150
A76: 06 | B76: 100 | C76: 22500 | D76: =$E$33*100*6 -> 2506 | E76: =C76-D76 -> 19994 | F76: 199.94 | G76: =C76/B76 -> 225

Sheet OH_Poles (hidden)
A1: New Pole | B1: 2 | C1: 3 | D1: 4 | E1: 5 | F1: 6 | G1: 7 | H1: 8 | I1: 9 | J1: 10 | K1: 11 | L1: 12
A2: Number Installed: | B2: D2 | C2: Labour | D2: Plant and Vehicles | E2: Materials | F2: Direct | G2: Units | H2: Labour/Unit | I2: Plant & Vehicles / Unit | J2: Materials / Unit | K2: Direct / Unit | L2: Total / Unit
A3: 0 | B3: m | C3: 0 | D3: 0 | E3: 0 | F3: 0 | G3: ='Dataload WMS'!H59 -> 0 | H3: 0 | I3: 0 | J3: 0 | K3: 0 | L3: 0
A4: 1 | B4: n | C4: ='Dataload WMS'!D60 -> 419.05 | D4: ='Dataload WMS'!E60 -> 175.84 | E4: ='Dataload WMS'!F60 -> 64.92 | F4: ='Dataload WMS'!G60 -> 0 | G4: ='Dataload WMS'!H60 -> 1 | H4: =C4/$G4 -> 419.05 | I4: 175.84 | J4: 64.92 | K4: 0 | L4: =SUM(H4:K4) -> 659.81 | N4: =A4&" Pole(s) Installed" -> 1 Pole(s) Installed
A5: 2 | B5: n | C5: ='Dataload WMS'!D61 -> 903.91 | D5: ='Dataload WMS'!E61 -> 528.34 | E5: ='Dataload WMS'!F61 -> 119.02 | F5: ='Dataload WMS'!G61 -> 0 | G5: ='Dataload WMS'!H61 -> 2 | H5: =C5/$G5 -> 451.955 | I5: 264.17 | J5: 59.51 | K5: 0 | L5: =SUM(H5:K5) -> 775.635 | N5: =A5&" Pole(s) Installed" -> 2 Pole(s) Installed
A6: 4 | B6: n | C6: ='Dataload WMS'!D62 -> 1486.09 | D6: ='Dataload WMS'!E62 -> 951.59 | E6: ='Dataload WMS'!F62 -> 367.88 | F6: ='Dataload WMS'!G62 -> 0 | G6: ='Dataload WMS'!H62 -> 4 | H6: 371.5225 | I6: 237.8975 | J6: 91.97 | K6: 0 | L6: =SUM(H6:K6) -> 701.39 | N6: =A6&" Pole(s) Installed" -> 4 Pole(s) Installed
A7: 8 | B7: n | C7: ='Dataload WMS'!D63 -> 2184.36 | D7: ='Dataload WMS'!E63 -> 1459.24 | E7: ='Dataload WMS'!F63 -> 476.08 | F7: ='Dataload WMS'!G63 -> 0 | G7: ='Dataload WMS'!H63 -> 8 | H7: 273.045 | I7: 182.405 | J7: 59.51 | K7: 0 | L7: =SUM(H7:K7) -> 514.96 | N7: =A7&" Pole(s) Installed" -> 8 Pole(s) Installed
A9: Poles | B9: D2 | C9: Labour | D9: Plant and Vehicles | E9: Materials | F9: Direct | G9: Units | H9: Labour/Unit | I9: Plant & Vehicles / Unit | J9: Materials / Unit | K9: Direct / Unit | L9: Total / Unit
A10: Pole Impregnated 8/15 | B10: SP11869 | E10: ='Dataload Ellipse'!G4 -> 261.1193 | G10: 1 | H10: =C10/$G10 -> 0 | I10: =D10/$G10 -> 0 | J10: =E10/$G10 -> 261.1193 | K10: =F10/$G10 -> 0 | L10: =SUM(H10:K10) -> 261.1193 | N10: =A10&" SC:"&B10 -> Pole Impregnated 8/15 SC:SP11869
A11: Pole Impregnated 8/30 | B11: SP11877 | E11: ='Dataload Ellipse'!G5 -> 736.000278 | G11: 1 | H11: 0 | I11: 0 | J11: 736.000278 | K11: 0 | L11: 736.000278 | N11: =A11&" SC:"&B11 -> Pole Impregnated 8/30 SC:SP11877
A12: Pole Impregnated 9.5/4 | B12: SP11885 | E12: ='Dataload Ellipse'!G6 -> 316.305676 | G12: 1 | H12: 0 | I12: 0 | J12: 316.305676 | K12: 0 | L12: 316.305676 | N12: Pole Impregnated 9.5/4 SC:SP11885
A13: Pole Impregnated 9.5/8 | B13: SP11893 | E13: ='Dataload Ellipse'!G7 -> 509.456703 | G13: 1 | H13: 0 | I13: 0 | J13: 509.456703 | K13: 0 | L13: 509.456703 | N13: Pole Impregnated 9.5/8 SC:SP11893
A14: Pole Impregnated 11/4 | B14: SP11907 | E14: ='Dataload Ellipse'!G8 -> 447.694583 | G14: 1 | H14: 0 | I14: 0 | J14: 447.694583 | K14: 0 | L14: 447.694583 | N14: Pole Impregnated 11/4 SC:SP11907
A15: Pole Impregnated 11/8 | B15: SP11915 | E15: ='Dataload Ellipse'!G9 -> 701.917619 | G15: 1 | H15: 0 | I15: 0 | J15: 701.917619 | K15: 0 | L15: 701.917619 | N15: Pole Impregnated 11/8 SC:SP11915
A16: Pole Impregnated 11/12 | B16: SP11923 | E16: ='Dataload Ellipse'!G10 -> 839.257059 | G16: 1 | H16: 0 | I16: 0 | J16: 839.257059 | K16: 0 | L16: 839.257059 | N16: Pole Impregnated 11/12 SC:SP11923
A17: Pole Impregnated 12.5/4 | B17: SP11931 | E17: ='Dataload Ellipse'!G11 -> 630.886786 | G17: 1 | H17: 0 | I17: 0 | J17: 630.886786 | K17: 0 | L17: 630.886786 | N17: Pole Impregnated 12.5/4 SC:SP11931
A18: Pole Impregnated 12.5/8 | B18: SP11958 | E18: ='Dataload Ellipse'!G12 -> 850.975897 | G18: 1 | H18: 0 | I18: 0 | J18: 850.975897 | K18: 0 | L18: 850.975897 | N18: Pole Impregnated 12.5/8 SC:SP11958
A19: Pole Impregnated 12.5/12 | B19: SP11966 | E19: ='Dataload Ellipse'!G13 -> 1121.818099 | G19: 1 | H19: 0 | I19: 0 | J19: 1121.818099 | K19: 0 | L19: 1121.818099 | N19: Pole Impregnated 12.5/12 SC:SP11966
A20: Pole Impregnated 12.5S | B20: SP11974 | E20: ='Dataload Ellipse'!G14 -> 657.2066 | G20: 1 | H20: 0 | I20: 0 | J20: 657.2066 | K20: 0 | L20: 657.2066 | N20: Pole Impregnated 12.5S SC:SP11974
A21: Pole Impregnated 12.5/18 | B21: SP11982 | E21: ='Dataload Ellipse'!G15 -> 1257.4625 | G21: 1 | H21: 0 | I21: 0 | J21: 1257.4625 | K21: 0 | L21: 1257.4625 | N21: Pole Impregnated 12.5/18 SC:SP11982
A22: Pole Impregnated 14/8 | B22: SP11990 | E22: ='Dataload Ellipse'!G16 -> 993.629091 | G22: 1 | H22: 0 | I22: 0 | J22: 993.629091 | K22: 0 | L22: 993.629091 | N22: Pole Impregnated 14/8 SC:SP11990
A23: Pole Impregnated 14/12 | B23: SP12008 | E23: ='Dataload Ellipse'!G17 -> 1283.595139 | G23: 1 | H23: 0 | I23: 0 | J23: 1283.595139 | K23: 0 | L23: 1283.595139 | N23: Pole Impregnated 14/12 SC:SP12008
A24: Pole Impregnated 18.5/8 | B24: SP12059 | E24: ='Dataload Ellipse'!G18 -> 2073.252188 | G24: 1 | H24: 0 | I24: 0 | J24: 2073.252188 | K24: 0 | L24: 2073.252188 | N24: Pole Impregnated 18.5/8 SC:SP12059
A25: Pole Impregnated 15.5/12 | B25: SP12105 | E25: ='Dataload Ellipse'!G19 -> 1851.508 | G25: 1 | H25: 0 | I25: 0 | J25: 1851.508 | K25: 0 | L25: 1851.508 | N25: Pole Impregnated 15.5/12 SC:SP12105
A26: Pole Impregnated 17/12 | B26: SP12288 | E26: ='Dataload Ellipse'!G20 -> 2252.93 | G26: 1 | H26: 0 | I26: 0 | J26: 2252.93 | K26: 0 | L26: 2252.93 | N26: Pole Impregnated 17/12 SC:SP12288
A27: Pole Impregnated 18.5/12 | B27: SP12296 | E27: ='Dataload Ellipse'!G21 -> 2512.65 | G27: 1 | H27: 0 | I27: 0 | J27: 2512.65 | K27: 0 | L27: 2512.65 | N27: Pole Impregnated 18.5/12 SC:SP12296
A28: Pole Impregnated 20/12 | B28: SP12326 | E28: ='Dataload Ellipse'!G22 -> 3011.036429 | G28: 1 | H28: 0 | I28: 0 | J28: 3011.036429 | K28: 0 | L28: 3011.036429 | N28: Pole Impregnated 20/12 SC:SP12326
A29: Pole Impregnated 21.5/12 | B29: SP12334 | E29: ='Dataload Ellipse'!G23 -> 3564.75375 | G29: 1 | H29: 0 | I29: 0 | J29: 3564.75375 | K29: 0 | L29: 3564.75375 | N29: Pole Impregnated 21.5/12 SC:SP12334
A30: Pole Impregnated 9.5/12 | B30: SP12458 | E30: ='Dataload Ellipse'!G24 -> 640.477 | G30: 1 | H30: 0 | I30: 0 | J30: 640.477 | K30: 0 | L30: 640.477 | N30: Pole Impregnated 9.5/12 SC:SP12458
A31: Pole Impregnated 23/12 | B31: SP13717 | E31: ='Dataload Ellipse'!G25 -> 640.477 | G31: 1 | H31: 0 | I31: 0 | J31: 640.477 | K31: 0 | L31: 640.477 | N31: Pole Impregnated 23/12 SC:SP13717
A32: Pole Concrete 11/8 C1 | B32: 1548718 | E32: ='Dataload Ellipse'!G26 -> 1054 | G32: 1 | H32: 0 | I32: 0 | J32: 1054 | K32: 0 | L32: 1054 | N32: Pole Concrete 11/8 C1 SC:1548718
A33: Pole Concrete 11/8 E1 | B33: 1548734 | E33: ='Dataload Ellipse'!G27 -> 1065 | G33: 1 | H33: 0 | I33: 0 | J33: 1065 | K33: 0 | L33: 1065 | N33: Pole Concrete 11/8 E1 SC:1548734
A34: Pole Concrete 11/8 G2 | B34: 1548759 | E34: ='Dataload Ellipse'!G28 -> 1212 | G34: 1 | H34: 0 | I34: 0 | J34: 1212 | K34: 0 | L34: 1212 | N34: Pole Concrete 11/8 G2 SC:1548759
A35: Pole Concrete 12.5/5 G3 | B35: 1548767 | E35: ='Dataload Ellipse'!G29 -> 932.5536 | G35: 1 | H35: 0 | I35: 0 | J35: 932.5536 | K35: 0 | L35: 932.5536 | N35: Pole Concrete 12.5/5 G3 SC:1548767
A36: Pole Concrete 12.5/8 G4 | B36: 1548775 | E36: ='Dataload Ellipse'!G30 -> 1059.3409 | G36: 1 | H36: 0 | I36: 0 | J36: 1059.3409 | K36: 0 | L36: 1059.3409 | N36: Pole Concrete 12.5/8 G4 SC:1548775
A37: Pole Concrete 12.5/12 G5 | B37: 1548783 | E37: ='Dataload Ellipse'!G31 -> 1319.8418 | G37: 1 | H37: 0 | I37: 0 | J37: 1319.8418 | K37: 0 | L37: 1319.8418 | N37: Pole Concrete 12.5/12 G5 SC:1548783
A38: Pole Concrete 12.5/20 G6 | B38: 1548791 | E38: ='Dataload Ellipse'!G32 -> 1691.36 | G38: 1 | H38: 0 | I38: 0 | J38: 1691.36 | K38: 0 | L38: 1691.36 | N38: Pole Concrete 12.5/20 G6 SC:1548791
A39: Pole Concrete 14/8 G7 | B39: 1548809 | E39: ='Dataload Ellipse'!G33 -> 1271.559 | G39: 1 | H39: 0 | I39: 0 | J39: 1271.559 | K39: 0 | L39: 1271.559 | N39: Pole Concrete 14/8 G7 SC:1548809
A40: Pole Concrete 14/12 G8 | B40: 1548817 | E40: ='Dataload Ellipse'!G34 -> 1578.3748 | G40: 1 | H40: 0 | I40: 0 | J40: 1578.3748 | K40: 0 | L40: 1578.3748 | N40: Pole Concrete 14/12 G8 SC:1548817
A41: Pole Concrete 14/12 REGULATOR | B41: 1550078 | E41: ='Dataload Ellipse'!G35 -> 2450.53 | G41: 1 | H41: 0 | I41: 0 | J41: 2450.53 | K41: 0 | L41: 2450.53 | N41: Pole Concrete 14/12 REGULATOR SC:1550078
A42: Pole Concrete 14/12 D2 | B42: 1550557 | E42: ='Dataload Ellipse'!G36 -> 1207 | G42: 1 | H42: =C42/$G42 -> 0 | I42: =D42/$G42 -> 0 | J42: =E42/$G42 -> 1207 | K42: =F42/$G42 -> 0 | L42: =SUM(H42:K42) -> 1207 | N42: Pole Concrete 14/12 D2 SC:1550557
A43: Pole Concrete 12.5/8 C6 ABS | B43: 1551977 | E43: ='Dataload Ellipse'!G37 -> 1238.3402 | G43: 1 | H43: 0 | I43: 0 | J43: 1238.3402 | K43: 0 | L43: 1238.3402 | N43: Pole Concrete 12.5/8 C6 ABS SC:1551977
A44: Pole Concrete 11/8 B2 | B44: 1552074 | E44: ='Dataload Ellipse'!G38 -> 993.62 | G44: 1 | H44: 0 | I44: 0 | J44: 993.62 | K44: 0 | L44: 993.62 | N44: Pole Concrete 11/8 B2 SC:1552074
A45: Pole Concrete 9.5/8 A4 | B45: SP17328 | E45: ='Dataload Ellipse'!G39 -> 894.049 | G45: 1 | H45: 0 | I45: 0 | J45: 894.049 | K45: 0 | L45: 894.049 | N45: Pole Concrete 9.5/8 A4 SC:SP17328
A46: Pole Concrete 11/8 A7 | B46: SP17344 | E46: ='Dataload Ellipse'!G40 -> 1090.7515 | G46: 1 | H46: 0 | I46: 0 | J46: 1090.7515 | K46: 0 | L46: 1090.7515 | N46: Pole Concrete 11/8 A7 SC:SP17344
A47: Pole Concrete 11/12 A8 | B47: SP17352 | E47: ='Dataload Ellipse'!G41 -> 1165.9163 | G47: 1 | H47: 0 | I47: 0 | J47: 1165.9163 | K47: 0 | L47: 1165.9163 | N47: Pole Concrete 11/12 A8 SC:SP17352
A48: Pole Concrete 12.5/8 B4 | B48: SP17387 | E48: ='Dataload Ellipse'!G42 -> 1928.89718 | G48: 1 | H48: 0 | I48: 0 | J48: 1928.89718 | K48: 0 | L48: 1928.89718 | N48: Pole Concrete 12.5/8 B4 SC:SP17387
A49: Pole Concrete 12.5/12 C2 ABS | B49: SP17409 | E49: ='Dataload Ellipse'!G43 -> 1468.6311 | G49: 1 | H49: 0 | I49: 0 | J49: 1468.6311 | K49: 0 | L49: 1468.6311 | N49: Pole Concrete 12.5/12 C2 ABS SC:SP17409
A50: Pole Concrete 14/12 C5 ABS | B50: SP17425 | E50: ='Dataload Ellipse'!G44 -> 1718.4316 | G50: 1 | H50: 0 | I50: 0 | J50: 1718.4316 | K50: 0 | L50: 1718.4316 | N50: Pole Concrete 14/12 C5 ABS SC:SP17425
A51: Pole Concrete 14/8 C4 ABS | B51: SP17484 | E51: ='Dataload Ellipse'!G45 -> 1424.81 | G51: 1 | H51: 0 | I51: 0 | J51: 1424.81 | K51: 0 | L51: 1424.81 | N51: Pole Concrete 14/8 C4 ABS SC:SP17484
A52: Pole Concrete 9.5/12 A5 | B52: SP17506 | E52: ='Dataload Ellipse'!G46 -> 1011.4688 | G52: 1 | H52: 0 | I52: 0 | J52: 1011.4688 | K52: 0 | L52: 1011.4688 | N52: Pole Concrete 9.5/12 A5 SC:SP17506
A53: Pole Concrete 8/30 H2 | B53: SP17514 | E53: ='Dataload Ellipse'!G47 -> 2672 | G53: 1 | H53: 0 | I53: 0 | J53: 2672 | K53: 0 | L53: 2672 | N53: Pole Concrete 8/30 H2 SC:SP17514
A54: Pole Concrete 18.5/12 | B54: SP17522 | E54: ='Dataload Ellipse'!G48 -> 2738.5 | G54: 1 | H54: 0 | I54: 0 | J54: 2738.5 | K54: 0 | L54: 2738.5 | N54: Pole Concrete 18.5/12 SC:SP17522
A55: Pole Concrete 20/12 | B55: SP17557 | E55: ='Dataload Ellipse'!G49 -> 4407.467 | G55: 1 | H55: 0 | I55: 0 | J55: 4407.467 | K55: 0 | L55: 4407.467 | N55: Pole Concrete 20/12 SC:SP17557
A56: Pole Concrete 8/15 H1 | B56: SP17638 | E56: ='Dataload Ellipse'!G50 -> 1596.1421 | G56: 1 | H56: 0 | I56: 0 | J56: 1596.1421 | K56: 0 | L56: 1596.1421 | N56: Pole Concrete 8/15 H1 SC:SP17638
A57: Pole Concrete 12.5/20 C3 ABS | B57: SP17646 | E57: ='Dataload Ellipse'!G51 -> 1912 | G57: 1 | H57: 0 | I57: 0 | J57: 1912 | K57: 0 | L57: 1912 | N57: Pole Concrete 12.5/20 C3 ABS SC:SP17646
A58: Pole Concrete 17/12 | B58: SP17786 | E58: ='Dataload Ellipse'!G52 -> 3158 | G58: 1 | H58: 0 | I58: 0 | J58: 3158 | K58: 0 | L58: 3158 | N58: Pole Concrete 17/12 SC:SP17786
A59: Pole Concrete 12.5 SUBSTATION | B59: SP17913 | E59: ='Dataload Ellipse'!G53 -> 1881.6986 | G59: 1 | H59: 0 | I59: 0 | J59: 1881.6986 | K59: 0 | L59: 1881.6986 | N59: Pole Concrete 12.5 SUBSTATION SC:SP17913
A60: Pole 1PH Service Steel 6.5M | B60: 1546126 | E60: ='Dataload Ellipse'!G54 -> 594.7 | G60: 1 | H60: 0 | I60: 0 | J60: 594.7 | K60: 0 | L60: 594.7 | N60: Pole 1PH Service Steel 6.5M SC:1546126
A61: Pole 3PH Service Steel 6.5M | B61: 1546134 | E61: ='Dataload Ellipse'!G55 -> 594.7 | G61: 1 | H61: 0 | I61: 0 | J61: 594.7 | K61: 0 | L61: 594.7 | N61: Pole 3PH Service Steel 6.5M SC:1546134
A62: Install Steel Service Pole | C62: 74.03 | D62: 28.85 | E62: 0 | F62: 0 | G62: 1 | H62: 74.03 | I62: 28.85 | J62: 0 | K62: 0 | L62: 102.88
A63: NC_AVS | D63: Labour | E63: Plant & Vehicles | F63: Materials | G63: Direct | H63: Total | I63: N | K63: mL | L63: mPV
A64: Remove 1 Pole | D64: ='Dataload WMS'!D64 -> 315.57 | E64: ='Dataload WMS'!E64 -> 124.12 | F64: ='Dataload WMS'!F64 -> 0 | G64: ='Dataload WMS'!G64 -> 0 | H64: =SUM(D64:G64) -> 439.69 | I64: 1 | J64: =H64/I64 -> 439.69
A65: Remove 4 Poles | D65: ='Dataload WMS'!D66 -> 707.31 | E65: ='Dataload WMS'!E66 -> 409.39 | F65: ='Dataload WMS'!F66 -> 0 | G65: ='Dataload WMS'!G66 -> 0 | H65: =SUM(D65:G65) -> 1116.7 | I65: 4 | J65: =H65/I65 -> 279.175 | K65: =(D65-D64)/(I65-I64) -> 130.58 | L65: =(E65-E64)/(I65-I64) -> 95.09
A66: Remove 8 Poles | D66: ='Dataload WMS'!D67 -> 1385.6 | E66: ='Dataload WMS'!E67 -> 800.01 | F66: ='Dataload WMS'!F67 -> 0 | G66: ='Dataload WMS'!G67 -> 0 | H66: =SUM(D66:G66) -> 2185.61 | I66: 8 | J66: =H66/I66 -> 273.20125 | K66: =(D66-D65)/(I66-I65) -> 169.5725 | L66: =(E66-E65)/(I66-I65) -> 97.655
A67: Remove 16 Poles | D67: ='Dataload WMS'!D65 -> 1885.7 | E67: ='Dataload WMS'!E65 -> 916.01 | F67: ='Dataload WMS'!F65 -> 0 | G67: ='Dataload WMS'!G65 -> 0 | H67: =SUM(D67:G67) -> 2801.71 | I67: 16 | J67: =H67/I67 -> 175.106875
A68: No Poles (removed) | B68: D2 | C68: Labour | D68: Plant and Vehicles | E68: Materials | F68: Direct | G68: Units | H68: Labour/Unit | I68: Plant & Vehicles / Unit | J68: Materials / Unit | K68: Direct / Unit | L68: Total / Unit
A69: 0 | C69: 0 | D69: 0 | E69: 0 | F69: 0 | G69: 0 | H69: 0 | I69: 0 | J69: 0 | K69: 0 | L69: 0
A70: 1 | C70: =D64 -> 315.57 | D70: =E64 -> 124.12 | E70: =F64 -> 0 | F70: =G64 -> 0 | G70: 1 | H70: =C70/$G70 -> 315.57 | I70: =D70/$G70 -> 124.12 | J70: =E70/$G70 -> 0 | K70: =F70/$G70 -> 0 | L70: =SUM(H70:K70) -> 439.69
A71: 2 | C71: =C70+$K$65 -> 446.15 | D71: =D70+$L$65 -> 219.21 | G71: 2 | H71: 223.075 | I71: 109.605 | J71: 0 | K71: 0 | L71: 332.68
A72: 3 | C72: =C71+$K$65 -> 576.73 | D72: =D71+$L$65 -> 314.3 | G72: 3 | H72: 192.2433333 | I72: 104.7666667 | J72: 0 | K72: 0 | L72: 297.01
A73: 4 | C73: =D65 -> 707.31 | D73: =E65 -> 409.39 | E73: =F65 -> 0 | F73: =G65 -> 0 | G73: 4 | H73: 176.8275 | I73: 102.3475 | J73: 0 | K73: 0 | L73: 279.175
A74: 5 | C74: =C73+$K$66 -> 876.8825 | D74: =D73+$L$66 -> 507.045 | G74: 5 | H74: 175.3765 | I74: 101.409 | J74: 0 | K74: 0 | L74: 276.7855
A75: 6 | C75: =C74+$K$66 -> 1046.455 | D75: =D74+$L$66 -> 604.7 | G75: 6 | H75: 174.4091667 | I75: 100.7833333 | J75: 0 | K75: 0 | L75: 275.1925
A76: 7 | C76: =C75+$K$66 -> 1216.0275 | D76: =D75+$L$66 -> 702.355 | G76: 7 | H76: 173.7182143 | I76: 100.3364286 | J76: 0 | K76: 0 | L76: 274.0546429
A77: 8 | C77: =D66 -> 1385.6 | D77: 800.01 | E77: 0 | F77: 0 | G77: 8 | H77: 173.2 | I77: 100.00125 | J77: 0 | K77: 0 | L77: 273.20125
A78: 16 | C78: 1885.7 | D78: 916.01 | E78: 0 | F78: 0 | G78: 16 | H78: 117.85625 | I78: 57.250625 | J78: 0 | K78: 0 | L78: 175.106875

Sheet UG_joints (hidden)
A8: Joints | B8: 2 | C8: 3 | D8: 4 | E8: 5 | F8: 6 | G8: 7 | H8: 8 | I8: 9 | J8: 10 | K8: 11 | L8: 12
A9: Joints | B9: D2 | C9: Labour | D9: Plant and Vehicles | E9: Materials2 | F9: Direct | G9: Units | H9: Labour/Unit | I9: Plant & Vehicles / Unit | J9: Materials / Unit | K9: Direct / Unit | L9: Total / Unit
A10: STJ in Trench (LV) | C10: =C11 -> 629.9 | D10: =D11 -> 94.56 | E10: =E11 -> 162.62 | F10: 0 | G10: 1 | H10: =C10/$G10 -> 629.9 | I10: 94.56 | J10: 162.62 | K10: 0 | L10: =SUM(H10:K10) -> 887.08
A11: Term Cable in Pillar (LV) | C11: ='Dataload WMS'!D97 -> 629.9 | D11: ='Dataload WMS'!E97 -> 94.56 | E11: ='Dataload WMS'!F97 -> 162.62 | F11: ='Dataload WMS'!G97 -> 0 | G11: ='Dataload WMS'!H97 -> 1 | H11: 629.9 | I11: 94.56 | J11: 162.62 | K11: 0 | L11: 887.08
A12: Term Cable in Column (LV) | C12: ='Dataload WMS'!D95 -> 590.13 | D12: ='Dataload WMS'!E95 -> 90.52 | E12: ='Dataload WMS'!F95 -> 55.44 | F12: ='Dataload WMS'!G95 -> 0 | G12: ='Dataload WMS'!H95 -> 1 | H12: 590.13 | I12: 90.52 | J12: 55.44 | K12: 0 | L12: 736.09
A13: Term Cable in PM (LV) | C13: ='Dataload WMS'!D96 -> 513.66 | D13: ='Dataload WMS'!E96 -> 82.76 | E13: ='Dataload WMS'!F96 -> 142 | F13: ='Dataload WMS'!G96 -> 0 | G13: ='Dataload WMS'!H96 -> 1 | H13: 513.66 | I13: 82.76 | J13: 142 | K13: 0 | L13: 738.42
A14: STJ in Trench (HV) | C14: ='Dataload WMS'!D98 -> 714.03 | D14: ='Dataload WMS'!E98 -> 230.2 | E14: ='Dataload WMS'!F98 -> 612.3 | F14: ='Dataload WMS'!G98 -> 0 | G14: ='Dataload WMS'!H98 -> 1 | H14: 714.03 | I14: 230.2 | J14: 612.3 | K14: 0 | L14: 1556.53
A15: Straight to Transformer (HV) | C15: ='Dataload WMS'!D99 -> 1186.61 | D15: ='Dataload WMS'!E99 -> 151.05 | E15: ='Dataload WMS'!F99 -> 589.27 | F15: ='Dataload WMS'!G99 -> 0 | G15: ='Dataload WMS'!H99 -> 1 | H15: 1186.61 | I15: 151.05 | J15: 589.27 | K15: 0 | L15: 1926.93
A16: PM Sub Term (HV) | C16: ='Dataload WMS'!D100 -> 1651.78 | D16: ='Dataload WMS'!E100 -> 167.62 | E16: ='Dataload WMS'!F100 -> 916.63 | F16: ='Dataload WMS'!G100 -> 66.78 | G16: ='Dataload WMS'!H100 -> 1 | H16: 1651.78 | I16: 167.62 | J16: 916.63 | K16: 66.78 | L16: 2802.81
A17: UG/OH | C17: ='Dataload WMS'!D58 -> 309.71 | D17: ='Dataload WMS'!E58 -> 118.69 | E17: ='Dataload WMS'!F58 -> 137.6 | F17: =H32 -> 443.97342 | G17: 1 | H17: 309.71 | I17: 118.69 | J17: 137.6 | K17: 443.97342 | L17: =SUM(H17:K17) -> 1009.97342
A18: Zone sub access & supervision | C18: ='AVS Data'!C83 -> 3382.98 | D18: 0 | E18: 0 | F18: 0 | G18: 1 | H18: 3382.98 | I18: 0 | J18: 0 | K18: 0 | L18: 3382.98
A19: Protection setting | C19: ='AVS Data'!C84 -> 4307.53 | D19: 0 | E19: 0 | F19: 0 | G19: 1 | H19: 4307.53 | I19: 0 | J19: 0 | K19: 0 | L19: 4307.53
A20: Testing prior to commissioning | C20: ='AVS Data'!C85 -> 4883.7 | D20: 0 | E20: 0 | F20: 0 | G20: 1 | H20: 4883.7 | I20: 0 | J20: 0 | K20: 0 | L20: 4883.7
A21: Zone Sub 11kV CB termination | C21: ='AVS Data'!C86 -> 4021.6 | D21: 0 | E21: 0 | F21: 0 | G21: 1 | H21: =C21/$G21 -> 4021.6 | I21: 0 | J21: 0 | K21: 0 | L21: =SUM(H21:K21) -> 4021.6
A22: Zone Sub 22kV CB termination | C22: ='AVS Data'!C87 -> 4171.29 | D22: 0 | E22: 0 | F22: 0 | G22: 1 | H22: 4171.29 | I22: 0 | J22: 0 | K22: 0 | L22: 4171.29
A23: PM/Indoor 11kV sub termination | C23: ='AVS Data'!C88 -> 4361.92 | D23: 0 | E23: 0 | F23: 0 | G23: 1 | H23: 4361.92 | I23: 0 | J23: 0 | K23: 0 | L23: 4361.92
A24: PM/Indoor 22kV sub termination | C24: ='AVS Data'!C89 -> 5293.43 | D24: 0 | E24: 0 | F24: 0 | G24: 1 | H24: 5293.43 | I24: 0 | J24: 0 | K24: 0 | L24: 5293.43
A25: Pole top 11kV UGOH termination | C25: ='AVS Data'!C90 -> 5170.76 | D25: 0 | E25: 0 | F25: 0 | G25: 1 | H25: 5170.76 | I25: 0 | J25: 0 | K25: 0 | L25: 5170.76
A26: Pole top 22kV UGOH termination | C26: ='AVS Data'!C91 -> 5793.2 | D26: 0 | E26: 0 | F26: 0 | G26: 1 | H26: 5793.2 | I26: 0 | J26: 0 | K26: 0 | L26: 5793.2
A27: First STJ out of zone substation 11kV | C27: ='AVS Data'!C92 -> 4293.67 | D27: 0 | E27: 0 | F27: 0 | G27: 1 | H27: 4293.67 | I27: 0 | J27: 0 | K27: 0 | L27: 4293.67
A28: First STJ out of zone substation 22kV | C28: ='AVS Data'!C93 -> 4483.63 | D28: 0 | E28: 0 | F28: 0 | G28: 1 | H28: 4483.63 | I28: 0 | J28: 0 | K28: 0 | L28: 4483.63
A30: Labour & Plant | B30: GST EXCLUSIVE PRICE $ | F30: Extra cable allowance for HV joints
A31: Zone substation cable termination | B31: 1454.409091 | F31: PM sub term | G31: 5 | H31: =G31*'UG_Lay Cable'!L38 -> 147.99114
A32: Cable manoeuvring | B32: 2017.245455 | F32: UGOH | G32: 15 | H32: =G32*'UG_Lay Cable'!L38 -> 443.97342
A33: Protection setting | B33: 1868.472727 | F33: STJ | G33: 2 | H33: =G33*'UG_Lay Cable'!L38 -> 59.196456
A34: Testing to prior to commissioning | B34: 1433.754545
A35: First STJ out of zone substation | B35: 1454.409091
A36: Materials | B36: GST EXCLUSIVE PRICE $
A37: 11/22kV CB Termination | B37: 677.1636364
A38: Pad mount termination | B38: 677.1636364
A39: Indoor sub termination | B39: 677.1636364
A40: Pole top termination (UGOH) | B40: 550.8
A41: Straight through joint | B41: 572.4

Sheet UG_Columns&Pillars (hidden)
A1: Pillars & Columns | B1: 2 | C1: 3 | D1: 4 | E1: 5 | F1: 6 | G1: 7 | H1: 8 | I1: 9 | J1: 10 | K1: 11 | L1: 12
A2: Activity | B2: D2 | C2: Labour | D2: Plant and Vehicles | E2: Materials2 | F2: Direct | G2: Units | H2: Labour/Unit | I2: Plant & Vehicles / Unit | J2: Materials / Unit | K2: Direct / Unit | L2: Total / Unit
A3: Install Ragbolt | C3: ='Dataload WMS'!D92 -> 763.63 | D3: ='Dataload WMS'!E92 -> 282.8 | E3: ='Dataload WMS'!F92 -> 1651.08 | F3: ='Dataload WMS'!G92 -> 0 | G3: ='Dataload WMS'!H92 -> 4 | H3: =C3/$G3 -> 190.9075 | I3: 70.7 | J3: 412.77 | K3: 0 | L3: =SUM(H3:K3) -> 674.3775
A4: Remove Ragbolt | C4: ='Dataload WMS'!D93 -> 510.76 | D4: ='Dataload WMS'!E93 -> 227.56 | E4: ='Dataload WMS'!F93 -> 0 | F4: ='Dataload WMS'!G93 -> 0 | G4: ='Dataload WMS'!H93 -> 1 | H4: 510.76 | I4: 227.56 | J4: 0 | K4: 0 | L4: =SUM(H4:K4) -> 738.32
A5: Install Service Pillar | C5: ='Dataload WMS'!D91 -> 513.66 | D5: ='Dataload WMS'!E91 -> 82.76 | E5: ='Dataload WMS'!F91 -> 58.42 | F5: ='Dataload WMS'!G91 -> 0 | G5: ='Dataload WMS'!H91 -> 1 | H5: 513.66 | I5: 82.76 | J5: 58.42 | K5: 0 | L5: =SUM(H5:K5) -> 654.84
A6: Install Mains Pillar | C6: ='Dataload WMS'!D90 -> 513.66 | D6: ='Dataload WMS'!E90 -> 82.76 | E6: ='Dataload WMS'!F90 -> 63.63 | F6: ='Dataload WMS'!G90 -> 0 | G6: ='Dataload WMS'!H90 -> 1 | H6: 513.66 | I6: 82.76 | J6: 63.63 | K6: 0 | L6: =SUM(H6:K6) -> 660.05
A7: Remove Column | C7: 462.6 | D7: 37.3 | E7: 0 | F7: 0 | G7: 3 | H7: 154.2 | I7: 12.43333333 | J7: 0 | K7: 0 | L7: =SUM(H7:K7) -> 166.6333333
A9: number Installed | B9: D2 | C9: Labour | D9: Plant and Vehicles | E9: Materials2 | F9: Direct | G9: Units | H9: Labour/Unit | I9: Plant & Vehicles / Unit | J9: Materials / Unit | K9: Direct / Unit | L9: Total / Unit
A10: 0 | B10: none | C10: 0 | D10: 0 | E10: 0 | F10: 0 | G10: 0 | H10: 0 | I10: 0 | J10: 0 | K10: 0 | L10: 0
A11: 1 | B11: column | C11: ='Dataload WMS'!D126 -> 829.08 | D11: ='Dataload WMS'!E126 -> 398.39 | E11: 0 | F11: 0 | G11: 1 | H11: =C11/$G11 -> 829.08 | I11: 398.39 | J11: 0 | K11: 0 | L11: =SUM(H11:K11) -> 1227.47
A12: 2 | B12: columns | C12: ='Dataload WMS'!D127 -> 868.06 | D12: ='Dataload WMS'!E127 -> 323.61 | E12: 0 | F12: 0 | G12: 2 | H12: 434.03 | I12: 161.805 | J12: 0 | K12: 0 | L12: 595.835
A13: 3 | B13: columns | C13: =(C14+C12)/2 -> 1179.29 | D13: =(D14+D12)/2 -> 542.56 | E13: =(E14+E12)/2 -> 0 | F13: =(F14+F12)/2 -> 0 | G13: 3 | H13: 393.0966667 | I13: 180.8533333 | J13: 0 | K13: 0 | L13: 573.95
A14: 4 | B14: columns | C14: ='Dataload WMS'!D128 -> 1490.52 | D14: ='Dataload WMS'!E128 -> 761.51 | E14: 0 | F14: 0 | G14: 4 | H14: 372.63 | I14: 190.3775 | J14: 0 | K14: 0 | L14: 563.0075
A15: 5 | B15: columns | C15: =(C14)+(C$18-C$14)/($A$18-$A$14) -> 1855.265 | D15: 949.985 | E15: 0 | F15: 0 | G15: 5 | H15: 371.053 | I15: 189.997 | J15: 0 | K15: 0 | L15: 561.05
A16: 6 | B16: columns | C16: 2220.01 | D16: 1138.46 | E16: 0 | F16: 0 | G16: 6 | H16: 370.0016667 | I16: 189.7433333 | J16: 0 | K16: 0 | L16: 559.745
A17: 7 | B17: columns | C17: 2584.755 | D17: 1326.935 | E17: 0 | F17: 0 | G17: 7 | H17: 369.2507143 | I17: 189.5621429 | J17: 0 | K17: 0 | L17: 558.8128571
A18: 8 | B18: columns | C18: ='Dataload WMS'!D129 -> 2949.5 | D18: ='Dataload WMS'!E129 -> 1515.41 | E18: 0 | F18: 0 | G18: 8 | H18: 368.6875 | I18: 189.42625 | J18: 0 | K18: 0 | L18: 558.11375
A20: To update column prices, update the following stock list only | M20: checked prices
A21: Stock List
A22: 001540137 | B22: =RIGHT(A22,7) -> 1540137 | C22: ='Dataload Ellipse'!G119 -> 561.5 | M22: =VLOOKUP('[1]UG_Columns&Pillars'!D22,'[2]PEF69F-Mats @21-10-09'!$A$2:$G$2202,4,FALSE) -> COLUMN 7M | N22: 608.075
A23: 001540145 | B23: =RIGHT(A23,7) -> 1540145 | C23: ='Dataload Ellipse'!G120 -> 563.2525 | M23: =VLOOKUP('[1]UG_Columns&Pillars'!D23,'[2]PEF69F-Mats @21-10-09'!$A$2:$G$2202,4,FALSE) -> COLUMN 8.5M | N23: 625.1
A24: 001540152 | B24: 1540152 | C24: ='Dataload Ellipse'!G121 -> 955 | M24: =VLOOKUP('[1]UG_Columns&Pillars'!D24,'[2]PEF69F-Mats @21-10-09'!$A$2:$G$2202,4,FALSE) -> COLUMN 10M | N24: 854.04
A25: 001540160 | B25: 1540160 | C25: ='Dataload Ellipse'!G122 -> 878 | M25: =VLOOKUP('[1]UG_Columns&Pillars'!D25,'[2]PEF69F-Mats @21-10-09'!$A$2:$G$2202,4,FALSE) -> COLUMN 11.5M | N25: 878
A26: 001540178 | B26: 1540178 | C26: ='Dataload Ellipse'!G123 -> 515.353043 | M26: =VLOOKUP('[1]UG_Columns&Pillars'!D26,'[2]PEF69F-Mats @21-10-09'!$A$2:$G$2202,4,FALSE) -> COLUMN 7M IMPACT ABSORB | N26: 718.96
A27: 001540186 | B27: 1540186 | C27: ='Dataload Ellipse'!G124 -> 582.5008 | M27: =VLOOKUP('[1]UG_Columns&Pillars'!D27,'[2]PEF69F-Mats @21-10-09'!$A$2:$G$2202,4,FALSE) -> COLUMN 8.5M IMPACT ABSORB | N27: 553.32
A28: 001540194 | B28: 1540194 | C28: ='Dataload Ellipse'!G125 -> 857.804878 | M28: =VLOOKUP('[1]UG_Columns&Pillars'!D28,'[2]PEF69F-Mats @21-10-09'!$A$2:$G$2202,4,FALSE) -> COLUMN 10M IMPACT ABSORB | N28: 872
A29: 001540210 | B29: 1540210 | C29: ='Dataload Ellipse'!G126 -> 126.796444 | M29: =VLOOKUP('[1]UG_Columns&Pillars'!D29,'[2]PEF69F-Mats @21-10-09'!$A$2:$G$2202,4,FALSE) -> OUTREACH 3M SINGLE CURVED | N29: 152.446
A30: 001540228 | B30: 1540228 | C30: ='Dataload Ellipse'!G127 -> 164.2731 | M30: =VLOOKUP('[1]UG_Columns&Pillars'!D30,'[2]PEF69F-Mats @21-10-09'!$A$2:$G$2202,4,FALSE) -> OUTREACH 4.5M SINGLE CURVED | N30: 216.98
A31: 001540236 | B31: 1540236 | C31: ='Dataload Ellipse'!G128 -> 25.752353 | M31: =VLOOKUP('[1]UG_Columns&Pillars'!D31,'[2]PEF69F-Mats @21-10-09'!$A$2:$G$2202,4,FALSE) -> OUTREACH EXTN 1.5M | N31: 40.01
A32: 001542208 | B32: 1542208 | C32: ='Dataload Ellipse'!G129 -> 860 | M32: =VLOOKUP('[1]UG_Columns&Pillars'!D32,'[2]PEF69F-Mats @21-10-09'!$A$2:$G$2202,4,FALSE) -> COLUMN OCT 6.5M T LANE WAY | N32: 860
A33: 001542257 | B33: 1542257 | C33: ='Dataload Ellipse'!G130 -> 225.833333 | M33: =VLOOKUP('[1]UG_Columns&Pillars'!D33,'[2]PEF69F-Mats @21-10-09'!$A$2:$G$2202,4,FALSE) -> LTG BKT 2XCURVE O'REACH 3M | N33: 295.002
A34: 001542265 | B34: 1542265 | C34: ='Dataload Ellipse'!G131 -> 265 | M34: =VLOOKUP('[1]UG_Columns&Pillars'!D34,'[2]PEF69F-Mats @21-10-09'!$A$2:$G$2202,4,FALSE) -> COLUMN TOP EXTN 2M | N34: 265
A35: 001542307 | B35: 1542307 | C35: ='Dataload Ellipse'!G132 -> 325.909091 | M35: =VLOOKUP('[1]UG_Columns&Pillars'!D35,'[2]PEF69F-Mats @21-10-09'!$A$2:$G$2202,4,FALSE) -> COLUMN TOP EXTN 2WAY ADAPTOR | N35: 375
A36: 001545110 | B36: 1545110 | C36: ='Dataload Ellipse'!G133 -> 322.74055 | M36: =VLOOKUP('[1]UG_Columns&Pillars'!D36,'[2]PEF69F-Mats @21-10-09'!$A$2:$G$2202,4,FALSE) -> COLUMN LARGE BASE 4.5M | N36: 321.97
A37: 001545128 | B37: 1545128 | C37: ='Dataload Ellipse'!G134 -> 388.647143 | M37: =VLOOKUP('[1]UG_Columns&Pillars'!D37,'[2]PEF69F-Mats @21-10-09'!$A$2:$G$2202,4,FALSE) -> COLUMN LARGE BASE 5.5M | N37: 439
A38: 001545193 | B38: 1545193 | C38: ='Dataload Ellipse'!G135 -> 116.374977 | M38: =VLOOKUP('[1]UG_Columns&Pillars'!D38,'[2]PEF69F-Mats @21-10-09'!$A$2:$G$2202,4,FALSE) -> OUTREACH 1.5M | N38: 116.33
A39: 001545201 | B39: 1545201 | C39: ='Dataload Ellipse'!G136 -> 151.049623 | M39: =VLOOKUP('[1]UG_Columns&Pillars'!D39,'[2]PEF69F-Mats @21-10-09'!$A$2:$G$2202,4,FALSE) -> OUTREACH 3M | N39: 177.42
A40: 001545219 | B40: 1545219 | C40: ='Dataload Ellipse'!G137 -> 207.914 | M40: =VLOOKUP('[1]UG_Columns&Pillars'!D40,'[2]PEF69F-Mats @21-10-09'!$A$2:$G$2202,4,FALSE) -> OUTREACH 4.5M | N40: 235.014
A41: 001545227 | B41: 1545227 | C41: ='Dataload Ellipse'!G138 -> 230 | M41: =VLOOKUP('[1]UG_Columns&Pillars'!D41,'[2]PEF69F-Mats @21-10-09'!$A$2:$G$2202,4,FALSE) -> OUTREACH 4.5M | N41: 230
A42: 001545235 | B42: 1545235 | C42: ='Dataload Ellipse'!G139 -> 273.333333 | M42: =VLOOKUP('[1]UG_Columns&Pillars'!D42,'[2]PEF69F-Mats @21-10-09'!$A$2:$G$2202,4,FALSE) -> DOUBLE OUTREACH 3M DWG 262717 | N42: 295
A43: 001545243 | B43: 1545243 | C43: ='Dataload Ellipse'!G140 -> 394.6216 | M43: =VLOOKUP('[1]UG_Columns&Pillars'!D43,'[2]PEF69F-Mats @21-10-09'!$A$2:$G$2202,4,FALSE) -> DOUBLE OUTREACH 4.5M DWG262717 | N43: 394.62
A48: A description of what is in each unit is here
B49: Material 1 | C49: Qty 1 | D49: Material 2 | E49: Qty 2 | F49: Cost 1 | G49: Cost 2 | H49: Total Cost
A50: Pole 4.5m | B50: 1545110 | C50: 1 | F50: =VLOOKUP(B50,$B$22:$C$43,2) -> 322.74055 | G50: =IF(D50="",0,VLOOKUP(D50,$B$22:$C$43,2,FALSE)) -> 0 | H50: =F50+G50*E50 -> 322.74055
A51: Pole 5.5m | B51: 1545128 | C51: 1 | F51: 439 | G51: 0 | H51: 439
A52: Pole 6.5m | B52: 1545110 | C52: 1 | D52: 1540236 | E52: 1 | F52: 322.74055 | G52: 25.752353 | H52: 348.492903
A53: Pole 7.0m | B53: 1540137 | C53: 1 | F53: 561.5 | G53: 0 | H53: 561.5
A54: Pole 7.5m | B54: =B51 -> 1545128 | C54: 1 | D54: 1540236 | E54: 1 | F54: 439 | G54: 25.752353 | H54: 464.752353
A55: Pole 8.5m | B55: 1540145 | C55: 1 | F55: 563.2525 | G55: 0 | H55: 563.2525
A56: Pole 9.0m | B56: =B53 -> 1540137 | C56: 1 | D56: 1540236 | E56: 1 | F56: 561.5 | G56: 25.752353 | H56: 587.252353
A57: Pole 10.0m | B57: 1540152 | C57: 1 | F57: 955 | G57: 0 | H57: 955
A58: Pole 10.5m | B58: =B55 -> 1540145 | C58: 1 | D58: 1540236 | E58: 1 | F58: 563.2525 | G58: 25.752353 | H58: 589.004853
A59: Pole 11.5m | B59: 1540160 | C59: 1 | F59: 878 | G59: 0 | H59: 878
A60: Pole 12.0m | B60: =B57 -> 1540152 | C60: 1 | D60: 1540236 | E60: 1 | F60: 955 | G60: 25.752353 | H60: 980.752353
A61: Impact Absorbing 7.0m | B61: 1540178 | C61: 1 | F61: 515.353043 | G61: 0 | H61: 515.353043
A62: Impact Absorbing 8.5m | B62: 1540186 | C62: 1 | F62: 582.5008 | G62: 0 | H62: 582.5008
A63: Impact Absorbing 9.0m | B63: =B61 -> 1540178 | C63: 1 | D63: 1540236 | E63: 1 | F63: 515.353043 | G63: 25.752353 | H63: 541.105396
A64: Impact Absorbing 10.0m | B64: 1540194 | C64: 1 | F64: 857.804878 | G64: 0 | H64: 857.804878
A65: Impact Absorbing 10.5m | B65: =B62 -> 1540186 | C65: 1 | D65: 1540236 | E65: 1 | F65: 582.5008 | G65: 25.752353 | H65: 608.253153
A66: Impact Absorbing 11.5m | B66: 1540202 | C66: 1 | F66: 857.804878 | G66: 0 | H66: 857.804878
A67: Impact Absorbing 12.0m | B67: =B64 -> 1540194 | C67: 1 | D67: 1540236 | E67: 1 | F67: 857.804878 | G67: 25.752353 | H67: 883.557231
A68: Single 1.5m | B68: 1545193 | C68: 1 | F68: 124.15 | G68: 0 | H68: 124.15
A69: Single 3.0m | B69: 1540210 | C69: 1 | F69: 126.796444 | G69: 0 | H69: 126.796444
A70: Single 4.5m | B70: 1540228 | C70: 1 | F70: 164.2731 | G70: 0 | H70: 164.2731
A71: Single 6.0m | B71: 1540228 | C71: 1 | D71: 1540236 | E71: 1 | F71: 164.2731 | G71: 25.752353 | H71: 190.025453
A72: Double 1.5m | B72: 1545227 | C72: 1 | F72: 230 | G72: 0 | H72: 230
A73: Double 3.0m | B73: 1542257 | C73: 1 | F73: 225.833333 | G73: 0 | H73: 225.833333
A74: Double 4.5m | B74: 1542257 | C74: 1 | D74: 1540236 | E74: 2 | F74: 225.833333 | G74: 25.752353 | H74: 277.338039
A76: no need to update these: they are based on the values in the table above
A77: Materials | B77: D2 | C77: Labour | D77: Plant and Vehicles | E77: Materials2 | F77: Direct | G77: Units | H77: Labour/Unit | I77: Plant & Vehicles / Unit | J77: Materials / Unit | K77: Direct / Unit | L77: Total / Unit
A78: Pole 4.5m | C78: 0 | D78: 0 | E78: =H50 -> 322.74055 | F78: 0 | G78: 1 | H78: =C78/$G78 -> 0 | I78: =D78/$G78 -> 0 | J78: =E78/$G78 -> 322.74055 | K78: =F78/$G78 -> 0 | L78: =SUM(H78:K78) -> 322.74055
A79: Pole 5.5m | C79: 0 | D79: 0 | E79: 439 | F79: 0 | G79: 1 | H79: 0 | I79: 0 | J79: 439 | K79: 0 | L79: 439
A80: Pole 6.5m | C80: 0 | D80: 0 | E80: 348.492903 | F80: 0 | G80: 1 | H80: 0 | I80: 0 | J80: 348.492903 | K80: 0 | L80: 348.492903
A81: Pole 7.0m | C81: 0 | D81: 0 | E81: 561.5 | F81: 0 | G81: 1 | H81: 0 | I81: 0 | J81: 561.5 | K81: 0 | L81: 561.5
A82: Pole 7.5m | C82: 0 | D82: 0 | E82: 464.752353 | F82: 0 | G82: 1 | H82: 0 | I82: 0 | J82: 464.752353 | K82: 0 | L82: 464.752353
A83: Pole 8.5m | C83: 0 | D83: 0 | E83: 563.2525 | F83: 0 | G83: 1 | H83: 0 | I83: 0 | J83: 563.2525 | K83: 0 | L83: 563.2525
A84: Pole 9.0m | C84: 0 | D84: 0 | E84: 587.252353 | F84: 0 | G84: 1 | H84: 0 | I84: 0 | J84: 587.252353 | K84: 0 | L84: 587.252353
A85: Pole 10.0m | C85: 0 | D85: 0 | E85: 955 | F85: 0 | G85: 1 | H85: 0 | I85: 0 | J85: 955 | K85: 0 | L85: 955
A86: Pole 10.5m | C86: 0 | D86: 0 | E86: 589.004853 | F86: 0 | G86: 1 | H86: 0 | I86: 0 | J86: 589.004853 | K86: 0 | L86: 589.004853
A87: Pole 11.5m | C87: 0 | D87: 0 | E87: 878 | F87: 0 | G87: 1 | H87: 0 | I87: 0 | J87: 878 | K87: 0 | L87: 878
A88: Pole 12.0m | C88: 0 | D88: 0 | E88: 980.752353 | F88: 0 | G88: 1 | H88: 0 | I88: 0 | J88: 980.752353 | K88: 0 | L88: 980.752353
A89: Impact Absorbing 7.0m | C89: 0 | D89: 0 | E89: 515.353043 | F89: 0 | G89: 1 | H89: 0 | I89: 0 | J89: 515.353043 | K89: 0 | L89: 515.353043
A90: Impact Absorbing 8.5m | C90: 0 | D90: 0 | E90: 582.5008 | F90: 0 | G90: 1 | H90: 0 | I90: 0 | J90: 582.5008 | K90: 0 | L90: 582.5008
A91: Impact Absorbing 9.0m | C91: 0 | D91: 0 | E91: 541.105396 | F91: 0 | G91: 1 | H91: 0 | I91: 0 | J91: 541.105396 | K91: 0 | L91: 541.105396
A92: Impact Absorbing 10.0m | C92: 0 | D92: 0 | E92: 857.804878 | F92: 0 | G92: 1 | H92: 0 | I92: 0 | J92: 857.804878 | K92: 0 | L92: 857.804878
A93: Impact Absorbing 10.5m | C93: 0 | D93: 0 | E93: 608.253153 | F93: 0 | G93: 1 | H93: 0 | I93: 0 | J93: 608.253153 | K93: 0 | L93: 608.253153
A94: Impact Absorbing 11.5m | C94: 0 | D94: 0 | E94: 857.804878 | F94: 0 | G94: 1 | H94: 0 | I94: 0 | J94: 857.804878 | K94: 0 | L94: 857.804878
A95: Impact Absorbing 12.0m | C95: 0 | D95: 0 | E95: 883.557231 | F95: 0 | G95: 1 | H95: 0 | I95: 0 | J95: 883.557231 | K95: 0 | L95: 883.557231
A97: Materials | B97: D2 | C97: Labour | D97: Plant and Vehicles | E97: Materials2 | F97: Direct | G97: Units | H97: Labour/Unit | I97: Plant & Vehicles / Unit | J97: Materials / Unit | K97: Direct / Unit | L97: Total / Unit
A98: Single 1.5m | C98: 0 | D98: 0 | E98: =F68 -> 124.15 | F98: 0 | G98: 1 | H98: =C98/$G98 -> 0 | I98: 0 | J98: 124.15 | K98: 0 | L98: =SUM(H98:K98) -> 124.15
A99: Single 3.0m | C99: 0 | D99: 0 | E99: 126.796444 | F99: 0 | G99: 1 | H99: 0 | I99: 0 | J99: 126.796444 | K99: 0 | L99: 126.796444
A100: Single 4.5m | C100: 0 | D100: 0 | E100: 164.2731 | F100: 0 | G100: 1 | H100: 0 | I100: 0 | J100: 164.2731 | K100: 0 | L100: 164.2731
A101: Single 6.0m | C101: 0 | D101: 0 | E101: 164.2731 | F101: 0 | G101: 1 | H101: 0 | I101: 0 | J101: 164.2731 | K101: 0 | L101: 164.2731
A102: Double 1.5m | C102: 0 | D102: 0 | E102: 230 | F102: 0 | G102: 1 | H102: 0 | I102: 0 | J102: 230 | K102: 0 | L102: 230
A103: Double 3.0m | C103: 0 | D103: 0 | E103: 225.833333 | F103: 0 | G103: 1 | H103: 0 | I103: 0 | J103: 225.833333 | K103: 0 | L103: 225.833333
A104: Double 4.5m | C104: 0 | D104: 0 | E104: 225.833333 | F104: 0 | G104: 1 | H104: 0 | I104: 0 | J104: 225.833333 | K104: 0 | L104: 225.833333
E106: Breakdown | F106: Price
A107: =INDEX(CPoleList,C107) -> Pole 4.5m | B107: =INDEX(COutreachL,D107) -> Single 1.5m | C107: 1 | D107: 1 | E107: =A107& " outreach: "&B107 -> Pole 4.5m outreach: Single 1.5m | F107: =VLOOKUP(A107,CPole,12,FALSE)+VLOOKUP(B107,COutreach,12,FALSE) -> 446.89055
A108: Pole 4.5m | B108: Single 3.0m | C108: 1 | D108: 2 | E108: =A108& " outreach: "&B108 -> Pole 4.5m outreach: Single 3.0m | F108: 449.536994
A109: Pole 4.5m | B109: Single 4.5m | C109: 1 | D109: 3 | E109: Pole 4.5m outreach: Single 4.5m | F109: 487.01365
A110: Pole 4.5m | B110: Single 6.0m | C110: 1 | D110: 4 | E110: Pole 4.5m outreach: Single 6.0m | F110: 487.01365
A111: Pole 4.5m | B111: Double 1.5m | C111: 1 | D111: 5 | E111: Pole 4.5m outreach: Double 1.5m | F111: 552.74055
A112: Pole 4.5m | B112: Double 3.0m | C112: 1 | D112: 6 | E112: Pole 4.5m outreach: Double 3.0m | F112: 548.573883
A113: Pole 4.5m | B113: Double 4.5m | C113: 1 | D113: 7 | E113: Pole 4.5m outreach: Double 4.5m | F113: 548.573883
A114: Pole 5.5m | B114: Single 1.5m | C114: =C107+1 -> 2 | D114: =D107 -> 1 | E114: Pole 5.5m outreach: Single 1.5m | F114: 563.15
A115: Pole 5.5m | B115: Single 3.0m | C115: 2 | D115: 2 | E115: Pole 5.5m outreach: Single 3.0m | F115: 565.796444
A116: Pole 5.5m | B116: Single 4.5m | C116: 2 | D116: 3 | E116: Pole 5.5m outreach: Single 4.5m | F116: 603.2731
A117: Pole 5.5m | B117: Single 6.0m | C117: 2 | D117: 4 | E117: Pole 5.5m outreach: Single 6.0m | F117: 603.2731
A118: Pole 5.5m | B118: Double 1.5m | C118: 2 | D118: 5 | E118: Pole 5.5m outreach: Double 1.5m | F118: 669
A119: Pole 5.5m | B119: Double 3.0m | C119: 2 | D119: 6 | E119: Pole 5.5m outreach: Double 3.0m | F119: 664.833333
A120: Pole 5.5m | B120: Double 4.5m | C120: 2 | D120: 7 | E120: Pole 5.5m outreach: Double 4.5m | F120: 664.833333
A121: Pole 6.5m | B121: Single 1.5m | C121: 3 | D121: 1 | E121: Pole 6.5m outreach: Single 1.5m | F121: 472.642903
A122: Pole 6.5m | B122: Single 3.0m | C122: 3 | D122: 2 | E122: Pole 6.5m outreach: Single 3.0m | F122: 475.289347
A123: Pole 6.5m | B123: Single 4.5m | C123: 3 | D123: 3 | E123: Pole 6.5m outreach: Single 4.5m | F123: 512.766003
A124: Pole 6.5m | B124: Single 6.0m | C124: 3 | D124: 4 | E124: Pole 6.5m outreach: Single 6.0m | F124: 512.766003
A125: Pole 6.5m | B125: Double 1.5m | C125: 3 | D125: 5 | E125: Pole 6.5m outreach: Double 1.5m | F125: 578.492903
A126: Pole 6.5m | B126: Double 3.0m | C126: 3 | D126: 6 | E126: Pole 6.5m outreach: Double 3.0m | F126: 574.326236
A127: Pole 6.5m | B127: Double 4.5m | C127: 3 | D127: 7 | E127: Pole 6.5m outreach: Double 4.5m | F127: 574.326236
A128: Pole 7.0m | B128: Single 1.5m | C128: 4 | D128: 1 | E128: Pole 7.0m outreach: Single 1.5m | F128: 685.65
A129: Pole 7.0m | B129: Single 3.0m | C129: 4 | D129: 2 | E129: Pole 7.0m outreach: Single 3.0m | F129: 688.296444
A130: Pole 7.0m | B130: Single 4.5m | C130: 4 | D130: 3 | E130: Pole 7.0m outreach: Single 4.5m | F130: 725.7731
A131: Pole 7.0m | B131: Single 6.0m | C131: 4 | D131: 4 | E131: Pole 7.0m outreach: Single 6.0m | F131: 725.7731
A132: Pole 7.0m | B132: Double 1.5m | C132: 4 | D132: 5 | E132: Pole 7.0m outreach: Double 1.5m | F132: 791.5
A133: Pole 7.0m | B133: Double 3.0m | C133: 4 | D133: 6 | E133: Pole 7.0m outreach: Double 3.0m | F133: 787.333333
A134: Pole 7.0m | B134: Double 4.5m | C134: 4 | D134: 7 | E134: Pole 7.0m outreach: Double 4.5m | F134: 787.333333
A135: Pole 7.5m | B135: Single 1.5m | C135: 5 | D135: 1 | E135: Pole 7.5m outreach: Single 1.5m | F135: 588.902353
A136: Pole 7.5m | B136: Single 3.0m | C136: 5 | D136: 2 | E136: Pole 7.5m outreach: Single 3.0m | F136: 591.548797
A137: Pole 7.5m | B137: Single 4.5m | C137: 5 | D137: 3 | E137: Pole 7.5m outreach: Single 4.5m | F137: 629.025453
A138: Pole 7.5m | B138: Single 6.0m | C138: 5 | D138: 4 | E138: Pole 7.5m outreach: Single 6.0m | F138: 629.025453
A139: =INDEX(CPoleList,C139) -> Pole 7.5m | B139: =INDEX(COutreachL,D139) -> Double 1.5m | C139: 5 | D139: 5 | E139: =A139& " outreach: "&B139 -> Pole 7.5m outreach: Double 1.5m | F139: =VLOOKUP(A139,CPole,12,FALSE)+VLOOKUP(B139,COutreach,12,FALSE) -> 694.752353
A140: Pole 7.5m | B140: Double 3.0m | C140: 5 | D140: 6 | E140: Pole 7.5m outreach: Double 3.0m | F140: 690.585686
A141: Pole 7.5m | B141: Double 4.5m | C141: 5 | D141: 7 | E141: Pole 7.5m outreach: Double 4.5m | F141: 690.585686
A142: Pole 8.5m | B142: Single 1.5m | C142: 6 | D142: 1 | E142: Pole 8.5m outreach: Single 1.5m | F142: 687.4025
A143: Pole 8.5m | B143: Single 3.0m | C143: 6 | D143: 2 | E143: Pole 8.5m outreach: Single 3.0m | F143: 690.048944
A144: Pole 8.5m | B144: Single 4.5m | C144: 6 | D144: 3 | E144: Pole 8.5m outreach: Single 4.5m | F144: 727.5256
A145: Pole 8.5m | B145: Single 6.0m | C145: 6 | D145: 4 | E145: Pole 8.5m outreach: Single 6.0m | F145: 727.5256
A146: Pole 8.5m | B146: Double 1.5m | C146: =C139+1 -> 6 | D146: =D139 -> 5 | E146: Pole 8.5m outreach: Double 1.5m | F146: 793.2525
A147: Pole 8.5m | B147: Double 3.0m | C147: 6 | D147: 6 | E147: Pole 8.5m outreach: Double 3.0m | F147: 789.085833
A148: Pole 8.5m | B148: Double 4.5m | C148: 6 | D148: 7 | E148: Pole 8.5m outreach: Double 4.5m | F148: 789.085833
A149: Pole 9.0m | B149: Single 1.5m | C149: 7 | D149: 1 | E149: Pole 9.0m outreach: Single 1.5m | F149: 711.402353
A150: Pole 9.0m | B150: Single 3.0m | C150: 7 | D150: 2 | E150: Pole 9.0m outreach: Single 3.0m | F150: 714.048797
A151: Pole 9.0m | B151: Single 4.5m | C151: 7 | D151: 3 | E151: Pole 9.0m outreach: Single 4.5m | F151: 751.525453
A152: Pole 9.0m | B152: Single 6.0m | C152: 7 | D152: 4 | E152: Pole 9.0m outreach: Single 6.0m | F152: 751.525453
A153: Pole 9.0m | B153: Double 1.5m | C153: 7 | D153: 5 | E153: Pole 9.0m outreach: Double 1.5m | F153: 817.252353
A154: Pole 9.0m | B154: Double 3.0m | C154: 7 | D154: 6 | E154: Pole 9.0m outreach: Double 3.0m | F154: 813.085686
A155: Pole 9.0m | B155: Double 4.5m | C155: 7 | D155: 7 | E155: Pole 9.0m outreach: Double 4.5m | F155: 813.085686
A156: Pole 10.0m | B156: Single 1.5m | C156: 8 | D156: 1 | E156: Pole 10.0m outreach: Single 1.5m | F156: 1079.15
A157: Pole 10.0m | B157: Single 3.0m | C157: 8 | D157: 2 | E157: Pole 10.0m outreach: Single 3.0m | F157: 1081.796444
A158: Pole 10.0m | B158: Single 4.5m | C158: 8 | D158: 3 | E158: Pole 10.0m outreach: Single 4.5m | F158: 1119.2731
A159: Pole 10.0m | B159: Single 6.0m | C159: 8 | D159: 4 | E159: Pole 10.0m outreach: Single 6.0m | F159: 1119.2731
A160: Pole 10.0m | B160: Double 1.5m | C160: 8 | D160: 5 | E160: Pole 10.0m outreach: Double 1.5m | F160: 1185
A161: Pole 10.0m | B161: Double 3.0m | C161: 8 | D161: 6 | E161: Pole 10.0m outreach: Double 3.0m | F161: 1180.833333
A162: Pole 10.0m | B162: Double 4.5m | C162: 8 | D162: 7 | E162: Pole 10.0m outreach: Double 4.5m | F162: 1180.833333
A163: Pole 10.5m | B163: Single 1.5m | C163: 9 | D163: 1 | E163: Pole 10.5m outreach: Single 1.5m | F163: 713.154853
A164: Pole 10.5m | B164: Single 3.0m | C164: 9 | D164: 2 | E164: Pole 10.5m outreach: Single 3.0m | F164: 715.801297
A165: Pole 10.5m | B165: Single 4.5m | C165: 9 | D165: 3 | E165: Pole 10.5m outreach: Single 4.5m | F165: 753.277953
A166: Pole 10.5m | B166: Single 6.0m | C166: 9 | D166: 4 | E166: Pole 10.5m outreach: Single 6.0m | F166: 753.277953
A167: Pole 10.5m | B167: Double 1.5m | C167: 9 | D167: 5 | E167: Pole 10.5m outreach: Double 1.5m | F167: 819.004853
A168: Pole 10.5m | B168: Double 3.0m | C168: 9 | D168: 6 | E168: Pole 10.5m outreach: Double 3.0m | F168: 814.838186
A169: Pole 10.5m | B169: Double 4.5m | C169: 9 | D169: 7 | E169: Pole 10.5m outreach: Double 4.5m | F169: 814.838186
A170: Pole 11.5m | B170: Single 1.5m | C170: 10 | D170: 1 | E170: Pole 11.5m outreach: Single 1.5m | F170: 1002.15
A171: =INDEX(CPoleList,C171) -> Pole 11.5m | B171: =INDEX(COutreachL,D171) -> Single 3.0m | C171: 10 | D171: 2 | E171: =A171& " outreach: "&B171 -> Pole 11.5m outreach: Single 3.0m | F171: =VLOOKUP(A171,CPole,12,FALSE)+VLOOKUP(B171,COutreach,12,FALSE) -> 1004.796444
A172: Pole 11.5m | B172: Single 4.5m | C172: 10 | D172: 3 | E172: Pole 11.5m outreach: Single 4.5m | F172: 1042.2731
A173: Pole 11.5m | B173: Single 6.0m | C173: 10 | D173: 4 | E173: Pole 11.5m outreach: Single 6.0m | F173: 1042.2731
A174: Pole 11.5m | B174: Double 1.5m | C174: 10 | D174: 5 | E174: Pole 11.5m outreach: Double 1.5m | F174: 1108
A175: Pole 11.5m | B175: Double 3.0m | C175: 10 | D175: 6 | E175: Pole 11.5m outreach: Double 3.0m | F175: 1103.833333
